Workbook

Sheet Instrucciones
B3: CALIFICACIÓN DE LAS COMPETENCIAS CLAVE Y DE LAS MATERIAS 1º_BACH_CIENCIAS Y TECNOLOGÍA
B6: INSTRUCCIONES 1. INCORPORAR LOS CRITERIOS DE CALIFICACIÓN DE LAS COMPETENCIAS CLAVE BOTÓN: "INCORPORAR LOS CRITERIOS DE CALIFICACIÓN DE LAS COMPETENCIAS CLAVE." Para introducir los criterios de calificación de las competencias clave hay que seleccionar una opción en cada uno de los siguientes campos: -Pesos de los criterios de evaluación en el cálculo de la calificación de los descriptores operativos. -Pesos de los descriptores operativos en el cálculo de la calificación de las competencias clave. Si se considera, se puede bloquear la información introducida pulsado en el botón "PROTEGIDA" e introduciendo una contaseña. En caso de querer desbloquear la página se debe pulsar en el botón "DESPROTEGIDA" e introducir la contraseña marcada. 2. INCORPORAR EL NOMBRE DE LOS ALUMNOS QUE COMPONEN EL GRUPO. BOTÓN: "INCORPORAR EL LISTADO DE ALUMNOS" Introducir el nombre de todos los alumnos que componen el grupo-clase. Marcar las materias de opción que cursa cada alumno. Pulsando sobre el botón "informe" en cada alumnno se visualiza de forma individualizada la composición de las calificaciones de las materias y de las competencias clave a partir de las notas de los criterios de evaluación. Además, se incorporan dos botones para facilitar el trabajo colaborativo a través de TEAMS o Onedrive. El procedimiento es el siguiente: 1º Se pulsa el botón superior de esta sección TEAMS/Onedrive; 2º Una vez guardado el archivo, se comparte con las citadas aplicaciones; 3º Los docentes incorporan las céntésimas de redondeo de su materia en la pestaña "Redondeo" y las notas de los criterios de evaluación en la pestaña correspondiente a su materia; 4º Se descarga el archivo y se pulsa en el segundo botón de esta sección TEAMS/Onedrive para normalizar su funcionamiento y poder visualizar toda la información que esta herramienta ofrece. 3. INCORPORAR LAS CALIFICACIONES DE LOS CRITERIOS DE EVALUACIÓN DE LAS MATERIAS CURSADAS POR EL ALUMNO. BOTÓN: "INCORPORAR LA CALIFICACIÓN POR MATERIAS DE LOS CRITERIOS DE EVALUACIÓN " Seleccionar la materia. En la pestaña de destino introducir los pesos (ponderaciones) de cada criterio de evaluación (es decir, los criterios de calificación de la materia) y las calificaciones de los criterios de evaluación para los alumnos que cursen la materia o, en su caso, la calificación de la materia. 4. OBSERVAR LAS NOTAS DE LAS COMPETENCIAS CLAVE DE LOS ALUMNOS. BOTÓN: "VISUALIZAR LAS NOTAS DE LAS COMPETENCIAS CLAVE" Permite observar las notas de las competencias clave de cada alumno en función de los criterios de calificación de las competencias clave introducidos. Además, desde la pantalla de destino se puede generar un documento para exportar las notas de las competencias clave a STILUS. Para ello, previamente es necesario introducir las centésimas de redondeo de las notas de las competencias clave en la celda creada al efecto. 5. OBSERVAR LAS NOTAS DE LAS MATERIAS DE LOS ALUMNOS. BOTÓN: "VISUALIZAR LAS NOTAS DE LAS MATERIAS" Permite observar las notas de las materias de cada alumno, en función de los criterios de calificación de la materia introducidos. Además, desde la pantalla de destino se puede generar un documento para exportar las notas de las materias a STILUS.

Sheet Criterios de calificacion CClav
D4: CRITERIOS DE CALIFICACIÓN DE LAS COMPETENCIAS CLAVE
D6: Pesos de los criterios de evaluación en el cálculo de la calificación de los descriptores operativos
E8: MEDIA SIMPLE. Se aplica un criterio común para el cálculo de la calificación de todos los descriptores. Todos los criterios de evaluación pesan (ponderan) los mismo en la calificaión de los descriptores operativos.
E10: MEDIA PONDERADA POR CARGA HORARIA. Se aplica un criterio común para el cálculo de la calificación de todos los descriptores. El peso de los criterios de evaluación se determina en función de la carga horaria de la materia. (RECOMENDADO)
E12: LIBRE. Se aplica un criterio común para el cálculo de la calificación de todos los descriptores. El peso de cada criterio de evaluación en la calificación de los descriptores se determina por el centro.
E14: LIBRE DIFERENCIADO POR DESCRIPTORES. Se aplica un criterio diferenciado para el cálculo de la calificación de cada descriptor. El peso de cada criterio de evaluación en la calificación de cada descriptor se determina por el centro.
D16: Pesos de los descriptores operativos en el cálculo de la calificación de las competencias clave
E18: MEDIA PONDERADA. El peso de los descriptores operativos en el cálculo de la calificación de la competencia clave se determina en proporción al número de vinculaciones de cada descriptor operativo con los criterios de evaluación (RECOMENDADO)
E20: LIBRE. El peso (ponderación) de los descriptores operativos en el cálculo de la calificación de la competencia clave se determina por el centro.

Sheet Peso criterios carga horaria
F2: Mismo peso todos los descriptores
F3: Sí
E4: CALIFICACIÓN | F4: PESO TODOS
B5: Anatomía Aplicada | C5: Comp. Esp. 1 | D5: Criterio Evaluación 1.1 | F5: 4
D6: Criterio Evaluación 1.2 | F6: 4
D7: Criterio Evaluación 1.3 | F7: 4
C8: Comp. Esp. 2 | D8: Criterio Evaluación 2.1 | F8: 4
D9: Criterio Evaluación 2.2 | F9: 4
D10: Criterio Evaluación 2.3 | F10: 4
C11: Comp. Esp. 3 | D11: Criterio Evaluación 3.1 | F11: 4
D12: Criterio Evaluación 3.2 | F12: 4
D13: Criterio Evaluación 3.3 | F13: 4
D14: Criterio Evaluación 3.4 | F14: 4
D15: Criterio Evaluación 3.5 | F15: 4
D16: Criterio Evaluación 3.6 | F16: 4
C17: Comp. Esp. 4 | D17: Criterio Evaluación 4.1 | F17: 4
D18: Criterio Evaluación 4.2 | F18: 4
D19: Criterio Evaluación 4.3 | F19: 4
D20: Criterio Evaluación 4.4 | F20: 4
C21: Comp. Esp. 5 | D21: Criterio Evaluación 5.1 | F21: 4
D22: Criterio Evaluación 5.2 | F22: 4
D23: Criterio Evaluación 5.3 | F23: 4
D24: Criterio Evaluación 5.4 | F24: 4
D25: Criterio Evaluación 5.5 | F25: 4
D26: Criterio Evaluación 5.6 | F26: 4
D27: Criterio Evaluación 5.7 | F27: 4
C28: Comp. Esp. 6 | D28: Criterio Evaluación 6.1 | F28: 4
D29: Criterio Evaluación 6.2 | F29: 4
D30: Criterio Evaluación 6.3 | F30: 4
D31: Criterio Evaluación 6.4 | F31: 4
D32: Criterio Evaluación 6.5 | F32: 4
D33: Criterio Evaluación 6.6 | F33: 4
D34: Criterio Evaluación 6.7 | F34: 4
D35: Criterio Evaluación 6.8 | F35: 4
D36: Criterio Evaluación 6.9 | F36: 4
B37: Biología, Geología y Ciencias Ambientales | C37: Comp. Esp. 1 | D37: Criterio Evaluación 1.1 | F37: 4
D38: Criterio Evaluación 1.2 | F38: 4
D39: Criterio Evaluación 1.3 | F39: 4
C40: Comp. Esp. 2 | D40: Criterio Evaluación 2.1 | F40: 4
D41: Criterio Evaluación 2.2 | F41: 4
D42: Criterio Evaluación 2.3 | F42: 4
C43: Comp. Esp. 3 | D43: Criterio Evaluación 3.1 | F43: 4
D44: Criterio Evaluación 3.2 | F44: 4
D45: Criterio Evaluación 3.3 | F45: 4
D46: Criterio Evaluación 3.4 | F46: 4
D47: Criterio Evaluación 3.5 | F47: 4
D48: Criterio Evaluación 3.6 | F48: 4
C49: Comp. Esp. 4 | D49: Criterio Evaluación 4.1 | F49: 4
D50: Criterio Evaluación 4.2 | F50: 4
C51: Comp. Esp. 5 | D51: Criterio Evaluación 5.1 | F51: 4
D52: Criterio Evaluación 5.2 | F52: 4
C53: Comp. Esp. 6 | D53: Criterio Evaluación 6.1 | F53: 4
D54: Criterio Evaluación 6.2 | F54: 4
D55: Criterio Evaluación 6.3 | F55: 4
B56: Cultura Científica | C56: Comp. Esp. 1 | D56: Criterio Evaluación 1.1 | F56: 2
D57: Criterio Evaluación 1.2 | F57: 2
C58: Comp. Esp. 2 | D58: Criterio Evaluación 2.1 | F58: 2
D59: Criterio Evaluación 2.2 | F59: 2
C60: Comp. Esp. 3 | D60: Criterio Evaluación 3.1 | F60: 2
D61: Criterio Evaluación 3.2 | F61: 2
D62: Criterio Evaluación 3.3 | F62: 2
D63: Criterio Evaluación 3.4 | F63: 2
D64: Criterio Evaluación 3.5 | F64: 2
C65: Comp. Esp. 4 | D65: Criterio Evaluación 4.1 | F65: 2
D66: Criterio Evaluación 4.2 | F66: 2
C67: Comp. Esp. 5 | D67: Criterio Evaluación 5.1 | F67: 2
D68: Criterio Evaluación 5.2 | F68: 2
B69: Dibujo Técnico I | C69: Comp. Esp. 1 | D69: Criterio Evaluación 1.1 | F69: 4
C70: Comp. Esp. 2 | D70: Criterio Evaluación 2.1 | F70: 4
D71: Criterio Evaluación 2.2 | F71: 4
D72: Criterio Evaluación 2.3 | F72: 4
C73: Comp. Esp. 3 | D73: Criterio Evaluación 3.1 | F73: 4
D74: Criterio Evaluación 3.2 | F74: 4
D75: Criterio Evaluación 3.3 | F75: 4
D76: Criterio Evaluación 3.4 | F76: 4
D77: Criterio Evaluación 3.5 | F77: 4
D78: Criterio Evaluación 3.6 | F78: 4
D79: Criterio Evaluación 3.7 | F79: 4
C80: Comp. Esp. 4 | D80: Criterio Evaluación 4.1 | F80: 4
D81: Criterio Evaluación 4.2 | F81: 4
D82: Criterio Evaluación 4.3 | F82: 4
D83: Criterio Evaluación 4.4 | F83: 4
C84: Comp. Esp. 5 | D84: Criterio Evaluación 5.1 | F84: 4
D85: Criterio Evaluación 5.2 | F85: 4
B86: Economía | C86: Comp. Esp. 1 | D86: Criterio Evaluación 1.1 | F86: 4
D87: Criterio Evaluación 1.2 | F87: 4
D88: Criterio Evaluación 1.3 | F88: 4
C89: Comp. Esp. 2 | D89: Criterio Evaluación 2.1 | F89: 4
D90: Criterio Evaluación 2.2 | F90: 4
D91: Criterio Evaluación 2.3 | F91: 4
C92: Comp. Esp. 3 | D92: Criterio Evaluación 3.1 | F92: 4
D93: Criterio Evaluación 3.2 | F93: 4
C94: Comp. Esp. 4 | D94: Criterio Evaluación 4.1 | F94: 4
D95: Criterio Evaluación 4.2 | F95: 4
D96: Criterio Evaluación 4.3 | F96: 4
C97: Comp. Esp. 5 | D97: Criterio Evaluación 5.1 | F97: 4
D98: Criterio Evaluación 5.2 | F98: 4
C99: Comp. Esp. 6 | D99: Criterio Evaluación 6.1 | F99: 4
B100: Educación Física | C100: Comp. Esp. 1 | D100: Criterio Evaluación 1.1 | F100: 2
D101: Criterio Evaluación 1.2 | F101: 2
D102: Criterio Evaluación 1.3 | F102: 2
D103: Criterio Evaluación 1.4 | F103: 2
D104: Criterio Evaluación 1.5 | F104: 2
D105: Criterio Evaluación 1.6 | F105: 2
D106: Criterio Evaluación 1.7 | F106: 2
D107: Criterio Evaluación 1.8 | F107: 2
D108: Criterio Evaluación 1.9 | F108: 2
C109: Comp. Esp. 2 | D109: Criterio Evaluación 2.1 | F109: 2
D110: Criterio Evaluación 2.2 | F110: 2
D111: Criterio Evaluación 2.3 | F111: 2
D112: Criterio Evaluación 2.4 | F112: 2
C113: Comp. Esp. 3 | D113: Criterio Evaluación 3.1 | F113: 2
D114: Criterio Evaluación 3.2 | F114: 2
D115: Criterio Evaluación 3.3 | F115: 2
C116: Comp. Esp. 4 | D116: Criterio Evaluación 4.1 | F116: 2
D117: Criterio Evaluación 4.2 | F117: 2
C118: Comp. Esp. 5 | D118: Criterio Evaluación 5.1 | F118: 2
D119: Criterio Evaluación 5.2 | F119: 2
B120: Filosofía | C120: Comp. Esp. 1 | D120: Criterio Evaluación 1.1 | F120: 3
D121: Criterio Evaluación 1.2 | F121: 3
C122: Comp. Esp. 2 | D122: Criterio Evaluación 2.1 | F122: 3
D123: Criterio Evaluación 2.2 | F123: 3
C124: Comp. Esp. 3 | D124: Criterio Evaluación 3.1 | F124: 3
D125: Criterio Evaluación 3.2 | F125: 3
D126: Criterio Evaluación 3.3 | F126: 3
C127: Comp. Esp. 4 | D127: Criterio Evaluación 4.1 | F127: 3
C128: Comp. Esp. 5 | D128: Criterio Evaluación 5.1 | F128: 3
D129: Criterio Evaluación 5.2 | F129: 3
C130: Comp. Esp. 6 | D130: Criterio Evaluación 6.1 | F130: 3
D131: Criterio Evaluación 6.2 | F131: 3
C132: Comp. Esp. 7 | D132: Criterio Evaluación 7.1 | F132: 3
C133: Comp. Esp. 8 | D133: Criterio Evaluación 8.1 | F133: 3
C134: Comp. Esp. 9 | D134: Criterio Evaluación 9.1 | F134: 3
C135: Comp. Esp. 10 | D135: Criterio Evaluación 10.1 | F135: 3
D136: Criterio Evaluación 10.2 | F136: 3
B137: Física y Química | C137: Comp. Esp. 1 | D137: Criterio Evaluación 1.1 | F137: 4
D138: Criterio Evaluación 1.2 | F138: 4
D139: Criterio Evaluación 1.3 | F139: 4
C140: Comp. Esp. 2 | D140: Criterio Evaluación 2.1 | F140: 4
D141: Criterio Evaluación 2.2 | F141: 4
D142: Criterio Evaluación 2.3 | F142: 4
C143: Comp. Esp. 3 | D143: Criterio Evaluación 3.1 | F143: 4
D144: Criterio Evaluación 3.2 | F144: 4
D145: Criterio Evaluación 3.3 | F145: 4
D146: Criterio Evaluación 3.4 | F146: 4
C147: Comp. Esp. 4 | D147: Criterio Evaluación 4.1 | F147: 4
D148: Criterio Evaluación 4.2 | F148: 4
C149: Comp. Esp. 5 | D149: Criterio Evaluación 5.1 | F149: 4
D150: Criterio Evaluación 5.2 | F150: 4
D151: Criterio Evaluación 5.3 | F151: 4
C152: Comp. Esp. 6 | D152: Criterio Evaluación 6.1 | F152: 4
D153: Criterio Evaluación 6.2 | F153: 4
B154: Lengua Castellana y Literatura | C154: Comp. Esp. 1 | D154: Criterio Evaluación 1.1 | F154: 4
D155: Criterio Evaluación 1.2 | F155: 4
D156: Criterio Evaluación 1.3 | F156: 4
D157: Criterio Evaluación 1.4 | F157: 4
D158: Criterio Evaluación 1.5 | F158: 4
C159: Comp. Esp. 2 | D159: Criterio Evaluación 2.1 | F159: 4
D160: Criterio Evaluación 2.2 | F160: 4
D161: Criterio Evaluación 2.3 | F161: 4
C162: Comp. Esp. 3 | D162: Criterio Evaluación 3.1 | F162: 4
D163: Criterio Evaluación 3.2 | F163: 4
D164: Criterio Evaluación 3.3 | F164: 4
C165: Comp. Esp. 4 | D165: Criterio Evaluación 4.1 | F165: 4
D166: Criterio Evaluación 4.2 | F166: 4
D167: Criterio Evaluación 4.3 | F167: 4
C168: Comp. Esp. 5 | D168: Criterio Evaluación 5.1 | F168: 4
D169: Criterio Evaluación 5.2 | F169: 4
D170: Criterio Evaluación 5.3 | F170: 4
C171: Comp. Esp. 6 | D171: Criterio Evaluación 6.1 | F171: 4
D172: Criterio Evaluación 6.2 | F172: 4
D173: Criterio Evaluación 6.3 | F173: 4
D174: Criterio Evaluación 6.4 | F174: 4
C175: Comp. Esp. 7 | D175: Criterio Evaluación 7.1 | F175: 4
D176: Criterio Evaluación 7.2 | F176: 4
D177: Criterio Evaluación 7.3 | F177: 4
C178: Comp. Esp. 8 | D178: Criterio Evaluación 8.1 | F178: 4
D179: Criterio Evaluación 8.2 | F179: 4
D180: Criterio Evaluación 8.3 | F180: 4
D181: Criterio Evaluación 8.4 | F181: 4
D182: Criterio Evaluación 8.5 | F182: 4
C183: Comp. Esp. 9 | D183: Criterio Evaluación 9.1 | F183: 4
D184: Criterio Evaluación 9.2 | F184: 4
D185: Criterio Evaluación 9.3 | F185: 4
D186: Criterio Evaluación 9.4 | F186: 4
D187: Criterio Evaluación 9.5 | F187: 4
C188: Comp. Esp. 10 | D188: Criterio Evaluación 10.1 | F188: 4
D189: Criterio Evaluación 10.2 | F189: 4
D190: Criterio Evaluación 10.3 | F190: 4
B191: Lengua Extranjera | C191: Comp. Esp. 1 | D191: Criterio Evaluación 1.1 | F191: 3
D192: Criterio Evaluación 1.2 | F192: 3
D193: Criterio Evaluación 1.3 | F193: 3
C194: Comp. Esp. 2 | D194: Criterio Evaluación 2.1 | F194: 3
D195: Criterio Evaluación 2.2 | F195: 3
D196: Criterio Evaluación 2.3 | F196: 3
D197: Criterio Evaluación 2.4 | F197: 3
C198: Comp. Esp. 3 | D198: Criterio Evaluación 3.1 | F198: 3
D199: Criterio Evaluación 3.2 | F199: 3
C200: Comp. Esp. 4 | D200: Criterio Evaluación 4.1 | F200: 3
D201: Criterio Evaluación 4.2 | F201: 3
... 155 more rows

Sheet Peso criterios libre
E4: CALIFICACIÓN | F4: PESO | G4: PORCENTAJE | H4: POR. AJUSTA
B5: Anatomía Aplicada | C5: Comp. Esp. 1 | D5: Criterio Evaluación 1.1 | E5: - | F5: 1 | G5: =F5/SUM($F$5:$F$356) -> 0.002840909091 | H5: =IF(E5="-","",G5/H$363) -> 
D6: Criterio Evaluación 1.2 | E6: - | F6: 1 | G6: 0.002840909091
D7: Criterio Evaluación 1.3 | E7: - | F7: 1 | G7: 0.002840909091
C8: Comp. Esp. 2 | D8: Criterio Evaluación 2.1 | E8: - | F8: 1 | G8: 0.002840909091
D9: Criterio Evaluación 2.2 | E9: - | F9: 1 | G9: 0.002840909091
D10: Criterio Evaluación 2.3 | E10: - | F10: 1 | G10: 0.002840909091
C11: Comp. Esp. 3 | D11: Criterio Evaluación 3.1 | E11: - | F11: 1 | G11: 0.002840909091
D12: Criterio Evaluación 3.2 | E12: - | F12: 1 | G12: 0.002840909091
D13: Criterio Evaluación 3.3 | E13: - | F13: 1 | G13: 0.002840909091
D14: Criterio Evaluación 3.4 | E14: - | F14: 1 | G14: 0.002840909091
D15: Criterio Evaluación 3.5 | E15: - | F15: 1 | G15: 0.002840909091
D16: Criterio Evaluación 3.6 | E16: - | F16: 1 | G16: 0.002840909091
C17: Comp. Esp. 4 | D17: Criterio Evaluación 4.1 | E17: - | F17: 1 | G17: 0.002840909091
D18: Criterio Evaluación 4.2 | E18: - | F18: 1 | G18: 0.002840909091
D19: Criterio Evaluación 4.3 | E19: - | F19: 1 | G19: 0.002840909091
D20: Criterio Evaluación 4.4 | E20: - | F20: 1 | G20: 0.002840909091
C21: Comp. Esp. 5 | D21: Criterio Evaluación 5.1 | E21: - | F21: 1 | G21: 0.002840909091
D22: Criterio Evaluación 5.2 | E22: - | F22: 1 | G22: 0.002840909091
D23: Criterio Evaluación 5.3 | E23: - | F23: 1 | G23: 0.002840909091
D24: Criterio Evaluación 5.4 | E24: - | F24: 1 | G24: 0.002840909091
D25: Criterio Evaluación 5.5 | E25: - | F25: 1 | G25: 0.002840909091
D26: Criterio Evaluación 5.6 | E26: - | F26: 1 | G26: 0.002840909091
D27: Criterio Evaluación 5.7 | E27: - | F27: 1 | G27: 0.002840909091
C28: Comp. Esp. 6 | D28: Criterio Evaluación 6.1 | E28: - | F28: 1 | G28: 0.002840909091
D29: Criterio Evaluación 6.2 | E29: - | F29: 1 | G29: 0.002840909091
D30: Criterio Evaluación 6.3 | E30: - | F30: 1 | G30: 0.002840909091
D31: Criterio Evaluación 6.4 | E31: - | F31: 1 | G31: 0.002840909091
D32: Criterio Evaluación 6.5 | E32: - | F32: 1 | G32: 0.002840909091
D33: Criterio Evaluación 6.6 | E33: - | F33: 1 | G33: 0.002840909091
D34: Criterio Evaluación 6.7 | E34: - | F34: 1 | G34: 0.002840909091
D35: Criterio Evaluación 6.8 | E35: - | F35: 1 | G35: 0.002840909091
D36: Criterio Evaluación 6.9 | E36: - | F36: 1 | G36: 0.002840909091
B37: Biología, Geología y Ciencias Ambientales | C37: Comp. Esp. 1 | D37: Criterio Evaluación 1.1 | E37: - | F37: 1 | G37: 0.002840909091
D38: Criterio Evaluación 1.2 | E38: - | F38: 1 | G38: 0.002840909091
D39: Criterio Evaluación 1.3 | E39: - | F39: 1 | G39: 0.002840909091
C40: Comp. Esp. 2 | D40: Criterio Evaluación 2.1 | E40: - | F40: 1 | G40: 0.002840909091
D41: Criterio Evaluación 2.2 | E41: - | F41: 1 | G41: 0.002840909091
D42: Criterio Evaluación 2.3 | E42: - | F42: 1 | G42: 0.002840909091
C43: Comp. Esp. 3 | D43: Criterio Evaluación 3.1 | E43: - | F43: 1 | G43: 0.002840909091
D44: Criterio Evaluación 3.2 | E44: - | F44: 1 | G44: 0.002840909091
D45: Criterio Evaluación 3.3 | E45: - | F45: 1 | G45: 0.002840909091
D46: Criterio Evaluación 3.4 | E46: - | F46: 1 | G46: 0.002840909091
D47: Criterio Evaluación 3.5 | E47: - | F47: 1 | G47: 0.002840909091
D48: Criterio Evaluación 3.6 | E48: - | F48: 1 | G48: 0.002840909091
C49: Comp. Esp. 4 | D49: Criterio Evaluación 4.1 | E49: - | F49: 1 | G49: 0.002840909091
D50: Criterio Evaluación 4.2 | E50: - | F50: 1 | G50: 0.002840909091
C51: Comp. Esp. 5 | D51: Criterio Evaluación 5.1 | E51: - | F51: 1 | G51: 0.002840909091
D52: Criterio Evaluación 5.2 | E52: - | F52: 1 | G52: 0.002840909091
C53: Comp. Esp. 6 | D53: Criterio Evaluación 6.1 | E53: - | F53: 1 | G53: 0.002840909091
D54: Criterio Evaluación 6.2 | E54: - | F54: 1 | G54: 0.002840909091
D55: Criterio Evaluación 6.3 | E55: - | F55: 1 | G55: 0.002840909091
B56: Cultura Científica | C56: Comp. Esp. 1 | D56: Criterio Evaluación 1.1 | E56: - | F56: 1 | G56: 0.002840909091
D57: Criterio Evaluación 1.2 | E57: - | F57: 1 | G57: 0.002840909091
C58: Comp. Esp. 2 | D58: Criterio Evaluación 2.1 | E58: - | F58: 1 | G58: 0.002840909091
D59: Criterio Evaluación 2.2 | E59: - | F59: 1 | G59: 0.002840909091
C60: Comp. Esp. 3 | D60: Criterio Evaluación 3.1 | E60: - | F60: 1 | G60: 0.002840909091
D61: Criterio Evaluación 3.2 | E61: - | F61: 1 | G61: 0.002840909091
D62: Criterio Evaluación 3.3 | E62: - | F62: 1 | G62: 0.002840909091
D63: Criterio Evaluación 3.4 | E63: - | F63: 1 | G63: 0.002840909091
D64: Criterio Evaluación 3.5 | E64: - | F64: 1 | G64: 0.002840909091
C65: Comp. Esp. 4 | D65: Criterio Evaluación 4.1 | E65: - | F65: 1 | G65: 0.002840909091
D66: Criterio Evaluación 4.2 | E66: - | F66: 1 | G66: 0.002840909091
C67: Comp. Esp. 5 | D67: Criterio Evaluación 5.1 | E67: - | F67: 1 | G67: 0.002840909091
D68: Criterio Evaluación 5.2 | E68: - | F68: 1 | G68: 0.002840909091
B69: Dibujo Técnico I | C69: Comp. Esp. 1 | D69: Criterio Evaluación 1.1 | E69: - | F69: 1 | G69: =F69/SUM($F$5:$F$356) -> 0.002840909091 | H69: =IF(E69="-","",G69/H$363) -> 
C70: Comp. Esp. 2 | D70: Criterio Evaluación 2.1 | E70: - | F70: 1 | G70: 0.002840909091
D71: Criterio Evaluación 2.2 | E71: - | F71: 1 | G71: 0.002840909091
D72: Criterio Evaluación 2.3 | E72: - | F72: 1 | G72: 0.002840909091
C73: Comp. Esp. 3 | D73: Criterio Evaluación 3.1 | E73: - | F73: 1 | G73: 0.002840909091
D74: Criterio Evaluación 3.2 | E74: - | F74: 1 | G74: 0.002840909091
D75: Criterio Evaluación 3.3 | E75: - | F75: 1 | G75: 0.002840909091
D76: Criterio Evaluación 3.4 | E76: - | F76: 1 | G76: 0.002840909091
D77: Criterio Evaluación 3.5 | E77: - | F77: 1 | G77: 0.002840909091
D78: Criterio Evaluación 3.6 | E78: - | F78: 1 | G78: 0.002840909091
D79: Criterio Evaluación 3.7 | E79: - | F79: 1 | G79: 0.002840909091
C80: Comp. Esp. 4 | D80: Criterio Evaluación 4.1 | E80: - | F80: 1 | G80: 0.002840909091
D81: Criterio Evaluación 4.2 | E81: - | F81: 1 | G81: 0.002840909091
D82: Criterio Evaluación 4.3 | E82: - | F82: 1 | G82: 0.002840909091
D83: Criterio Evaluación 4.4 | E83: - | F83: 1 | G83: 0.002840909091
C84: Comp. Esp. 5 | D84: Criterio Evaluación 5.1 | E84: - | F84: 1 | G84: 0.002840909091
D85: Criterio Evaluación 5.2 | E85: - | F85: 1 | G85: 0.002840909091
B86: Economía | C86: Comp. Esp. 1 | D86: Criterio Evaluación 1.1 | E86: - | F86: 1 | G86: 0.002840909091
D87: Criterio Evaluación 1.2 | E87: - | F87: 1 | G87: 0.002840909091
D88: Criterio Evaluación 1.3 | E88: - | F88: 1 | G88: 0.002840909091
C89: Comp. Esp. 2 | D89: Criterio Evaluación 2.1 | E89: - | F89: 1 | G89: 0.002840909091
D90: Criterio Evaluación 2.2 | E90: - | F90: 1 | G90: 0.002840909091
D91: Criterio Evaluación 2.3 | E91: - | F91: 1 | G91: 0.002840909091
C92: Comp. Esp. 3 | D92: Criterio Evaluación 3.1 | E92: - | F92: 1 | G92: 0.002840909091
D93: Criterio Evaluación 3.2 | E93: - | F93: 1 | G93: 0.002840909091
C94: Comp. Esp. 4 | D94: Criterio Evaluación 4.1 | E94: - | F94: 1 | G94: 0.002840909091
D95: Criterio Evaluación 4.2 | E95: - | F95: 1 | G95: 0.002840909091
D96: Criterio Evaluación 4.3 | E96: - | F96: 1 | G96: 0.002840909091
C97: Comp. Esp. 5 | D97: Criterio Evaluación 5.1 | E97: - | F97: 1 | G97: 0.002840909091
D98: Criterio Evaluación 5.2 | E98: - | F98: 1 | G98: 0.002840909091
C99: Comp. Esp. 6 | D99: Criterio Evaluación 6.1 | E99: - | F99: 1 | G99: 0.002840909091
B100: Educación Física | C100: Comp. Esp. 1 | D100: Criterio Evaluación 1.1 | E100: - | F100: 1 | G100: 0.002840909091
D101: Criterio Evaluación 1.2 | E101: - | F101: 1 | G101: 0.002840909091
D102: Criterio Evaluación 1.3 | E102: - | F102: 1 | G102: 0.002840909091
D103: Criterio Evaluación 1.4 | E103: - | F103: 1 | G103: 0.002840909091
D104: Criterio Evaluación 1.5 | E104: - | F104: 1 | G104: 0.002840909091
D105: Criterio Evaluación 1.6 | E105: - | F105: 1 | G105: 0.002840909091
D106: Criterio Evaluación 1.7 | E106: - | F106: 1 | G106: 0.002840909091
D107: Criterio Evaluación 1.8 | E107: - | F107: 1 | G107: 0.002840909091
D108: Criterio Evaluación 1.9 | E108: - | F108: 1 | G108: 0.002840909091
C109: Comp. Esp. 2 | D109: Criterio Evaluación 2.1 | E109: - | F109: 1 | G109: 0.002840909091
D110: Criterio Evaluación 2.2 | E110: - | F110: 1 | G110: 0.002840909091
D111: Criterio Evaluación 2.3 | E111: - | F111: 1 | G111: 0.002840909091
D112: Criterio Evaluación 2.4 | E112: - | F112: 1 | G112: 0.002840909091
C113: Comp. Esp. 3 | D113: Criterio Evaluación 3.1 | E113: - | F113: 1 | G113: 0.002840909091
D114: Criterio Evaluación 3.2 | E114: - | F114: 1 | G114: 0.002840909091
D115: Criterio Evaluación 3.3 | E115: - | F115: 1 | G115: 0.002840909091
C116: Comp. Esp. 4 | D116: Criterio Evaluación 4.1 | E116: - | F116: 1 | G116: 0.002840909091
D117: Criterio Evaluación 4.2 | E117: - | F117: 1 | G117: 0.002840909091
C118: Comp. Esp. 5 | D118: Criterio Evaluación 5.1 | E118: - | F118: 1 | G118: 0.002840909091
D119: Criterio Evaluación 5.2 | E119: - | F119: 1 | G119: 0.002840909091
B120: Filosofía | C120: Comp. Esp. 1 | D120: Criterio Evaluación 1.1 | E120: - | F120: 1 | G120: 0.002840909091
D121: Criterio Evaluación 1.2 | E121: - | F121: 1 | G121: 0.002840909091
C122: Comp. Esp. 2 | D122: Criterio Evaluación 2.1 | E122: - | F122: 1 | G122: 0.002840909091
D123: Criterio Evaluación 2.2 | E123: - | F123: 1 | G123: 0.002840909091
C124: Comp. Esp. 3 | D124: Criterio Evaluación 3.1 | E124: - | F124: 1 | G124: 0.002840909091
D125: Criterio Evaluación 3.2 | E125: - | F125: 1 | G125: 0.002840909091
D126: Criterio Evaluación 3.3 | E126: - | F126: 1 | G126: 0.002840909091
C127: Comp. Esp. 4 | D127: Criterio Evaluación 4.1 | E127: - | F127: 1 | G127: 0.002840909091
C128: Comp. Esp. 5 | D128: Criterio Evaluación 5.1 | E128: - | F128: 1 | G128: 0.002840909091
D129: Criterio Evaluación 5.2 | E129: - | F129: 1 | G129: 0.002840909091
C130: Comp. Esp. 6 | D130: Criterio Evaluación 6.1 | E130: - | F130: 1 | G130: 0.002840909091
D131: Criterio Evaluación 6.2 | E131: - | F131: 1 | G131: 0.002840909091
C132: Comp. Esp. 7 | D132: Criterio Evaluación 7.1 | E132: - | F132: 1 | G132: 0.002840909091
C133: Comp. Esp. 8 | D133: Criterio Evaluación 8.1 | E133: - | F133: 1 | G133: =F133/SUM($F$5:$F$356) -> 0.002840909091 | H133: =IF(E133="-","",G133/H$363) -> 
C134: Comp. Esp. 9 | D134: Criterio Evaluación 9.1 | E134: - | F134: 1 | G134: 0.002840909091
C135: Comp. Esp. 10 | D135: Criterio Evaluación 10.1 | E135: - | F135: 1 | G135: 0.002840909091
D136: Criterio Evaluación 10.2 | E136: - | F136: 1 | G136: 0.002840909091
B137: Física y Química | C137: Comp. Esp. 1 | D137: Criterio Evaluación 1.1 | E137: - | F137: 1 | G137: 0.002840909091
D138: Criterio Evaluación 1.2 | E138: - | F138: 1 | G138: 0.002840909091
D139: Criterio Evaluación 1.3 | E139: - | F139: 1 | G139: 0.002840909091
C140: Comp. Esp. 2 | D140: Criterio Evaluación 2.1 | E140: - | F140: 1 | G140: 0.002840909091
D141: Criterio Evaluación 2.2 | E141: - | F141: 1 | G141: 0.002840909091
D142: Criterio Evaluación 2.3 | E142: - | F142: 1 | G142: 0.002840909091
C143: Comp. Esp. 3 | D143: Criterio Evaluación 3.1 | E143: - | F143: 1 | G143: 0.002840909091
D144: Criterio Evaluación 3.2 | E144: - | F144: 1 | G144: 0.002840909091
D145: Criterio Evaluación 3.3 | E145: - | F145: 1 | G145: 0.002840909091
D146: Criterio Evaluación 3.4 | E146: - | F146: 1 | G146: 0.002840909091
C147: Comp. Esp. 4 | D147: Criterio Evaluación 4.1 | E147: - | F147: 1 | G147: 0.002840909091
D148: Criterio Evaluación 4.2 | E148: - | F148: 1 | G148: 0.002840909091
C149: Comp. Esp. 5 | D149: Criterio Evaluación 5.1 | E149: - | F149: 1 | G149: 0.002840909091
D150: Criterio Evaluación 5.2 | E150: - | F150: 1 | G150: 0.002840909091
D151: Criterio Evaluación 5.3 | E151: - | F151: 1 | G151: 0.002840909091
C152: Comp. Esp. 6 | D152: Criterio Evaluación 6.1 | E152: - | F152: 1 | G152: 0.002840909091
D153: Criterio Evaluación 6.2 | E153: - | F153: 1 | G153: 0.002840909091
B154: Lengua Castellana y Literatura | C154: Comp. Esp. 1 | D154: Criterio Evaluación 1.1 | E154: - | F154: 1 | G154: 0.002840909091
D155: Criterio Evaluación 1.2 | E155: - | F155: 1 | G155: 0.002840909091
D156: Criterio Evaluación 1.3 | E156: - | F156: 1 | G156: 0.002840909091
D157: Criterio Evaluación 1.4 | E157: - | F157: 1 | G157: 0.002840909091
D158: Criterio Evaluación 1.5 | E158: - | F158: 1 | G158: 0.002840909091
C159: Comp. Esp. 2 | D159: Criterio Evaluación 2.1 | E159: - | F159: 1 | G159: 0.002840909091
D160: Criterio Evaluación 2.2 | E160: - | F160: 1 | G160: 0.002840909091
D161: Criterio Evaluación 2.3 | E161: - | F161: 1 | G161: 0.002840909091
C162: Comp. Esp. 3 | D162: Criterio Evaluación 3.1 | E162: - | F162: 1 | G162: 0.002840909091
D163: Criterio Evaluación 3.2 | E163: - | F163: 1 | G163: 0.002840909091
D164: Criterio Evaluación 3.3 | E164: - | F164: 1 | G164: 0.002840909091
C165: Comp. Esp. 4 | D165: Criterio Evaluación 4.1 | E165: - | F165: 1 | G165: 0.002840909091
D166: Criterio Evaluación 4.2 | E166: - | F166: 1 | G166: 0.002840909091
D167: Criterio Evaluación 4.3 | E167: - | F167: 1 | G167: 0.002840909091
C168: Comp. Esp. 5 | D168: Criterio Evaluación 5.1 | E168: - | F168: 1 | G168: 0.002840909091
D169: Criterio Evaluación 5.2 | E169: - | F169: 1 | G169: 0.002840909091
D170: Criterio Evaluación 5.3 | E170: - | F170: 1 | G170: 0.002840909091
C171: Comp. Esp. 6 | D171: Criterio Evaluación 6.1 | E171: - | F171: 1 | G171: 0.002840909091
D172: Criterio Evaluación 6.2 | E172: - | F172: 1 | G172: 0.002840909091
D173: Criterio Evaluación 6.3 | E173: - | F173: 1 | G173: 0.002840909091
D174: Criterio Evaluación 6.4 | E174: - | F174: 1 | G174: 0.002840909091
C175: Comp. Esp. 7 | D175: Criterio Evaluación 7.1 | E175: - | F175: 1 | G175: 0.002840909091
D176: Criterio Evaluación 7.2 | E176: - | F176: 1 | G176: 0.002840909091
D177: Criterio Evaluación 7.3 | E177: - | F177: 1 | G177: 0.002840909091
C178: Comp. Esp. 8 | D178: Criterio Evaluación 8.1 | E178: - | F178: 1 | G178: 0.002840909091
D179: Criterio Evaluación 8.2 | E179: - | F179: 1 | G179: 0.002840909091
D180: Criterio Evaluación 8.3 | E180: - | F180: 1 | G180: 0.002840909091
D181: Criterio Evaluación 8.4 | E181: - | F181: 1 | G181: 0.002840909091
D182: Criterio Evaluación 8.5 | E182: - | F182: 1 | G182: 0.002840909091
C183: Comp. Esp. 9 | D183: Criterio Evaluación 9.1 | E183: - | F183: 1 | G183: 0.002840909091
D184: Criterio Evaluación 9.2 | E184: - | F184: 1 | G184: 0.002840909091
D185: Criterio Evaluación 9.3 | E185: - | F185: 1 | G185: 0.002840909091
D186: Criterio Evaluación 9.4 | E186: - | F186: 1 | G186: 0.002840909091
D187: Criterio Evaluación 9.5 | E187: - | F187: 1 | G187: 0.002840909091
C188: Comp. Esp. 10 | D188: Criterio Evaluación 10.1 | E188: - | F188: 1 | G188: 0.002840909091
D189: Criterio Evaluación 10.2 | E189: - | F189: 1 | G189: 0.002840909091
D190: Criterio Evaluación 10.3 | E190: - | F190: 1 | G190: 0.002840909091
B191: Lengua Extranjera | C191: Comp. Esp. 1 | D191: Criterio Evaluación 1.1 | E191: - | F191: 1 | G191: 0.002840909091
D192: Criterio Evaluación 1.2 | E192: - | F192: 1 | G192: 0.002840909091
D193: Criterio Evaluación 1.3 | E193: - | F193: 1 | G193: 0.002840909091
C194: Comp. Esp. 2 | D194: Criterio Evaluación 2.1 | E194: - | F194: 1 | G194: 0.002840909091
D195: Criterio Evaluación 2.2 | E195: - | F195: 1 | G195: 0.002840909091
D196: Criterio Evaluación 2.3 | E196: - | F196: 1 | G196: 0.002840909091
D197: Criterio Evaluación 2.4 | E197: - | F197: 1 | G197: =F197/SUM($F$5:$F$356) -> 0.002840909091 | H197: =IF(E197="-","",G197/H$363) -> 
C198: Comp. Esp. 3 | D198: Criterio Evaluación 3.1 | E198: - | F198: 1 | G198: 0.002840909091
D199: Criterio Evaluación 3.2 | E199: - | F199: 1 | G199: 0.002840909091
C200: Comp. Esp. 4 | D200: Criterio Evaluación 4.1 | E200: - | F200: 1 | G200: 0.002840909091
D201: Criterio Evaluación 4.2 | E201: - | F201: 1 | G201: 0.002840909091
C202: Comp. Esp. 5 | D202: Criterio Evaluación 5.1 | E202: - | F202: 1 | G202: 0.002840909091
D203: Criterio Evaluación 5.2 | E203: - | F203: 1 | G203: 0.002840909091
... 153 more rows

Sheet Peso descrip. libre
E2: Competencia en Comunicación Lingüística | Y2: Competencia Plurilingüe | AK2: Competencia Matemática y Competencia en Ciencia, Tecnología e Ingeniería | BE2: Competencia Digital | BY2: Competencia Personal, Social y de Aprender a Aprender | DA2: Competencia Ciudadana | DQ2: Competencia Emprendedora | EC2: Competencia en Conciencia y Expresión Culturales
E3: CCL 1 | I3: CCL 2 | M3: CCL 3 | Q3: CCL 4 | U3: CCL 5 | Y3: CP 1 | AC3: CP 2 | AG3: CP 3 | AK3: STEM 1 | AO3: STEM 2 | AS3: STEM 3 | AW3: STEM 4 | BA3: STEM 5 | BE3: CD 1 | BI3: CD 2 | BM3: CD 3 | BQ3: CD 4 | BU3: CD 5 | BY3: CPSAA 1.1 | CC3: CPSAA 1.2 | CG3: CPSAA 2 | CK3: CPSAA 3.1 | CO3: CPSAA 3.2 | CS3: CPSAA 4 | CW3: CPSAA 5 | DA3: CC 1 | DE3: CC 2 | DI3: CC 3 | DM3: CC 4 | DQ3: CE 1 | DU3: CE 2 | DY3: CE 3 | EC3: CCEC 1 | EG3: CCEC 2 | EK3: CCEC 3.1 | EO3: CCEC 3.2 | ES3: CCEC 4.1 | EW3: CCEC 4.2
B5: NO | C5: PESO DESCRIPTORES | E5: 1 | I5: 1 | M5: 1 | Q5: 1 | U5: 1 | Y5: 1 | AC5: 1 | AG5: 1 | AK5: 1 | AO5: 1 | AS5: 1 | AW5: 1 | BA5: 1 | BE5: 1 | BI5: 1 | BM5: 1 | BQ5: 1 | BU5: 1 | BY5: 1 | CC5: 1 | CG5: 1 | CK5: 1 | CO5: 1 | CS5: 1 | CW5: 1 | DA5: 1 | DE5: 1 | DI5: 1 | DM5: 1 | DQ5: 1 | DU5: 1 | DY5: 1 | EC5: 1 | EG5: 1 | EK5: 1 | EO5: 1 | ES5: 1 | EW5: 1
C6: PORCENTAJES | E6: =E5/SUM($E5:$U5) -> 0.2 | I6: =I5/SUM($E5:$U5) -> 0.2 | M6: =M5/SUM($E5:$U5) -> 0.2 | Q6: =Q5/SUM($E5:$U5) -> 0.2 | U6: =U5/SUM($E5:$U5) -> 0.2 | Y6: =Y5/SUM($Y5:$AG5) -> 0.3333333333 | AC6: =AC5/SUM($Y5:$AG5) -> 0.3333333333 | AG6: 0.3333333333 | AK6: =AK5/SUM($AK5:$BA5) -> 0.2 | AO6: =AO5/SUM($AK5:$BA5) -> 0.2 | AS6: 0.2 | AW6: 0.2 | BA6: 0.2 | BE6: =BE5/SUM($BE5:$BU5) -> 0.2 | BI6: =BI5/SUM($BE5:$BU5) -> 0.2 | BM6: 0.2 | BQ6: 0.2 | BU6: 0.2 | BY6: =BY5/SUM($BY5:$CW5) -> 0.1428571429 | CC6: =CC5/SUM($BY5:$CW5) -> 0.1428571429 | CG6: 0.1428571429 | CK6: =CK5/SUM($BY5:$CW5) -> 0.1428571429 | CO6: =CO5/SUM($BY5:$CW5) -> 0.1428571429 | CS6: 0.1428571429 | CW6: 0.1428571429 | DA6: =DA5/SUM($DA5:$DM5) -> 0.25 | DE6: =DE5/SUM($DA5:$DM5) -> 0.25 | DI6: 0.25 | DM6: 0.25 | DQ6: =DQ5/SUM($DQ5:$DY5) -> 0.3333333333 | DU6: =DU5/SUM($DQ5:$DY5) -> 0.3333333333 | DY6: 0.3333333333 | EC6: =EC5/SUM($EC5:$EW5) -> 0.1666666667 | EG6: =EG5/SUM($EC5:$EW5) -> 0.1666666667 | EK6: =EK5/SUM($EC5:$EW5) -> 0.1666666667 | EO6: =EO5/SUM($EC5:$EW5) -> 0.1666666667 | ES6: 0.1666666667 | EW6: 0.1666666667

Sheet Peso descrip. vinculaciones
E2: Competencia en Comunicación Lingüística | Y2: Competencia Plurilingüe | AK2: Competencia Matemática y Competencia en Ciencia, Tecnología e Ingeniería | BE2: Competencia Digital | BY2: Competencia Personal, Social y de Aprender a Aprender | DA2: Competencia Ciudadana | DQ2: Competencia Emprendedora | EC2: Competencia en Conciencia y Expresión Culturales
E3: CCL 1 | I3: CCL 2 | M3: CCL 3 | Q3: CCL 4 | U3: CCL 5 | Y3: CP 1 | AC3: CP 2 | AG3: CP 3 | AK3: STEM 1 | AO3: STEM 2 | AS3: STEM 3 | AW3: STEM 4 | BA3: STEM 5 | BE3: CD 1 | BI3: CD 2 | BM3: CD 3 | BQ3: CD 4 | BU3: CD 5 | BY3: CPSAA 1.1 | CC3: CPSAA 1.2 | CG3: CPSAA 2 | CK3: CPSAA 3.1 | CO3: CPSAA 3.2 | CS3: CPSAA 4 | CW3: CPSAA 5 | DA3: CC 1 | DE3: CC 2 | DI3: CC 3 | DM3: CC 4 | DQ3: CE 1 | DU3: CE 2 | DY3: CE 3 | EC3: CCEC 1 | EG3: CCEC 2 | EK3: CCEC 3.1 | EO3: CCEC 3.2 | ES3: CCEC 4.1 | EW3: CCEC 4.2
B5: NO | C5: PESO DESCRIPTORES | E5: 0.2786377709 | I5: 0.2755417957 | M5: 0.2105263158 | Q5: 0.06811145511 | U5: 0.1671826625 | Y5: 0.2956521739 | AC5: 0.4173913043 | AG5: 0.2869565217 | AK5: 0.2747875354 | AO5: 0.2804532578 | AS5: 0.1473087819 | AW5: 0.1869688385 | BA5: 0.1104815864 | BE5: 0.2197802198 | BI5: 0.2747252747 | BM5: 0.347985348 | BQ5: 0.07326007326 | BU5: 0.08424908425 | BY5: 0.1339563863 | CC5: 0.1059190031 | CG5: 0.1028037383 | CK5: 0.1277258567 | CO5: 0.08099688474 | CS5: 0.2367601246 | CW5: 0.2118380062 | DA5: 0.2151162791 | DE5: 0.1511627907 | DI5: 0.4069767442 | DM5: 0.226744186 | DQ5: 0.3558282209 | DU5: 0.2147239264 | DY5: 0.4294478528 | EC5: 0.2896551724 | EG5: 0.07586206897 | EK5: 0.1586206897 | EO5: 0.2344827586 | ES5: 0.07586206897 | EW5: 0.1655172414
C6: PORCENTAJES | E6: =E5/SUM($E5:$U5) -> 0.2786377709 | I6: =I5/SUM($E5:$U5) -> 0.2755417957 | M6: =M5/SUM($E5:$U5) -> 0.2105263158 | Q6: =Q5/SUM($E5:$U5) -> 0.06811145511 | U6: =U5/SUM($E5:$U5) -> 0.1671826625 | Y6: =Y5/SUM($Y5:$AG5) -> 0.2956521739 | AC6: =AC5/SUM($Y5:$AG5) -> 0.4173913043 | AG6: 0.2869565217 | AK6: =AK5/SUM($AK5:$BA5) -> 0.2747875354 | AO6: =AO5/SUM($AK5:$BA5) -> 0.2804532578 | AS6: 0.1473087819 | AW6: 0.1869688385 | BA6: 0.1104815864 | BE6: =BE5/SUM($BE5:$BU5) -> 0.2197802198 | BI6: =BI5/SUM($BE5:$BU5) -> 0.2747252747 | BM6: 0.347985348 | BQ6: 0.07326007326 | BU6: 0.08424908425 | BY6: =BY5/SUM($BY5:$CW5) -> 0.1339563863 | CC6: =CC5/SUM($BY5:$CW5) -> 0.1059190031 | CG6: 0.1028037383 | CK6: =CK5/SUM($BY5:$CW5) -> 0.1277258567 | CO6: =CO5/SUM($BY5:$CW5) -> 0.08099688474 | CS6: 0.2367601246 | CW6: 0.2118380062 | DA6: =DA5/SUM($DA5:$DM5) -> 0.2151162791 | DE6: =DE5/SUM($DA5:$DM5) -> 0.1511627907 | DI6: 0.4069767442 | DM6: 0.226744186 | DQ6: =DQ5/SUM($DQ5:$DY5) -> 0.3558282209 | DU6: =DU5/SUM($DQ5:$DY5) -> 0.2147239264 | DY6: 0.4294478528 | EC6: =EC5/SUM($EC5:$EW5) -> 0.2896551724 | EG6: =EG5/SUM($EC5:$EW5) -> 0.07586206897 | EK6: =EK5/SUM($EC5:$EW5) -> 0.1586206897 | EO6: =EO5/SUM($EC5:$EW5) -> 0.2344827586 | ES6: 0.07586206897 | EW6: 0.1655172414

Sheet Alumnos
A1: FALSE
C3: LISTADO DE ALUMNOS
C4: Informe | D4: Grupo 1º _____ | E4: ID Matrícula | F4: BGyCA | G4: DT I | H4: FyQ | I4: TECeIN I | J4: AAPL | K4: EC | L4: CCIENT | M4: REL | N4: 2ª LEX | S4: TIC I
N5: ALE | O5: FRA | P5: ING | Q5: ITA | R5: POR | U5: TEAMS / Onedrive
D6: Nombre_Alumno_1 | E6: 0000_1 | F6: x | G6: x | H6: x | L6: x
C7: 2 | D7: Nombre_Alumno_2 | E7: 0000_2 | G7: x | H7: x | I7: x | M7: x
C8: 3 | D8: Nombre_Alumno_3 | E8: 0000_3 | H8: x | I8: x | J8: x | R8: x
C9: 4 | D9: Nombre_Alumno_4 | E9: 0000_4 | I9: x | J9: x | K9: x | S9: x
C11: 6
C12: 7
C13: 8
C14: 9
C15: 10
C16: 11
C17: 12
C18: 13
C19: 14
C20: 15
C21: 16
C22: 17
C23: 18
C24: 19
C25: 20
C26: 21
C27: 22
C28: 23
C29: 24
C30: 25
C31: 26
C32: 27
C33: 28
C34: 29
C35: 30
C36: 31
C37: 32
C38: 33
C39: 34
C40: 35
D41: TOTAL MATRICULADOS | F41: =COUNTA(F6:F40) -> 1 | G41: 2 | H41: 3 | I41: 3 | J41: 2 | K41: 1 | L41: 1 | M41: 1 | N41: 0 | O41: 0 | P41: 0 | Q41: 0 | R41: 1 | S41: 1

Sheet Redondeo
X2: EXPORTACIÓN NOTAS COMPETENCIAS A STILUS
C3: CALIFICACIONES DE MATERIAS | X3: 1º_Introduce para cada materia las centésimas a partir de las que se realizará un redondeo al alza (valor entre 1 y 100):
C4: CENTÉSIMAS REDONDEO
C5: 90 | D5: 90 | E5: 90 | F5: 90 | G5: 90 | H5: 90 | I5: 90 | J5: 90 | K5: 90 | L5: 90 | M5: 90 | N5: 90 | O5: 90 | P5: 90 | Q5: 90 | R5: 90 | S5: 90 | T5: 90 | U5: 90 | X5: Ejemplo: si se marca 85, desde el 4,85 (inclusive) se redondeará a 5, Si se marca 100, el 4,99 e inferiores se redondearán a 4
B6: =TRANSPOSE('Calificación materias'!B5:AK24) -> 0 | C6: Educación Física | D6: Filosofía | E6: Lengua Castellana y Literatura I | F6: Lengua Extranjera I | G6: Matemáticas I | H6: Biología, Geología y Ciencias Ambientales | I6: Dibujo Técnico I | J6: Física y Química | K6: Tecnología e Ingeniería I | L6: Anatomía Aplicada | M6: Economía | N6: Cultura Científica | O6: Religión | P6: Segunda LEX_ALE | Q6: Segunda LEX_FRA | R6: Segunda LEX_ING | S6: Segunda LEX_ITA | T6: Segunda LEX_POR | U6: TIC I | X6: 2º_Pulsa el siguiente botón:
B7: Nombre_Alumno_1
B8: Nombre_Alumno_2
B9: Nombre_Alumno_3
B10: Nombre_Alumno_4

Sheet Materias
C2: MATERIAS DE 1º BACH_CIENCIAS Y TECNOLOGÍA

Sheet 2LEX
C2: MATERIAS DE 1º BACH_CIENCIAS Y TECNOLOGÍA

Sheet Calif. de crit.
E2: =IF(Alumnos!D6="","",Alumnos!D6) -> Nombre_Alumno_1 | F2: =IF(Alumnos!D7="","",Alumnos!D7) -> Nombre_Alumno_2 | G2: =IF(Alumnos!D8="","",Alumnos!D8) -> Nombre_Alumno_3 | H2: =IF(Alumnos!D9="","",Alumnos!D9) -> Nombre_Alumno_4 | I2: =IF(Alumnos!D10="","",Alumnos!D10) ->  | J2: =IF(Alumnos!D11="","",Alumnos!D11) ->  | K2: =IF(Alumnos!D12="","",Alumnos!D12) ->  | L2: =IF(Alumnos!D13="","",Alumnos!D13) ->  | M2: =IF(Alumnos!D14="","",Alumnos!D14) ->  | N2: =IF(Alumnos!D15="","",Alumnos!D15) ->  | O2: =IF(Alumnos!D16="","",Alumnos!D16) ->  | P2: =IF(Alumnos!D17="","",Alumnos!D17) ->  | Q2: =IF(Alumnos!D18="","",Alumnos!D18) ->  | R2: =IF(Alumnos!D19="","",Alumnos!D19) ->  | S2: =IF(Alumnos!D20="","",Alumnos!D20) ->  | T2: =IF(Alumnos!D21="","",Alumnos!D21) ->  | U2: =IF(Alumnos!D22="","",Alumnos!D22) ->  | V2: =IF(Alumnos!D23="","",Alumnos!D23) ->  | W2: =IF(Alumnos!D24="","",Alumnos!D24) ->  | X2: =IF(Alumnos!D25="","",Alumnos!D25) ->  | Y2: =IF(Alumnos!D26="","",Alumnos!D26) ->  | Z2: =IF(Alumnos!D27="","",Alumnos!D27) ->  | AA2: =IF(Alumnos!D28="","",Alumnos!D28) ->  | AB2: =IF(Alumnos!D29="","",Alumnos!D29) ->  | AC2: =IF(Alumnos!D30="","",Alumnos!D30) ->  | AD2: =IF(Alumnos!D31="","",Alumnos!D31) ->  | AE2: =IF(Alumnos!D32="","",Alumnos!D32) ->  | AF2: =IF(Alumnos!D33="","",Alumnos!D33) ->  | AG2: =IF(Alumnos!D34="","",Alumnos!D34) ->  | AH2: =IF(Alumnos!D35="","",Alumnos!D35) ->  | AI2: =IF(Alumnos!D36="","",Alumnos!D36) ->  | AJ2: =IF(Alumnos!D37="","",Alumnos!D37) ->  | AK2: =IF(Alumnos!D38="","",Alumnos!D38) ->  | AL2: =IF(Alumnos!D39="","",Alumnos!D39) ->  | AM2: =IF(Alumnos!D40="","",Alumnos!D40) -> 
B3: Anatomía Aplicada | C3: Comp. Esp. 1 | D3: Criterio Evaluación 1.1 | E3: =IF('Anatomia Aplicada'!H4="","",'Anatomia Aplicada'!H4) ->  | F3: =IF('Anatomia Aplicada'!I4="","",'Anatomia Aplicada'!I4) ->  | G3: =IF('Anatomia Aplicada'!J4="","",'Anatomia Aplicada'!J4) ->  | H3: =IF('Anatomia Aplicada'!K4="","",'Anatomia Aplicada'!K4) ->  | I3: =IF('Anatomia Aplicada'!L4="","",'Anatomia Aplicada'!L4) ->  | J3: =IF('Anatomia Aplicada'!M4="","",'Anatomia Aplicada'!M4) ->  | K3: =IF('Anatomia Aplicada'!N4="","",'Anatomia Aplicada'!N4) ->  | L3: =IF('Anatomia Aplicada'!O4="","",'Anatomia Aplicada'!O4) ->  | M3: =IF('Anatomia Aplicada'!P4="","",'Anatomia Aplicada'!P4) ->  | N3: =IF('Anatomia Aplicada'!Q4="","",'Anatomia Aplicada'!Q4) ->  | O3: =IF('Anatomia Aplicada'!R4="","",'Anatomia Aplicada'!R4) ->  | P3: =IF('Anatomia Aplicada'!S4="","",'Anatomia Aplicada'!S4) ->  | Q3: =IF('Anatomia Aplicada'!T4="","",'Anatomia Aplicada'!T4) ->  | R3: =IF('Anatomia Aplicada'!U4="","",'Anatomia Aplicada'!U4) ->  | S3: =IF('Anatomia Aplicada'!V4="","",'Anatomia Aplicada'!V4) ->  | T3: =IF('Anatomia Aplicada'!W4="","",'Anatomia Aplicada'!W4) ->  | U3: =IF('Anatomia Aplicada'!X4="","",'Anatomia Aplicada'!X4) ->  | V3: =IF('Anatomia Aplicada'!Y4="","",'Anatomia Aplicada'!Y4) ->  | W3: =IF('Anatomia Aplicada'!Z4="","",'Anatomia Aplicada'!Z4) ->  | X3: =IF('Anatomia Aplicada'!AA4="","",'Anatomia Aplicada'!AA4) ->  | Y3: =IF('Anatomia Aplicada'!AB4="","",'Anatomia Aplicada'!AB4) ->  | Z3: =IF('Anatomia Aplicada'!AC4="","",'Anatomia Aplicada'!AC4) ->  | AA3: =IF('Anatomia Aplicada'!AD4="","",'Anatomia Aplicada'!AD4) ->  | AB3: =IF('Anatomia Aplicada'!AE4="","",'Anatomia Aplicada'!AE4) ->  | AC3: =IF('Anatomia Aplicada'!AF4="","",'Anatomia Aplicada'!AF4) ->  | AD3: =IF('Anatomia Aplicada'!AG4="","",'Anatomia Aplicada'!AG4) ->  | AE3: =IF('Anatomia Aplicada'!AH4="","",'Anatomia Aplicada'!AH4) ->  | AF3: =IF('Anatomia Aplicada'!AI4="","",'Anatomia Aplicada'!AI4) ->  | AG3: =IF('Anatomia Aplicada'!AJ4="","",'Anatomia Aplicada'!AJ4) ->  | AH3: =IF('Anatomia Aplicada'!AK4="","",'Anatomia Aplicada'!AK4) ->  | AI3: =IF('Anatomia Aplicada'!AL4="","",'Anatomia Aplicada'!AL4) ->  | AJ3: =IF('Anatomia Aplicada'!AM4="","",'Anatomia Aplicada'!AM4) ->  | AK3: =IF('Anatomia Aplicada'!AN4="","",'Anatomia Aplicada'!AN4) ->  | AL3: =IF('Anatomia Aplicada'!AO4="","",'Anatomia Aplicada'!AO4) ->  | AM3: =IF('Anatomia Aplicada'!AP4="","",'Anatomia Aplicada'!AP4) -> 
D4: Criterio Evaluación 1.2 | E4: =IF('Anatomia Aplicada'!H5="","",'Anatomia Aplicada'!H5) ->  | F4: =IF('Anatomia Aplicada'!I5="","",'Anatomia Aplicada'!I5) ->  | G4: =IF('Anatomia Aplicada'!J5="","",'Anatomia Aplicada'!J5) ->  | H4: =IF('Anatomia Aplicada'!K5="","",'Anatomia Aplicada'!K5) ->  | I4: =IF('Anatomia Aplicada'!L5="","",'Anatomia Aplicada'!L5) ->  | J4: =IF('Anatomia Aplicada'!M5="","",'Anatomia Aplicada'!M5) ->  | K4: =IF('Anatomia Aplicada'!N5="","",'Anatomia Aplicada'!N5) ->  | L4: =IF('Anatomia Aplicada'!O5="","",'Anatomia Aplicada'!O5) ->  | M4: =IF('Anatomia Aplicada'!P5="","",'Anatomia Aplicada'!P5) ->  | N4: =IF('Anatomia Aplicada'!Q5="","",'Anatomia Aplicada'!Q5) ->  | O4: =IF('Anatomia Aplicada'!R5="","",'Anatomia Aplicada'!R5) ->  | P4: =IF('Anatomia Aplicada'!S5="","",'Anatomia Aplicada'!S5) ->  | Q4: =IF('Anatomia Aplicada'!T5="","",'Anatomia Aplicada'!T5) ->  | R4: =IF('Anatomia Aplicada'!U5="","",'Anatomia Aplicada'!U5) ->  | S4: =IF('Anatomia Aplicada'!V5="","",'Anatomia Aplicada'!V5) ->  | T4: =IF('Anatomia Aplicada'!W5="","",'Anatomia Aplicada'!W5) ->  | U4: =IF('Anatomia Aplicada'!X5="","",'Anatomia Aplicada'!X5) ->  | V4: =IF('Anatomia Aplicada'!Y5="","",'Anatomia Aplicada'!Y5) ->  | W4: =IF('Anatomia Aplicada'!Z5="","",'Anatomia Aplicada'!Z5) ->  | X4: =IF('Anatomia Aplicada'!AA5="","",'Anatomia Aplicada'!AA5) ->  | Y4: =IF('Anatomia Aplicada'!AB5="","",'Anatomia Aplicada'!AB5) ->  | Z4: =IF('Anatomia Aplicada'!AC5="","",'Anatomia Aplicada'!AC5) ->  | AA4: =IF('Anatomia Aplicada'!AD5="","",'Anatomia Aplicada'!AD5) ->  | AB4: =IF('Anatomia Aplicada'!AE5="","",'Anatomia Aplicada'!AE5) ->  | AC4: =IF('Anatomia Aplicada'!AF5="","",'Anatomia Aplicada'!AF5) ->  | AD4: =IF('Anatomia Aplicada'!AG5="","",'Anatomia Aplicada'!AG5) ->  | AE4: =IF('Anatomia Aplicada'!AH5="","",'Anatomia Aplicada'!AH5) ->  | AF4: =IF('Anatomia Aplicada'!AI5="","",'Anatomia Aplicada'!AI5) ->  | AG4: =IF('Anatomia Aplicada'!AJ5="","",'Anatomia Aplicada'!AJ5) ->  | AH4: =IF('Anatomia Aplicada'!AK5="","",'Anatomia Aplicada'!AK5) ->  | AI4: =IF('Anatomia Aplicada'!AL5="","",'Anatomia Aplicada'!AL5) ->  | AJ4: =IF('Anatomia Aplicada'!AM5="","",'Anatomia Aplicada'!AM5) ->  | AK4: =IF('Anatomia Aplicada'!AN5="","",'Anatomia Aplicada'!AN5) ->  | AL4: =IF('Anatomia Aplicada'!AO5="","",'Anatomia Aplicada'!AO5) ->  | AM4: =IF('Anatomia Aplicada'!AP5="","",'Anatomia Aplicada'!AP5) -> 
D5: Criterio Evaluación 1.3 | E5: =IF('Anatomia Aplicada'!H6="","",'Anatomia Aplicada'!H6) ->  | F5: =IF('Anatomia Aplicada'!I6="","",'Anatomia Aplicada'!I6) ->  | G5: =IF('Anatomia Aplicada'!J6="","",'Anatomia Aplicada'!J6) ->  | H5: =IF('Anatomia Aplicada'!K6="","",'Anatomia Aplicada'!K6) ->  | I5: =IF('Anatomia Aplicada'!L6="","",'Anatomia Aplicada'!L6) ->  | J5: =IF('Anatomia Aplicada'!M6="","",'Anatomia Aplicada'!M6) ->  | K5: =IF('Anatomia Aplicada'!N6="","",'Anatomia Aplicada'!N6) ->  | L5: =IF('Anatomia Aplicada'!O6="","",'Anatomia Aplicada'!O6) ->  | M5: =IF('Anatomia Aplicada'!P6="","",'Anatomia Aplicada'!P6) ->  | N5: =IF('Anatomia Aplicada'!Q6="","",'Anatomia Aplicada'!Q6) ->  | O5: =IF('Anatomia Aplicada'!R6="","",'Anatomia Aplicada'!R6) ->  | P5: =IF('Anatomia Aplicada'!S6="","",'Anatomia Aplicada'!S6) ->  | Q5: =IF('Anatomia Aplicada'!T6="","",'Anatomia Aplicada'!T6) ->  | R5: =IF('Anatomia Aplicada'!U6="","",'Anatomia Aplicada'!U6) ->  | S5: =IF('Anatomia Aplicada'!V6="","",'Anatomia Aplicada'!V6) ->  | T5: =IF('Anatomia Aplicada'!W6="","",'Anatomia Aplicada'!W6) ->  | U5: =IF('Anatomia Aplicada'!X6="","",'Anatomia Aplicada'!X6) ->  | V5: =IF('Anatomia Aplicada'!Y6="","",'Anatomia Aplicada'!Y6) ->  | W5: =IF('Anatomia Aplicada'!Z6="","",'Anatomia Aplicada'!Z6) ->  | X5: =IF('Anatomia Aplicada'!AA6="","",'Anatomia Aplicada'!AA6) ->  | Y5: =IF('Anatomia Aplicada'!AB6="","",'Anatomia Aplicada'!AB6) ->  | Z5: =IF('Anatomia Aplicada'!AC6="","",'Anatomia Aplicada'!AC6) ->  | AA5: =IF('Anatomia Aplicada'!AD6="","",'Anatomia Aplicada'!AD6) ->  | AB5: =IF('Anatomia Aplicada'!AE6="","",'Anatomia Aplicada'!AE6) ->  | AC5: =IF('Anatomia Aplicada'!AF6="","",'Anatomia Aplicada'!AF6) ->  | AD5: =IF('Anatomia Aplicada'!AG6="","",'Anatomia Aplicada'!AG6) ->  | AE5: =IF('Anatomia Aplicada'!AH6="","",'Anatomia Aplicada'!AH6) ->  | AF5: =IF('Anatomia Aplicada'!AI6="","",'Anatomia Aplicada'!AI6) ->  | AG5: =IF('Anatomia Aplicada'!AJ6="","",'Anatomia Aplicada'!AJ6) ->  | AH5: =IF('Anatomia Aplicada'!AK6="","",'Anatomia Aplicada'!AK6) ->  | AI5: =IF('Anatomia Aplicada'!AL6="","",'Anatomia Aplicada'!AL6) ->  | AJ5: =IF('Anatomia Aplicada'!AM6="","",'Anatomia Aplicada'!AM6) ->  | AK5: =IF('Anatomia Aplicada'!AN6="","",'Anatomia Aplicada'!AN6) ->  | AL5: =IF('Anatomia Aplicada'!AO6="","",'Anatomia Aplicada'!AO6) ->  | AM5: =IF('Anatomia Aplicada'!AP6="","",'Anatomia Aplicada'!AP6) -> 
C6: Comp. Esp. 2 | D6: Criterio Evaluación 2.1 | E6: =IF('Anatomia Aplicada'!H7="","",'Anatomia Aplicada'!H7) ->  | F6: =IF('Anatomia Aplicada'!I7="","",'Anatomia Aplicada'!I7) ->  | G6: =IF('Anatomia Aplicada'!J7="","",'Anatomia Aplicada'!J7) ->  | H6: =IF('Anatomia Aplicada'!K7="","",'Anatomia Aplicada'!K7) ->  | I6: =IF('Anatomia Aplicada'!L7="","",'Anatomia Aplicada'!L7) ->  | J6: =IF('Anatomia Aplicada'!M7="","",'Anatomia Aplicada'!M7) ->  | K6: =IF('Anatomia Aplicada'!N7="","",'Anatomia Aplicada'!N7) ->  | L6: =IF('Anatomia Aplicada'!O7="","",'Anatomia Aplicada'!O7) ->  | M6: =IF('Anatomia Aplicada'!P7="","",'Anatomia Aplicada'!P7) ->  | N6: =IF('Anatomia Aplicada'!Q7="","",'Anatomia Aplicada'!Q7) ->  | O6: =IF('Anatomia Aplicada'!R7="","",'Anatomia Aplicada'!R7) ->  | P6: =IF('Anatomia Aplicada'!S7="","",'Anatomia Aplicada'!S7) ->  | Q6: =IF('Anatomia Aplicada'!T7="","",'Anatomia Aplicada'!T7) ->  | R6: =IF('Anatomia Aplicada'!U7="","",'Anatomia Aplicada'!U7) ->  | S6: =IF('Anatomia Aplicada'!V7="","",'Anatomia Aplicada'!V7) ->  | T6: =IF('Anatomia Aplicada'!W7="","",'Anatomia Aplicada'!W7) ->  | U6: =IF('Anatomia Aplicada'!X7="","",'Anatomia Aplicada'!X7) ->  | V6: =IF('Anatomia Aplicada'!Y7="","",'Anatomia Aplicada'!Y7) ->  | W6: =IF('Anatomia Aplicada'!Z7="","",'Anatomia Aplicada'!Z7) ->  | X6: =IF('Anatomia Aplicada'!AA7="","",'Anatomia Aplicada'!AA7) ->  | Y6: =IF('Anatomia Aplicada'!AB7="","",'Anatomia Aplicada'!AB7) ->  | Z6: =IF('Anatomia Aplicada'!AC7="","",'Anatomia Aplicada'!AC7) ->  | AA6: =IF('Anatomia Aplicada'!AD7="","",'Anatomia Aplicada'!AD7) ->  | AB6: =IF('Anatomia Aplicada'!AE7="","",'Anatomia Aplicada'!AE7) ->  | AC6: =IF('Anatomia Aplicada'!AF7="","",'Anatomia Aplicada'!AF7) ->  | AD6: =IF('Anatomia Aplicada'!AG7="","",'Anatomia Aplicada'!AG7) ->  | AE6: =IF('Anatomia Aplicada'!AH7="","",'Anatomia Aplicada'!AH7) ->  | AF6: =IF('Anatomia Aplicada'!AI7="","",'Anatomia Aplicada'!AI7) ->  | AG6: =IF('Anatomia Aplicada'!AJ7="","",'Anatomia Aplicada'!AJ7) ->  | AH6: =IF('Anatomia Aplicada'!AK7="","",'Anatomia Aplicada'!AK7) ->  | AI6: =IF('Anatomia Aplicada'!AL7="","",'Anatomia Aplicada'!AL7) ->  | AJ6: =IF('Anatomia Aplicada'!AM7="","",'Anatomia Aplicada'!AM7) ->  | AK6: =IF('Anatomia Aplicada'!AN7="","",'Anatomia Aplicada'!AN7) ->  | AL6: =IF('Anatomia Aplicada'!AO7="","",'Anatomia Aplicada'!AO7) ->  | AM6: =IF('Anatomia Aplicada'!AP7="","",'Anatomia Aplicada'!AP7) -> 
D7: Criterio Evaluación 2.2 | E7: =IF('Anatomia Aplicada'!H8="","",'Anatomia Aplicada'!H8) ->  | F7: =IF('Anatomia Aplicada'!I8="","",'Anatomia Aplicada'!I8) ->  | G7: =IF('Anatomia Aplicada'!J8="","",'Anatomia Aplicada'!J8) ->  | H7: =IF('Anatomia Aplicada'!K8="","",'Anatomia Aplicada'!K8) ->  | I7: =IF('Anatomia Aplicada'!L8="","",'Anatomia Aplicada'!L8) ->  | J7: =IF('Anatomia Aplicada'!M8="","",'Anatomia Aplicada'!M8) ->  | K7: =IF('Anatomia Aplicada'!N8="","",'Anatomia Aplicada'!N8) ->  | L7: =IF('Anatomia Aplicada'!O8="","",'Anatomia Aplicada'!O8) ->  | M7: =IF('Anatomia Aplicada'!P8="","",'Anatomia Aplicada'!P8) ->  | N7: =IF('Anatomia Aplicada'!Q8="","",'Anatomia Aplicada'!Q8) ->  | O7: =IF('Anatomia Aplicada'!R8="","",'Anatomia Aplicada'!R8) ->  | P7: =IF('Anatomia Aplicada'!S8="","",'Anatomia Aplicada'!S8) ->  | Q7: =IF('Anatomia Aplicada'!T8="","",'Anatomia Aplicada'!T8) ->  | R7: =IF('Anatomia Aplicada'!U8="","",'Anatomia Aplicada'!U8) ->  | S7: =IF('Anatomia Aplicada'!V8="","",'Anatomia Aplicada'!V8) ->  | T7: =IF('Anatomia Aplicada'!W8="","",'Anatomia Aplicada'!W8) ->  | U7: =IF('Anatomia Aplicada'!X8="","",'Anatomia Aplicada'!X8) ->  | V7: =IF('Anatomia Aplicada'!Y8="","",'Anatomia Aplicada'!Y8) ->  | W7: =IF('Anatomia Aplicada'!Z8="","",'Anatomia Aplicada'!Z8) ->  | X7: =IF('Anatomia Aplicada'!AA8="","",'Anatomia Aplicada'!AA8) ->  | Y7: =IF('Anatomia Aplicada'!AB8="","",'Anatomia Aplicada'!AB8) ->  | Z7: =IF('Anatomia Aplicada'!AC8="","",'Anatomia Aplicada'!AC8) ->  | AA7: =IF('Anatomia Aplicada'!AD8="","",'Anatomia Aplicada'!AD8) ->  | AB7: =IF('Anatomia Aplicada'!AE8="","",'Anatomia Aplicada'!AE8) ->  | AC7: =IF('Anatomia Aplicada'!AF8="","",'Anatomia Aplicada'!AF8) ->  | AD7: =IF('Anatomia Aplicada'!AG8="","",'Anatomia Aplicada'!AG8) ->  | AE7: =IF('Anatomia Aplicada'!AH8="","",'Anatomia Aplicada'!AH8) ->  | AF7: =IF('Anatomia Aplicada'!AI8="","",'Anatomia Aplicada'!AI8) ->  | AG7: =IF('Anatomia Aplicada'!AJ8="","",'Anatomia Aplicada'!AJ8) ->  | AH7: =IF('Anatomia Aplicada'!AK8="","",'Anatomia Aplicada'!AK8) ->  | AI7: =IF('Anatomia Aplicada'!AL8="","",'Anatomia Aplicada'!AL8) ->  | AJ7: =IF('Anatomia Aplicada'!AM8="","",'Anatomia Aplicada'!AM8) ->  | AK7: =IF('Anatomia Aplicada'!AN8="","",'Anatomia Aplicada'!AN8) ->  | AL7: =IF('Anatomia Aplicada'!AO8="","",'Anatomia Aplicada'!AO8) ->  | AM7: =IF('Anatomia Aplicada'!AP8="","",'Anatomia Aplicada'!AP8) -> 
D8: Criterio Evaluación 2.3 | E8: =IF('Anatomia Aplicada'!H9="","",'Anatomia Aplicada'!H9) ->  | F8: =IF('Anatomia Aplicada'!I9="","",'Anatomia Aplicada'!I9) ->  | G8: =IF('Anatomia Aplicada'!J9="","",'Anatomia Aplicada'!J9) ->  | H8: =IF('Anatomia Aplicada'!K9="","",'Anatomia Aplicada'!K9) ->  | I8: =IF('Anatomia Aplicada'!L9="","",'Anatomia Aplicada'!L9) ->  | J8: =IF('Anatomia Aplicada'!M9="","",'Anatomia Aplicada'!M9) ->  | K8: =IF('Anatomia Aplicada'!N9="","",'Anatomia Aplicada'!N9) ->  | L8: =IF('Anatomia Aplicada'!O9="","",'Anatomia Aplicada'!O9) ->  | M8: =IF('Anatomia Aplicada'!P9="","",'Anatomia Aplicada'!P9) ->  | N8: =IF('Anatomia Aplicada'!Q9="","",'Anatomia Aplicada'!Q9) ->  | O8: =IF('Anatomia Aplicada'!R9="","",'Anatomia Aplicada'!R9) ->  | P8: =IF('Anatomia Aplicada'!S9="","",'Anatomia Aplicada'!S9) ->  | Q8: =IF('Anatomia Aplicada'!T9="","",'Anatomia Aplicada'!T9) ->  | R8: =IF('Anatomia Aplicada'!U9="","",'Anatomia Aplicada'!U9) ->  | S8: =IF('Anatomia Aplicada'!V9="","",'Anatomia Aplicada'!V9) ->  | T8: =IF('Anatomia Aplicada'!W9="","",'Anatomia Aplicada'!W9) ->  | U8: =IF('Anatomia Aplicada'!X9="","",'Anatomia Aplicada'!X9) ->  | V8: =IF('Anatomia Aplicada'!Y9="","",'Anatomia Aplicada'!Y9) ->  | W8: =IF('Anatomia Aplicada'!Z9="","",'Anatomia Aplicada'!Z9) ->  | X8: =IF('Anatomia Aplicada'!AA9="","",'Anatomia Aplicada'!AA9) ->  | Y8: =IF('Anatomia Aplicada'!AB9="","",'Anatomia Aplicada'!AB9) ->  | Z8: =IF('Anatomia Aplicada'!AC9="","",'Anatomia Aplicada'!AC9) ->  | AA8: =IF('Anatomia Aplicada'!AD9="","",'Anatomia Aplicada'!AD9) ->  | AB8: =IF('Anatomia Aplicada'!AE9="","",'Anatomia Aplicada'!AE9) ->  | AC8: =IF('Anatomia Aplicada'!AF9="","",'Anatomia Aplicada'!AF9) ->  | AD8: =IF('Anatomia Aplicada'!AG9="","",'Anatomia Aplicada'!AG9) ->  | AE8: =IF('Anatomia Aplicada'!AH9="","",'Anatomia Aplicada'!AH9) ->  | AF8: =IF('Anatomia Aplicada'!AI9="","",'Anatomia Aplicada'!AI9) ->  | AG8: =IF('Anatomia Aplicada'!AJ9="","",'Anatomia Aplicada'!AJ9) ->  | AH8: =IF('Anatomia Aplicada'!AK9="","",'Anatomia Aplicada'!AK9) ->  | AI8: =IF('Anatomia Aplicada'!AL9="","",'Anatomia Aplicada'!AL9) ->  | AJ8: =IF('Anatomia Aplicada'!AM9="","",'Anatomia Aplicada'!AM9) ->  | AK8: =IF('Anatomia Aplicada'!AN9="","",'Anatomia Aplicada'!AN9) ->  | AL8: =IF('Anatomia Aplicada'!AO9="","",'Anatomia Aplicada'!AO9) ->  | AM8: =IF('Anatomia Aplicada'!AP9="","",'Anatomia Aplicada'!AP9) -> 
C9: Comp. Esp. 3 | D9: Criterio Evaluación 3.1 | E9: =IF('Anatomia Aplicada'!H10="","",'Anatomia Aplicada'!H10) ->  | F9: =IF('Anatomia Aplicada'!I10="","",'Anatomia Aplicada'!I10) ->  | G9: =IF('Anatomia Aplicada'!J10="","",'Anatomia Aplicada'!J10) ->  | H9: =IF('Anatomia Aplicada'!K10="","",'Anatomia Aplicada'!K10) ->  | I9: =IF('Anatomia Aplicada'!L10="","",'Anatomia Aplicada'!L10) ->  | J9: =IF('Anatomia Aplicada'!M10="","",'Anatomia Aplicada'!M10) ->  | K9: =IF('Anatomia Aplicada'!N10="","",'Anatomia Aplicada'!N10) ->  | L9: =IF('Anatomia Aplicada'!O10="","",'Anatomia Aplicada'!O10) ->  | M9: =IF('Anatomia Aplicada'!P10="","",'Anatomia Aplicada'!P10) ->  | N9: =IF('Anatomia Aplicada'!Q10="","",'Anatomia Aplicada'!Q10) ->  | O9: =IF('Anatomia Aplicada'!R10="","",'Anatomia Aplicada'!R10) ->  | P9: =IF('Anatomia Aplicada'!S10="","",'Anatomia Aplicada'!S10) ->  | Q9: =IF('Anatomia Aplicada'!T10="","",'Anatomia Aplicada'!T10) ->  | R9: =IF('Anatomia Aplicada'!U10="","",'Anatomia Aplicada'!U10) ->  | S9: =IF('Anatomia Aplicada'!V10="","",'Anatomia Aplicada'!V10) ->  | T9: =IF('Anatomia Aplicada'!W10="","",'Anatomia Aplicada'!W10) ->  | U9: =IF('Anatomia Aplicada'!X10="","",'Anatomia Aplicada'!X10) ->  | V9: =IF('Anatomia Aplicada'!Y10="","",'Anatomia Aplicada'!Y10) ->  | W9: =IF('Anatomia Aplicada'!Z10="","",'Anatomia Aplicada'!Z10) ->  | X9: =IF('Anatomia Aplicada'!AA10="","",'Anatomia Aplicada'!AA10) ->  | Y9: =IF('Anatomia Aplicada'!AB10="","",'Anatomia Aplicada'!AB10) ->  | Z9: =IF('Anatomia Aplicada'!AC10="","",'Anatomia Aplicada'!AC10) ->  | AA9: =IF('Anatomia Aplicada'!AD10="","",'Anatomia Aplicada'!AD10) ->  | AB9: =IF('Anatomia Aplicada'!AE10="","",'Anatomia Aplicada'!AE10) ->  | AC9: =IF('Anatomia Aplicada'!AF10="","",'Anatomia Aplicada'!AF10) ->  | AD9: =IF('Anatomia Aplicada'!AG10="","",'Anatomia Aplicada'!AG10) ->  | AE9: =IF('Anatomia Aplicada'!AH10="","",'Anatomia Aplicada'!AH10) ->  | AF9: =IF('Anatomia Aplicada'!AI10="","",'Anatomia Aplicada'!AI10) ->  | AG9: =IF('Anatomia Aplicada'!AJ10="","",'Anatomia Aplicada'!AJ10) ->  | AH9: =IF('Anatomia Aplicada'!AK10="","",'Anatomia Aplicada'!AK10) ->  | AI9: =IF('Anatomia Aplicada'!AL10="","",'Anatomia Aplicada'!AL10) ->  | AJ9: =IF('Anatomia Aplicada'!AM10="","",'Anatomia Aplicada'!AM10) ->  | AK9: =IF('Anatomia Aplicada'!AN10="","",'Anatomia Aplicada'!AN10) ->  | AL9: =IF('Anatomia Aplicada'!AO10="","",'Anatomia Aplicada'!AO10) ->  | AM9: =IF('Anatomia Aplicada'!AP10="","",'Anatomia Aplicada'!AP10) -> 
D10: Criterio Evaluación 3.2 | E10: =IF('Anatomia Aplicada'!H11="","",'Anatomia Aplicada'!H11) ->  | F10: =IF('Anatomia Aplicada'!I11="","",'Anatomia Aplicada'!I11) ->  | G10: =IF('Anatomia Aplicada'!J11="","",'Anatomia Aplicada'!J11) ->  | H10: =IF('Anatomia Aplicada'!K11="","",'Anatomia Aplicada'!K11) ->  | I10: =IF('Anatomia Aplicada'!L11="","",'Anatomia Aplicada'!L11) ->  | J10: =IF('Anatomia Aplicada'!M11="","",'Anatomia Aplicada'!M11) ->  | K10: =IF('Anatomia Aplicada'!N11="","",'Anatomia Aplicada'!N11) ->  | L10: =IF('Anatomia Aplicada'!O11="","",'Anatomia Aplicada'!O11) ->  | M10: =IF('Anatomia Aplicada'!P11="","",'Anatomia Aplicada'!P11) ->  | N10: =IF('Anatomia Aplicada'!Q11="","",'Anatomia Aplicada'!Q11) ->  | O10: =IF('Anatomia Aplicada'!R11="","",'Anatomia Aplicada'!R11) ->  | P10: =IF('Anatomia Aplicada'!S11="","",'Anatomia Aplicada'!S11) ->  | Q10: =IF('Anatomia Aplicada'!T11="","",'Anatomia Aplicada'!T11) ->  | R10: =IF('Anatomia Aplicada'!U11="","",'Anatomia Aplicada'!U11) ->  | S10: =IF('Anatomia Aplicada'!V11="","",'Anatomia Aplicada'!V11) ->  | T10: =IF('Anatomia Aplicada'!W11="","",'Anatomia Aplicada'!W11) ->  | U10: =IF('Anatomia Aplicada'!X11="","",'Anatomia Aplicada'!X11) ->  | V10: =IF('Anatomia Aplicada'!Y11="","",'Anatomia Aplicada'!Y11) ->  | W10: =IF('Anatomia Aplicada'!Z11="","",'Anatomia Aplicada'!Z11) ->  | X10: =IF('Anatomia Aplicada'!AA11="","",'Anatomia Aplicada'!AA11) ->  | Y10: =IF('Anatomia Aplicada'!AB11="","",'Anatomia Aplicada'!AB11) ->  | Z10: =IF('Anatomia Aplicada'!AC11="","",'Anatomia Aplicada'!AC11) ->  | AA10: =IF('Anatomia Aplicada'!AD11="","",'Anatomia Aplicada'!AD11) ->  | AB10: =IF('Anatomia Aplicada'!AE11="","",'Anatomia Aplicada'!AE11) ->  | AC10: =IF('Anatomia Aplicada'!AF11="","",'Anatomia Aplicada'!AF11) ->  | AD10: =IF('Anatomia Aplicada'!AG11="","",'Anatomia Aplicada'!AG11) ->  | AE10: =IF('Anatomia Aplicada'!AH11="","",'Anatomia Aplicada'!AH11) ->  | AF10: =IF('Anatomia Aplicada'!AI11="","",'Anatomia Aplicada'!AI11) ->  | AG10: =IF('Anatomia Aplicada'!AJ11="","",'Anatomia Aplicada'!AJ11) ->  | AH10: =IF('Anatomia Aplicada'!AK11="","",'Anatomia Aplicada'!AK11) ->  | AI10: =IF('Anatomia Aplicada'!AL11="","",'Anatomia Aplicada'!AL11) ->  | AJ10: =IF('Anatomia Aplicada'!AM11="","",'Anatomia Aplicada'!AM11) ->  | AK10: =IF('Anatomia Aplicada'!AN11="","",'Anatomia Aplicada'!AN11) ->  | AL10: =IF('Anatomia Aplicada'!AO11="","",'Anatomia Aplicada'!AO11) ->  | AM10: =IF('Anatomia Aplicada'!AP11="","",'Anatomia Aplicada'!AP11) -> 
D11: Criterio Evaluación 3.3 | E11: =IF('Anatomia Aplicada'!H12="","",'Anatomia Aplicada'!H12) ->  | F11: =IF('Anatomia Aplicada'!I12="","",'Anatomia Aplicada'!I12) ->  | G11: =IF('Anatomia Aplicada'!J12="","",'Anatomia Aplicada'!J12) ->  | H11: =IF('Anatomia Aplicada'!K12="","",'Anatomia Aplicada'!K12) ->  | I11: =IF('Anatomia Aplicada'!L12="","",'Anatomia Aplicada'!L12) ->  | J11: =IF('Anatomia Aplicada'!M12="","",'Anatomia Aplicada'!M12) ->  | K11: =IF('Anatomia Aplicada'!N12="","",'Anatomia Aplicada'!N12) ->  | L11: =IF('Anatomia Aplicada'!O12="","",'Anatomia Aplicada'!O12) ->  | M11: =IF('Anatomia Aplicada'!P12="","",'Anatomia Aplicada'!P12) ->  | N11: =IF('Anatomia Aplicada'!Q12="","",'Anatomia Aplicada'!Q12) ->  | O11: =IF('Anatomia Aplicada'!R12="","",'Anatomia Aplicada'!R12) ->  | P11: =IF('Anatomia Aplicada'!S12="","",'Anatomia Aplicada'!S12) ->  | Q11: =IF('Anatomia Aplicada'!T12="","",'Anatomia Aplicada'!T12) ->  | R11: =IF('Anatomia Aplicada'!U12="","",'Anatomia Aplicada'!U12) ->  | S11: =IF('Anatomia Aplicada'!V12="","",'Anatomia Aplicada'!V12) ->  | T11: =IF('Anatomia Aplicada'!W12="","",'Anatomia Aplicada'!W12) ->  | U11: =IF('Anatomia Aplicada'!X12="","",'Anatomia Aplicada'!X12) ->  | V11: =IF('Anatomia Aplicada'!Y12="","",'Anatomia Aplicada'!Y12) ->  | W11: =IF('Anatomia Aplicada'!Z12="","",'Anatomia Aplicada'!Z12) ->  | X11: =IF('Anatomia Aplicada'!AA12="","",'Anatomia Aplicada'!AA12) ->  | Y11: =IF('Anatomia Aplicada'!AB12="","",'Anatomia Aplicada'!AB12) ->  | Z11: =IF('Anatomia Aplicada'!AC12="","",'Anatomia Aplicada'!AC12) ->  | AA11: =IF('Anatomia Aplicada'!AD12="","",'Anatomia Aplicada'!AD12) ->  | AB11: =IF('Anatomia Aplicada'!AE12="","",'Anatomia Aplicada'!AE12) ->  | AC11: =IF('Anatomia Aplicada'!AF12="","",'Anatomia Aplicada'!AF12) ->  | AD11: =IF('Anatomia Aplicada'!AG12="","",'Anatomia Aplicada'!AG12) ->  | AE11: =IF('Anatomia Aplicada'!AH12="","",'Anatomia Aplicada'!AH12) ->  | AF11: =IF('Anatomia Aplicada'!AI12="","",'Anatomia Aplicada'!AI12) ->  | AG11: =IF('Anatomia Aplicada'!AJ12="","",'Anatomia Aplicada'!AJ12) ->  | AH11: =IF('Anatomia Aplicada'!AK12="","",'Anatomia Aplicada'!AK12) ->  | AI11: =IF('Anatomia Aplicada'!AL12="","",'Anatomia Aplicada'!AL12) ->  | AJ11: =IF('Anatomia Aplicada'!AM12="","",'Anatomia Aplicada'!AM12) ->  | AK11: =IF('Anatomia Aplicada'!AN12="","",'Anatomia Aplicada'!AN12) ->  | AL11: =IF('Anatomia Aplicada'!AO12="","",'Anatomia Aplicada'!AO12) ->  | AM11: =IF('Anatomia Aplicada'!AP12="","",'Anatomia Aplicada'!AP12) -> 
D12: Criterio Evaluación 3.4 | E12: =IF('Anatomia Aplicada'!H13="","",'Anatomia Aplicada'!H13) ->  | F12: =IF('Anatomia Aplicada'!I13="","",'Anatomia Aplicada'!I13) ->  | G12: =IF('Anatomia Aplicada'!J13="","",'Anatomia Aplicada'!J13) ->  | H12: =IF('Anatomia Aplicada'!K13="","",'Anatomia Aplicada'!K13) ->  | I12: =IF('Anatomia Aplicada'!L13="","",'Anatomia Aplicada'!L13) ->  | J12: =IF('Anatomia Aplicada'!M13="","",'Anatomia Aplicada'!M13) ->  | K12: =IF('Anatomia Aplicada'!N13="","",'Anatomia Aplicada'!N13) ->  | L12: =IF('Anatomia Aplicada'!O13="","",'Anatomia Aplicada'!O13) ->  | M12: =IF('Anatomia Aplicada'!P13="","",'Anatomia Aplicada'!P13) ->  | N12: =IF('Anatomia Aplicada'!Q13="","",'Anatomia Aplicada'!Q13) ->  | O12: =IF('Anatomia Aplicada'!R13="","",'Anatomia Aplicada'!R13) ->  | P12: =IF('Anatomia Aplicada'!S13="","",'Anatomia Aplicada'!S13) ->  | Q12: =IF('Anatomia Aplicada'!T13="","",'Anatomia Aplicada'!T13) ->  | R12: =IF('Anatomia Aplicada'!U13="","",'Anatomia Aplicada'!U13) ->  | S12: =IF('Anatomia Aplicada'!V13="","",'Anatomia Aplicada'!V13) ->  | T12: =IF('Anatomia Aplicada'!W13="","",'Anatomia Aplicada'!W13) ->  | U12: =IF('Anatomia Aplicada'!X13="","",'Anatomia Aplicada'!X13) ->  | V12: =IF('Anatomia Aplicada'!Y13="","",'Anatomia Aplicada'!Y13) ->  | W12: =IF('Anatomia Aplicada'!Z13="","",'Anatomia Aplicada'!Z13) ->  | X12: =IF('Anatomia Aplicada'!AA13="","",'Anatomia Aplicada'!AA13) ->  | Y12: =IF('Anatomia Aplicada'!AB13="","",'Anatomia Aplicada'!AB13) ->  | Z12: =IF('Anatomia Aplicada'!AC13="","",'Anatomia Aplicada'!AC13) ->  | AA12: =IF('Anatomia Aplicada'!AD13="","",'Anatomia Aplicada'!AD13) ->  | AB12: =IF('Anatomia Aplicada'!AE13="","",'Anatomia Aplicada'!AE13) ->  | AC12: =IF('Anatomia Aplicada'!AF13="","",'Anatomia Aplicada'!AF13) ->  | AD12: =IF('Anatomia Aplicada'!AG13="","",'Anatomia Aplicada'!AG13) ->  | AE12: =IF('Anatomia Aplicada'!AH13="","",'Anatomia Aplicada'!AH13) ->  | AF12: =IF('Anatomia Aplicada'!AI13="","",'Anatomia Aplicada'!AI13) ->  | AG12: =IF('Anatomia Aplicada'!AJ13="","",'Anatomia Aplicada'!AJ13) ->  | AH12: =IF('Anatomia Aplicada'!AK13="","",'Anatomia Aplicada'!AK13) ->  | AI12: =IF('Anatomia Aplicada'!AL13="","",'Anatomia Aplicada'!AL13) ->  | AJ12: =IF('Anatomia Aplicada'!AM13="","",'Anatomia Aplicada'!AM13) ->  | AK12: =IF('Anatomia Aplicada'!AN13="","",'Anatomia Aplicada'!AN13) ->  | AL12: =IF('Anatomia Aplicada'!AO13="","",'Anatomia Aplicada'!AO13) ->  | AM12: =IF('Anatomia Aplicada'!AP13="","",'Anatomia Aplicada'!AP13) -> 
D13: Criterio Evaluación 3.5 | E13: =IF('Anatomia Aplicada'!H14="","",'Anatomia Aplicada'!H14) ->  | F13: =IF('Anatomia Aplicada'!I14="","",'Anatomia Aplicada'!I14) ->  | G13: =IF('Anatomia Aplicada'!J14="","",'Anatomia Aplicada'!J14) ->  | H13: =IF('Anatomia Aplicada'!K14="","",'Anatomia Aplicada'!K14) ->  | I13: =IF('Anatomia Aplicada'!L14="","",'Anatomia Aplicada'!L14) ->  | J13: =IF('Anatomia Aplicada'!M14="","",'Anatomia Aplicada'!M14) ->  | K13: =IF('Anatomia Aplicada'!N14="","",'Anatomia Aplicada'!N14) ->  | L13: =IF('Anatomia Aplicada'!O14="","",'Anatomia Aplicada'!O14) ->  | M13: =IF('Anatomia Aplicada'!P14="","",'Anatomia Aplicada'!P14) ->  | N13: =IF('Anatomia Aplicada'!Q14="","",'Anatomia Aplicada'!Q14) ->  | O13: =IF('Anatomia Aplicada'!R14="","",'Anatomia Aplicada'!R14) ->  | P13: =IF('Anatomia Aplicada'!S14="","",'Anatomia Aplicada'!S14) ->  | Q13: =IF('Anatomia Aplicada'!T14="","",'Anatomia Aplicada'!T14) ->  | R13: =IF('Anatomia Aplicada'!U14="","",'Anatomia Aplicada'!U14) ->  | S13: =IF('Anatomia Aplicada'!V14="","",'Anatomia Aplicada'!V14) ->  | T13: =IF('Anatomia Aplicada'!W14="","",'Anatomia Aplicada'!W14) ->  | U13: =IF('Anatomia Aplicada'!X14="","",'Anatomia Aplicada'!X14) ->  | V13: =IF('Anatomia Aplicada'!Y14="","",'Anatomia Aplicada'!Y14) ->  | W13: =IF('Anatomia Aplicada'!Z14="","",'Anatomia Aplicada'!Z14) ->  | X13: =IF('Anatomia Aplicada'!AA14="","",'Anatomia Aplicada'!AA14) ->  | Y13: =IF('Anatomia Aplicada'!AB14="","",'Anatomia Aplicada'!AB14) ->  | Z13: =IF('Anatomia Aplicada'!AC14="","",'Anatomia Aplicada'!AC14) ->  | AA13: =IF('Anatomia Aplicada'!AD14="","",'Anatomia Aplicada'!AD14) ->  | AB13: =IF('Anatomia Aplicada'!AE14="","",'Anatomia Aplicada'!AE14) ->  | AC13: =IF('Anatomia Aplicada'!AF14="","",'Anatomia Aplicada'!AF14) ->  | AD13: =IF('Anatomia Aplicada'!AG14="","",'Anatomia Aplicada'!AG14) ->  | AE13: =IF('Anatomia Aplicada'!AH14="","",'Anatomia Aplicada'!AH14) ->  | AF13: =IF('Anatomia Aplicada'!AI14="","",'Anatomia Aplicada'!AI14) ->  | AG13: =IF('Anatomia Aplicada'!AJ14="","",'Anatomia Aplicada'!AJ14) ->  | AH13: =IF('Anatomia Aplicada'!AK14="","",'Anatomia Aplicada'!AK14) ->  | AI13: =IF('Anatomia Aplicada'!AL14="","",'Anatomia Aplicada'!AL14) ->  | AJ13: =IF('Anatomia Aplicada'!AM14="","",'Anatomia Aplicada'!AM14) ->  | AK13: =IF('Anatomia Aplicada'!AN14="","",'Anatomia Aplicada'!AN14) ->  | AL13: =IF('Anatomia Aplicada'!AO14="","",'Anatomia Aplicada'!AO14) ->  | AM13: =IF('Anatomia Aplicada'!AP14="","",'Anatomia Aplicada'!AP14) -> 
D14: Criterio Evaluación 3.6 | E14: =IF('Anatomia Aplicada'!H15="","",'Anatomia Aplicada'!H15) ->  | F14: =IF('Anatomia Aplicada'!I15="","",'Anatomia Aplicada'!I15) ->  | G14: =IF('Anatomia Aplicada'!J15="","",'Anatomia Aplicada'!J15) ->  | H14: =IF('Anatomia Aplicada'!K15="","",'Anatomia Aplicada'!K15) ->  | I14: =IF('Anatomia Aplicada'!L15="","",'Anatomia Aplicada'!L15) ->  | J14: =IF('Anatomia Aplicada'!M15="","",'Anatomia Aplicada'!M15) ->  | K14: =IF('Anatomia Aplicada'!N15="","",'Anatomia Aplicada'!N15) ->  | L14: =IF('Anatomia Aplicada'!O15="","",'Anatomia Aplicada'!O15) ->  | M14: =IF('Anatomia Aplicada'!P15="","",'Anatomia Aplicada'!P15) ->  | N14: =IF('Anatomia Aplicada'!Q15="","",'Anatomia Aplicada'!Q15) ->  | O14: =IF('Anatomia Aplicada'!R15="","",'Anatomia Aplicada'!R15) ->  | P14: =IF('Anatomia Aplicada'!S15="","",'Anatomia Aplicada'!S15) ->  | Q14: =IF('Anatomia Aplicada'!T15="","",'Anatomia Aplicada'!T15) ->  | R14: =IF('Anatomia Aplicada'!U15="","",'Anatomia Aplicada'!U15) ->  | S14: =IF('Anatomia Aplicada'!V15="","",'Anatomia Aplicada'!V15) ->  | T14: =IF('Anatomia Aplicada'!W15="","",'Anatomia Aplicada'!W15) ->  | U14: =IF('Anatomia Aplicada'!X15="","",'Anatomia Aplicada'!X15) ->  | V14: =IF('Anatomia Aplicada'!Y15="","",'Anatomia Aplicada'!Y15) ->  | W14: =IF('Anatomia Aplicada'!Z15="","",'Anatomia Aplicada'!Z15) ->  | X14: =IF('Anatomia Aplicada'!AA15="","",'Anatomia Aplicada'!AA15) ->  | Y14: =IF('Anatomia Aplicada'!AB15="","",'Anatomia Aplicada'!AB15) ->  | Z14: =IF('Anatomia Aplicada'!AC15="","",'Anatomia Aplicada'!AC15) ->  | AA14: =IF('Anatomia Aplicada'!AD15="","",'Anatomia Aplicada'!AD15) ->  | AB14: =IF('Anatomia Aplicada'!AE15="","",'Anatomia Aplicada'!AE15) ->  | AC14: =IF('Anatomia Aplicada'!AF15="","",'Anatomia Aplicada'!AF15) ->  | AD14: =IF('Anatomia Aplicada'!AG15="","",'Anatomia Aplicada'!AG15) ->  | AE14: =IF('Anatomia Aplicada'!AH15="","",'Anatomia Aplicada'!AH15) ->  | AF14: =IF('Anatomia Aplicada'!AI15="","",'Anatomia Aplicada'!AI15) ->  | AG14: =IF('Anatomia Aplicada'!AJ15="","",'Anatomia Aplicada'!AJ15) ->  | AH14: =IF('Anatomia Aplicada'!AK15="","",'Anatomia Aplicada'!AK15) ->  | AI14: =IF('Anatomia Aplicada'!AL15="","",'Anatomia Aplicada'!AL15) ->  | AJ14: =IF('Anatomia Aplicada'!AM15="","",'Anatomia Aplicada'!AM15) ->  | AK14: =IF('Anatomia Aplicada'!AN15="","",'Anatomia Aplicada'!AN15) ->  | AL14: =IF('Anatomia Aplicada'!AO15="","",'Anatomia Aplicada'!AO15) ->  | AM14: =IF('Anatomia Aplicada'!AP15="","",'Anatomia Aplicada'!AP15) -> 
C15: Comp. Esp. 4 | D15: Criterio Evaluación 4.1 | E15: =IF('Anatomia Aplicada'!H16="","",'Anatomia Aplicada'!H16) ->  | F15: =IF('Anatomia Aplicada'!I16="","",'Anatomia Aplicada'!I16) ->  | G15: =IF('Anatomia Aplicada'!J16="","",'Anatomia Aplicada'!J16) ->  | H15: =IF('Anatomia Aplicada'!K16="","",'Anatomia Aplicada'!K16) ->  | I15: =IF('Anatomia Aplicada'!L16="","",'Anatomia Aplicada'!L16) ->  | J15: =IF('Anatomia Aplicada'!M16="","",'Anatomia Aplicada'!M16) ->  | K15: =IF('Anatomia Aplicada'!N16="","",'Anatomia Aplicada'!N16) ->  | L15: =IF('Anatomia Aplicada'!O16="","",'Anatomia Aplicada'!O16) ->  | M15: =IF('Anatomia Aplicada'!P16="","",'Anatomia Aplicada'!P16) ->  | N15: =IF('Anatomia Aplicada'!Q16="","",'Anatomia Aplicada'!Q16) ->  | O15: =IF('Anatomia Aplicada'!R16="","",'Anatomia Aplicada'!R16) ->  | P15: =IF('Anatomia Aplicada'!S16="","",'Anatomia Aplicada'!S16) ->  | Q15: =IF('Anatomia Aplicada'!T16="","",'Anatomia Aplicada'!T16) ->  | R15: =IF('Anatomia Aplicada'!U16="","",'Anatomia Aplicada'!U16) ->  | S15: =IF('Anatomia Aplicada'!V16="","",'Anatomia Aplicada'!V16) ->  | T15: =IF('Anatomia Aplicada'!W16="","",'Anatomia Aplicada'!W16) ->  | U15: =IF('Anatomia Aplicada'!X16="","",'Anatomia Aplicada'!X16) ->  | V15: =IF('Anatomia Aplicada'!Y16="","",'Anatomia Aplicada'!Y16) ->  | W15: =IF('Anatomia Aplicada'!Z16="","",'Anatomia Aplicada'!Z16) ->  | X15: =IF('Anatomia Aplicada'!AA16="","",'Anatomia Aplicada'!AA16) ->  | Y15: =IF('Anatomia Aplicada'!AB16="","",'Anatomia Aplicada'!AB16) ->  | Z15: =IF('Anatomia Aplicada'!AC16="","",'Anatomia Aplicada'!AC16) ->  | AA15: =IF('Anatomia Aplicada'!AD16="","",'Anatomia Aplicada'!AD16) ->  | AB15: =IF('Anatomia Aplicada'!AE16="","",'Anatomia Aplicada'!AE16) ->  | AC15: =IF('Anatomia Aplicada'!AF16="","",'Anatomia Aplicada'!AF16) ->  | AD15: =IF('Anatomia Aplicada'!AG16="","",'Anatomia Aplicada'!AG16) ->  | AE15: =IF('Anatomia Aplicada'!AH16="","",'Anatomia Aplicada'!AH16) ->  | AF15: =IF('Anatomia Aplicada'!AI16="","",'Anatomia Aplicada'!AI16) ->  | AG15: =IF('Anatomia Aplicada'!AJ16="","",'Anatomia Aplicada'!AJ16) ->  | AH15: =IF('Anatomia Aplicada'!AK16="","",'Anatomia Aplicada'!AK16) ->  | AI15: =IF('Anatomia Aplicada'!AL16="","",'Anatomia Aplicada'!AL16) ->  | AJ15: =IF('Anatomia Aplicada'!AM16="","",'Anatomia Aplicada'!AM16) ->  | AK15: =IF('Anatomia Aplicada'!AN16="","",'Anatomia Aplicada'!AN16) ->  | AL15: =IF('Anatomia Aplicada'!AO16="","",'Anatomia Aplicada'!AO16) ->  | AM15: =IF('Anatomia Aplicada'!AP16="","",'Anatomia Aplicada'!AP16) -> 
D16: Criterio Evaluación 4.2 | E16: =IF('Anatomia Aplicada'!H17="","",'Anatomia Aplicada'!H17) ->  | F16: =IF('Anatomia Aplicada'!I17="","",'Anatomia Aplicada'!I17) ->  | G16: =IF('Anatomia Aplicada'!J17="","",'Anatomia Aplicada'!J17) ->  | H16: =IF('Anatomia Aplicada'!K17="","",'Anatomia Aplicada'!K17) ->  | I16: =IF('Anatomia Aplicada'!L17="","",'Anatomia Aplicada'!L17) ->  | J16: =IF('Anatomia Aplicada'!M17="","",'Anatomia Aplicada'!M17) ->  | K16: =IF('Anatomia Aplicada'!N17="","",'Anatomia Aplicada'!N17) ->  | L16: =IF('Anatomia Aplicada'!O17="","",'Anatomia Aplicada'!O17) ->  | M16: =IF('Anatomia Aplicada'!P17="","",'Anatomia Aplicada'!P17) ->  | N16: =IF('Anatomia Aplicada'!Q17="","",'Anatomia Aplicada'!Q17) ->  | O16: =IF('Anatomia Aplicada'!R17="","",'Anatomia Aplicada'!R17) ->  | P16: =IF('Anatomia Aplicada'!S17="","",'Anatomia Aplicada'!S17) ->  | Q16: =IF('Anatomia Aplicada'!T17="","",'Anatomia Aplicada'!T17) ->  | R16: =IF('Anatomia Aplicada'!U17="","",'Anatomia Aplicada'!U17) ->  | S16: =IF('Anatomia Aplicada'!V17="","",'Anatomia Aplicada'!V17) ->  | T16: =IF('Anatomia Aplicada'!W17="","",'Anatomia Aplicada'!W17) ->  | U16: =IF('Anatomia Aplicada'!X17="","",'Anatomia Aplicada'!X17) ->  | V16: =IF('Anatomia Aplicada'!Y17="","",'Anatomia Aplicada'!Y17) ->  | W16: =IF('Anatomia Aplicada'!Z17="","",'Anatomia Aplicada'!Z17) ->  | X16: =IF('Anatomia Aplicada'!AA17="","",'Anatomia Aplicada'!AA17) ->  | Y16: =IF('Anatomia Aplicada'!AB17="","",'Anatomia Aplicada'!AB17) ->  | Z16: =IF('Anatomia Aplicada'!AC17="","",'Anatomia Aplicada'!AC17) ->  | AA16: =IF('Anatomia Aplicada'!AD17="","",'Anatomia Aplicada'!AD17) ->  | AB16: =IF('Anatomia Aplicada'!AE17="","",'Anatomia Aplicada'!AE17) ->  | AC16: =IF('Anatomia Aplicada'!AF17="","",'Anatomia Aplicada'!AF17) ->  | AD16: =IF('Anatomia Aplicada'!AG17="","",'Anatomia Aplicada'!AG17) ->  | AE16: =IF('Anatomia Aplicada'!AH17="","",'Anatomia Aplicada'!AH17) ->  | AF16: =IF('Anatomia Aplicada'!AI17="","",'Anatomia Aplicada'!AI17) ->  | AG16: =IF('Anatomia Aplicada'!AJ17="","",'Anatomia Aplicada'!AJ17) ->  | AH16: =IF('Anatomia Aplicada'!AK17="","",'Anatomia Aplicada'!AK17) ->  | AI16: =IF('Anatomia Aplicada'!AL17="","",'Anatomia Aplicada'!AL17) ->  | AJ16: =IF('Anatomia Aplicada'!AM17="","",'Anatomia Aplicada'!AM17) ->  | AK16: =IF('Anatomia Aplicada'!AN17="","",'Anatomia Aplicada'!AN17) ->  | AL16: =IF('Anatomia Aplicada'!AO17="","",'Anatomia Aplicada'!AO17) ->  | AM16: =IF('Anatomia Aplicada'!AP17="","",'Anatomia Aplicada'!AP17) -> 
D17: Criterio Evaluación 4.3 | E17: =IF('Anatomia Aplicada'!H18="","",'Anatomia Aplicada'!H18) ->  | F17: =IF('Anatomia Aplicada'!I18="","",'Anatomia Aplicada'!I18) ->  | G17: =IF('Anatomia Aplicada'!J18="","",'Anatomia Aplicada'!J18) ->  | H17: =IF('Anatomia Aplicada'!K18="","",'Anatomia Aplicada'!K18) ->  | I17: =IF('Anatomia Aplicada'!L18="","",'Anatomia Aplicada'!L18) ->  | J17: =IF('Anatomia Aplicada'!M18="","",'Anatomia Aplicada'!M18) ->  | K17: =IF('Anatomia Aplicada'!N18="","",'Anatomia Aplicada'!N18) ->  | L17: =IF('Anatomia Aplicada'!O18="","",'Anatomia Aplicada'!O18) ->  | M17: =IF('Anatomia Aplicada'!P18="","",'Anatomia Aplicada'!P18) ->  | N17: =IF('Anatomia Aplicada'!Q18="","",'Anatomia Aplicada'!Q18) ->  | O17: =IF('Anatomia Aplicada'!R18="","",'Anatomia Aplicada'!R18) ->  | P17: =IF('Anatomia Aplicada'!S18="","",'Anatomia Aplicada'!S18) ->  | Q17: =IF('Anatomia Aplicada'!T18="","",'Anatomia Aplicada'!T18) ->  | R17: =IF('Anatomia Aplicada'!U18="","",'Anatomia Aplicada'!U18) ->  | S17: =IF('Anatomia Aplicada'!V18="","",'Anatomia Aplicada'!V18) ->  | T17: =IF('Anatomia Aplicada'!W18="","",'Anatomia Aplicada'!W18) ->  | U17: =IF('Anatomia Aplicada'!X18="","",'Anatomia Aplicada'!X18) ->  | V17: =IF('Anatomia Aplicada'!Y18="","",'Anatomia Aplicada'!Y18) ->  | W17: =IF('Anatomia Aplicada'!Z18="","",'Anatomia Aplicada'!Z18) ->  | X17: =IF('Anatomia Aplicada'!AA18="","",'Anatomia Aplicada'!AA18) ->  | Y17: =IF('Anatomia Aplicada'!AB18="","",'Anatomia Aplicada'!AB18) ->  | Z17: =IF('Anatomia Aplicada'!AC18="","",'Anatomia Aplicada'!AC18) ->  | AA17: =IF('Anatomia Aplicada'!AD18="","",'Anatomia Aplicada'!AD18) ->  | AB17: =IF('Anatomia Aplicada'!AE18="","",'Anatomia Aplicada'!AE18) ->  | AC17: =IF('Anatomia Aplicada'!AF18="","",'Anatomia Aplicada'!AF18) ->  | AD17: =IF('Anatomia Aplicada'!AG18="","",'Anatomia Aplicada'!AG18) ->  | AE17: =IF('Anatomia Aplicada'!AH18="","",'Anatomia Aplicada'!AH18) ->  | AF17: =IF('Anatomia Aplicada'!AI18="","",'Anatomia Aplicada'!AI18) ->  | AG17: =IF('Anatomia Aplicada'!AJ18="","",'Anatomia Aplicada'!AJ18) ->  | AH17: =IF('Anatomia Aplicada'!AK18="","",'Anatomia Aplicada'!AK18) ->  | AI17: =IF('Anatomia Aplicada'!AL18="","",'Anatomia Aplicada'!AL18) ->  | AJ17: =IF('Anatomia Aplicada'!AM18="","",'Anatomia Aplicada'!AM18) ->  | AK17: =IF('Anatomia Aplicada'!AN18="","",'Anatomia Aplicada'!AN18) ->  | AL17: =IF('Anatomia Aplicada'!AO18="","",'Anatomia Aplicada'!AO18) ->  | AM17: =IF('Anatomia Aplicada'!AP18="","",'Anatomia Aplicada'!AP18) -> 
D18: Criterio Evaluación 4.4 | E18: =IF('Anatomia Aplicada'!H19="","",'Anatomia Aplicada'!H19) ->  | F18: =IF('Anatomia Aplicada'!I19="","",'Anatomia Aplicada'!I19) ->  | G18: =IF('Anatomia Aplicada'!J19="","",'Anatomia Aplicada'!J19) ->  | H18: =IF('Anatomia Aplicada'!K19="","",'Anatomia Aplicada'!K19) ->  | I18: =IF('Anatomia Aplicada'!L19="","",'Anatomia Aplicada'!L19) ->  | J18: =IF('Anatomia Aplicada'!M19="","",'Anatomia Aplicada'!M19) ->  | K18: =IF('Anatomia Aplicada'!N19="","",'Anatomia Aplicada'!N19) ->  | L18: =IF('Anatomia Aplicada'!O19="","",'Anatomia Aplicada'!O19) ->  | M18: =IF('Anatomia Aplicada'!P19="","",'Anatomia Aplicada'!P19) ->  | N18: =IF('Anatomia Aplicada'!Q19="","",'Anatomia Aplicada'!Q19) ->  | O18: =IF('Anatomia Aplicada'!R19="","",'Anatomia Aplicada'!R19) ->  | P18: =IF('Anatomia Aplicada'!S19="","",'Anatomia Aplicada'!S19) ->  | Q18: =IF('Anatomia Aplicada'!T19="","",'Anatomia Aplicada'!T19) ->  | R18: =IF('Anatomia Aplicada'!U19="","",'Anatomia Aplicada'!U19) ->  | S18: =IF('Anatomia Aplicada'!V19="","",'Anatomia Aplicada'!V19) ->  | T18: =IF('Anatomia Aplicada'!W19="","",'Anatomia Aplicada'!W19) ->  | U18: =IF('Anatomia Aplicada'!X19="","",'Anatomia Aplicada'!X19) ->  | V18: =IF('Anatomia Aplicada'!Y19="","",'Anatomia Aplicada'!Y19) ->  | W18: =IF('Anatomia Aplicada'!Z19="","",'Anatomia Aplicada'!Z19) ->  | X18: =IF('Anatomia Aplicada'!AA19="","",'Anatomia Aplicada'!AA19) ->  | Y18: =IF('Anatomia Aplicada'!AB19="","",'Anatomia Aplicada'!AB19) ->  | Z18: =IF('Anatomia Aplicada'!AC19="","",'Anatomia Aplicada'!AC19) ->  | AA18: =IF('Anatomia Aplicada'!AD19="","",'Anatomia Aplicada'!AD19) ->  | AB18: =IF('Anatomia Aplicada'!AE19="","",'Anatomia Aplicada'!AE19) ->  | AC18: =IF('Anatomia Aplicada'!AF19="","",'Anatomia Aplicada'!AF19) ->  | AD18: =IF('Anatomia Aplicada'!AG19="","",'Anatomia Aplicada'!AG19) ->  | AE18: =IF('Anatomia Aplicada'!AH19="","",'Anatomia Aplicada'!AH19) ->  | AF18: =IF('Anatomia Aplicada'!AI19="","",'Anatomia Aplicada'!AI19) ->  | AG18: =IF('Anatomia Aplicada'!AJ19="","",'Anatomia Aplicada'!AJ19) ->  | AH18: =IF('Anatomia Aplicada'!AK19="","",'Anatomia Aplicada'!AK19) ->  | AI18: =IF('Anatomia Aplicada'!AL19="","",'Anatomia Aplicada'!AL19) ->  | AJ18: =IF('Anatomia Aplicada'!AM19="","",'Anatomia Aplicada'!AM19) ->  | AK18: =IF('Anatomia Aplicada'!AN19="","",'Anatomia Aplicada'!AN19) ->  | AL18: =IF('Anatomia Aplicada'!AO19="","",'Anatomia Aplicada'!AO19) ->  | AM18: =IF('Anatomia Aplicada'!AP19="","",'Anatomia Aplicada'!AP19) -> 
C19: Comp. Esp. 5 | D19: Criterio Evaluación 5.1 | E19: =IF('Anatomia Aplicada'!H20="","",'Anatomia Aplicada'!H20) ->  | F19: =IF('Anatomia Aplicada'!I20="","",'Anatomia Aplicada'!I20) ->  | G19: =IF('Anatomia Aplicada'!J20="","",'Anatomia Aplicada'!J20) ->  | H19: =IF('Anatomia Aplicada'!K20="","",'Anatomia Aplicada'!K20) ->  | I19: =IF('Anatomia Aplicada'!L20="","",'Anatomia Aplicada'!L20) ->  | J19: =IF('Anatomia Aplicada'!M20="","",'Anatomia Aplicada'!M20) ->  | K19: =IF('Anatomia Aplicada'!N20="","",'Anatomia Aplicada'!N20) ->  | L19: =IF('Anatomia Aplicada'!O20="","",'Anatomia Aplicada'!O20) ->  | M19: =IF('Anatomia Aplicada'!P20="","",'Anatomia Aplicada'!P20) ->  | N19: =IF('Anatomia Aplicada'!Q20="","",'Anatomia Aplicada'!Q20) ->  | O19: =IF('Anatomia Aplicada'!R20="","",'Anatomia Aplicada'!R20) ->  | P19: =IF('Anatomia Aplicada'!S20="","",'Anatomia Aplicada'!S20) ->  | Q19: =IF('Anatomia Aplicada'!T20="","",'Anatomia Aplicada'!T20) ->  | R19: =IF('Anatomia Aplicada'!U20="","",'Anatomia Aplicada'!U20) ->  | S19: =IF('Anatomia Aplicada'!V20="","",'Anatomia Aplicada'!V20) ->  | T19: =IF('Anatomia Aplicada'!W20="","",'Anatomia Aplicada'!W20) ->  | U19: =IF('Anatomia Aplicada'!X20="","",'Anatomia Aplicada'!X20) ->  | V19: =IF('Anatomia Aplicada'!Y20="","",'Anatomia Aplicada'!Y20) ->  | W19: =IF('Anatomia Aplicada'!Z20="","",'Anatomia Aplicada'!Z20) ->  | X19: =IF('Anatomia Aplicada'!AA20="","",'Anatomia Aplicada'!AA20) ->  | Y19: =IF('Anatomia Aplicada'!AB20="","",'Anatomia Aplicada'!AB20) ->  | Z19: =IF('Anatomia Aplicada'!AC20="","",'Anatomia Aplicada'!AC20) ->  | AA19: =IF('Anatomia Aplicada'!AD20="","",'Anatomia Aplicada'!AD20) ->  | AB19: =IF('Anatomia Aplicada'!AE20="","",'Anatomia Aplicada'!AE20) ->  | AC19: =IF('Anatomia Aplicada'!AF20="","",'Anatomia Aplicada'!AF20) ->  | AD19: =IF('Anatomia Aplicada'!AG20="","",'Anatomia Aplicada'!AG20) ->  | AE19: =IF('Anatomia Aplicada'!AH20="","",'Anatomia Aplicada'!AH20) ->  | AF19: =IF('Anatomia Aplicada'!AI20="","",'Anatomia Aplicada'!AI20) ->  | AG19: =IF('Anatomia Aplicada'!AJ20="","",'Anatomia Aplicada'!AJ20) ->  | AH19: =IF('Anatomia Aplicada'!AK20="","",'Anatomia Aplicada'!AK20) ->  | AI19: =IF('Anatomia Aplicada'!AL20="","",'Anatomia Aplicada'!AL20) ->  | AJ19: =IF('Anatomia Aplicada'!AM20="","",'Anatomia Aplicada'!AM20) ->  | AK19: =IF('Anatomia Aplicada'!AN20="","",'Anatomia Aplicada'!AN20) ->  | AL19: =IF('Anatomia Aplicada'!AO20="","",'Anatomia Aplicada'!AO20) ->  | AM19: =IF('Anatomia Aplicada'!AP20="","",'Anatomia Aplicada'!AP20) -> 
D20: Criterio Evaluación 5.2 | E20: =IF('Anatomia Aplicada'!H21="","",'Anatomia Aplicada'!H21) ->  | F20: =IF('Anatomia Aplicada'!I21="","",'Anatomia Aplicada'!I21) ->  | G20: =IF('Anatomia Aplicada'!J21="","",'Anatomia Aplicada'!J21) ->  | H20: =IF('Anatomia Aplicada'!K21="","",'Anatomia Aplicada'!K21) ->  | I20: =IF('Anatomia Aplicada'!L21="","",'Anatomia Aplicada'!L21) ->  | J20: =IF('Anatomia Aplicada'!M21="","",'Anatomia Aplicada'!M21) ->  | K20: =IF('Anatomia Aplicada'!N21="","",'Anatomia Aplicada'!N21) ->  | L20: =IF('Anatomia Aplicada'!O21="","",'Anatomia Aplicada'!O21) ->  | M20: =IF('Anatomia Aplicada'!P21="","",'Anatomia Aplicada'!P21) ->  | N20: =IF('Anatomia Aplicada'!Q21="","",'Anatomia Aplicada'!Q21) ->  | O20: =IF('Anatomia Aplicada'!R21="","",'Anatomia Aplicada'!R21) ->  | P20: =IF('Anatomia Aplicada'!S21="","",'Anatomia Aplicada'!S21) ->  | Q20: =IF('Anatomia Aplicada'!T21="","",'Anatomia Aplicada'!T21) ->  | R20: =IF('Anatomia Aplicada'!U21="","",'Anatomia Aplicada'!U21) ->  | S20: =IF('Anatomia Aplicada'!V21="","",'Anatomia Aplicada'!V21) ->  | T20: =IF('Anatomia Aplicada'!W21="","",'Anatomia Aplicada'!W21) ->  | U20: =IF('Anatomia Aplicada'!X21="","",'Anatomia Aplicada'!X21) ->  | V20: =IF('Anatomia Aplicada'!Y21="","",'Anatomia Aplicada'!Y21) ->  | W20: =IF('Anatomia Aplicada'!Z21="","",'Anatomia Aplicada'!Z21) ->  | X20: =IF('Anatomia Aplicada'!AA21="","",'Anatomia Aplicada'!AA21) ->  | Y20: =IF('Anatomia Aplicada'!AB21="","",'Anatomia Aplicada'!AB21) ->  | Z20: =IF('Anatomia Aplicada'!AC21="","",'Anatomia Aplicada'!AC21) ->  | AA20: =IF('Anatomia Aplicada'!AD21="","",'Anatomia Aplicada'!AD21) ->  | AB20: =IF('Anatomia Aplicada'!AE21="","",'Anatomia Aplicada'!AE21) ->  | AC20: =IF('Anatomia Aplicada'!AF21="","",'Anatomia Aplicada'!AF21) ->  | AD20: =IF('Anatomia Aplicada'!AG21="","",'Anatomia Aplicada'!AG21) ->  | AE20: =IF('Anatomia Aplicada'!AH21="","",'Anatomia Aplicada'!AH21) ->  | AF20: =IF('Anatomia Aplicada'!AI21="","",'Anatomia Aplicada'!AI21) ->  | AG20: =IF('Anatomia Aplicada'!AJ21="","",'Anatomia Aplicada'!AJ21) ->  | AH20: =IF('Anatomia Aplicada'!AK21="","",'Anatomia Aplicada'!AK21) ->  | AI20: =IF('Anatomia Aplicada'!AL21="","",'Anatomia Aplicada'!AL21) ->  | AJ20: =IF('Anatomia Aplicada'!AM21="","",'Anatomia Aplicada'!AM21) ->  | AK20: =IF('Anatomia Aplicada'!AN21="","",'Anatomia Aplicada'!AN21) ->  | AL20: =IF('Anatomia Aplicada'!AO21="","",'Anatomia Aplicada'!AO21) ->  | AM20: =IF('Anatomia Aplicada'!AP21="","",'Anatomia Aplicada'!AP21) -> 
D21: Criterio Evaluación 5.3 | E21: =IF('Anatomia Aplicada'!H22="","",'Anatomia Aplicada'!H22) ->  | F21: =IF('Anatomia Aplicada'!I22="","",'Anatomia Aplicada'!I22) ->  | G21: =IF('Anatomia Aplicada'!J22="","",'Anatomia Aplicada'!J22) ->  | H21: =IF('Anatomia Aplicada'!K22="","",'Anatomia Aplicada'!K22) ->  | I21: =IF('Anatomia Aplicada'!L22="","",'Anatomia Aplicada'!L22) ->  | J21: =IF('Anatomia Aplicada'!M22="","",'Anatomia Aplicada'!M22) ->  | K21: =IF('Anatomia Aplicada'!N22="","",'Anatomia Aplicada'!N22) ->  | L21: =IF('Anatomia Aplicada'!O22="","",'Anatomia Aplicada'!O22) ->  | M21: =IF('Anatomia Aplicada'!P22="","",'Anatomia Aplicada'!P22) ->  | N21: =IF('Anatomia Aplicada'!Q22="","",'Anatomia Aplicada'!Q22) ->  | O21: =IF('Anatomia Aplicada'!R22="","",'Anatomia Aplicada'!R22) ->  | P21: =IF('Anatomia Aplicada'!S22="","",'Anatomia Aplicada'!S22) ->  | Q21: =IF('Anatomia Aplicada'!T22="","",'Anatomia Aplicada'!T22) ->  | R21: =IF('Anatomia Aplicada'!U22="","",'Anatomia Aplicada'!U22) ->  | S21: =IF('Anatomia Aplicada'!V22="","",'Anatomia Aplicada'!V22) ->  | T21: =IF('Anatomia Aplicada'!W22="","",'Anatomia Aplicada'!W22) ->  | U21: =IF('Anatomia Aplicada'!X22="","",'Anatomia Aplicada'!X22) ->  | V21: =IF('Anatomia Aplicada'!Y22="","",'Anatomia Aplicada'!Y22) ->  | W21: =IF('Anatomia Aplicada'!Z22="","",'Anatomia Aplicada'!Z22) ->  | X21: =IF('Anatomia Aplicada'!AA22="","",'Anatomia Aplicada'!AA22) ->  | Y21: =IF('Anatomia Aplicada'!AB22="","",'Anatomia Aplicada'!AB22) ->  | Z21: =IF('Anatomia Aplicada'!AC22="","",'Anatomia Aplicada'!AC22) ->  | AA21: =IF('Anatomia Aplicada'!AD22="","",'Anatomia Aplicada'!AD22) ->  | AB21: =IF('Anatomia Aplicada'!AE22="","",'Anatomia Aplicada'!AE22) ->  | AC21: =IF('Anatomia Aplicada'!AF22="","",'Anatomia Aplicada'!AF22) ->  | AD21: =IF('Anatomia Aplicada'!AG22="","",'Anatomia Aplicada'!AG22) ->  | AE21: =IF('Anatomia Aplicada'!AH22="","",'Anatomia Aplicada'!AH22) ->  | AF21: =IF('Anatomia Aplicada'!AI22="","",'Anatomia Aplicada'!AI22) ->  | AG21: =IF('Anatomia Aplicada'!AJ22="","",'Anatomia Aplicada'!AJ22) ->  | AH21: =IF('Anatomia Aplicada'!AK22="","",'Anatomia Aplicada'!AK22) ->  | AI21: =IF('Anatomia Aplicada'!AL22="","",'Anatomia Aplicada'!AL22) ->  | AJ21: =IF('Anatomia Aplicada'!AM22="","",'Anatomia Aplicada'!AM22) ->  | AK21: =IF('Anatomia Aplicada'!AN22="","",'Anatomia Aplicada'!AN22) ->  | AL21: =IF('Anatomia Aplicada'!AO22="","",'Anatomia Aplicada'!AO22) ->  | AM21: =IF('Anatomia Aplicada'!AP22="","",'Anatomia Aplicada'!AP22) -> 
D22: Criterio Evaluación 5.4 | E22: =IF('Anatomia Aplicada'!H23="","",'Anatomia Aplicada'!H23) ->  | F22: =IF('Anatomia Aplicada'!I23="","",'Anatomia Aplicada'!I23) ->  | G22: =IF('Anatomia Aplicada'!J23="","",'Anatomia Aplicada'!J23) ->  | H22: =IF('Anatomia Aplicada'!K23="","",'Anatomia Aplicada'!K23) ->  | I22: =IF('Anatomia Aplicada'!L23="","",'Anatomia Aplicada'!L23) ->  | J22: =IF('Anatomia Aplicada'!M23="","",'Anatomia Aplicada'!M23) ->  | K22: =IF('Anatomia Aplicada'!N23="","",'Anatomia Aplicada'!N23) ->  | L22: =IF('Anatomia Aplicada'!O23="","",'Anatomia Aplicada'!O23) ->  | M22: =IF('Anatomia Aplicada'!P23="","",'Anatomia Aplicada'!P23) ->  | N22: =IF('Anatomia Aplicada'!Q23="","",'Anatomia Aplicada'!Q23) ->  | O22: =IF('Anatomia Aplicada'!R23="","",'Anatomia Aplicada'!R23) ->  | P22: =IF('Anatomia Aplicada'!S23="","",'Anatomia Aplicada'!S23) ->  | Q22: =IF('Anatomia Aplicada'!T23="","",'Anatomia Aplicada'!T23) ->  | R22: =IF('Anatomia Aplicada'!U23="","",'Anatomia Aplicada'!U23) ->  | S22: =IF('Anatomia Aplicada'!V23="","",'Anatomia Aplicada'!V23) ->  | T22: =IF('Anatomia Aplicada'!W23="","",'Anatomia Aplicada'!W23) ->  | U22: =IF('Anatomia Aplicada'!X23="","",'Anatomia Aplicada'!X23) ->  | V22: =IF('Anatomia Aplicada'!Y23="","",'Anatomia Aplicada'!Y23) ->  | W22: =IF('Anatomia Aplicada'!Z23="","",'Anatomia Aplicada'!Z23) ->  | X22: =IF('Anatomia Aplicada'!AA23="","",'Anatomia Aplicada'!AA23) ->  | Y22: =IF('Anatomia Aplicada'!AB23="","",'Anatomia Aplicada'!AB23) ->  | Z22: =IF('Anatomia Aplicada'!AC23="","",'Anatomia Aplicada'!AC23) ->  | AA22: =IF('Anatomia Aplicada'!AD23="","",'Anatomia Aplicada'!AD23) ->  | AB22: =IF('Anatomia Aplicada'!AE23="","",'Anatomia Aplicada'!AE23) ->  | AC22: =IF('Anatomia Aplicada'!AF23="","",'Anatomia Aplicada'!AF23) ->  | AD22: =IF('Anatomia Aplicada'!AG23="","",'Anatomia Aplicada'!AG23) ->  | AE22: =IF('Anatomia Aplicada'!AH23="","",'Anatomia Aplicada'!AH23) ->  | AF22: =IF('Anatomia Aplicada'!AI23="","",'Anatomia Aplicada'!AI23) ->  | AG22: =IF('Anatomia Aplicada'!AJ23="","",'Anatomia Aplicada'!AJ23) ->  | AH22: =IF('Anatomia Aplicada'!AK23="","",'Anatomia Aplicada'!AK23) ->  | AI22: =IF('Anatomia Aplicada'!AL23="","",'Anatomia Aplicada'!AL23) ->  | AJ22: =IF('Anatomia Aplicada'!AM23="","",'Anatomia Aplicada'!AM23) ->  | AK22: =IF('Anatomia Aplicada'!AN23="","",'Anatomia Aplicada'!AN23) ->  | AL22: =IF('Anatomia Aplicada'!AO23="","",'Anatomia Aplicada'!AO23) ->  | AM22: =IF('Anatomia Aplicada'!AP23="","",'Anatomia Aplicada'!AP23) -> 
D23: Criterio Evaluación 5.5 | E23: =IF('Anatomia Aplicada'!H24="","",'Anatomia Aplicada'!H24) ->  | F23: =IF('Anatomia Aplicada'!I24="","",'Anatomia Aplicada'!I24) ->  | G23: =IF('Anatomia Aplicada'!J24="","",'Anatomia Aplicada'!J24) ->  | H23: =IF('Anatomia Aplicada'!K24="","",'Anatomia Aplicada'!K24) ->  | I23: =IF('Anatomia Aplicada'!L24="","",'Anatomia Aplicada'!L24) ->  | J23: =IF('Anatomia Aplicada'!M24="","",'Anatomia Aplicada'!M24) ->  | K23: =IF('Anatomia Aplicada'!N24="","",'Anatomia Aplicada'!N24) ->  | L23: =IF('Anatomia Aplicada'!O24="","",'Anatomia Aplicada'!O24) ->  | M23: =IF('Anatomia Aplicada'!P24="","",'Anatomia Aplicada'!P24) ->  | N23: =IF('Anatomia Aplicada'!Q24="","",'Anatomia Aplicada'!Q24) ->  | O23: =IF('Anatomia Aplicada'!R24="","",'Anatomia Aplicada'!R24) ->  | P23: =IF('Anatomia Aplicada'!S24="","",'Anatomia Aplicada'!S24) ->  | Q23: =IF('Anatomia Aplicada'!T24="","",'Anatomia Aplicada'!T24) ->  | R23: =IF('Anatomia Aplicada'!U24="","",'Anatomia Aplicada'!U24) ->  | S23: =IF('Anatomia Aplicada'!V24="","",'Anatomia Aplicada'!V24) ->  | T23: =IF('Anatomia Aplicada'!W24="","",'Anatomia Aplicada'!W24) ->  | U23: =IF('Anatomia Aplicada'!X24="","",'Anatomia Aplicada'!X24) ->  | V23: =IF('Anatomia Aplicada'!Y24="","",'Anatomia Aplicada'!Y24) ->  | W23: =IF('Anatomia Aplicada'!Z24="","",'Anatomia Aplicada'!Z24) ->  | X23: =IF('Anatomia Aplicada'!AA24="","",'Anatomia Aplicada'!AA24) ->  | Y23: =IF('Anatomia Aplicada'!AB24="","",'Anatomia Aplicada'!AB24) ->  | Z23: =IF('Anatomia Aplicada'!AC24="","",'Anatomia Aplicada'!AC24) ->  | AA23: =IF('Anatomia Aplicada'!AD24="","",'Anatomia Aplicada'!AD24) ->  | AB23: =IF('Anatomia Aplicada'!AE24="","",'Anatomia Aplicada'!AE24) ->  | AC23: =IF('Anatomia Aplicada'!AF24="","",'Anatomia Aplicada'!AF24) ->  | AD23: =IF('Anatomia Aplicada'!AG24="","",'Anatomia Aplicada'!AG24) ->  | AE23: =IF('Anatomia Aplicada'!AH24="","",'Anatomia Aplicada'!AH24) ->  | AF23: =IF('Anatomia Aplicada'!AI24="","",'Anatomia Aplicada'!AI24) ->  | AG23: =IF('Anatomia Aplicada'!AJ24="","",'Anatomia Aplicada'!AJ24) ->  | AH23: =IF('Anatomia Aplicada'!AK24="","",'Anatomia Aplicada'!AK24) ->  | AI23: =IF('Anatomia Aplicada'!AL24="","",'Anatomia Aplicada'!AL24) ->  | AJ23: =IF('Anatomia Aplicada'!AM24="","",'Anatomia Aplicada'!AM24) ->  | AK23: =IF('Anatomia Aplicada'!AN24="","",'Anatomia Aplicada'!AN24) ->  | AL23: =IF('Anatomia Aplicada'!AO24="","",'Anatomia Aplicada'!AO24) ->  | AM23: =IF('Anatomia Aplicada'!AP24="","",'Anatomia Aplicada'!AP24) -> 
D24: Criterio Evaluación 5.6 | E24: =IF('Anatomia Aplicada'!H25="","",'Anatomia Aplicada'!H25) ->  | F24: =IF('Anatomia Aplicada'!I25="","",'Anatomia Aplicada'!I25) ->  | G24: =IF('Anatomia Aplicada'!J25="","",'Anatomia Aplicada'!J25) ->  | H24: =IF('Anatomia Aplicada'!K25="","",'Anatomia Aplicada'!K25) ->  | I24: =IF('Anatomia Aplicada'!L25="","",'Anatomia Aplicada'!L25) ->  | J24: =IF('Anatomia Aplicada'!M25="","",'Anatomia Aplicada'!M25) ->  | K24: =IF('Anatomia Aplicada'!N25="","",'Anatomia Aplicada'!N25) ->  | L24: =IF('Anatomia Aplicada'!O25="","",'Anatomia Aplicada'!O25) ->  | M24: =IF('Anatomia Aplicada'!P25="","",'Anatomia Aplicada'!P25) ->  | N24: =IF('Anatomia Aplicada'!Q25="","",'Anatomia Aplicada'!Q25) ->  | O24: =IF('Anatomia Aplicada'!R25="","",'Anatomia Aplicada'!R25) ->  | P24: =IF('Anatomia Aplicada'!S25="","",'Anatomia Aplicada'!S25) ->  | Q24: =IF('Anatomia Aplicada'!T25="","",'Anatomia Aplicada'!T25) ->  | R24: =IF('Anatomia Aplicada'!U25="","",'Anatomia Aplicada'!U25) ->  | S24: =IF('Anatomia Aplicada'!V25="","",'Anatomia Aplicada'!V25) ->  | T24: =IF('Anatomia Aplicada'!W25="","",'Anatomia Aplicada'!W25) ->  | U24: =IF('Anatomia Aplicada'!X25="","",'Anatomia Aplicada'!X25) ->  | V24: =IF('Anatomia Aplicada'!Y25="","",'Anatomia Aplicada'!Y25) ->  | W24: =IF('Anatomia Aplicada'!Z25="","",'Anatomia Aplicada'!Z25) ->  | X24: =IF('Anatomia Aplicada'!AA25="","",'Anatomia Aplicada'!AA25) ->  | Y24: =IF('Anatomia Aplicada'!AB25="","",'Anatomia Aplicada'!AB25) ->  | Z24: =IF('Anatomia Aplicada'!AC25="","",'Anatomia Aplicada'!AC25) ->  | AA24: =IF('Anatomia Aplicada'!AD25="","",'Anatomia Aplicada'!AD25) ->  | AB24: =IF('Anatomia Aplicada'!AE25="","",'Anatomia Aplicada'!AE25) ->  | AC24: =IF('Anatomia Aplicada'!AF25="","",'Anatomia Aplicada'!AF25) ->  | AD24: =IF('Anatomia Aplicada'!AG25="","",'Anatomia Aplicada'!AG25) ->  | AE24: =IF('Anatomia Aplicada'!AH25="","",'Anatomia Aplicada'!AH25) ->  | AF24: =IF('Anatomia Aplicada'!AI25="","",'Anatomia Aplicada'!AI25) ->  | AG24: =IF('Anatomia Aplicada'!AJ25="","",'Anatomia Aplicada'!AJ25) ->  | AH24: =IF('Anatomia Aplicada'!AK25="","",'Anatomia Aplicada'!AK25) ->  | AI24: =IF('Anatomia Aplicada'!AL25="","",'Anatomia Aplicada'!AL25) ->  | AJ24: =IF('Anatomia Aplicada'!AM25="","",'Anatomia Aplicada'!AM25) ->  | AK24: =IF('Anatomia Aplicada'!AN25="","",'Anatomia Aplicada'!AN25) ->  | AL24: =IF('Anatomia Aplicada'!AO25="","",'Anatomia Aplicada'!AO25) ->  | AM24: =IF('Anatomia Aplicada'!AP25="","",'Anatomia Aplicada'!AP25) -> 
D25: Criterio Evaluación 5.7 | E25: =IF('Anatomia Aplicada'!H26="","",'Anatomia Aplicada'!H26) ->  | F25: =IF('Anatomia Aplicada'!I26="","",'Anatomia Aplicada'!I26) ->  | G25: =IF('Anatomia Aplicada'!J26="","",'Anatomia Aplicada'!J26) ->  | H25: =IF('Anatomia Aplicada'!K26="","",'Anatomia Aplicada'!K26) ->  | I25: =IF('Anatomia Aplicada'!L26="","",'Anatomia Aplicada'!L26) ->  | J25: =IF('Anatomia Aplicada'!M26="","",'Anatomia Aplicada'!M26) ->  | K25: =IF('Anatomia Aplicada'!N26="","",'Anatomia Aplicada'!N26) ->  | L25: =IF('Anatomia Aplicada'!O26="","",'Anatomia Aplicada'!O26) ->  | M25: =IF('Anatomia Aplicada'!P26="","",'Anatomia Aplicada'!P26) ->  | N25: =IF('Anatomia Aplicada'!Q26="","",'Anatomia Aplicada'!Q26) ->  | O25: =IF('Anatomia Aplicada'!R26="","",'Anatomia Aplicada'!R26) ->  | P25: =IF('Anatomia Aplicada'!S26="","",'Anatomia Aplicada'!S26) ->  | Q25: =IF('Anatomia Aplicada'!T26="","",'Anatomia Aplicada'!T26) ->  | R25: =IF('Anatomia Aplicada'!U26="","",'Anatomia Aplicada'!U26) ->  | S25: =IF('Anatomia Aplicada'!V26="","",'Anatomia Aplicada'!V26) ->  | T25: =IF('Anatomia Aplicada'!W26="","",'Anatomia Aplicada'!W26) ->  | U25: =IF('Anatomia Aplicada'!X26="","",'Anatomia Aplicada'!X26) ->  | V25: =IF('Anatomia Aplicada'!Y26="","",'Anatomia Aplicada'!Y26) ->  | W25: =IF('Anatomia Aplicada'!Z26="","",'Anatomia Aplicada'!Z26) ->  | X25: =IF('Anatomia Aplicada'!AA26="","",'Anatomia Aplicada'!AA26) ->  | Y25: =IF('Anatomia Aplicada'!AB26="","",'Anatomia Aplicada'!AB26) ->  | Z25: =IF('Anatomia Aplicada'!AC26="","",'Anatomia Aplicada'!AC26) ->  | AA25: =IF('Anatomia Aplicada'!AD26="","",'Anatomia Aplicada'!AD26) ->  | AB25: =IF('Anatomia Aplicada'!AE26="","",'Anatomia Aplicada'!AE26) ->  | AC25: =IF('Anatomia Aplicada'!AF26="","",'Anatomia Aplicada'!AF26) ->  | AD25: =IF('Anatomia Aplicada'!AG26="","",'Anatomia Aplicada'!AG26) ->  | AE25: =IF('Anatomia Aplicada'!AH26="","",'Anatomia Aplicada'!AH26) ->  | AF25: =IF('Anatomia Aplicada'!AI26="","",'Anatomia Aplicada'!AI26) ->  | AG25: =IF('Anatomia Aplicada'!AJ26="","",'Anatomia Aplicada'!AJ26) ->  | AH25: =IF('Anatomia Aplicada'!AK26="","",'Anatomia Aplicada'!AK26) ->  | AI25: =IF('Anatomia Aplicada'!AL26="","",'Anatomia Aplicada'!AL26) ->  | AJ25: =IF('Anatomia Aplicada'!AM26="","",'Anatomia Aplicada'!AM26) ->  | AK25: =IF('Anatomia Aplicada'!AN26="","",'Anatomia Aplicada'!AN26) ->  | AL25: =IF('Anatomia Aplicada'!AO26="","",'Anatomia Aplicada'!AO26) ->  | AM25: =IF('Anatomia Aplicada'!AP26="","",'Anatomia Aplicada'!AP26) -> 
C26: Comp. Esp. 6 | D26: Criterio Evaluación 6.1 | E26: =IF('Anatomia Aplicada'!H27="","",'Anatomia Aplicada'!H27) ->  | F26: =IF('Anatomia Aplicada'!I27="","",'Anatomia Aplicada'!I27) ->  | G26: =IF('Anatomia Aplicada'!J27="","",'Anatomia Aplicada'!J27) ->  | H26: =IF('Anatomia Aplicada'!K27="","",'Anatomia Aplicada'!K27) ->  | I26: =IF('Anatomia Aplicada'!L27="","",'Anatomia Aplicada'!L27) ->  | J26: =IF('Anatomia Aplicada'!M27="","",'Anatomia Aplicada'!M27) ->  | K26: =IF('Anatomia Aplicada'!N27="","",'Anatomia Aplicada'!N27) ->  | L26: =IF('Anatomia Aplicada'!O27="","",'Anatomia Aplicada'!O27) ->  | M26: =IF('Anatomia Aplicada'!P27="","",'Anatomia Aplicada'!P27) ->  | N26: =IF('Anatomia Aplicada'!Q27="","",'Anatomia Aplicada'!Q27) ->  | O26: =IF('Anatomia Aplicada'!R27="","",'Anatomia Aplicada'!R27) ->  | P26: =IF('Anatomia Aplicada'!S27="","",'Anatomia Aplicada'!S27) ->  | Q26: =IF('Anatomia Aplicada'!T27="","",'Anatomia Aplicada'!T27) ->  | R26: =IF('Anatomia Aplicada'!U27="","",'Anatomia Aplicada'!U27) ->  | S26: =IF('Anatomia Aplicada'!V27="","",'Anatomia Aplicada'!V27) ->  | T26: =IF('Anatomia Aplicada'!W27="","",'Anatomia Aplicada'!W27) ->  | U26: =IF('Anatomia Aplicada'!X27="","",'Anatomia Aplicada'!X27) ->  | V26: =IF('Anatomia Aplicada'!Y27="","",'Anatomia Aplicada'!Y27) ->  | W26: =IF('Anatomia Aplicada'!Z27="","",'Anatomia Aplicada'!Z27) ->  | X26: =IF('Anatomia Aplicada'!AA27="","",'Anatomia Aplicada'!AA27) ->  | Y26: =IF('Anatomia Aplicada'!AB27="","",'Anatomia Aplicada'!AB27) ->  | Z26: =IF('Anatomia Aplicada'!AC27="","",'Anatomia Aplicada'!AC27) ->  | AA26: =IF('Anatomia Aplicada'!AD27="","",'Anatomia Aplicada'!AD27) ->  | AB26: =IF('Anatomia Aplicada'!AE27="","",'Anatomia Aplicada'!AE27) ->  | AC26: =IF('Anatomia Aplicada'!AF27="","",'Anatomia Aplicada'!AF27) ->  | AD26: =IF('Anatomia Aplicada'!AG27="","",'Anatomia Aplicada'!AG27) ->  | AE26: =IF('Anatomia Aplicada'!AH27="","",'Anatomia Aplicada'!AH27) ->  | AF26: =IF('Anatomia Aplicada'!AI27="","",'Anatomia Aplicada'!AI27) ->  | AG26: =IF('Anatomia Aplicada'!AJ27="","",'Anatomia Aplicada'!AJ27) ->  | AH26: =IF('Anatomia Aplicada'!AK27="","",'Anatomia Aplicada'!AK27) ->  | AI26: =IF('Anatomia Aplicada'!AL27="","",'Anatomia Aplicada'!AL27) ->  | AJ26: =IF('Anatomia Aplicada'!AM27="","",'Anatomia Aplicada'!AM27) ->  | AK26: =IF('Anatomia Aplicada'!AN27="","",'Anatomia Aplicada'!AN27) ->  | AL26: =IF('Anatomia Aplicada'!AO27="","",'Anatomia Aplicada'!AO27) ->  | AM26: =IF('Anatomia Aplicada'!AP27="","",'Anatomia Aplicada'!AP27) -> 
D27: Criterio Evaluación 6.2 | E27: =IF('Anatomia Aplicada'!H28="","",'Anatomia Aplicada'!H28) ->  | F27: =IF('Anatomia Aplicada'!I28="","",'Anatomia Aplicada'!I28) ->  | G27: =IF('Anatomia Aplicada'!J28="","",'Anatomia Aplicada'!J28) ->  | H27: =IF('Anatomia Aplicada'!K28="","",'Anatomia Aplicada'!K28) ->  | I27: =IF('Anatomia Aplicada'!L28="","",'Anatomia Aplicada'!L28) ->  | J27: =IF('Anatomia Aplicada'!M28="","",'Anatomia Aplicada'!M28) ->  | K27: =IF('Anatomia Aplicada'!N28="","",'Anatomia Aplicada'!N28) ->  | L27: =IF('Anatomia Aplicada'!O28="","",'Anatomia Aplicada'!O28) ->  | M27: =IF('Anatomia Aplicada'!P28="","",'Anatomia Aplicada'!P28) ->  | N27: =IF('Anatomia Aplicada'!Q28="","",'Anatomia Aplicada'!Q28) ->  | O27: =IF('Anatomia Aplicada'!R28="","",'Anatomia Aplicada'!R28) ->  | P27: =IF('Anatomia Aplicada'!S28="","",'Anatomia Aplicada'!S28) ->  | Q27: =IF('Anatomia Aplicada'!T28="","",'Anatomia Aplicada'!T28) ->  | R27: =IF('Anatomia Aplicada'!U28="","",'Anatomia Aplicada'!U28) ->  | S27: =IF('Anatomia Aplicada'!V28="","",'Anatomia Aplicada'!V28) ->  | T27: =IF('Anatomia Aplicada'!W28="","",'Anatomia Aplicada'!W28) ->  | U27: =IF('Anatomia Aplicada'!X28="","",'Anatomia Aplicada'!X28) ->  | V27: =IF('Anatomia Aplicada'!Y28="","",'Anatomia Aplicada'!Y28) ->  | W27: =IF('Anatomia Aplicada'!Z28="","",'Anatomia Aplicada'!Z28) ->  | X27: =IF('Anatomia Aplicada'!AA28="","",'Anatomia Aplicada'!AA28) ->  | Y27: =IF('Anatomia Aplicada'!AB28="","",'Anatomia Aplicada'!AB28) ->  | Z27: =IF('Anatomia Aplicada'!AC28="","",'Anatomia Aplicada'!AC28) ->  | AA27: =IF('Anatomia Aplicada'!AD28="","",'Anatomia Aplicada'!AD28) ->  | AB27: =IF('Anatomia Aplicada'!AE28="","",'Anatomia Aplicada'!AE28) ->  | AC27: =IF('Anatomia Aplicada'!AF28="","",'Anatomia Aplicada'!AF28) ->  | AD27: =IF('Anatomia Aplicada'!AG28="","",'Anatomia Aplicada'!AG28) ->  | AE27: =IF('Anatomia Aplicada'!AH28="","",'Anatomia Aplicada'!AH28) ->  | AF27: =IF('Anatomia Aplicada'!AI28="","",'Anatomia Aplicada'!AI28) ->  | AG27: =IF('Anatomia Aplicada'!AJ28="","",'Anatomia Aplicada'!AJ28) ->  | AH27: =IF('Anatomia Aplicada'!AK28="","",'Anatomia Aplicada'!AK28) ->  | AI27: =IF('Anatomia Aplicada'!AL28="","",'Anatomia Aplicada'!AL28) ->  | AJ27: =IF('Anatomia Aplicada'!AM28="","",'Anatomia Aplicada'!AM28) ->  | AK27: =IF('Anatomia Aplicada'!AN28="","",'Anatomia Aplicada'!AN28) ->  | AL27: =IF('Anatomia Aplicada'!AO28="","",'Anatomia Aplicada'!AO28) ->  | AM27: =IF('Anatomia Aplicada'!AP28="","",'Anatomia Aplicada'!AP28) -> 
D28: Criterio Evaluación 6.3 | E28: =IF('Anatomia Aplicada'!H29="","",'Anatomia Aplicada'!H29) ->  | F28: =IF('Anatomia Aplicada'!I29="","",'Anatomia Aplicada'!I29) ->  | G28: =IF('Anatomia Aplicada'!J29="","",'Anatomia Aplicada'!J29) ->  | H28: =IF('Anatomia Aplicada'!K29="","",'Anatomia Aplicada'!K29) ->  | I28: =IF('Anatomia Aplicada'!L29="","",'Anatomia Aplicada'!L29) ->  | J28: =IF('Anatomia Aplicada'!M29="","",'Anatomia Aplicada'!M29) ->  | K28: =IF('Anatomia Aplicada'!N29="","",'Anatomia Aplicada'!N29) ->  | L28: =IF('Anatomia Aplicada'!O29="","",'Anatomia Aplicada'!O29) ->  | M28: =IF('Anatomia Aplicada'!P29="","",'Anatomia Aplicada'!P29) ->  | N28: =IF('Anatomia Aplicada'!Q29="","",'Anatomia Aplicada'!Q29) ->  | O28: =IF('Anatomia Aplicada'!R29="","",'Anatomia Aplicada'!R29) ->  | P28: =IF('Anatomia Aplicada'!S29="","",'Anatomia Aplicada'!S29) ->  | Q28: =IF('Anatomia Aplicada'!T29="","",'Anatomia Aplicada'!T29) ->  | R28: =IF('Anatomia Aplicada'!U29="","",'Anatomia Aplicada'!U29) ->  | S28: =IF('Anatomia Aplicada'!V29="","",'Anatomia Aplicada'!V29) ->  | T28: =IF('Anatomia Aplicada'!W29="","",'Anatomia Aplicada'!W29) ->  | U28: =IF('Anatomia Aplicada'!X29="","",'Anatomia Aplicada'!X29) ->  | V28: =IF('Anatomia Aplicada'!Y29="","",'Anatomia Aplicada'!Y29) ->  | W28: =IF('Anatomia Aplicada'!Z29="","",'Anatomia Aplicada'!Z29) ->  | X28: =IF('Anatomia Aplicada'!AA29="","",'Anatomia Aplicada'!AA29) ->  | Y28: =IF('Anatomia Aplicada'!AB29="","",'Anatomia Aplicada'!AB29) ->  | Z28: =IF('Anatomia Aplicada'!AC29="","",'Anatomia Aplicada'!AC29) ->  | AA28: =IF('Anatomia Aplicada'!AD29="","",'Anatomia Aplicada'!AD29) ->  | AB28: =IF('Anatomia Aplicada'!AE29="","",'Anatomia Aplicada'!AE29) ->  | AC28: =IF('Anatomia Aplicada'!AF29="","",'Anatomia Aplicada'!AF29) ->  | AD28: =IF('Anatomia Aplicada'!AG29="","",'Anatomia Aplicada'!AG29) ->  | AE28: =IF('Anatomia Aplicada'!AH29="","",'Anatomia Aplicada'!AH29) ->  | AF28: =IF('Anatomia Aplicada'!AI29="","",'Anatomia Aplicada'!AI29) ->  | AG28: =IF('Anatomia Aplicada'!AJ29="","",'Anatomia Aplicada'!AJ29) ->  | AH28: =IF('Anatomia Aplicada'!AK29="","",'Anatomia Aplicada'!AK29) ->  | AI28: =IF('Anatomia Aplicada'!AL29="","",'Anatomia Aplicada'!AL29) ->  | AJ28: =IF('Anatomia Aplicada'!AM29="","",'Anatomia Aplicada'!AM29) ->  | AK28: =IF('Anatomia Aplicada'!AN29="","",'Anatomia Aplicada'!AN29) ->  | AL28: =IF('Anatomia Aplicada'!AO29="","",'Anatomia Aplicada'!AO29) ->  | AM28: =IF('Anatomia Aplicada'!AP29="","",'Anatomia Aplicada'!AP29) -> 
D29: Criterio Evaluación 6.4 | E29: =IF('Anatomia Aplicada'!H30="","",'Anatomia Aplicada'!H30) ->  | F29: =IF('Anatomia Aplicada'!I30="","",'Anatomia Aplicada'!I30) ->  | G29: =IF('Anatomia Aplicada'!J30="","",'Anatomia Aplicada'!J30) ->  | H29: =IF('Anatomia Aplicada'!K30="","",'Anatomia Aplicada'!K30) ->  | I29: =IF('Anatomia Aplicada'!L30="","",'Anatomia Aplicada'!L30) ->  | J29: =IF('Anatomia Aplicada'!M30="","",'Anatomia Aplicada'!M30) ->  | K29: =IF('Anatomia Aplicada'!N30="","",'Anatomia Aplicada'!N30) ->  | L29: =IF('Anatomia Aplicada'!O30="","",'Anatomia Aplicada'!O30) ->  | M29: =IF('Anatomia Aplicada'!P30="","",'Anatomia Aplicada'!P30) ->  | N29: =IF('Anatomia Aplicada'!Q30="","",'Anatomia Aplicada'!Q30) ->  | O29: =IF('Anatomia Aplicada'!R30="","",'Anatomia Aplicada'!R30) ->  | P29: =IF('Anatomia Aplicada'!S30="","",'Anatomia Aplicada'!S30) ->  | Q29: =IF('Anatomia Aplicada'!T30="","",'Anatomia Aplicada'!T30) ->  | R29: =IF('Anatomia Aplicada'!U30="","",'Anatomia Aplicada'!U30) ->  | S29: =IF('Anatomia Aplicada'!V30="","",'Anatomia Aplicada'!V30) ->  | T29: =IF('Anatomia Aplicada'!W30="","",'Anatomia Aplicada'!W30) ->  | U29: =IF('Anatomia Aplicada'!X30="","",'Anatomia Aplicada'!X30) ->  | V29: =IF('Anatomia Aplicada'!Y30="","",'Anatomia Aplicada'!Y30) ->  | W29: =IF('Anatomia Aplicada'!Z30="","",'Anatomia Aplicada'!Z30) ->  | X29: =IF('Anatomia Aplicada'!AA30="","",'Anatomia Aplicada'!AA30) ->  | Y29: =IF('Anatomia Aplicada'!AB30="","",'Anatomia Aplicada'!AB30) ->  | Z29: =IF('Anatomia Aplicada'!AC30="","",'Anatomia Aplicada'!AC30) ->  | AA29: =IF('Anatomia Aplicada'!AD30="","",'Anatomia Aplicada'!AD30) ->  | AB29: =IF('Anatomia Aplicada'!AE30="","",'Anatomia Aplicada'!AE30) ->  | AC29: =IF('Anatomia Aplicada'!AF30="","",'Anatomia Aplicada'!AF30) ->  | AD29: =IF('Anatomia Aplicada'!AG30="","",'Anatomia Aplicada'!AG30) ->  | AE29: =IF('Anatomia Aplicada'!AH30="","",'Anatomia Aplicada'!AH30) ->  | AF29: =IF('Anatomia Aplicada'!AI30="","",'Anatomia Aplicada'!AI30) ->  | AG29: =IF('Anatomia Aplicada'!AJ30="","",'Anatomia Aplicada'!AJ30) ->  | AH29: =IF('Anatomia Aplicada'!AK30="","",'Anatomia Aplicada'!AK30) ->  | AI29: =IF('Anatomia Aplicada'!AL30="","",'Anatomia Aplicada'!AL30) ->  | AJ29: =IF('Anatomia Aplicada'!AM30="","",'Anatomia Aplicada'!AM30) ->  | AK29: =IF('Anatomia Aplicada'!AN30="","",'Anatomia Aplicada'!AN30) ->  | AL29: =IF('Anatomia Aplicada'!AO30="","",'Anatomia Aplicada'!AO30) ->  | AM29: =IF('Anatomia Aplicada'!AP30="","",'Anatomia Aplicada'!AP30) -> 
D30: Criterio Evaluación 6.5 | E30: =IF('Anatomia Aplicada'!H31="","",'Anatomia Aplicada'!H31) ->  | F30: =IF('Anatomia Aplicada'!I31="","",'Anatomia Aplicada'!I31) ->  | G30: =IF('Anatomia Aplicada'!J31="","",'Anatomia Aplicada'!J31) ->  | H30: =IF('Anatomia Aplicada'!K31="","",'Anatomia Aplicada'!K31) ->  | I30: =IF('Anatomia Aplicada'!L31="","",'Anatomia Aplicada'!L31) ->  | J30: =IF('Anatomia Aplicada'!M31="","",'Anatomia Aplicada'!M31) ->  | K30: =IF('Anatomia Aplicada'!N31="","",'Anatomia Aplicada'!N31) ->  | L30: =IF('Anatomia Aplicada'!O31="","",'Anatomia Aplicada'!O31) ->  | M30: =IF('Anatomia Aplicada'!P31="","",'Anatomia Aplicada'!P31) ->  | N30: =IF('Anatomia Aplicada'!Q31="","",'Anatomia Aplicada'!Q31) ->  | O30: =IF('Anatomia Aplicada'!R31="","",'Anatomia Aplicada'!R31) ->  | P30: =IF('Anatomia Aplicada'!S31="","",'Anatomia Aplicada'!S31) ->  | Q30: =IF('Anatomia Aplicada'!T31="","",'Anatomia Aplicada'!T31) ->  | R30: =IF('Anatomia Aplicada'!U31="","",'Anatomia Aplicada'!U31) ->  | S30: =IF('Anatomia Aplicada'!V31="","",'Anatomia Aplicada'!V31) ->  | T30: =IF('Anatomia Aplicada'!W31="","",'Anatomia Aplicada'!W31) ->  | U30: =IF('Anatomia Aplicada'!X31="","",'Anatomia Aplicada'!X31) ->  | V30: =IF('Anatomia Aplicada'!Y31="","",'Anatomia Aplicada'!Y31) ->  | W30: =IF('Anatomia Aplicada'!Z31="","",'Anatomia Aplicada'!Z31) ->  | X30: =IF('Anatomia Aplicada'!AA31="","",'Anatomia Aplicada'!AA31) ->  | Y30: =IF('Anatomia Aplicada'!AB31="","",'Anatomia Aplicada'!AB31) ->  | Z30: =IF('Anatomia Aplicada'!AC31="","",'Anatomia Aplicada'!AC31) ->  | AA30: =IF('Anatomia Aplicada'!AD31="","",'Anatomia Aplicada'!AD31) ->  | AB30: =IF('Anatomia Aplicada'!AE31="","",'Anatomia Aplicada'!AE31) ->  | AC30: =IF('Anatomia Aplicada'!AF31="","",'Anatomia Aplicada'!AF31) ->  | AD30: =IF('Anatomia Aplicada'!AG31="","",'Anatomia Aplicada'!AG31) ->  | AE30: =IF('Anatomia Aplicada'!AH31="","",'Anatomia Aplicada'!AH31) ->  | AF30: =IF('Anatomia Aplicada'!AI31="","",'Anatomia Aplicada'!AI31) ->  | AG30: =IF('Anatomia Aplicada'!AJ31="","",'Anatomia Aplicada'!AJ31) ->  | AH30: =IF('Anatomia Aplicada'!AK31="","",'Anatomia Aplicada'!AK31) ->  | AI30: =IF('Anatomia Aplicada'!AL31="","",'Anatomia Aplicada'!AL31) ->  | AJ30: =IF('Anatomia Aplicada'!AM31="","",'Anatomia Aplicada'!AM31) ->  | AK30: =IF('Anatomia Aplicada'!AN31="","",'Anatomia Aplicada'!AN31) ->  | AL30: =IF('Anatomia Aplicada'!AO31="","",'Anatomia Aplicada'!AO31) ->  | AM30: =IF('Anatomia Aplicada'!AP31="","",'Anatomia Aplicada'!AP31) -> 
D31: Criterio Evaluación 6.6 | E31: =IF('Anatomia Aplicada'!H32="","",'Anatomia Aplicada'!H32) ->  | F31: =IF('Anatomia Aplicada'!I32="","",'Anatomia Aplicada'!I32) ->  | G31: =IF('Anatomia Aplicada'!J32="","",'Anatomia Aplicada'!J32) ->  | H31: =IF('Anatomia Aplicada'!K32="","",'Anatomia Aplicada'!K32) ->  | I31: =IF('Anatomia Aplicada'!L32="","",'Anatomia Aplicada'!L32) ->  | J31: =IF('Anatomia Aplicada'!M32="","",'Anatomia Aplicada'!M32) ->  | K31: =IF('Anatomia Aplicada'!N32="","",'Anatomia Aplicada'!N32) ->  | L31: =IF('Anatomia Aplicada'!O32="","",'Anatomia Aplicada'!O32) ->  | M31: =IF('Anatomia Aplicada'!P32="","",'Anatomia Aplicada'!P32) ->  | N31: =IF('Anatomia Aplicada'!Q32="","",'Anatomia Aplicada'!Q32) ->  | O31: =IF('Anatomia Aplicada'!R32="","",'Anatomia Aplicada'!R32) ->  | P31: =IF('Anatomia Aplicada'!S32="","",'Anatomia Aplicada'!S32) ->  | Q31: =IF('Anatomia Aplicada'!T32="","",'Anatomia Aplicada'!T32) ->  | R31: =IF('Anatomia Aplicada'!U32="","",'Anatomia Aplicada'!U32) ->  | S31: =IF('Anatomia Aplicada'!V32="","",'Anatomia Aplicada'!V32) ->  | T31: =IF('Anatomia Aplicada'!W32="","",'Anatomia Aplicada'!W32) ->  | U31: =IF('Anatomia Aplicada'!X32="","",'Anatomia Aplicada'!X32) ->  | V31: =IF('Anatomia Aplicada'!Y32="","",'Anatomia Aplicada'!Y32) ->  | W31: =IF('Anatomia Aplicada'!Z32="","",'Anatomia Aplicada'!Z32) ->  | X31: =IF('Anatomia Aplicada'!AA32="","",'Anatomia Aplicada'!AA32) ->  | Y31: =IF('Anatomia Aplicada'!AB32="","",'Anatomia Aplicada'!AB32) ->  | Z31: =IF('Anatomia Aplicada'!AC32="","",'Anatomia Aplicada'!AC32) ->  | AA31: =IF('Anatomia Aplicada'!AD32="","",'Anatomia Aplicada'!AD32) ->  | AB31: =IF('Anatomia Aplicada'!AE32="","",'Anatomia Aplicada'!AE32) ->  | AC31: =IF('Anatomia Aplicada'!AF32="","",'Anatomia Aplicada'!AF32) ->  | AD31: =IF('Anatomia Aplicada'!AG32="","",'Anatomia Aplicada'!AG32) ->  | AE31: =IF('Anatomia Aplicada'!AH32="","",'Anatomia Aplicada'!AH32) ->  | AF31: =IF('Anatomia Aplicada'!AI32="","",'Anatomia Aplicada'!AI32) ->  | AG31: =IF('Anatomia Aplicada'!AJ32="","",'Anatomia Aplicada'!AJ32) ->  | AH31: =IF('Anatomia Aplicada'!AK32="","",'Anatomia Aplicada'!AK32) ->  | AI31: =IF('Anatomia Aplicada'!AL32="","",'Anatomia Aplicada'!AL32) ->  | AJ31: =IF('Anatomia Aplicada'!AM32="","",'Anatomia Aplicada'!AM32) ->  | AK31: =IF('Anatomia Aplicada'!AN32="","",'Anatomia Aplicada'!AN32) ->  | AL31: =IF('Anatomia Aplicada'!AO32="","",'Anatomia Aplicada'!AO32) ->  | AM31: =IF('Anatomia Aplicada'!AP32="","",'Anatomia Aplicada'!AP32) -> 
D32: Criterio Evaluación 6.7 | E32: =IF('Anatomia Aplicada'!H33="","",'Anatomia Aplicada'!H33) ->  | F32: =IF('Anatomia Aplicada'!I33="","",'Anatomia Aplicada'!I33) ->  | G32: =IF('Anatomia Aplicada'!J33="","",'Anatomia Aplicada'!J33) ->  | H32: =IF('Anatomia Aplicada'!K33="","",'Anatomia Aplicada'!K33) ->  | I32: =IF('Anatomia Aplicada'!L33="","",'Anatomia Aplicada'!L33) ->  | J32: =IF('Anatomia Aplicada'!M33="","",'Anatomia Aplicada'!M33) ->  | K32: =IF('Anatomia Aplicada'!N33="","",'Anatomia Aplicada'!N33) ->  | L32: =IF('Anatomia Aplicada'!O33="","",'Anatomia Aplicada'!O33) ->  | M32: =IF('Anatomia Aplicada'!P33="","",'Anatomia Aplicada'!P33) ->  | N32: =IF('Anatomia Aplicada'!Q33="","",'Anatomia Aplicada'!Q33) ->  | O32: =IF('Anatomia Aplicada'!R33="","",'Anatomia Aplicada'!R33) ->  | P32: =IF('Anatomia Aplicada'!S33="","",'Anatomia Aplicada'!S33) ->  | Q32: =IF('Anatomia Aplicada'!T33="","",'Anatomia Aplicada'!T33) ->  | R32: =IF('Anatomia Aplicada'!U33="","",'Anatomia Aplicada'!U33) ->  | S32: =IF('Anatomia Aplicada'!V33="","",'Anatomia Aplicada'!V33) ->  | T32: =IF('Anatomia Aplicada'!W33="","",'Anatomia Aplicada'!W33) ->  | U32: =IF('Anatomia Aplicada'!X33="","",'Anatomia Aplicada'!X33) ->  | V32: =IF('Anatomia Aplicada'!Y33="","",'Anatomia Aplicada'!Y33) ->  | W32: =IF('Anatomia Aplicada'!Z33="","",'Anatomia Aplicada'!Z33) ->  | X32: =IF('Anatomia Aplicada'!AA33="","",'Anatomia Aplicada'!AA33) ->  | Y32: =IF('Anatomia Aplicada'!AB33="","",'Anatomia Aplicada'!AB33) ->  | Z32: =IF('Anatomia Aplicada'!AC33="","",'Anatomia Aplicada'!AC33) ->  | AA32: =IF('Anatomia Aplicada'!AD33="","",'Anatomia Aplicada'!AD33) ->  | AB32: =IF('Anatomia Aplicada'!AE33="","",'Anatomia Aplicada'!AE33) ->  | AC32: =IF('Anatomia Aplicada'!AF33="","",'Anatomia Aplicada'!AF33) ->  | AD32: =IF('Anatomia Aplicada'!AG33="","",'Anatomia Aplicada'!AG33) ->  | AE32: =IF('Anatomia Aplicada'!AH33="","",'Anatomia Aplicada'!AH33) ->  | AF32: =IF('Anatomia Aplicada'!AI33="","",'Anatomia Aplicada'!AI33) ->  | AG32: =IF('Anatomia Aplicada'!AJ33="","",'Anatomia Aplicada'!AJ33) ->  | AH32: =IF('Anatomia Aplicada'!AK33="","",'Anatomia Aplicada'!AK33) ->  | AI32: =IF('Anatomia Aplicada'!AL33="","",'Anatomia Aplicada'!AL33) ->  | AJ32: =IF('Anatomia Aplicada'!AM33="","",'Anatomia Aplicada'!AM33) ->  | AK32: =IF('Anatomia Aplicada'!AN33="","",'Anatomia Aplicada'!AN33) ->  | AL32: =IF('Anatomia Aplicada'!AO33="","",'Anatomia Aplicada'!AO33) ->  | AM32: =IF('Anatomia Aplicada'!AP33="","",'Anatomia Aplicada'!AP33) -> 
D33: Criterio Evaluación 6.8 | E33: =IF('Anatomia Aplicada'!H34="","",'Anatomia Aplicada'!H34) ->  | F33: =IF('Anatomia Aplicada'!I34="","",'Anatomia Aplicada'!I34) ->  | G33: =IF('Anatomia Aplicada'!J34="","",'Anatomia Aplicada'!J34) ->  | H33: =IF('Anatomia Aplicada'!K34="","",'Anatomia Aplicada'!K34) ->  | I33: =IF('Anatomia Aplicada'!L34="","",'Anatomia Aplicada'!L34) ->  | J33: =IF('Anatomia Aplicada'!M34="","",'Anatomia Aplicada'!M34) ->  | K33: =IF('Anatomia Aplicada'!N34="","",'Anatomia Aplicada'!N34) ->  | L33: =IF('Anatomia Aplicada'!O34="","",'Anatomia Aplicada'!O34) ->  | M33: =IF('Anatomia Aplicada'!P34="","",'Anatomia Aplicada'!P34) ->  | N33: =IF('Anatomia Aplicada'!Q34="","",'Anatomia Aplicada'!Q34) ->  | O33: =IF('Anatomia Aplicada'!R34="","",'Anatomia Aplicada'!R34) ->  | P33: =IF('Anatomia Aplicada'!S34="","",'Anatomia Aplicada'!S34) ->  | Q33: =IF('Anatomia Aplicada'!T34="","",'Anatomia Aplicada'!T34) ->  | R33: =IF('Anatomia Aplicada'!U34="","",'Anatomia Aplicada'!U34) ->  | S33: =IF('Anatomia Aplicada'!V34="","",'Anatomia Aplicada'!V34) ->  | T33: =IF('Anatomia Aplicada'!W34="","",'Anatomia Aplicada'!W34) ->  | U33: =IF('Anatomia Aplicada'!X34="","",'Anatomia Aplicada'!X34) ->  | V33: =IF('Anatomia Aplicada'!Y34="","",'Anatomia Aplicada'!Y34) ->  | W33: =IF('Anatomia Aplicada'!Z34="","",'Anatomia Aplicada'!Z34) ->  | X33: =IF('Anatomia Aplicada'!AA34="","",'Anatomia Aplicada'!AA34) ->  | Y33: =IF('Anatomia Aplicada'!AB34="","",'Anatomia Aplicada'!AB34) ->  | Z33: =IF('Anatomia Aplicada'!AC34="","",'Anatomia Aplicada'!AC34) ->  | AA33: =IF('Anatomia Aplicada'!AD34="","",'Anatomia Aplicada'!AD34) ->  | AB33: =IF('Anatomia Aplicada'!AE34="","",'Anatomia Aplicada'!AE34) ->  | AC33: =IF('Anatomia Aplicada'!AF34="","",'Anatomia Aplicada'!AF34) ->  | AD33: =IF('Anatomia Aplicada'!AG34="","",'Anatomia Aplicada'!AG34) ->  | AE33: =IF('Anatomia Aplicada'!AH34="","",'Anatomia Aplicada'!AH34) ->  | AF33: =IF('Anatomia Aplicada'!AI34="","",'Anatomia Aplicada'!AI34) ->  | AG33: =IF('Anatomia Aplicada'!AJ34="","",'Anatomia Aplicada'!AJ34) ->  | AH33: =IF('Anatomia Aplicada'!AK34="","",'Anatomia Aplicada'!AK34) ->  | AI33: =IF('Anatomia Aplicada'!AL34="","",'Anatomia Aplicada'!AL34) ->  | AJ33: =IF('Anatomia Aplicada'!AM34="","",'Anatomia Aplicada'!AM34) ->  | AK33: =IF('Anatomia Aplicada'!AN34="","",'Anatomia Aplicada'!AN34) ->  | AL33: =IF('Anatomia Aplicada'!AO34="","",'Anatomia Aplicada'!AO34) ->  | AM33: =IF('Anatomia Aplicada'!AP34="","",'Anatomia Aplicada'!AP34) -> 
D34: Criterio Evaluación 6.9 | E34: =IF('Anatomia Aplicada'!H35="","",'Anatomia Aplicada'!H35) ->  | F34: =IF('Anatomia Aplicada'!I35="","",'Anatomia Aplicada'!I35) ->  | G34: =IF('Anatomia Aplicada'!J35="","",'Anatomia Aplicada'!J35) ->  | H34: =IF('Anatomia Aplicada'!K35="","",'Anatomia Aplicada'!K35) ->  | I34: =IF('Anatomia Aplicada'!L35="","",'Anatomia Aplicada'!L35) ->  | J34: =IF('Anatomia Aplicada'!M35="","",'Anatomia Aplicada'!M35) ->  | K34: =IF('Anatomia Aplicada'!N35="","",'Anatomia Aplicada'!N35) ->  | L34: =IF('Anatomia Aplicada'!O35="","",'Anatomia Aplicada'!O35) ->  | M34: =IF('Anatomia Aplicada'!P35="","",'Anatomia Aplicada'!P35) ->  | N34: =IF('Anatomia Aplicada'!Q35="","",'Anatomia Aplicada'!Q35) ->  | O34: =IF('Anatomia Aplicada'!R35="","",'Anatomia Aplicada'!R35) ->  | P34: =IF('Anatomia Aplicada'!S35="","",'Anatomia Aplicada'!S35) ->  | Q34: =IF('Anatomia Aplicada'!T35="","",'Anatomia Aplicada'!T35) ->  | R34: =IF('Anatomia Aplicada'!U35="","",'Anatomia Aplicada'!U35) ->  | S34: =IF('Anatomia Aplicada'!V35="","",'Anatomia Aplicada'!V35) ->  | T34: =IF('Anatomia Aplicada'!W35="","",'Anatomia Aplicada'!W35) ->  | U34: =IF('Anatomia Aplicada'!X35="","",'Anatomia Aplicada'!X35) ->  | V34: =IF('Anatomia Aplicada'!Y35="","",'Anatomia Aplicada'!Y35) ->  | W34: =IF('Anatomia Aplicada'!Z35="","",'Anatomia Aplicada'!Z35) ->  | X34: =IF('Anatomia Aplicada'!AA35="","",'Anatomia Aplicada'!AA35) ->  | Y34: =IF('Anatomia Aplicada'!AB35="","",'Anatomia Aplicada'!AB35) ->  | Z34: =IF('Anatomia Aplicada'!AC35="","",'Anatomia Aplicada'!AC35) ->  | AA34: =IF('Anatomia Aplicada'!AD35="","",'Anatomia Aplicada'!AD35) ->  | AB34: =IF('Anatomia Aplicada'!AE35="","",'Anatomia Aplicada'!AE35) ->  | AC34: =IF('Anatomia Aplicada'!AF35="","",'Anatomia Aplicada'!AF35) ->  | AD34: =IF('Anatomia Aplicada'!AG35="","",'Anatomia Aplicada'!AG35) ->  | AE34: =IF('Anatomia Aplicada'!AH35="","",'Anatomia Aplicada'!AH35) ->  | AF34: =IF('Anatomia Aplicada'!AI35="","",'Anatomia Aplicada'!AI35) ->  | AG34: =IF('Anatomia Aplicada'!AJ35="","",'Anatomia Aplicada'!AJ35) ->  | AH34: =IF('Anatomia Aplicada'!AK35="","",'Anatomia Aplicada'!AK35) ->  | AI34: =IF('Anatomia Aplicada'!AL35="","",'Anatomia Aplicada'!AL35) ->  | AJ34: =IF('Anatomia Aplicada'!AM35="","",'Anatomia Aplicada'!AM35) ->  | AK34: =IF('Anatomia Aplicada'!AN35="","",'Anatomia Aplicada'!AN35) ->  | AL34: =IF('Anatomia Aplicada'!AO35="","",'Anatomia Aplicada'!AO35) ->  | AM34: =IF('Anatomia Aplicada'!AP35="","",'Anatomia Aplicada'!AP35) -> 
B35: Biología, Geología y Ciencias Ambientales | C35: Comp. Esp. 1 | D35: Criterio Evaluación 1.1 | E35: =IF('Biologia Geologia'!H4="","",'Biologia Geologia'!H4) ->  | F35: =IF('Biologia Geologia'!I4="","",'Biologia Geologia'!I4) ->  | G35: =IF('Biologia Geologia'!J4="","",'Biologia Geologia'!J4) ->  | H35: =IF('Biologia Geologia'!K4="","",'Biologia Geologia'!K4) ->  | I35: =IF('Biologia Geologia'!L4="","",'Biologia Geologia'!L4) ->  | J35: =IF('Biologia Geologia'!M4="","",'Biologia Geologia'!M4) ->  | K35: =IF('Biologia Geologia'!N4="","",'Biologia Geologia'!N4) ->  | L35: =IF('Biologia Geologia'!O4="","",'Biologia Geologia'!O4) ->  | M35: =IF('Biologia Geologia'!P4="","",'Biologia Geologia'!P4) ->  | N35: =IF('Biologia Geologia'!Q4="","",'Biologia Geologia'!Q4) ->  | O35: =IF('Biologia Geologia'!R4="","",'Biologia Geologia'!R4) ->  | P35: =IF('Biologia Geologia'!S4="","",'Biologia Geologia'!S4) ->  | Q35: =IF('Biologia Geologia'!T4="","",'Biologia Geologia'!T4) ->  | R35: =IF('Biologia Geologia'!U4="","",'Biologia Geologia'!U4) ->  | S35: =IF('Biologia Geologia'!V4="","",'Biologia Geologia'!V4) ->  | T35: =IF('Biologia Geologia'!W4="","",'Biologia Geologia'!W4) ->  | U35: =IF('Biologia Geologia'!X4="","",'Biologia Geologia'!X4) ->  | V35: =IF('Biologia Geologia'!Y4="","",'Biologia Geologia'!Y4) ->  | W35: =IF('Biologia Geologia'!Z4="","",'Biologia Geologia'!Z4) ->  | X35: =IF('Biologia Geologia'!AA4="","",'Biologia Geologia'!AA4) ->  | Y35: =IF('Biologia Geologia'!AB4="","",'Biologia Geologia'!AB4) ->  | Z35: =IF('Biologia Geologia'!AC4="","",'Biologia Geologia'!AC4) ->  | AA35: =IF('Biologia Geologia'!AD4="","",'Biologia Geologia'!AD4) ->  | AB35: =IF('Biologia Geologia'!AE4="","",'Biologia Geologia'!AE4) ->  | AC35: =IF('Biologia Geologia'!AF4="","",'Biologia Geologia'!AF4) ->  | AD35: =IF('Biologia Geologia'!AG4="","",'Biologia Geologia'!AG4) ->  | AE35: =IF('Biologia Geologia'!AH4="","",'Biologia Geologia'!AH4) ->  | AF35: =IF('Biologia Geologia'!AI4="","",'Biologia Geologia'!AI4) ->  | AG35: =IF('Biologia Geologia'!AJ4="","",'Biologia Geologia'!AJ4) ->  | AH35: =IF('Biologia Geologia'!AK4="","",'Biologia Geologia'!AK4) ->  | AI35: =IF('Biologia Geologia'!AL4="","",'Biologia Geologia'!AL4) ->  | AJ35: =IF('Biologia Geologia'!AM4="","",'Biologia Geologia'!AM4) ->  | AK35: =IF('Biologia Geologia'!AN4="","",'Biologia Geologia'!AN4) ->  | AL35: =IF('Biologia Geologia'!AO4="","",'Biologia Geologia'!AO4) ->  | AM35: =IF('Biologia Geologia'!AP4="","",'Biologia Geologia'!AP4) -> 
D36: Criterio Evaluación 1.2 | E36: =IF('Biologia Geologia'!H5="","",'Biologia Geologia'!H5) ->  | F36: =IF('Biologia Geologia'!I5="","",'Biologia Geologia'!I5) ->  | G36: =IF('Biologia Geologia'!J5="","",'Biologia Geologia'!J5) ->  | H36: =IF('Biologia Geologia'!K5="","",'Biologia Geologia'!K5) ->  | I36: =IF('Biologia Geologia'!L5="","",'Biologia Geologia'!L5) ->  | J36: =IF('Biologia Geologia'!M5="","",'Biologia Geologia'!M5) ->  | K36: =IF('Biologia Geologia'!N5="","",'Biologia Geologia'!N5) ->  | L36: =IF('Biologia Geologia'!O5="","",'Biologia Geologia'!O5) ->  | M36: =IF('Biologia Geologia'!P5="","",'Biologia Geologia'!P5) ->  | N36: =IF('Biologia Geologia'!Q5="","",'Biologia Geologia'!Q5) ->  | O36: =IF('Biologia Geologia'!R5="","",'Biologia Geologia'!R5) ->  | P36: =IF('Biologia Geologia'!S5="","",'Biologia Geologia'!S5) ->  | Q36: =IF('Biologia Geologia'!T5="","",'Biologia Geologia'!T5) ->  | R36: =IF('Biologia Geologia'!U5="","",'Biologia Geologia'!U5) ->  | S36: =IF('Biologia Geologia'!V5="","",'Biologia Geologia'!V5) ->  | T36: =IF('Biologia Geologia'!W5="","",'Biologia Geologia'!W5) ->  | U36: =IF('Biologia Geologia'!X5="","",'Biologia Geologia'!X5) ->  | V36: =IF('Biologia Geologia'!Y5="","",'Biologia Geologia'!Y5) ->  | W36: =IF('Biologia Geologia'!Z5="","",'Biologia Geologia'!Z5) ->  | X36: =IF('Biologia Geologia'!AA5="","",'Biologia Geologia'!AA5) ->  | Y36: =IF('Biologia Geologia'!AB5="","",'Biologia Geologia'!AB5) ->  | Z36: =IF('Biologia Geologia'!AC5="","",'Biologia Geologia'!AC5) ->  | AA36: =IF('Biologia Geologia'!AD5="","",'Biologia Geologia'!AD5) ->  | AB36: =IF('Biologia Geologia'!AE5="","",'Biologia Geologia'!AE5) ->  | AC36: =IF('Biologia Geologia'!AF5="","",'Biologia Geologia'!AF5) ->  | AD36: =IF('Biologia Geologia'!AG5="","",'Biologia Geologia'!AG5) ->  | AE36: =IF('Biologia Geologia'!AH5="","",'Biologia Geologia'!AH5) ->  | AF36: =IF('Biologia Geologia'!AI5="","",'Biologia Geologia'!AI5) ->  | AG36: =IF('Biologia Geologia'!AJ5="","",'Biologia Geologia'!AJ5) ->  | AH36: =IF('Biologia Geologia'!AK5="","",'Biologia Geologia'!AK5) ->  | AI36: =IF('Biologia Geologia'!AL5="","",'Biologia Geologia'!AL5) ->  | AJ36: =IF('Biologia Geologia'!AM5="","",'Biologia Geologia'!AM5) ->  | AK36: =IF('Biologia Geologia'!AN5="","",'Biologia Geologia'!AN5) ->  | AL36: =IF('Biologia Geologia'!AO5="","",'Biologia Geologia'!AO5) ->  | AM36: =IF('Biologia Geologia'!AP5="","",'Biologia Geologia'!AP5) -> 
D37: Criterio Evaluación 1.3 | E37: =IF('Biologia Geologia'!H6="","",'Biologia Geologia'!H6) ->  | F37: =IF('Biologia Geologia'!I6="","",'Biologia Geologia'!I6) ->  | G37: =IF('Biologia Geologia'!J6="","",'Biologia Geologia'!J6) ->  | H37: =IF('Biologia Geologia'!K6="","",'Biologia Geologia'!K6) ->  | I37: =IF('Biologia Geologia'!L6="","",'Biologia Geologia'!L6) ->  | J37: =IF('Biologia Geologia'!M6="","",'Biologia Geologia'!M6) ->  | K37: =IF('Biologia Geologia'!N6="","",'Biologia Geologia'!N6) ->  | L37: =IF('Biologia Geologia'!O6="","",'Biologia Geologia'!O6) ->  | M37: =IF('Biologia Geologia'!P6="","",'Biologia Geologia'!P6) ->  | N37: =IF('Biologia Geologia'!Q6="","",'Biologia Geologia'!Q6) ->  | O37: =IF('Biologia Geologia'!R6="","",'Biologia Geologia'!R6) ->  | P37: =IF('Biologia Geologia'!S6="","",'Biologia Geologia'!S6) ->  | Q37: =IF('Biologia Geologia'!T6="","",'Biologia Geologia'!T6) ->  | R37: =IF('Biologia Geologia'!U6="","",'Biologia Geologia'!U6) ->  | S37: =IF('Biologia Geologia'!V6="","",'Biologia Geologia'!V6) ->  | T37: =IF('Biologia Geologia'!W6="","",'Biologia Geologia'!W6) ->  | U37: =IF('Biologia Geologia'!X6="","",'Biologia Geologia'!X6) ->  | V37: =IF('Biologia Geologia'!Y6="","",'Biologia Geologia'!Y6) ->  | W37: =IF('Biologia Geologia'!Z6="","",'Biologia Geologia'!Z6) ->  | X37: =IF('Biologia Geologia'!AA6="","",'Biologia Geologia'!AA6) ->  | Y37: =IF('Biologia Geologia'!AB6="","",'Biologia Geologia'!AB6) ->  | Z37: =IF('Biologia Geologia'!AC6="","",'Biologia Geologia'!AC6) ->  | AA37: =IF('Biologia Geologia'!AD6="","",'Biologia Geologia'!AD6) ->  | AB37: =IF('Biologia Geologia'!AE6="","",'Biologia Geologia'!AE6) ->  | AC37: =IF('Biologia Geologia'!AF6="","",'Biologia Geologia'!AF6) ->  | AD37: =IF('Biologia Geologia'!AG6="","",'Biologia Geologia'!AG6) ->  | AE37: =IF('Biologia Geologia'!AH6="","",'Biologia Geologia'!AH6) ->  | AF37: =IF('Biologia Geologia'!AI6="","",'Biologia Geologia'!AI6) ->  | AG37: =IF('Biologia Geologia'!AJ6="","",'Biologia Geologia'!AJ6) ->  | AH37: =IF('Biologia Geologia'!AK6="","",'Biologia Geologia'!AK6) ->  | AI37: =IF('Biologia Geologia'!AL6="","",'Biologia Geologia'!AL6) ->  | AJ37: =IF('Biologia Geologia'!AM6="","",'Biologia Geologia'!AM6) ->  | AK37: =IF('Biologia Geologia'!AN6="","",'Biologia Geologia'!AN6) ->  | AL37: =IF('Biologia Geologia'!AO6="","",'Biologia Geologia'!AO6) ->  | AM37: =IF('Biologia Geologia'!AP6="","",'Biologia Geologia'!AP6) -> 
C38: Comp. Esp. 2 | D38: Criterio Evaluación 2.1 | E38: =IF('Biologia Geologia'!H7="","",'Biologia Geologia'!H7) ->  | F38: =IF('Biologia Geologia'!I7="","",'Biologia Geologia'!I7) ->  | G38: =IF('Biologia Geologia'!J7="","",'Biologia Geologia'!J7) ->  | H38: =IF('Biologia Geologia'!K7="","",'Biologia Geologia'!K7) ->  | I38: =IF('Biologia Geologia'!L7="","",'Biologia Geologia'!L7) ->  | J38: =IF('Biologia Geologia'!M7="","",'Biologia Geologia'!M7) ->  | K38: =IF('Biologia Geologia'!N7="","",'Biologia Geologia'!N7) ->  | L38: =IF('Biologia Geologia'!O7="","",'Biologia Geologia'!O7) ->  | M38: =IF('Biologia Geologia'!P7="","",'Biologia Geologia'!P7) ->  | N38: =IF('Biologia Geologia'!Q7="","",'Biologia Geologia'!Q7) ->  | O38: =IF('Biologia Geologia'!R7="","",'Biologia Geologia'!R7) ->  | P38: =IF('Biologia Geologia'!S7="","",'Biologia Geologia'!S7) ->  | Q38: =IF('Biologia Geologia'!T7="","",'Biologia Geologia'!T7) ->  | R38: =IF('Biologia Geologia'!U7="","",'Biologia Geologia'!U7) ->  | S38: =IF('Biologia Geologia'!V7="","",'Biologia Geologia'!V7) ->  | T38: =IF('Biologia Geologia'!W7="","",'Biologia Geologia'!W7) ->  | U38: =IF('Biologia Geologia'!X7="","",'Biologia Geologia'!X7) ->  | V38: =IF('Biologia Geologia'!Y7="","",'Biologia Geologia'!Y7) ->  | W38: =IF('Biologia Geologia'!Z7="","",'Biologia Geologia'!Z7) ->  | X38: =IF('Biologia Geologia'!AA7="","",'Biologia Geologia'!AA7) ->  | Y38: =IF('Biologia Geologia'!AB7="","",'Biologia Geologia'!AB7) ->  | Z38: =IF('Biologia Geologia'!AC7="","",'Biologia Geologia'!AC7) ->  | AA38: =IF('Biologia Geologia'!AD7="","",'Biologia Geologia'!AD7) ->  | AB38: =IF('Biologia Geologia'!AE7="","",'Biologia Geologia'!AE7) ->  | AC38: =IF('Biologia Geologia'!AF7="","",'Biologia Geologia'!AF7) ->  | AD38: =IF('Biologia Geologia'!AG7="","",'Biologia Geologia'!AG7) ->  | AE38: =IF('Biologia Geologia'!AH7="","",'Biologia Geologia'!AH7) ->  | AF38: =IF('Biologia Geologia'!AI7="","",'Biologia Geologia'!AI7) ->  | AG38: =IF('Biologia Geologia'!AJ7="","",'Biologia Geologia'!AJ7) ->  | AH38: =IF('Biologia Geologia'!AK7="","",'Biologia Geologia'!AK7) ->  | AI38: =IF('Biologia Geologia'!AL7="","",'Biologia Geologia'!AL7) ->  | AJ38: =IF('Biologia Geologia'!AM7="","",'Biologia Geologia'!AM7) ->  | AK38: =IF('Biologia Geologia'!AN7="","",'Biologia Geologia'!AN7) ->  | AL38: =IF('Biologia Geologia'!AO7="","",'Biologia Geologia'!AO7) ->  | AM38: =IF('Biologia Geologia'!AP7="","",'Biologia Geologia'!AP7) -> 
D39: Criterio Evaluación 2.2 | E39: =IF('Biologia Geologia'!H8="","",'Biologia Geologia'!H8) ->  | F39: =IF('Biologia Geologia'!I8="","",'Biologia Geologia'!I8) ->  | G39: =IF('Biologia Geologia'!J8="","",'Biologia Geologia'!J8) ->  | H39: =IF('Biologia Geologia'!K8="","",'Biologia Geologia'!K8) ->  | I39: =IF('Biologia Geologia'!L8="","",'Biologia Geologia'!L8) ->  | J39: =IF('Biologia Geologia'!M8="","",'Biologia Geologia'!M8) ->  | K39: =IF('Biologia Geologia'!N8="","",'Biologia Geologia'!N8) ->  | L39: =IF('Biologia Geologia'!O8="","",'Biologia Geologia'!O8) ->  | M39: =IF('Biologia Geologia'!P8="","",'Biologia Geologia'!P8) ->  | N39: =IF('Biologia Geologia'!Q8="","",'Biologia Geologia'!Q8) ->  | O39: =IF('Biologia Geologia'!R8="","",'Biologia Geologia'!R8) ->  | P39: =IF('Biologia Geologia'!S8="","",'Biologia Geologia'!S8) ->  | Q39: =IF('Biologia Geologia'!T8="","",'Biologia Geologia'!T8) ->  | R39: =IF('Biologia Geologia'!U8="","",'Biologia Geologia'!U8) ->  | S39: =IF('Biologia Geologia'!V8="","",'Biologia Geologia'!V8) ->  | T39: =IF('Biologia Geologia'!W8="","",'Biologia Geologia'!W8) ->  | U39: =IF('Biologia Geologia'!X8="","",'Biologia Geologia'!X8) ->  | V39: =IF('Biologia Geologia'!Y8="","",'Biologia Geologia'!Y8) ->  | W39: =IF('Biologia Geologia'!Z8="","",'Biologia Geologia'!Z8) ->  | X39: =IF('Biologia Geologia'!AA8="","",'Biologia Geologia'!AA8) ->  | Y39: =IF('Biologia Geologia'!AB8="","",'Biologia Geologia'!AB8) ->  | Z39: =IF('Biologia Geologia'!AC8="","",'Biologia Geologia'!AC8) ->  | AA39: =IF('Biologia Geologia'!AD8="","",'Biologia Geologia'!AD8) ->  | AB39: =IF('Biologia Geologia'!AE8="","",'Biologia Geologia'!AE8) ->  | AC39: =IF('Biologia Geologia'!AF8="","",'Biologia Geologia'!AF8) ->  | AD39: =IF('Biologia Geologia'!AG8="","",'Biologia Geologia'!AG8) ->  | AE39: =IF('Biologia Geologia'!AH8="","",'Biologia Geologia'!AH8) ->  | AF39: =IF('Biologia Geologia'!AI8="","",'Biologia Geologia'!AI8) ->  | AG39: =IF('Biologia Geologia'!AJ8="","",'Biologia Geologia'!AJ8) ->  | AH39: =IF('Biologia Geologia'!AK8="","",'Biologia Geologia'!AK8) ->  | AI39: =IF('Biologia Geologia'!AL8="","",'Biologia Geologia'!AL8) ->  | AJ39: =IF('Biologia Geologia'!AM8="","",'Biologia Geologia'!AM8) ->  | AK39: =IF('Biologia Geologia'!AN8="","",'Biologia Geologia'!AN8) ->  | AL39: =IF('Biologia Geologia'!AO8="","",'Biologia Geologia'!AO8) ->  | AM39: =IF('Biologia Geologia'!AP8="","",'Biologia Geologia'!AP8) -> 
D40: Criterio Evaluación 2.3 | E40: =IF('Biologia Geologia'!H9="","",'Biologia Geologia'!H9) ->  | F40: =IF('Biologia Geologia'!I9="","",'Biologia Geologia'!I9) ->  | G40: =IF('Biologia Geologia'!J9="","",'Biologia Geologia'!J9) ->  | H40: =IF('Biologia Geologia'!K9="","",'Biologia Geologia'!K9) ->  | I40: =IF('Biologia Geologia'!L9="","",'Biologia Geologia'!L9) ->  | J40: =IF('Biologia Geologia'!M9="","",'Biologia Geologia'!M9) ->  | K40: =IF('Biologia Geologia'!N9="","",'Biologia Geologia'!N9) ->  | L40: =IF('Biologia Geologia'!O9="","",'Biologia Geologia'!O9) ->  | M40: =IF('Biologia Geologia'!P9="","",'Biologia Geologia'!P9) ->  | N40: =IF('Biologia Geologia'!Q9="","",'Biologia Geologia'!Q9) ->  | O40: =IF('Biologia Geologia'!R9="","",'Biologia Geologia'!R9) ->  | P40: =IF('Biologia Geologia'!S9="","",'Biologia Geologia'!S9) ->  | Q40: =IF('Biologia Geologia'!T9="","",'Biologia Geologia'!T9) ->  | R40: =IF('Biologia Geologia'!U9="","",'Biologia Geologia'!U9) ->  | S40: =IF('Biologia Geologia'!V9="","",'Biologia Geologia'!V9) ->  | T40: =IF('Biologia Geologia'!W9="","",'Biologia Geologia'!W9) ->  | U40: =IF('Biologia Geologia'!X9="","",'Biologia Geologia'!X9) ->  | V40: =IF('Biologia Geologia'!Y9="","",'Biologia Geologia'!Y9) ->  | W40: =IF('Biologia Geologia'!Z9="","",'Biologia Geologia'!Z9) ->  | X40: =IF('Biologia Geologia'!AA9="","",'Biologia Geologia'!AA9) ->  | Y40: =IF('Biologia Geologia'!AB9="","",'Biologia Geologia'!AB9) ->  | Z40: =IF('Biologia Geologia'!AC9="","",'Biologia Geologia'!AC9) ->  | AA40: =IF('Biologia Geologia'!AD9="","",'Biologia Geologia'!AD9) ->  | AB40: =IF('Biologia Geologia'!AE9="","",'Biologia Geologia'!AE9) ->  | AC40: =IF('Biologia Geologia'!AF9="","",'Biologia Geologia'!AF9) ->  | AD40: =IF('Biologia Geologia'!AG9="","",'Biologia Geologia'!AG9) ->  | AE40: =IF('Biologia Geologia'!AH9="","",'Biologia Geologia'!AH9) ->  | AF40: =IF('Biologia Geologia'!AI9="","",'Biologia Geologia'!AI9) ->  | AG40: =IF('Biologia Geologia'!AJ9="","",'Biologia Geologia'!AJ9) ->  | AH40: =IF('Biologia Geologia'!AK9="","",'Biologia Geologia'!AK9) ->  | AI40: =IF('Biologia Geologia'!AL9="","",'Biologia Geologia'!AL9) ->  | AJ40: =IF('Biologia Geologia'!AM9="","",'Biologia Geologia'!AM9) ->  | AK40: =IF('Biologia Geologia'!AN9="","",'Biologia Geologia'!AN9) ->  | AL40: =IF('Biologia Geologia'!AO9="","",'Biologia Geologia'!AO9) ->  | AM40: =IF('Biologia Geologia'!AP9="","",'Biologia Geologia'!AP9) -> 
C41: Comp. Esp. 3 | D41: Criterio Evaluación 3.1 | E41: =IF('Biologia Geologia'!H10="","",'Biologia Geologia'!H10) ->  | F41: =IF('Biologia Geologia'!I10="","",'Biologia Geologia'!I10) ->  | G41: =IF('Biologia Geologia'!J10="","",'Biologia Geologia'!J10) ->  | H41: =IF('Biologia Geologia'!K10="","",'Biologia Geologia'!K10) ->  | I41: =IF('Biologia Geologia'!L10="","",'Biologia Geologia'!L10) ->  | J41: =IF('Biologia Geologia'!M10="","",'Biologia Geologia'!M10) ->  | K41: =IF('Biologia Geologia'!N10="","",'Biologia Geologia'!N10) ->  | L41: =IF('Biologia Geologia'!O10="","",'Biologia Geologia'!O10) ->  | M41: =IF('Biologia Geologia'!P10="","",'Biologia Geologia'!P10) ->  | N41: =IF('Biologia Geologia'!Q10="","",'Biologia Geologia'!Q10) ->  | O41: =IF('Biologia Geologia'!R10="","",'Biologia Geologia'!R10) ->  | P41: =IF('Biologia Geologia'!S10="","",'Biologia Geologia'!S10) ->  | Q41: =IF('Biologia Geologia'!T10="","",'Biologia Geologia'!T10) ->  | R41: =IF('Biologia Geologia'!U10="","",'Biologia Geologia'!U10) ->  | S41: =IF('Biologia Geologia'!V10="","",'Biologia Geologia'!V10) ->  | T41: =IF('Biologia Geologia'!W10="","",'Biologia Geologia'!W10) ->  | U41: =IF('Biologia Geologia'!X10="","",'Biologia Geologia'!X10) ->  | V41: =IF('Biologia Geologia'!Y10="","",'Biologia Geologia'!Y10) ->  | W41: =IF('Biologia Geologia'!Z10="","",'Biologia Geologia'!Z10) ->  | X41: =IF('Biologia Geologia'!AA10="","",'Biologia Geologia'!AA10) ->  | Y41: =IF('Biologia Geologia'!AB10="","",'Biologia Geologia'!AB10) ->  | Z41: =IF('Biologia Geologia'!AC10="","",'Biologia Geologia'!AC10) ->  | AA41: =IF('Biologia Geologia'!AD10="","",'Biologia Geologia'!AD10) ->  | AB41: =IF('Biologia Geologia'!AE10="","",'Biologia Geologia'!AE10) ->  | AC41: =IF('Biologia Geologia'!AF10="","",'Biologia Geologia'!AF10) ->  | AD41: =IF('Biologia Geologia'!AG10="","",'Biologia Geologia'!AG10) ->  | AE41: =IF('Biologia Geologia'!AH10="","",'Biologia Geologia'!AH10) ->  | AF41: =IF('Biologia Geologia'!AI10="","",'Biologia Geologia'!AI10) ->  | AG41: =IF('Biologia Geologia'!AJ10="","",'Biologia Geologia'!AJ10) ->  | AH41: =IF('Biologia Geologia'!AK10="","",'Biologia Geologia'!AK10) ->  | AI41: =IF('Biologia Geologia'!AL10="","",'Biologia Geologia'!AL10) ->  | AJ41: =IF('Biologia Geologia'!AM10="","",'Biologia Geologia'!AM10) ->  | AK41: =IF('Biologia Geologia'!AN10="","",'Biologia Geologia'!AN10) ->  | AL41: =IF('Biologia Geologia'!AO10="","",'Biologia Geologia'!AO10) ->  | AM41: =IF('Biologia Geologia'!AP10="","",'Biologia Geologia'!AP10) -> 
D42: Criterio Evaluación 3.2 | E42: =IF('Biologia Geologia'!H11="","",'Biologia Geologia'!H11) ->  | F42: =IF('Biologia Geologia'!I11="","",'Biologia Geologia'!I11) ->  | G42: =IF('Biologia Geologia'!J11="","",'Biologia Geologia'!J11) ->  | H42: =IF('Biologia Geologia'!K11="","",'Biologia Geologia'!K11) ->  | I42: =IF('Biologia Geologia'!L11="","",'Biologia Geologia'!L11) ->  | J42: =IF('Biologia Geologia'!M11="","",'Biologia Geologia'!M11) ->  | K42: =IF('Biologia Geologia'!N11="","",'Biologia Geologia'!N11) ->  | L42: =IF('Biologia Geologia'!O11="","",'Biologia Geologia'!O11) ->  | M42: =IF('Biologia Geologia'!P11="","",'Biologia Geologia'!P11) ->  | N42: =IF('Biologia Geologia'!Q11="","",'Biologia Geologia'!Q11) ->  | O42: =IF('Biologia Geologia'!R11="","",'Biologia Geologia'!R11) ->  | P42: =IF('Biologia Geologia'!S11="","",'Biologia Geologia'!S11) ->  | Q42: =IF('Biologia Geologia'!T11="","",'Biologia Geologia'!T11) ->  | R42: =IF('Biologia Geologia'!U11="","",'Biologia Geologia'!U11) ->  | S42: =IF('Biologia Geologia'!V11="","",'Biologia Geologia'!V11) ->  | T42: =IF('Biologia Geologia'!W11="","",'Biologia Geologia'!W11) ->  | U42: =IF('Biologia Geologia'!X11="","",'Biologia Geologia'!X11) ->  | V42: =IF('Biologia Geologia'!Y11="","",'Biologia Geologia'!Y11) ->  | W42: =IF('Biologia Geologia'!Z11="","",'Biologia Geologia'!Z11) ->  | X42: =IF('Biologia Geologia'!AA11="","",'Biologia Geologia'!AA11) ->  | Y42: =IF('Biologia Geologia'!AB11="","",'Biologia Geologia'!AB11) ->  | Z42: =IF('Biologia Geologia'!AC11="","",'Biologia Geologia'!AC11) ->  | AA42: =IF('Biologia Geologia'!AD11="","",'Biologia Geologia'!AD11) ->  | AB42: =IF('Biologia Geologia'!AE11="","",'Biologia Geologia'!AE11) ->  | AC42: =IF('Biologia Geologia'!AF11="","",'Biologia Geologia'!AF11) ->  | AD42: =IF('Biologia Geologia'!AG11="","",'Biologia Geologia'!AG11) ->  | AE42: =IF('Biologia Geologia'!AH11="","",'Biologia Geologia'!AH11) ->  | AF42: =IF('Biologia Geologia'!AI11="","",'Biologia Geologia'!AI11) ->  | AG42: =IF('Biologia Geologia'!AJ11="","",'Biologia Geologia'!AJ11) ->  | AH42: =IF('Biologia Geologia'!AK11="","",'Biologia Geologia'!AK11) ->  | AI42: =IF('Biologia Geologia'!AL11="","",'Biologia Geologia'!AL11) ->  | AJ42: =IF('Biologia Geologia'!AM11="","",'Biologia Geologia'!AM11) ->  | AK42: =IF('Biologia Geologia'!AN11="","",'Biologia Geologia'!AN11) ->  | AL42: =IF('Biologia Geologia'!AO11="","",'Biologia Geologia'!AO11) ->  | AM42: =IF('Biologia Geologia'!AP11="","",'Biologia Geologia'!AP11) -> 
D43: Criterio Evaluación 3.3 | E43: =IF('Biologia Geologia'!H12="","",'Biologia Geologia'!H12) ->  | F43: =IF('Biologia Geologia'!I12="","",'Biologia Geologia'!I12) ->  | G43: =IF('Biologia Geologia'!J12="","",'Biologia Geologia'!J12) ->  | H43: =IF('Biologia Geologia'!K12="","",'Biologia Geologia'!K12) ->  | I43: =IF('Biologia Geologia'!L12="","",'Biologia Geologia'!L12) ->  | J43: =IF('Biologia Geologia'!M12="","",'Biologia Geologia'!M12) ->  | K43: =IF('Biologia Geologia'!N12="","",'Biologia Geologia'!N12) ->  | L43: =IF('Biologia Geologia'!O12="","",'Biologia Geologia'!O12) ->  | M43: =IF('Biologia Geologia'!P12="","",'Biologia Geologia'!P12) ->  | N43: =IF('Biologia Geologia'!Q12="","",'Biologia Geologia'!Q12) ->  | O43: =IF('Biologia Geologia'!R12="","",'Biologia Geologia'!R12) ->  | P43: =IF('Biologia Geologia'!S12="","",'Biologia Geologia'!S12) ->  | Q43: =IF('Biologia Geologia'!T12="","",'Biologia Geologia'!T12) ->  | R43: =IF('Biologia Geologia'!U12="","",'Biologia Geologia'!U12) ->  | S43: =IF('Biologia Geologia'!V12="","",'Biologia Geologia'!V12) ->  | T43: =IF('Biologia Geologia'!W12="","",'Biologia Geologia'!W12) ->  | U43: =IF('Biologia Geologia'!X12="","",'Biologia Geologia'!X12) ->  | V43: =IF('Biologia Geologia'!Y12="","",'Biologia Geologia'!Y12) ->  | W43: =IF('Biologia Geologia'!Z12="","",'Biologia Geologia'!Z12) ->  | X43: =IF('Biologia Geologia'!AA12="","",'Biologia Geologia'!AA12) ->  | Y43: =IF('Biologia Geologia'!AB12="","",'Biologia Geologia'!AB12) ->  | Z43: =IF('Biologia Geologia'!AC12="","",'Biologia Geologia'!AC12) ->  | AA43: =IF('Biologia Geologia'!AD12="","",'Biologia Geologia'!AD12) ->  | AB43: =IF('Biologia Geologia'!AE12="","",'Biologia Geologia'!AE12) ->  | AC43: =IF('Biologia Geologia'!AF12="","",'Biologia Geologia'!AF12) ->  | AD43: =IF('Biologia Geologia'!AG12="","",'Biologia Geologia'!AG12) ->  | AE43: =IF('Biologia Geologia'!AH12="","",'Biologia Geologia'!AH12) ->  | AF43: =IF('Biologia Geologia'!AI12="","",'Biologia Geologia'!AI12) ->  | AG43: =IF('Biologia Geologia'!AJ12="","",'Biologia Geologia'!AJ12) ->  | AH43: =IF('Biologia Geologia'!AK12="","",'Biologia Geologia'!AK12) ->  | AI43: =IF('Biologia Geologia'!AL12="","",'Biologia Geologia'!AL12) ->  | AJ43: =IF('Biologia Geologia'!AM12="","",'Biologia Geologia'!AM12) ->  | AK43: =IF('Biologia Geologia'!AN12="","",'Biologia Geologia'!AN12) ->  | AL43: =IF('Biologia Geologia'!AO12="","",'Biologia Geologia'!AO12) ->  | AM43: =IF('Biologia Geologia'!AP12="","",'Biologia Geologia'!AP12) -> 
D44: Criterio Evaluación 3.4 | E44: =IF('Biologia Geologia'!H13="","",'Biologia Geologia'!H13) ->  | F44: =IF('Biologia Geologia'!I13="","",'Biologia Geologia'!I13) ->  | G44: =IF('Biologia Geologia'!J13="","",'Biologia Geologia'!J13) ->  | H44: =IF('Biologia Geologia'!K13="","",'Biologia Geologia'!K13) ->  | I44: =IF('Biologia Geologia'!L13="","",'Biologia Geologia'!L13) ->  | J44: =IF('Biologia Geologia'!M13="","",'Biologia Geologia'!M13) ->  | K44: =IF('Biologia Geologia'!N13="","",'Biologia Geologia'!N13) ->  | L44: =IF('Biologia Geologia'!O13="","",'Biologia Geologia'!O13) ->  | M44: =IF('Biologia Geologia'!P13="","",'Biologia Geologia'!P13) ->  | N44: =IF('Biologia Geologia'!Q13="","",'Biologia Geologia'!Q13) ->  | O44: =IF('Biologia Geologia'!R13="","",'Biologia Geologia'!R13) ->  | P44: =IF('Biologia Geologia'!S13="","",'Biologia Geologia'!S13) ->  | Q44: =IF('Biologia Geologia'!T13="","",'Biologia Geologia'!T13) ->  | R44: =IF('Biologia Geologia'!U13="","",'Biologia Geologia'!U13) ->  | S44: =IF('Biologia Geologia'!V13="","",'Biologia Geologia'!V13) ->  | T44: =IF('Biologia Geologia'!W13="","",'Biologia Geologia'!W13) ->  | U44: =IF('Biologia Geologia'!X13="","",'Biologia Geologia'!X13) ->  | V44: =IF('Biologia Geologia'!Y13="","",'Biologia Geologia'!Y13) ->  | W44: =IF('Biologia Geologia'!Z13="","",'Biologia Geologia'!Z13) ->  | X44: =IF('Biologia Geologia'!AA13="","",'Biologia Geologia'!AA13) ->  | Y44: =IF('Biologia Geologia'!AB13="","",'Biologia Geologia'!AB13) ->  | Z44: =IF('Biologia Geologia'!AC13="","",'Biologia Geologia'!AC13) ->  | AA44: =IF('Biologia Geologia'!AD13="","",'Biologia Geologia'!AD13) ->  | AB44: =IF('Biologia Geologia'!AE13="","",'Biologia Geologia'!AE13) ->  | AC44: =IF('Biologia Geologia'!AF13="","",'Biologia Geologia'!AF13) ->  | AD44: =IF('Biologia Geologia'!AG13="","",'Biologia Geologia'!AG13) ->  | AE44: =IF('Biologia Geologia'!AH13="","",'Biologia Geologia'!AH13) ->  | AF44: =IF('Biologia Geologia'!AI13="","",'Biologia Geologia'!AI13) ->  | AG44: =IF('Biologia Geologia'!AJ13="","",'Biologia Geologia'!AJ13) ->  | AH44: =IF('Biologia Geologia'!AK13="","",'Biologia Geologia'!AK13) ->  | AI44: =IF('Biologia Geologia'!AL13="","",'Biologia Geologia'!AL13) ->  | AJ44: =IF('Biologia Geologia'!AM13="","",'Biologia Geologia'!AM13) ->  | AK44: =IF('Biologia Geologia'!AN13="","",'Biologia Geologia'!AN13) ->  | AL44: =IF('Biologia Geologia'!AO13="","",'Biologia Geologia'!AO13) ->  | AM44: =IF('Biologia Geologia'!AP13="","",'Biologia Geologia'!AP13) -> 
D45: Criterio Evaluación 3.5 | E45: =IF('Biologia Geologia'!H14="","",'Biologia Geologia'!H14) ->  | F45: =IF('Biologia Geologia'!I14="","",'Biologia Geologia'!I14) ->  | G45: =IF('Biologia Geologia'!J14="","",'Biologia Geologia'!J14) ->  | H45: =IF('Biologia Geologia'!K14="","",'Biologia Geologia'!K14) ->  | I45: =IF('Biologia Geologia'!L14="","",'Biologia Geologia'!L14) ->  | J45: =IF('Biologia Geologia'!M14="","",'Biologia Geologia'!M14) ->  | K45: =IF('Biologia Geologia'!N14="","",'Biologia Geologia'!N14) ->  | L45: =IF('Biologia Geologia'!O14="","",'Biologia Geologia'!O14) ->  | M45: =IF('Biologia Geologia'!P14="","",'Biologia Geologia'!P14) ->  | N45: =IF('Biologia Geologia'!Q14="","",'Biologia Geologia'!Q14) ->  | O45: =IF('Biologia Geologia'!R14="","",'Biologia Geologia'!R14) ->  | P45: =IF('Biologia Geologia'!S14="","",'Biologia Geologia'!S14) ->  | Q45: =IF('Biologia Geologia'!T14="","",'Biologia Geologia'!T14) ->  | R45: =IF('Biologia Geologia'!U14="","",'Biologia Geologia'!U14) ->  | S45: =IF('Biologia Geologia'!V14="","",'Biologia Geologia'!V14) ->  | T45: =IF('Biologia Geologia'!W14="","",'Biologia Geologia'!W14) ->  | U45: =IF('Biologia Geologia'!X14="","",'Biologia Geologia'!X14) ->  | V45: =IF('Biologia Geologia'!Y14="","",'Biologia Geologia'!Y14) ->  | W45: =IF('Biologia Geologia'!Z14="","",'Biologia Geologia'!Z14) ->  | X45: =IF('Biologia Geologia'!AA14="","",'Biologia Geologia'!AA14) ->  | Y45: =IF('Biologia Geologia'!AB14="","",'Biologia Geologia'!AB14) ->  | Z45: =IF('Biologia Geologia'!AC14="","",'Biologia Geologia'!AC14) ->  | AA45: =IF('Biologia Geologia'!AD14="","",'Biologia Geologia'!AD14) ->  | AB45: =IF('Biologia Geologia'!AE14="","",'Biologia Geologia'!AE14) ->  | AC45: =IF('Biologia Geologia'!AF14="","",'Biologia Geologia'!AF14) ->  | AD45: =IF('Biologia Geologia'!AG14="","",'Biologia Geologia'!AG14) ->  | AE45: =IF('Biologia Geologia'!AH14="","",'Biologia Geologia'!AH14) ->  | AF45: =IF('Biologia Geologia'!AI14="","",'Biologia Geologia'!AI14) ->  | AG45: =IF('Biologia Geologia'!AJ14="","",'Biologia Geologia'!AJ14) ->  | AH45: =IF('Biologia Geologia'!AK14="","",'Biologia Geologia'!AK14) ->  | AI45: =IF('Biologia Geologia'!AL14="","",'Biologia Geologia'!AL14) ->  | AJ45: =IF('Biologia Geologia'!AM14="","",'Biologia Geologia'!AM14) ->  | AK45: =IF('Biologia Geologia'!AN14="","",'Biologia Geologia'!AN14) ->  | AL45: =IF('Biologia Geologia'!AO14="","",'Biologia Geologia'!AO14) ->  | AM45: =IF('Biologia Geologia'!AP14="","",'Biologia Geologia'!AP14) -> 
D46: Criterio Evaluación 3.6 | E46: =IF('Biologia Geologia'!H15="","",'Biologia Geologia'!H15) ->  | F46: =IF('Biologia Geologia'!I15="","",'Biologia Geologia'!I15) ->  | G46: =IF('Biologia Geologia'!J15="","",'Biologia Geologia'!J15) ->  | H46: =IF('Biologia Geologia'!K15="","",'Biologia Geologia'!K15) ->  | I46: =IF('Biologia Geologia'!L15="","",'Biologia Geologia'!L15) ->  | J46: =IF('Biologia Geologia'!M15="","",'Biologia Geologia'!M15) ->  | K46: =IF('Biologia Geologia'!N15="","",'Biologia Geologia'!N15) ->  | L46: =IF('Biologia Geologia'!O15="","",'Biologia Geologia'!O15) ->  | M46: =IF('Biologia Geologia'!P15="","",'Biologia Geologia'!P15) ->  | N46: =IF('Biologia Geologia'!Q15="","",'Biologia Geologia'!Q15) ->  | O46: =IF('Biologia Geologia'!R15="","",'Biologia Geologia'!R15) ->  | P46: =IF('Biologia Geologia'!S15="","",'Biologia Geologia'!S15) ->  | Q46: =IF('Biologia Geologia'!T15="","",'Biologia Geologia'!T15) ->  | R46: =IF('Biologia Geologia'!U15="","",'Biologia Geologia'!U15) ->  | S46: =IF('Biologia Geologia'!V15="","",'Biologia Geologia'!V15) ->  | T46: =IF('Biologia Geologia'!W15="","",'Biologia Geologia'!W15) ->  | U46: =IF('Biologia Geologia'!X15="","",'Biologia Geologia'!X15) ->  | V46: =IF('Biologia Geologia'!Y15="","",'Biologia Geologia'!Y15) ->  | W46: =IF('Biologia Geologia'!Z15="","",'Biologia Geologia'!Z15) ->  | X46: =IF('Biologia Geologia'!AA15="","",'Biologia Geologia'!AA15) ->  | Y46: =IF('Biologia Geologia'!AB15="","",'Biologia Geologia'!AB15) ->  | Z46: =IF('Biologia Geologia'!AC15="","",'Biologia Geologia'!AC15) ->  | AA46: =IF('Biologia Geologia'!AD15="","",'Biologia Geologia'!AD15) ->  | AB46: =IF('Biologia Geologia'!AE15="","",'Biologia Geologia'!AE15) ->  | AC46: =IF('Biologia Geologia'!AF15="","",'Biologia Geologia'!AF15) ->  | AD46: =IF('Biologia Geologia'!AG15="","",'Biologia Geologia'!AG15) ->  | AE46: =IF('Biologia Geologia'!AH15="","",'Biologia Geologia'!AH15) ->  | AF46: =IF('Biologia Geologia'!AI15="","",'Biologia Geologia'!AI15) ->  | AG46: =IF('Biologia Geologia'!AJ15="","",'Biologia Geologia'!AJ15) ->  | AH46: =IF('Biologia Geologia'!AK15="","",'Biologia Geologia'!AK15) ->  | AI46: =IF('Biologia Geologia'!AL15="","",'Biologia Geologia'!AL15) ->  | AJ46: =IF('Biologia Geologia'!AM15="","",'Biologia Geologia'!AM15) ->  | AK46: =IF('Biologia Geologia'!AN15="","",'Biologia Geologia'!AN15) ->  | AL46: =IF('Biologia Geologia'!AO15="","",'Biologia Geologia'!AO15) ->  | AM46: =IF('Biologia Geologia'!AP15="","",'Biologia Geologia'!AP15) -> 
C47: Comp. Esp. 4 | D47: Criterio Evaluación 4.1 | E47: =IF('Biologia Geologia'!H16="","",'Biologia Geologia'!H16) ->  | F47: =IF('Biologia Geologia'!I16="","",'Biologia Geologia'!I16) ->  | G47: =IF('Biologia Geologia'!J16="","",'Biologia Geologia'!J16) ->  | H47: =IF('Biologia Geologia'!K16="","",'Biologia Geologia'!K16) ->  | I47: =IF('Biologia Geologia'!L16="","",'Biologia Geologia'!L16) ->  | J47: =IF('Biologia Geologia'!M16="","",'Biologia Geologia'!M16) ->  | K47: =IF('Biologia Geologia'!N16="","",'Biologia Geologia'!N16) ->  | L47: =IF('Biologia Geologia'!O16="","",'Biologia Geologia'!O16) ->  | M47: =IF('Biologia Geologia'!P16="","",'Biologia Geologia'!P16) ->  | N47: =IF('Biologia Geologia'!Q16="","",'Biologia Geologia'!Q16) ->  | O47: =IF('Biologia Geologia'!R16="","",'Biologia Geologia'!R16) ->  | P47: =IF('Biologia Geologia'!S16="","",'Biologia Geologia'!S16) ->  | Q47: =IF('Biologia Geologia'!T16="","",'Biologia Geologia'!T16) ->  | R47: =IF('Biologia Geologia'!U16="","",'Biologia Geologia'!U16) ->  | S47: =IF('Biologia Geologia'!V16="","",'Biologia Geologia'!V16) ->  | T47: =IF('Biologia Geologia'!W16="","",'Biologia Geologia'!W16) ->  | U47: =IF('Biologia Geologia'!X16="","",'Biologia Geologia'!X16) ->  | V47: =IF('Biologia Geologia'!Y16="","",'Biologia Geologia'!Y16) ->  | W47: =IF('Biologia Geologia'!Z16="","",'Biologia Geologia'!Z16) ->  | X47: =IF('Biologia Geologia'!AA16="","",'Biologia Geologia'!AA16) ->  | Y47: =IF('Biologia Geologia'!AB16="","",'Biologia Geologia'!AB16) ->  | Z47: =IF('Biologia Geologia'!AC16="","",'Biologia Geologia'!AC16) ->  | AA47: =IF('Biologia Geologia'!AD16="","",'Biologia Geologia'!AD16) ->  | AB47: =IF('Biologia Geologia'!AE16="","",'Biologia Geologia'!AE16) ->  | AC47: =IF('Biologia Geologia'!AF16="","",'Biologia Geologia'!AF16) ->  | AD47: =IF('Biologia Geologia'!AG16="","",'Biologia Geologia'!AG16) ->  | AE47: =IF('Biologia Geologia'!AH16="","",'Biologia Geologia'!AH16) ->  | AF47: =IF('Biologia Geologia'!AI16="","",'Biologia Geologia'!AI16) ->  | AG47: =IF('Biologia Geologia'!AJ16="","",'Biologia Geologia'!AJ16) ->  | AH47: =IF('Biologia Geologia'!AK16="","",'Biologia Geologia'!AK16) ->  | AI47: =IF('Biologia Geologia'!AL16="","",'Biologia Geologia'!AL16) ->  | AJ47: =IF('Biologia Geologia'!AM16="","",'Biologia Geologia'!AM16) ->  | AK47: =IF('Biologia Geologia'!AN16="","",'Biologia Geologia'!AN16) ->  | AL47: =IF('Biologia Geologia'!AO16="","",'Biologia Geologia'!AO16) ->  | AM47: =IF('Biologia Geologia'!AP16="","",'Biologia Geologia'!AP16) -> 
D48: Criterio Evaluación 4.2 | E48: =IF('Biologia Geologia'!H17="","",'Biologia Geologia'!H17) ->  | F48: =IF('Biologia Geologia'!I17="","",'Biologia Geologia'!I17) ->  | G48: =IF('Biologia Geologia'!J17="","",'Biologia Geologia'!J17) ->  | H48: =IF('Biologia Geologia'!K17="","",'Biologia Geologia'!K17) ->  | I48: =IF('Biologia Geologia'!L17="","",'Biologia Geologia'!L17) ->  | J48: =IF('Biologia Geologia'!M17="","",'Biologia Geologia'!M17) ->  | K48: =IF('Biologia Geologia'!N17="","",'Biologia Geologia'!N17) ->  | L48: =IF('Biologia Geologia'!O17="","",'Biologia Geologia'!O17) ->  | M48: =IF('Biologia Geologia'!P17="","",'Biologia Geologia'!P17) ->  | N48: =IF('Biologia Geologia'!Q17="","",'Biologia Geologia'!Q17) ->  | O48: =IF('Biologia Geologia'!R17="","",'Biologia Geologia'!R17) ->  | P48: =IF('Biologia Geologia'!S17="","",'Biologia Geologia'!S17) ->  | Q48: =IF('Biologia Geologia'!T17="","",'Biologia Geologia'!T17) ->  | R48: =IF('Biologia Geologia'!U17="","",'Biologia Geologia'!U17) ->  | S48: =IF('Biologia Geologia'!V17="","",'Biologia Geologia'!V17) ->  | T48: =IF('Biologia Geologia'!W17="","",'Biologia Geologia'!W17) ->  | U48: =IF('Biologia Geologia'!X17="","",'Biologia Geologia'!X17) ->  | V48: =IF('Biologia Geologia'!Y17="","",'Biologia Geologia'!Y17) ->  | W48: =IF('Biologia Geologia'!Z17="","",'Biologia Geologia'!Z17) ->  | X48: =IF('Biologia Geologia'!AA17="","",'Biologia Geologia'!AA17) ->  | Y48: =IF('Biologia Geologia'!AB17="","",'Biologia Geologia'!AB17) ->  | Z48: =IF('Biologia Geologia'!AC17="","",'Biologia Geologia'!AC17) ->  | AA48: =IF('Biologia Geologia'!AD17="","",'Biologia Geologia'!AD17) ->  | AB48: =IF('Biologia Geologia'!AE17="","",'Biologia Geologia'!AE17) ->  | AC48: =IF('Biologia Geologia'!AF17="","",'Biologia Geologia'!AF17) ->  | AD48: =IF('Biologia Geologia'!AG17="","",'Biologia Geologia'!AG17) ->  | AE48: =IF('Biologia Geologia'!AH17="","",'Biologia Geologia'!AH17) ->  | AF48: =IF('Biologia Geologia'!AI17="","",'Biologia Geologia'!AI17) ->  | AG48: =IF('Biologia Geologia'!AJ17="","",'Biologia Geologia'!AJ17) ->  | AH48: =IF('Biologia Geologia'!AK17="","",'Biologia Geologia'!AK17) ->  | AI48: =IF('Biologia Geologia'!AL17="","",'Biologia Geologia'!AL17) ->  | AJ48: =IF('Biologia Geologia'!AM17="","",'Biologia Geologia'!AM17) ->  | AK48: =IF('Biologia Geologia'!AN17="","",'Biologia Geologia'!AN17) ->  | AL48: =IF('Biologia Geologia'!AO17="","",'Biologia Geologia'!AO17) ->  | AM48: =IF('Biologia Geologia'!AP17="","",'Biologia Geologia'!AP17) -> 
C49: Comp. Esp. 5 | D49: Criterio Evaluación 5.1 | E49: =IF('Biologia Geologia'!H18="","",'Biologia Geologia'!H18) ->  | F49: =IF('Biologia Geologia'!I18="","",'Biologia Geologia'!I18) ->  | G49: =IF('Biologia Geologia'!J18="","",'Biologia Geologia'!J18) ->  | H49: =IF('Biologia Geologia'!K18="","",'Biologia Geologia'!K18) ->  | I49: =IF('Biologia Geologia'!L18="","",'Biologia Geologia'!L18) ->  | J49: =IF('Biologia Geologia'!M18="","",'Biologia Geologia'!M18) ->  | K49: =IF('Biologia Geologia'!N18="","",'Biologia Geologia'!N18) ->  | L49: =IF('Biologia Geologia'!O18="","",'Biologia Geologia'!O18) ->  | M49: =IF('Biologia Geologia'!P18="","",'Biologia Geologia'!P18) ->  | N49: =IF('Biologia Geologia'!Q18="","",'Biologia Geologia'!Q18) ->  | O49: =IF('Biologia Geologia'!R18="","",'Biologia Geologia'!R18) ->  | P49: =IF('Biologia Geologia'!S18="","",'Biologia Geologia'!S18) ->  | Q49: =IF('Biologia Geologia'!T18="","",'Biologia Geologia'!T18) ->  | R49: =IF('Biologia Geologia'!U18="","",'Biologia Geologia'!U18) ->  | S49: =IF('Biologia Geologia'!V18="","",'Biologia Geologia'!V18) ->  | T49: =IF('Biologia Geologia'!W18="","",'Biologia Geologia'!W18) ->  | U49: =IF('Biologia Geologia'!X18="","",'Biologia Geologia'!X18) ->  | V49: =IF('Biologia Geologia'!Y18="","",'Biologia Geologia'!Y18) ->  | W49: =IF('Biologia Geologia'!Z18="","",'Biologia Geologia'!Z18) ->  | X49: =IF('Biologia Geologia'!AA18="","",'Biologia Geologia'!AA18) ->  | Y49: =IF('Biologia Geologia'!AB18="","",'Biologia Geologia'!AB18) ->  | Z49: =IF('Biologia Geologia'!AC18="","",'Biologia Geologia'!AC18) ->  | AA49: =IF('Biologia Geologia'!AD18="","",'Biologia Geologia'!AD18) ->  | AB49: =IF('Biologia Geologia'!AE18="","",'Biologia Geologia'!AE18) ->  | AC49: =IF('Biologia Geologia'!AF18="","",'Biologia Geologia'!AF18) ->  | AD49: =IF('Biologia Geologia'!AG18="","",'Biologia Geologia'!AG18) ->  | AE49: =IF('Biologia Geologia'!AH18="","",'Biologia Geologia'!AH18) ->  | AF49: =IF('Biologia Geologia'!AI18="","",'Biologia Geologia'!AI18) ->  | AG49: =IF('Biologia Geologia'!AJ18="","",'Biologia Geologia'!AJ18) ->  | AH49: =IF('Biologia Geologia'!AK18="","",'Biologia Geologia'!AK18) ->  | AI49: =IF('Biologia Geologia'!AL18="","",'Biologia Geologia'!AL18) ->  | AJ49: =IF('Biologia Geologia'!AM18="","",'Biologia Geologia'!AM18) ->  | AK49: =IF('Biologia Geologia'!AN18="","",'Biologia Geologia'!AN18) ->  | AL49: =IF('Biologia Geologia'!AO18="","",'Biologia Geologia'!AO18) ->  | AM49: =IF('Biologia Geologia'!AP18="","",'Biologia Geologia'!AP18) -> 
D50: Criterio Evaluación 5.2 | E50: =IF('Biologia Geologia'!H19="","",'Biologia Geologia'!H19) ->  | F50: =IF('Biologia Geologia'!I19="","",'Biologia Geologia'!I19) ->  | G50: =IF('Biologia Geologia'!J19="","",'Biologia Geologia'!J19) ->  | H50: =IF('Biologia Geologia'!K19="","",'Biologia Geologia'!K19) ->  | I50: =IF('Biologia Geologia'!L19="","",'Biologia Geologia'!L19) ->  | J50: =IF('Biologia Geologia'!M19="","",'Biologia Geologia'!M19) ->  | K50: =IF('Biologia Geologia'!N19="","",'Biologia Geologia'!N19) ->  | L50: =IF('Biologia Geologia'!O19="","",'Biologia Geologia'!O19) ->  | M50: =IF('Biologia Geologia'!P19="","",'Biologia Geologia'!P19) ->  | N50: =IF('Biologia Geologia'!Q19="","",'Biologia Geologia'!Q19) ->  | O50: =IF('Biologia Geologia'!R19="","",'Biologia Geologia'!R19) ->  | P50: =IF('Biologia Geologia'!S19="","",'Biologia Geologia'!S19) ->  | Q50: =IF('Biologia Geologia'!T19="","",'Biologia Geologia'!T19) ->  | R50: =IF('Biologia Geologia'!U19="","",'Biologia Geologia'!U19) ->  | S50: =IF('Biologia Geologia'!V19="","",'Biologia Geologia'!V19) ->  | T50: =IF('Biologia Geologia'!W19="","",'Biologia Geologia'!W19) ->  | U50: =IF('Biologia Geologia'!X19="","",'Biologia Geologia'!X19) ->  | V50: =IF('Biologia Geologia'!Y19="","",'Biologia Geologia'!Y19) ->  | W50: =IF('Biologia Geologia'!Z19="","",'Biologia Geologia'!Z19) ->  | X50: =IF('Biologia Geologia'!AA19="","",'Biologia Geologia'!AA19) ->  | Y50: =IF('Biologia Geologia'!AB19="","",'Biologia Geologia'!AB19) ->  | Z50: =IF('Biologia Geologia'!AC19="","",'Biologia Geologia'!AC19) ->  | AA50: =IF('Biologia Geologia'!AD19="","",'Biologia Geologia'!AD19) ->  | AB50: =IF('Biologia Geologia'!AE19="","",'Biologia Geologia'!AE19) ->  | AC50: =IF('Biologia Geologia'!AF19="","",'Biologia Geologia'!AF19) ->  | AD50: =IF('Biologia Geologia'!AG19="","",'Biologia Geologia'!AG19) ->  | AE50: =IF('Biologia Geologia'!AH19="","",'Biologia Geologia'!AH19) ->  | AF50: =IF('Biologia Geologia'!AI19="","",'Biologia Geologia'!AI19) ->  | AG50: =IF('Biologia Geologia'!AJ19="","",'Biologia Geologia'!AJ19) ->  | AH50: =IF('Biologia Geologia'!AK19="","",'Biologia Geologia'!AK19) ->  | AI50: =IF('Biologia Geologia'!AL19="","",'Biologia Geologia'!AL19) ->  | AJ50: =IF('Biologia Geologia'!AM19="","",'Biologia Geologia'!AM19) ->  | AK50: =IF('Biologia Geologia'!AN19="","",'Biologia Geologia'!AN19) ->  | AL50: =IF('Biologia Geologia'!AO19="","",'Biologia Geologia'!AO19) ->  | AM50: =IF('Biologia Geologia'!AP19="","",'Biologia Geologia'!AP19) -> 
C51: Comp. Esp. 6 | D51: Criterio Evaluación 6.1 | E51: =IF('Biologia Geologia'!H20="","",'Biologia Geologia'!H20) ->  | F51: =IF('Biologia Geologia'!I20="","",'Biologia Geologia'!I20) ->  | G51: =IF('Biologia Geologia'!J20="","",'Biologia Geologia'!J20) ->  | H51: =IF('Biologia Geologia'!K20="","",'Biologia Geologia'!K20) ->  | I51: =IF('Biologia Geologia'!L20="","",'Biologia Geologia'!L20) ->  | J51: =IF('Biologia Geologia'!M20="","",'Biologia Geologia'!M20) ->  | K51: =IF('Biologia Geologia'!N20="","",'Biologia Geologia'!N20) ->  | L51: =IF('Biologia Geologia'!O20="","",'Biologia Geologia'!O20) ->  | M51: =IF('Biologia Geologia'!P20="","",'Biologia Geologia'!P20) ->  | N51: =IF('Biologia Geologia'!Q20="","",'Biologia Geologia'!Q20) ->  | O51: =IF('Biologia Geologia'!R20="","",'Biologia Geologia'!R20) ->  | P51: =IF('Biologia Geologia'!S20="","",'Biologia Geologia'!S20) ->  | Q51: =IF('Biologia Geologia'!T20="","",'Biologia Geologia'!T20) ->  | R51: =IF('Biologia Geologia'!U20="","",'Biologia Geologia'!U20) ->  | S51: =IF('Biologia Geologia'!V20="","",'Biologia Geologia'!V20) ->  | T51: =IF('Biologia Geologia'!W20="","",'Biologia Geologia'!W20) ->  | U51: =IF('Biologia Geologia'!X20="","",'Biologia Geologia'!X20) ->  | V51: =IF('Biologia Geologia'!Y20="","",'Biologia Geologia'!Y20) ->  | W51: =IF('Biologia Geologia'!Z20="","",'Biologia Geologia'!Z20) ->  | X51: =IF('Biologia Geologia'!AA20="","",'Biologia Geologia'!AA20) ->  | Y51: =IF('Biologia Geologia'!AB20="","",'Biologia Geologia'!AB20) ->  | Z51: =IF('Biologia Geologia'!AC20="","",'Biologia Geologia'!AC20) ->  | AA51: =IF('Biologia Geologia'!AD20="","",'Biologia Geologia'!AD20) ->  | AB51: =IF('Biologia Geologia'!AE20="","",'Biologia Geologia'!AE20) ->  | AC51: =IF('Biologia Geologia'!AF20="","",'Biologia Geologia'!AF20) ->  | AD51: =IF('Biologia Geologia'!AG20="","",'Biologia Geologia'!AG20) ->  | AE51: =IF('Biologia Geologia'!AH20="","",'Biologia Geologia'!AH20) ->  | AF51: =IF('Biologia Geologia'!AI20="","",'Biologia Geologia'!AI20) ->  | AG51: =IF('Biologia Geologia'!AJ20="","",'Biologia Geologia'!AJ20) ->  | AH51: =IF('Biologia Geologia'!AK20="","",'Biologia Geologia'!AK20) ->  | AI51: =IF('Biologia Geologia'!AL20="","",'Biologia Geologia'!AL20) ->  | AJ51: =IF('Biologia Geologia'!AM20="","",'Biologia Geologia'!AM20) ->  | AK51: =IF('Biologia Geologia'!AN20="","",'Biologia Geologia'!AN20) ->  | AL51: =IF('Biologia Geologia'!AO20="","",'Biologia Geologia'!AO20) ->  | AM51: =IF('Biologia Geologia'!AP20="","",'Biologia Geologia'!AP20) -> 
D52: Criterio Evaluación 6.2 | E52: =IF('Biologia Geologia'!H21="","",'Biologia Geologia'!H21) ->  | F52: =IF('Biologia Geologia'!I21="","",'Biologia Geologia'!I21) ->  | G52: =IF('Biologia Geologia'!J21="","",'Biologia Geologia'!J21) ->  | H52: =IF('Biologia Geologia'!K21="","",'Biologia Geologia'!K21) ->  | I52: =IF('Biologia Geologia'!L21="","",'Biologia Geologia'!L21) ->  | J52: =IF('Biologia Geologia'!M21="","",'Biologia Geologia'!M21) ->  | K52: =IF('Biologia Geologia'!N21="","",'Biologia Geologia'!N21) ->  | L52: =IF('Biologia Geologia'!O21="","",'Biologia Geologia'!O21) ->  | M52: =IF('Biologia Geologia'!P21="","",'Biologia Geologia'!P21) ->  | N52: =IF('Biologia Geologia'!Q21="","",'Biologia Geologia'!Q21) ->  | O52: =IF('Biologia Geologia'!R21="","",'Biologia Geologia'!R21) ->  | P52: =IF('Biologia Geologia'!S21="","",'Biologia Geologia'!S21) ->  | Q52: =IF('Biologia Geologia'!T21="","",'Biologia Geologia'!T21) ->  | R52: =IF('Biologia Geologia'!U21="","",'Biologia Geologia'!U21) ->  | S52: =IF('Biologia Geologia'!V21="","",'Biologia Geologia'!V21) ->  | T52: =IF('Biologia Geologia'!W21="","",'Biologia Geologia'!W21) ->  | U52: =IF('Biologia Geologia'!X21="","",'Biologia Geologia'!X21) ->  | V52: =IF('Biologia Geologia'!Y21="","",'Biologia Geologia'!Y21) ->  | W52: =IF('Biologia Geologia'!Z21="","",'Biologia Geologia'!Z21) ->  | X52: =IF('Biologia Geologia'!AA21="","",'Biologia Geologia'!AA21) ->  | Y52: =IF('Biologia Geologia'!AB21="","",'Biologia Geologia'!AB21) ->  | Z52: =IF('Biologia Geologia'!AC21="","",'Biologia Geologia'!AC21) ->  | AA52: =IF('Biologia Geologia'!AD21="","",'Biologia Geologia'!AD21) ->  | AB52: =IF('Biologia Geologia'!AE21="","",'Biologia Geologia'!AE21) ->  | AC52: =IF('Biologia Geologia'!AF21="","",'Biologia Geologia'!AF21) ->  | AD52: =IF('Biologia Geologia'!AG21="","",'Biologia Geologia'!AG21) ->  | AE52: =IF('Biologia Geologia'!AH21="","",'Biologia Geologia'!AH21) ->  | AF52: =IF('Biologia Geologia'!AI21="","",'Biologia Geologia'!AI21) ->  | AG52: =IF('Biologia Geologia'!AJ21="","",'Biologia Geologia'!AJ21) ->  | AH52: =IF('Biologia Geologia'!AK21="","",'Biologia Geologia'!AK21) ->  | AI52: =IF('Biologia Geologia'!AL21="","",'Biologia Geologia'!AL21) ->  | AJ52: =IF('Biologia Geologia'!AM21="","",'Biologia Geologia'!AM21) ->  | AK52: =IF('Biologia Geologia'!AN21="","",'Biologia Geologia'!AN21) ->  | AL52: =IF('Biologia Geologia'!AO21="","",'Biologia Geologia'!AO21) ->  | AM52: =IF('Biologia Geologia'!AP21="","",'Biologia Geologia'!AP21) -> 
D53: Criterio Evaluación 6.3 | E53: =IF('Biologia Geologia'!H22="","",'Biologia Geologia'!H22) ->  | F53: =IF('Biologia Geologia'!I22="","",'Biologia Geologia'!I22) ->  | G53: =IF('Biologia Geologia'!J22="","",'Biologia Geologia'!J22) ->  | H53: =IF('Biologia Geologia'!K22="","",'Biologia Geologia'!K22) ->  | I53: =IF('Biologia Geologia'!L22="","",'Biologia Geologia'!L22) ->  | J53: =IF('Biologia Geologia'!M22="","",'Biologia Geologia'!M22) ->  | K53: =IF('Biologia Geologia'!N22="","",'Biologia Geologia'!N22) ->  | L53: =IF('Biologia Geologia'!O22="","",'Biologia Geologia'!O22) ->  | M53: =IF('Biologia Geologia'!P22="","",'Biologia Geologia'!P22) ->  | N53: =IF('Biologia Geologia'!Q22="","",'Biologia Geologia'!Q22) ->  | O53: =IF('Biologia Geologia'!R22="","",'Biologia Geologia'!R22) ->  | P53: =IF('Biologia Geologia'!S22="","",'Biologia Geologia'!S22) ->  | Q53: =IF('Biologia Geologia'!T22="","",'Biologia Geologia'!T22) ->  | R53: =IF('Biologia Geologia'!U22="","",'Biologia Geologia'!U22) ->  | S53: =IF('Biologia Geologia'!V22="","",'Biologia Geologia'!V22) ->  | T53: =IF('Biologia Geologia'!W22="","",'Biologia Geologia'!W22) ->  | U53: =IF('Biologia Geologia'!X22="","",'Biologia Geologia'!X22) ->  | V53: =IF('Biologia Geologia'!Y22="","",'Biologia Geologia'!Y22) ->  | W53: =IF('Biologia Geologia'!Z22="","",'Biologia Geologia'!Z22) ->  | X53: =IF('Biologia Geologia'!AA22="","",'Biologia Geologia'!AA22) ->  | Y53: =IF('Biologia Geologia'!AB22="","",'Biologia Geologia'!AB22) ->  | Z53: =IF('Biologia Geologia'!AC22="","",'Biologia Geologia'!AC22) ->  | AA53: =IF('Biologia Geologia'!AD22="","",'Biologia Geologia'!AD22) ->  | AB53: =IF('Biologia Geologia'!AE22="","",'Biologia Geologia'!AE22) ->  | AC53: =IF('Biologia Geologia'!AF22="","",'Biologia Geologia'!AF22) ->  | AD53: =IF('Biologia Geologia'!AG22="","",'Biologia Geologia'!AG22) ->  | AE53: =IF('Biologia Geologia'!AH22="","",'Biologia Geologia'!AH22) ->  | AF53: =IF('Biologia Geologia'!AI22="","",'Biologia Geologia'!AI22) ->  | AG53: =IF('Biologia Geologia'!AJ22="","",'Biologia Geologia'!AJ22) ->  | AH53: =IF('Biologia Geologia'!AK22="","",'Biologia Geologia'!AK22) ->  | AI53: =IF('Biologia Geologia'!AL22="","",'Biologia Geologia'!AL22) ->  | AJ53: =IF('Biologia Geologia'!AM22="","",'Biologia Geologia'!AM22) ->  | AK53: =IF('Biologia Geologia'!AN22="","",'Biologia Geologia'!AN22) ->  | AL53: =IF('Biologia Geologia'!AO22="","",'Biologia Geologia'!AO22) ->  | AM53: =IF('Biologia Geologia'!AP22="","",'Biologia Geologia'!AP22) -> 
B54: Cultura Científica | C54: Comp. Esp. 1 | D54: Criterio Evaluación 1.1 | E54: =IF('Cultura Cientifica'!H4="","",'Cultura Cientifica'!H4) ->  | F54: =IF('Cultura Cientifica'!I4="","",'Cultura Cientifica'!I4) ->  | G54: =IF('Cultura Cientifica'!J4="","",'Cultura Cientifica'!J4) ->  | H54: =IF('Cultura Cientifica'!K4="","",'Cultura Cientifica'!K4) ->  | I54: =IF('Cultura Cientifica'!L4="","",'Cultura Cientifica'!L4) ->  | J54: =IF('Cultura Cientifica'!M4="","",'Cultura Cientifica'!M4) ->  | K54: =IF('Cultura Cientifica'!N4="","",'Cultura Cientifica'!N4) ->  | L54: =IF('Cultura Cientifica'!O4="","",'Cultura Cientifica'!O4) ->  | M54: =IF('Cultura Cientifica'!P4="","",'Cultura Cientifica'!P4) ->  | N54: =IF('Cultura Cientifica'!Q4="","",'Cultura Cientifica'!Q4) ->  | O54: =IF('Cultura Cientifica'!R4="","",'Cultura Cientifica'!R4) ->  | P54: =IF('Cultura Cientifica'!S4="","",'Cultura Cientifica'!S4) ->  | Q54: =IF('Cultura Cientifica'!T4="","",'Cultura Cientifica'!T4) ->  | R54: =IF('Cultura Cientifica'!U4="","",'Cultura Cientifica'!U4) ->  | S54: =IF('Cultura Cientifica'!V4="","",'Cultura Cientifica'!V4) ->  | T54: =IF('Cultura Cientifica'!W4="","",'Cultura Cientifica'!W4) ->  | U54: =IF('Cultura Cientifica'!X4="","",'Cultura Cientifica'!X4) ->  | V54: =IF('Cultura Cientifica'!Y4="","",'Cultura Cientifica'!Y4) ->  | W54: =IF('Cultura Cientifica'!Z4="","",'Cultura Cientifica'!Z4) ->  | X54: =IF('Cultura Cientifica'!AA4="","",'Cultura Cientifica'!AA4) ->  | Y54: =IF('Cultura Cientifica'!AB4="","",'Cultura Cientifica'!AB4) ->  | Z54: =IF('Cultura Cientifica'!AC4="","",'Cultura Cientifica'!AC4) ->  | AA54: =IF('Cultura Cientifica'!AD4="","",'Cultura Cientifica'!AD4) ->  | AB54: =IF('Cultura Cientifica'!AE4="","",'Cultura Cientifica'!AE4) ->  | AC54: =IF('Cultura Cientifica'!AF4="","",'Cultura Cientifica'!AF4) ->  | AD54: =IF('Cultura Cientifica'!AG4="","",'Cultura Cientifica'!AG4) ->  | AE54: =IF('Cultura Cientifica'!AH4="","",'Cultura Cientifica'!AH4) ->  | AF54: =IF('Cultura Cientifica'!AI4="","",'Cultura Cientifica'!AI4) ->  | AG54: =IF('Cultura Cientifica'!AJ4="","",'Cultura Cientifica'!AJ4) ->  | AH54: =IF('Cultura Cientifica'!AK4="","",'Cultura Cientifica'!AK4) ->  | AI54: =IF('Cultura Cientifica'!AL4="","",'Cultura Cientifica'!AL4) ->  | AJ54: =IF('Cultura Cientifica'!AM4="","",'Cultura Cientifica'!AM4) ->  | AK54: =IF('Cultura Cientifica'!AN4="","",'Cultura Cientifica'!AN4) ->  | AL54: =IF('Cultura Cientifica'!AO4="","",'Cultura Cientifica'!AO4) ->  | AM54: =IF('Cultura Cientifica'!AP4="","",'Cultura Cientifica'!AP4) -> 
D55: Criterio Evaluación 1.2 | E55: =IF('Cultura Cientifica'!H5="","",'Cultura Cientifica'!H5) ->  | F55: =IF('Cultura Cientifica'!I5="","",'Cultura Cientifica'!I5) ->  | G55: =IF('Cultura Cientifica'!J5="","",'Cultura Cientifica'!J5) ->  | H55: =IF('Cultura Cientifica'!K5="","",'Cultura Cientifica'!K5) ->  | I55: =IF('Cultura Cientifica'!L5="","",'Cultura Cientifica'!L5) ->  | J55: =IF('Cultura Cientifica'!M5="","",'Cultura Cientifica'!M5) ->  | K55: =IF('Cultura Cientifica'!N5="","",'Cultura Cientifica'!N5) ->  | L55: =IF('Cultura Cientifica'!O5="","",'Cultura Cientifica'!O5) ->  | M55: =IF('Cultura Cientifica'!P5="","",'Cultura Cientifica'!P5) ->  | N55: =IF('Cultura Cientifica'!Q5="","",'Cultura Cientifica'!Q5) ->  | O55: =IF('Cultura Cientifica'!R5="","",'Cultura Cientifica'!R5) ->  | P55: =IF('Cultura Cientifica'!S5="","",'Cultura Cientifica'!S5) ->  | Q55: =IF('Cultura Cientifica'!T5="","",'Cultura Cientifica'!T5) ->  | R55: =IF('Cultura Cientifica'!U5="","",'Cultura Cientifica'!U5) ->  | S55: =IF('Cultura Cientifica'!V5="","",'Cultura Cientifica'!V5) ->  | T55: =IF('Cultura Cientifica'!W5="","",'Cultura Cientifica'!W5) ->  | U55: =IF('Cultura Cientifica'!X5="","",'Cultura Cientifica'!X5) ->  | V55: =IF('Cultura Cientifica'!Y5="","",'Cultura Cientifica'!Y5) ->  | W55: =IF('Cultura Cientifica'!Z5="","",'Cultura Cientifica'!Z5) ->  | X55: =IF('Cultura Cientifica'!AA5="","",'Cultura Cientifica'!AA5) ->  | Y55: =IF('Cultura Cientifica'!AB5="","",'Cultura Cientifica'!AB5) ->  | Z55: =IF('Cultura Cientifica'!AC5="","",'Cultura Cientifica'!AC5) ->  | AA55: =IF('Cultura Cientifica'!AD5="","",'Cultura Cientifica'!AD5) ->  | AB55: =IF('Cultura Cientifica'!AE5="","",'Cultura Cientifica'!AE5) ->  | AC55: =IF('Cultura Cientifica'!AF5="","",'Cultura Cientifica'!AF5) ->  | AD55: =IF('Cultura Cientifica'!AG5="","",'Cultura Cientifica'!AG5) ->  | AE55: =IF('Cultura Cientifica'!AH5="","",'Cultura Cientifica'!AH5) ->  | AF55: =IF('Cultura Cientifica'!AI5="","",'Cultura Cientifica'!AI5) ->  | AG55: =IF('Cultura Cientifica'!AJ5="","",'Cultura Cientifica'!AJ5) ->  | AH55: =IF('Cultura Cientifica'!AK5="","",'Cultura Cientifica'!AK5) ->  | AI55: =IF('Cultura Cientifica'!AL5="","",'Cultura Cientifica'!AL5) ->  | AJ55: =IF('Cultura Cientifica'!AM5="","",'Cultura Cientifica'!AM5) ->  | AK55: =IF('Cultura Cientifica'!AN5="","",'Cultura Cientifica'!AN5) ->  | AL55: =IF('Cultura Cientifica'!AO5="","",'Cultura Cientifica'!AO5) ->  | AM55: =IF('Cultura Cientifica'!AP5="","",'Cultura Cientifica'!AP5) -> 
C56: Comp. Esp. 2 | D56: Criterio Evaluación 2.1 | E56: =IF('Cultura Cientifica'!H6="","",'Cultura Cientifica'!H6) ->  | F56: =IF('Cultura Cientifica'!I6="","",'Cultura Cientifica'!I6) ->  | G56: =IF('Cultura Cientifica'!J6="","",'Cultura Cientifica'!J6) ->  | H56: =IF('Cultura Cientifica'!K6="","",'Cultura Cientifica'!K6) ->  | I56: =IF('Cultura Cientifica'!L6="","",'Cultura Cientifica'!L6) ->  | J56: =IF('Cultura Cientifica'!M6="","",'Cultura Cientifica'!M6) ->  | K56: =IF('Cultura Cientifica'!N6="","",'Cultura Cientifica'!N6) ->  | L56: =IF('Cultura Cientifica'!O6="","",'Cultura Cientifica'!O6) ->  | M56: =IF('Cultura Cientifica'!P6="","",'Cultura Cientifica'!P6) ->  | N56: =IF('Cultura Cientifica'!Q6="","",'Cultura Cientifica'!Q6) ->  | O56: =IF('Cultura Cientifica'!R6="","",'Cultura Cientifica'!R6) ->  | P56: =IF('Cultura Cientifica'!S6="","",'Cultura Cientifica'!S6) ->  | Q56: =IF('Cultura Cientifica'!T6="","",'Cultura Cientifica'!T6) ->  | R56: =IF('Cultura Cientifica'!U6="","",'Cultura Cientifica'!U6) ->  | S56: =IF('Cultura Cientifica'!V6="","",'Cultura Cientifica'!V6) ->  | T56: =IF('Cultura Cientifica'!W6="","",'Cultura Cientifica'!W6) ->  | U56: =IF('Cultura Cientifica'!X6="","",'Cultura Cientifica'!X6) ->  | V56: =IF('Cultura Cientifica'!Y6="","",'Cultura Cientifica'!Y6) ->  | W56: =IF('Cultura Cientifica'!Z6="","",'Cultura Cientifica'!Z6) ->  | X56: =IF('Cultura Cientifica'!AA6="","",'Cultura Cientifica'!AA6) ->  | Y56: =IF('Cultura Cientifica'!AB6="","",'Cultura Cientifica'!AB6) ->  | Z56: =IF('Cultura Cientifica'!AC6="","",'Cultura Cientifica'!AC6) ->  | AA56: =IF('Cultura Cientifica'!AD6="","",'Cultura Cientifica'!AD6) ->  | AB56: =IF('Cultura Cientifica'!AE6="","",'Cultura Cientifica'!AE6) ->  | AC56: =IF('Cultura Cientifica'!AF6="","",'Cultura Cientifica'!AF6) ->  | AD56: =IF('Cultura Cientifica'!AG6="","",'Cultura Cientifica'!AG6) ->  | AE56: =IF('Cultura Cientifica'!AH6="","",'Cultura Cientifica'!AH6) ->  | AF56: =IF('Cultura Cientifica'!AI6="","",'Cultura Cientifica'!AI6) ->  | AG56: =IF('Cultura Cientifica'!AJ6="","",'Cultura Cientifica'!AJ6) ->  | AH56: =IF('Cultura Cientifica'!AK6="","",'Cultura Cientifica'!AK6) ->  | AI56: =IF('Cultura Cientifica'!AL6="","",'Cultura Cientifica'!AL6) ->  | AJ56: =IF('Cultura Cientifica'!AM6="","",'Cultura Cientifica'!AM6) ->  | AK56: =IF('Cultura Cientifica'!AN6="","",'Cultura Cientifica'!AN6) ->  | AL56: =IF('Cultura Cientifica'!AO6="","",'Cultura Cientifica'!AO6) ->  | AM56: =IF('Cultura Cientifica'!AP6="","",'Cultura Cientifica'!AP6) -> 
D57: Criterio Evaluación 2.2 | E57: =IF('Cultura Cientifica'!H7="","",'Cultura Cientifica'!H7) ->  | F57: =IF('Cultura Cientifica'!I7="","",'Cultura Cientifica'!I7) ->  | G57: =IF('Cultura Cientifica'!J7="","",'Cultura Cientifica'!J7) ->  | H57: =IF('Cultura Cientifica'!K7="","",'Cultura Cientifica'!K7) ->  | I57: =IF('Cultura Cientifica'!L7="","",'Cultura Cientifica'!L7) ->  | J57: =IF('Cultura Cientifica'!M7="","",'Cultura Cientifica'!M7) ->  | K57: =IF('Cultura Cientifica'!N7="","",'Cultura Cientifica'!N7) ->  | L57: =IF('Cultura Cientifica'!O7="","",'Cultura Cientifica'!O7) ->  | M57: =IF('Cultura Cientifica'!P7="","",'Cultura Cientifica'!P7) ->  | N57: =IF('Cultura Cientifica'!Q7="","",'Cultura Cientifica'!Q7) ->  | O57: =IF('Cultura Cientifica'!R7="","",'Cultura Cientifica'!R7) ->  | P57: =IF('Cultura Cientifica'!S7="","",'Cultura Cientifica'!S7) ->  | Q57: =IF('Cultura Cientifica'!T7="","",'Cultura Cientifica'!T7) ->  | R57: =IF('Cultura Cientifica'!U7="","",'Cultura Cientifica'!U7) ->  | S57: =IF('Cultura Cientifica'!V7="","",'Cultura Cientifica'!V7) ->  | T57: =IF('Cultura Cientifica'!W7="","",'Cultura Cientifica'!W7) ->  | U57: =IF('Cultura Cientifica'!X7="","",'Cultura Cientifica'!X7) ->  | V57: =IF('Cultura Cientifica'!Y7="","",'Cultura Cientifica'!Y7) ->  | W57: =IF('Cultura Cientifica'!Z7="","",'Cultura Cientifica'!Z7) ->  | X57: =IF('Cultura Cientifica'!AA7="","",'Cultura Cientifica'!AA7) ->  | Y57: =IF('Cultura Cientifica'!AB7="","",'Cultura Cientifica'!AB7) ->  | Z57: =IF('Cultura Cientifica'!AC7="","",'Cultura Cientifica'!AC7) ->  | AA57: =IF('Cultura Cientifica'!AD7="","",'Cultura Cientifica'!AD7) ->  | AB57: =IF('Cultura Cientifica'!AE7="","",'Cultura Cientifica'!AE7) ->  | AC57: =IF('Cultura Cientifica'!AF7="","",'Cultura Cientifica'!AF7) ->  | AD57: =IF('Cultura Cientifica'!AG7="","",'Cultura Cientifica'!AG7) ->  | AE57: =IF('Cultura Cientifica'!AH7="","",'Cultura Cientifica'!AH7) ->  | AF57: =IF('Cultura Cientifica'!AI7="","",'Cultura Cientifica'!AI7) ->  | AG57: =IF('Cultura Cientifica'!AJ7="","",'Cultura Cientifica'!AJ7) ->  | AH57: =IF('Cultura Cientifica'!AK7="","",'Cultura Cientifica'!AK7) ->  | AI57: =IF('Cultura Cientifica'!AL7="","",'Cultura Cientifica'!AL7) ->  | AJ57: =IF('Cultura Cientifica'!AM7="","",'Cultura Cientifica'!AM7) ->  | AK57: =IF('Cultura Cientifica'!AN7="","",'Cultura Cientifica'!AN7) ->  | AL57: =IF('Cultura Cientifica'!AO7="","",'Cultura Cientifica'!AO7) ->  | AM57: =IF('Cultura Cientifica'!AP7="","",'Cultura Cientifica'!AP7) -> 
C58: Comp. Esp. 3 | D58: Criterio Evaluación 3.1 | E58: =IF('Cultura Cientifica'!H8="","",'Cultura Cientifica'!H8) ->  | F58: =IF('Cultura Cientifica'!I8="","",'Cultura Cientifica'!I8) ->  | G58: =IF('Cultura Cientifica'!J8="","",'Cultura Cientifica'!J8) ->  | H58: =IF('Cultura Cientifica'!K8="","",'Cultura Cientifica'!K8) ->  | I58: =IF('Cultura Cientifica'!L8="","",'Cultura Cientifica'!L8) ->  | J58: =IF('Cultura Cientifica'!M8="","",'Cultura Cientifica'!M8) ->  | K58: =IF('Cultura Cientifica'!N8="","",'Cultura Cientifica'!N8) ->  | L58: =IF('Cultura Cientifica'!O8="","",'Cultura Cientifica'!O8) ->  | M58: =IF('Cultura Cientifica'!P8="","",'Cultura Cientifica'!P8) ->  | N58: =IF('Cultura Cientifica'!Q8="","",'Cultura Cientifica'!Q8) ->  | O58: =IF('Cultura Cientifica'!R8="","",'Cultura Cientifica'!R8) ->  | P58: =IF('Cultura Cientifica'!S8="","",'Cultura Cientifica'!S8) ->  | Q58: =IF('Cultura Cientifica'!T8="","",'Cultura Cientifica'!T8) ->  | R58: =IF('Cultura Cientifica'!U8="","",'Cultura Cientifica'!U8) ->  | S58: =IF('Cultura Cientifica'!V8="","",'Cultura Cientifica'!V8) ->  | T58: =IF('Cultura Cientifica'!W8="","",'Cultura Cientifica'!W8) ->  | U58: =IF('Cultura Cientifica'!X8="","",'Cultura Cientifica'!X8) ->  | V58: =IF('Cultura Cientifica'!Y8="","",'Cultura Cientifica'!Y8) ->  | W58: =IF('Cultura Cientifica'!Z8="","",'Cultura Cientifica'!Z8) ->  | X58: =IF('Cultura Cientifica'!AA8="","",'Cultura Cientifica'!AA8) ->  | Y58: =IF('Cultura Cientifica'!AB8="","",'Cultura Cientifica'!AB8) ->  | Z58: =IF('Cultura Cientifica'!AC8="","",'Cultura Cientifica'!AC8) ->  | AA58: =IF('Cultura Cientifica'!AD8="","",'Cultura Cientifica'!AD8) ->  | AB58: =IF('Cultura Cientifica'!AE8="","",'Cultura Cientifica'!AE8) ->  | AC58: =IF('Cultura Cientifica'!AF8="","",'Cultura Cientifica'!AF8) ->  | AD58: =IF('Cultura Cientifica'!AG8="","",'Cultura Cientifica'!AG8) ->  | AE58: =IF('Cultura Cientifica'!AH8="","",'Cultura Cientifica'!AH8) ->  | AF58: =IF('Cultura Cientifica'!AI8="","",'Cultura Cientifica'!AI8) ->  | AG58: =IF('Cultura Cientifica'!AJ8="","",'Cultura Cientifica'!AJ8) ->  | AH58: =IF('Cultura Cientifica'!AK8="","",'Cultura Cientifica'!AK8) ->  | AI58: =IF('Cultura Cientifica'!AL8="","",'Cultura Cientifica'!AL8) ->  | AJ58: =IF('Cultura Cientifica'!AM8="","",'Cultura Cientifica'!AM8) ->  | AK58: =IF('Cultura Cientifica'!AN8="","",'Cultura Cientifica'!AN8) ->  | AL58: =IF('Cultura Cientifica'!AO8="","",'Cultura Cientifica'!AO8) ->  | AM58: =IF('Cultura Cientifica'!AP8="","",'Cultura Cientifica'!AP8) -> 
D59: Criterio Evaluación 3.2 | E59: =IF('Cultura Cientifica'!H9="","",'Cultura Cientifica'!H9) ->  | F59: =IF('Cultura Cientifica'!I9="","",'Cultura Cientifica'!I9) ->  | G59: =IF('Cultura Cientifica'!J9="","",'Cultura Cientifica'!J9) ->  | H59: =IF('Cultura Cientifica'!K9="","",'Cultura Cientifica'!K9) ->  | I59: =IF('Cultura Cientifica'!L9="","",'Cultura Cientifica'!L9) ->  | J59: =IF('Cultura Cientifica'!M9="","",'Cultura Cientifica'!M9) ->  | K59: =IF('Cultura Cientifica'!N9="","",'Cultura Cientifica'!N9) ->  | L59: =IF('Cultura Cientifica'!O9="","",'Cultura Cientifica'!O9) ->  | M59: =IF('Cultura Cientifica'!P9="","",'Cultura Cientifica'!P9) ->  | N59: =IF('Cultura Cientifica'!Q9="","",'Cultura Cientifica'!Q9) ->  | O59: =IF('Cultura Cientifica'!R9="","",'Cultura Cientifica'!R9) ->  | P59: =IF('Cultura Cientifica'!S9="","",'Cultura Cientifica'!S9) ->  | Q59: =IF('Cultura Cientifica'!T9="","",'Cultura Cientifica'!T9) ->  | R59: =IF('Cultura Cientifica'!U9="","",'Cultura Cientifica'!U9) ->  | S59: =IF('Cultura Cientifica'!V9="","",'Cultura Cientifica'!V9) ->  | T59: =IF('Cultura Cientifica'!W9="","",'Cultura Cientifica'!W9) ->  | U59: =IF('Cultura Cientifica'!X9="","",'Cultura Cientifica'!X9) ->  | V59: =IF('Cultura Cientifica'!Y9="","",'Cultura Cientifica'!Y9) ->  | W59: =IF('Cultura Cientifica'!Z9="","",'Cultura Cientifica'!Z9) ->  | X59: =IF('Cultura Cientifica'!AA9="","",'Cultura Cientifica'!AA9) ->  | Y59: =IF('Cultura Cientifica'!AB9="","",'Cultura Cientifica'!AB9) ->  | Z59: =IF('Cultura Cientifica'!AC9="","",'Cultura Cientifica'!AC9) ->  | AA59: =IF('Cultura Cientifica'!AD9="","",'Cultura Cientifica'!AD9) ->  | AB59: =IF('Cultura Cientifica'!AE9="","",'Cultura Cientifica'!AE9) ->  | AC59: =IF('Cultura Cientifica'!AF9="","",'Cultura Cientifica'!AF9) ->  | AD59: =IF('Cultura Cientifica'!AG9="","",'Cultura Cientifica'!AG9) ->  | AE59: =IF('Cultura Cientifica'!AH9="","",'Cultura Cientifica'!AH9) ->  | AF59: =IF('Cultura Cientifica'!AI9="","",'Cultura Cientifica'!AI9) ->  | AG59: =IF('Cultura Cientifica'!AJ9="","",'Cultura Cientifica'!AJ9) ->  | AH59: =IF('Cultura Cientifica'!AK9="","",'Cultura Cientifica'!AK9) ->  | AI59: =IF('Cultura Cientifica'!AL9="","",'Cultura Cientifica'!AL9) ->  | AJ59: =IF('Cultura Cientifica'!AM9="","",'Cultura Cientifica'!AM9) ->  | AK59: =IF('Cultura Cientifica'!AN9="","",'Cultura Cientifica'!AN9) ->  | AL59: =IF('Cultura Cientifica'!AO9="","",'Cultura Cientifica'!AO9) ->  | AM59: =IF('Cultura Cientifica'!AP9="","",'Cultura Cientifica'!AP9) -> 
D60: Criterio Evaluación 3.3 | E60: =IF('Cultura Cientifica'!H10="","",'Cultura Cientifica'!H10) ->  | F60: =IF('Cultura Cientifica'!I10="","",'Cultura Cientifica'!I10) ->  | G60: =IF('Cultura Cientifica'!J10="","",'Cultura Cientifica'!J10) ->  | H60: =IF('Cultura Cientifica'!K10="","",'Cultura Cientifica'!K10) ->  | I60: =IF('Cultura Cientifica'!L10="","",'Cultura Cientifica'!L10) ->  | J60: =IF('Cultura Cientifica'!M10="","",'Cultura Cientifica'!M10) ->  | K60: =IF('Cultura Cientifica'!N10="","",'Cultura Cientifica'!N10) ->  | L60: =IF('Cultura Cientifica'!O10="","",'Cultura Cientifica'!O10) ->  | M60: =IF('Cultura Cientifica'!P10="","",'Cultura Cientifica'!P10) ->  | N60: =IF('Cultura Cientifica'!Q10="","",'Cultura Cientifica'!Q10) ->  | O60: =IF('Cultura Cientifica'!R10="","",'Cultura Cientifica'!R10) ->  | P60: =IF('Cultura Cientifica'!S10="","",'Cultura Cientifica'!S10) ->  | Q60: =IF('Cultura Cientifica'!T10="","",'Cultura Cientifica'!T10) ->  | R60: =IF('Cultura Cientifica'!U10="","",'Cultura Cientifica'!U10) ->  | S60: =IF('Cultura Cientifica'!V10="","",'Cultura Cientifica'!V10) ->  | T60: =IF('Cultura Cientifica'!W10="","",'Cultura Cientifica'!W10) ->  | U60: =IF('Cultura Cientifica'!X10="","",'Cultura Cientifica'!X10) ->  | V60: =IF('Cultura Cientifica'!Y10="","",'Cultura Cientifica'!Y10) ->  | W60: =IF('Cultura Cientifica'!Z10="","",'Cultura Cientifica'!Z10) ->  | X60: =IF('Cultura Cientifica'!AA10="","",'Cultura Cientifica'!AA10) ->  | Y60: =IF('Cultura Cientifica'!AB10="","",'Cultura Cientifica'!AB10) ->  | Z60: =IF('Cultura Cientifica'!AC10="","",'Cultura Cientifica'!AC10) ->  | AA60: =IF('Cultura Cientifica'!AD10="","",'Cultura Cientifica'!AD10) ->  | AB60: =IF('Cultura Cientifica'!AE10="","",'Cultura Cientifica'!AE10) ->  | AC60: =IF('Cultura Cientifica'!AF10="","",'Cultura Cientifica'!AF10) ->  | AD60: =IF('Cultura Cientifica'!AG10="","",'Cultura Cientifica'!AG10) ->  | AE60: =IF('Cultura Cientifica'!AH10="","",'Cultura Cientifica'!AH10) ->  | AF60: =IF('Cultura Cientifica'!AI10="","",'Cultura Cientifica'!AI10) ->  | AG60: =IF('Cultura Cientifica'!AJ10="","",'Cultura Cientifica'!AJ10) ->  | AH60: =IF('Cultura Cientifica'!AK10="","",'Cultura Cientifica'!AK10) ->  | AI60: =IF('Cultura Cientifica'!AL10="","",'Cultura Cientifica'!AL10) ->  | AJ60: =IF('Cultura Cientifica'!AM10="","",'Cultura Cientifica'!AM10) ->  | AK60: =IF('Cultura Cientifica'!AN10="","",'Cultura Cientifica'!AN10) ->  | AL60: =IF('Cultura Cientifica'!AO10="","",'Cultura Cientifica'!AO10) ->  | AM60: =IF('Cultura Cientifica'!AP10="","",'Cultura Cientifica'!AP10) -> 
D61: Criterio Evaluación 3.4 | E61: =IF('Cultura Cientifica'!H11="","",'Cultura Cientifica'!H11) ->  | F61: =IF('Cultura Cientifica'!I11="","",'Cultura Cientifica'!I11) ->  | G61: =IF('Cultura Cientifica'!J11="","",'Cultura Cientifica'!J11) ->  | H61: =IF('Cultura Cientifica'!K11="","",'Cultura Cientifica'!K11) ->  | I61: =IF('Cultura Cientifica'!L11="","",'Cultura Cientifica'!L11) ->  | J61: =IF('Cultura Cientifica'!M11="","",'Cultura Cientifica'!M11) ->  | K61: =IF('Cultura Cientifica'!N11="","",'Cultura Cientifica'!N11) ->  | L61: =IF('Cultura Cientifica'!O11="","",'Cultura Cientifica'!O11) ->  | M61: =IF('Cultura Cientifica'!P11="","",'Cultura Cientifica'!P11) ->  | N61: =IF('Cultura Cientifica'!Q11="","",'Cultura Cientifica'!Q11) ->  | O61: =IF('Cultura Cientifica'!R11="","",'Cultura Cientifica'!R11) ->  | P61: =IF('Cultura Cientifica'!S11="","",'Cultura Cientifica'!S11) ->  | Q61: =IF('Cultura Cientifica'!T11="","",'Cultura Cientifica'!T11) ->  | R61: =IF('Cultura Cientifica'!U11="","",'Cultura Cientifica'!U11) ->  | S61: =IF('Cultura Cientifica'!V11="","",'Cultura Cientifica'!V11) ->  | T61: =IF('Cultura Cientifica'!W11="","",'Cultura Cientifica'!W11) ->  | U61: =IF('Cultura Cientifica'!X11="","",'Cultura Cientifica'!X11) ->  | V61: =IF('Cultura Cientifica'!Y11="","",'Cultura Cientifica'!Y11) ->  | W61: =IF('Cultura Cientifica'!Z11="","",'Cultura Cientifica'!Z11) ->  | X61: =IF('Cultura Cientifica'!AA11="","",'Cultura Cientifica'!AA11) ->  | Y61: =IF('Cultura Cientifica'!AB11="","",'Cultura Cientifica'!AB11) ->  | Z61: =IF('Cultura Cientifica'!AC11="","",'Cultura Cientifica'!AC11) ->  | AA61: =IF('Cultura Cientifica'!AD11="","",'Cultura Cientifica'!AD11) ->  | AB61: =IF('Cultura Cientifica'!AE11="","",'Cultura Cientifica'!AE11) ->  | AC61: =IF('Cultura Cientifica'!AF11="","",'Cultura Cientifica'!AF11) ->  | AD61: =IF('Cultura Cientifica'!AG11="","",'Cultura Cientifica'!AG11) ->  | AE61: =IF('Cultura Cientifica'!AH11="","",'Cultura Cientifica'!AH11) ->  | AF61: =IF('Cultura Cientifica'!AI11="","",'Cultura Cientifica'!AI11) ->  | AG61: =IF('Cultura Cientifica'!AJ11="","",'Cultura Cientifica'!AJ11) ->  | AH61: =IF('Cultura Cientifica'!AK11="","",'Cultura Cientifica'!AK11) ->  | AI61: =IF('Cultura Cientifica'!AL11="","",'Cultura Cientifica'!AL11) ->  | AJ61: =IF('Cultura Cientifica'!AM11="","",'Cultura Cientifica'!AM11) ->  | AK61: =IF('Cultura Cientifica'!AN11="","",'Cultura Cientifica'!AN11) ->  | AL61: =IF('Cultura Cientifica'!AO11="","",'Cultura Cientifica'!AO11) ->  | AM61: =IF('Cultura Cientifica'!AP11="","",'Cultura Cientifica'!AP11) -> 
D62: Criterio Evaluación 3.5 | E62: =IF('Cultura Cientifica'!H12="","",'Cultura Cientifica'!H12) ->  | F62: =IF('Cultura Cientifica'!I12="","",'Cultura Cientifica'!I12) ->  | G62: =IF('Cultura Cientifica'!J12="","",'Cultura Cientifica'!J12) ->  | H62: =IF('Cultura Cientifica'!K12="","",'Cultura Cientifica'!K12) ->  | I62: =IF('Cultura Cientifica'!L12="","",'Cultura Cientifica'!L12) ->  | J62: =IF('Cultura Cientifica'!M12="","",'Cultura Cientifica'!M12) ->  | K62: =IF('Cultura Cientifica'!N12="","",'Cultura Cientifica'!N12) ->  | L62: =IF('Cultura Cientifica'!O12="","",'Cultura Cientifica'!O12) ->  | M62: =IF('Cultura Cientifica'!P12="","",'Cultura Cientifica'!P12) ->  | N62: =IF('Cultura Cientifica'!Q12="","",'Cultura Cientifica'!Q12) ->  | O62: =IF('Cultura Cientifica'!R12="","",'Cultura Cientifica'!R12) ->  | P62: =IF('Cultura Cientifica'!S12="","",'Cultura Cientifica'!S12) ->  | Q62: =IF('Cultura Cientifica'!T12="","",'Cultura Cientifica'!T12) ->  | R62: =IF('Cultura Cientifica'!U12="","",'Cultura Cientifica'!U12) ->  | S62: =IF('Cultura Cientifica'!V12="","",'Cultura Cientifica'!V12) ->  | T62: =IF('Cultura Cientifica'!W12="","",'Cultura Cientifica'!W12) ->  | U62: =IF('Cultura Cientifica'!X12="","",'Cultura Cientifica'!X12) ->  | V62: =IF('Cultura Cientifica'!Y12="","",'Cultura Cientifica'!Y12) ->  | W62: =IF('Cultura Cientifica'!Z12="","",'Cultura Cientifica'!Z12) ->  | X62: =IF('Cultura Cientifica'!AA12="","",'Cultura Cientifica'!AA12) ->  | Y62: =IF('Cultura Cientifica'!AB12="","",'Cultura Cientifica'!AB12) ->  | Z62: =IF('Cultura Cientifica'!AC12="","",'Cultura Cientifica'!AC12) ->  | AA62: =IF('Cultura Cientifica'!AD12="","",'Cultura Cientifica'!AD12) ->  | AB62: =IF('Cultura Cientifica'!AE12="","",'Cultura Cientifica'!AE12) ->  | AC62: =IF('Cultura Cientifica'!AF12="","",'Cultura Cientifica'!AF12) ->  | AD62: =IF('Cultura Cientifica'!AG12="","",'Cultura Cientifica'!AG12) ->  | AE62: =IF('Cultura Cientifica'!AH12="","",'Cultura Cientifica'!AH12) ->  | AF62: =IF('Cultura Cientifica'!AI12="","",'Cultura Cientifica'!AI12) ->  | AG62: =IF('Cultura Cientifica'!AJ12="","",'Cultura Cientifica'!AJ12) ->  | AH62: =IF('Cultura Cientifica'!AK12="","",'Cultura Cientifica'!AK12) ->  | AI62: =IF('Cultura Cientifica'!AL12="","",'Cultura Cientifica'!AL12) ->  | AJ62: =IF('Cultura Cientifica'!AM12="","",'Cultura Cientifica'!AM12) ->  | AK62: =IF('Cultura Cientifica'!AN12="","",'Cultura Cientifica'!AN12) ->  | AL62: =IF('Cultura Cientifica'!AO12="","",'Cultura Cientifica'!AO12) ->  | AM62: =IF('Cultura Cientifica'!AP12="","",'Cultura Cientifica'!AP12) -> 
C63: Comp. Esp. 4 | D63: Criterio Evaluación 4.1 | E63: =IF('Cultura Cientifica'!H13="","",'Cultura Cientifica'!H13) ->  | F63: =IF('Cultura Cientifica'!I13="","",'Cultura Cientifica'!I13) ->  | G63: =IF('Cultura Cientifica'!J13="","",'Cultura Cientifica'!J13) ->  | H63: =IF('Cultura Cientifica'!K13="","",'Cultura Cientifica'!K13) ->  | I63: =IF('Cultura Cientifica'!L13="","",'Cultura Cientifica'!L13) ->  | J63: =IF('Cultura Cientifica'!M13="","",'Cultura Cientifica'!M13) ->  | K63: =IF('Cultura Cientifica'!N13="","",'Cultura Cientifica'!N13) ->  | L63: =IF('Cultura Cientifica'!O13="","",'Cultura Cientifica'!O13) ->  | M63: =IF('Cultura Cientifica'!P13="","",'Cultura Cientifica'!P13) ->  | N63: =IF('Cultura Cientifica'!Q13="","",'Cultura Cientifica'!Q13) ->  | O63: =IF('Cultura Cientifica'!R13="","",'Cultura Cientifica'!R13) ->  | P63: =IF('Cultura Cientifica'!S13="","",'Cultura Cientifica'!S13) ->  | Q63: =IF('Cultura Cientifica'!T13="","",'Cultura Cientifica'!T13) ->  | R63: =IF('Cultura Cientifica'!U13="","",'Cultura Cientifica'!U13) ->  | S63: =IF('Cultura Cientifica'!V13="","",'Cultura Cientifica'!V13) ->  | T63: =IF('Cultura Cientifica'!W13="","",'Cultura Cientifica'!W13) ->  | U63: =IF('Cultura Cientifica'!X13="","",'Cultura Cientifica'!X13) ->  | V63: =IF('Cultura Cientifica'!Y13="","",'Cultura Cientifica'!Y13) ->  | W63: =IF('Cultura Cientifica'!Z13="","",'Cultura Cientifica'!Z13) ->  | X63: =IF('Cultura Cientifica'!AA13="","",'Cultura Cientifica'!AA13) ->  | Y63: =IF('Cultura Cientifica'!AB13="","",'Cultura Cientifica'!AB13) ->  | Z63: =IF('Cultura Cientifica'!AC13="","",'Cultura Cientifica'!AC13) ->  | AA63: =IF('Cultura Cientifica'!AD13="","",'Cultura Cientifica'!AD13) ->  | AB63: =IF('Cultura Cientifica'!AE13="","",'Cultura Cientifica'!AE13) ->  | AC63: =IF('Cultura Cientifica'!AF13="","",'Cultura Cientifica'!AF13) ->  | AD63: =IF('Cultura Cientifica'!AG13="","",'Cultura Cientifica'!AG13) ->  | AE63: =IF('Cultura Cientifica'!AH13="","",'Cultura Cientifica'!AH13) ->  | AF63: =IF('Cultura Cientifica'!AI13="","",'Cultura Cientifica'!AI13) ->  | AG63: =IF('Cultura Cientifica'!AJ13="","",'Cultura Cientifica'!AJ13) ->  | AH63: =IF('Cultura Cientifica'!AK13="","",'Cultura Cientifica'!AK13) ->  | AI63: =IF('Cultura Cientifica'!AL13="","",'Cultura Cientifica'!AL13) ->  | AJ63: =IF('Cultura Cientifica'!AM13="","",'Cultura Cientifica'!AM13) ->  | AK63: =IF('Cultura Cientifica'!AN13="","",'Cultura Cientifica'!AN13) ->  | AL63: =IF('Cultura Cientifica'!AO13="","",'Cultura Cientifica'!AO13) ->  | AM63: =IF('Cultura Cientifica'!AP13="","",'Cultura Cientifica'!AP13) -> 
D64: Criterio Evaluación 4.2 | E64: =IF('Cultura Cientifica'!H14="","",'Cultura Cientifica'!H14) ->  | F64: =IF('Cultura Cientifica'!I14="","",'Cultura Cientifica'!I14) ->  | G64: =IF('Cultura Cientifica'!J14="","",'Cultura Cientifica'!J14) ->  | H64: =IF('Cultura Cientifica'!K14="","",'Cultura Cientifica'!K14) ->  | I64: =IF('Cultura Cientifica'!L14="","",'Cultura Cientifica'!L14) ->  | J64: =IF('Cultura Cientifica'!M14="","",'Cultura Cientifica'!M14) ->  | K64: =IF('Cultura Cientifica'!N14="","",'Cultura Cientifica'!N14) ->  | L64: =IF('Cultura Cientifica'!O14="","",'Cultura Cientifica'!O14) ->  | M64: =IF('Cultura Cientifica'!P14="","",'Cultura Cientifica'!P14) ->  | N64: =IF('Cultura Cientifica'!Q14="","",'Cultura Cientifica'!Q14) ->  | O64: =IF('Cultura Cientifica'!R14="","",'Cultura Cientifica'!R14) ->  | P64: =IF('Cultura Cientifica'!S14="","",'Cultura Cientifica'!S14) ->  | Q64: =IF('Cultura Cientifica'!T14="","",'Cultura Cientifica'!T14) ->  | R64: =IF('Cultura Cientifica'!U14="","",'Cultura Cientifica'!U14) ->  | S64: =IF('Cultura Cientifica'!V14="","",'Cultura Cientifica'!V14) ->  | T64: =IF('Cultura Cientifica'!W14="","",'Cultura Cientifica'!W14) ->  | U64: =IF('Cultura Cientifica'!X14="","",'Cultura Cientifica'!X14) ->  | V64: =IF('Cultura Cientifica'!Y14="","",'Cultura Cientifica'!Y14) ->  | W64: =IF('Cultura Cientifica'!Z14="","",'Cultura Cientifica'!Z14) ->  | X64: =IF('Cultura Cientifica'!AA14="","",'Cultura Cientifica'!AA14) ->  | Y64: =IF('Cultura Cientifica'!AB14="","",'Cultura Cientifica'!AB14) ->  | Z64: =IF('Cultura Cientifica'!AC14="","",'Cultura Cientifica'!AC14) ->  | AA64: =IF('Cultura Cientifica'!AD14="","",'Cultura Cientifica'!AD14) ->  | AB64: =IF('Cultura Cientifica'!AE14="","",'Cultura Cientifica'!AE14) ->  | AC64: =IF('Cultura Cientifica'!AF14="","",'Cultura Cientifica'!AF14) ->  | AD64: =IF('Cultura Cientifica'!AG14="","",'Cultura Cientifica'!AG14) ->  | AE64: =IF('Cultura Cientifica'!AH14="","",'Cultura Cientifica'!AH14) ->  | AF64: =IF('Cultura Cientifica'!AI14="","",'Cultura Cientifica'!AI14) ->  | AG64: =IF('Cultura Cientifica'!AJ14="","",'Cultura Cientifica'!AJ14) ->  | AH64: =IF('Cultura Cientifica'!AK14="","",'Cultura Cientifica'!AK14) ->  | AI64: =IF('Cultura Cientifica'!AL14="","",'Cultura Cientifica'!AL14) ->  | AJ64: =IF('Cultura Cientifica'!AM14="","",'Cultura Cientifica'!AM14) ->  | AK64: =IF('Cultura Cientifica'!AN14="","",'Cultura Cientifica'!AN14) ->  | AL64: =IF('Cultura Cientifica'!AO14="","",'Cultura Cientifica'!AO14) ->  | AM64: =IF('Cultura Cientifica'!AP14="","",'Cultura Cientifica'!AP14) -> 
C65: Comp. Esp. 5 | D65: Criterio Evaluación 5.1 | E65: =IF('Cultura Cientifica'!H15="","",'Cultura Cientifica'!H15) ->  | F65: =IF('Cultura Cientifica'!I15="","",'Cultura Cientifica'!I15) ->  | G65: =IF('Cultura Cientifica'!J15="","",'Cultura Cientifica'!J15) ->  | H65: =IF('Cultura Cientifica'!K15="","",'Cultura Cientifica'!K15) ->  | I65: =IF('Cultura Cientifica'!L15="","",'Cultura Cientifica'!L15) ->  | J65: =IF('Cultura Cientifica'!M15="","",'Cultura Cientifica'!M15) ->  | K65: =IF('Cultura Cientifica'!N15="","",'Cultura Cientifica'!N15) ->  | L65: =IF('Cultura Cientifica'!O15="","",'Cultura Cientifica'!O15) ->  | M65: =IF('Cultura Cientifica'!P15="","",'Cultura Cientifica'!P15) ->  | N65: =IF('Cultura Cientifica'!Q15="","",'Cultura Cientifica'!Q15) ->  | O65: =IF('Cultura Cientifica'!R15="","",'Cultura Cientifica'!R15) ->  | P65: =IF('Cultura Cientifica'!S15="","",'Cultura Cientifica'!S15) ->  | Q65: =IF('Cultura Cientifica'!T15="","",'Cultura Cientifica'!T15) ->  | R65: =IF('Cultura Cientifica'!U15="","",'Cultura Cientifica'!U15) ->  | S65: =IF('Cultura Cientifica'!V15="","",'Cultura Cientifica'!V15) ->  | T65: =IF('Cultura Cientifica'!W15="","",'Cultura Cientifica'!W15) ->  | U65: =IF('Cultura Cientifica'!X15="","",'Cultura Cientifica'!X15) ->  | V65: =IF('Cultura Cientifica'!Y15="","",'Cultura Cientifica'!Y15) ->  | W65: =IF('Cultura Cientifica'!Z15="","",'Cultura Cientifica'!Z15) ->  | X65: =IF('Cultura Cientifica'!AA15="","",'Cultura Cientifica'!AA15) ->  | Y65: =IF('Cultura Cientifica'!AB15="","",'Cultura Cientifica'!AB15) ->  | Z65: =IF('Cultura Cientifica'!AC15="","",'Cultura Cientifica'!AC15) ->  | AA65: =IF('Cultura Cientifica'!AD15="","",'Cultura Cientifica'!AD15) ->  | AB65: =IF('Cultura Cientifica'!AE15="","",'Cultura Cientifica'!AE15) ->  | AC65: =IF('Cultura Cientifica'!AF15="","",'Cultura Cientifica'!AF15) ->  | AD65: =IF('Cultura Cientifica'!AG15="","",'Cultura Cientifica'!AG15) ->  | AE65: =IF('Cultura Cientifica'!AH15="","",'Cultura Cientifica'!AH15) ->  | AF65: =IF('Cultura Cientifica'!AI15="","",'Cultura Cientifica'!AI15) ->  | AG65: =IF('Cultura Cientifica'!AJ15="","",'Cultura Cientifica'!AJ15) ->  | AH65: =IF('Cultura Cientifica'!AK15="","",'Cultura Cientifica'!AK15) ->  | AI65: =IF('Cultura Cientifica'!AL15="","",'Cultura Cientifica'!AL15) ->  | AJ65: =IF('Cultura Cientifica'!AM15="","",'Cultura Cientifica'!AM15) ->  | AK65: =IF('Cultura Cientifica'!AN15="","",'Cultura Cientifica'!AN15) ->  | AL65: =IF('Cultura Cientifica'!AO15="","",'Cultura Cientifica'!AO15) ->  | AM65: =IF('Cultura Cientifica'!AP15="","",'Cultura Cientifica'!AP15) -> 
D66: Criterio Evaluación 5.2 | E66: =IF('Cultura Cientifica'!H16="","",'Cultura Cientifica'!H16) ->  | F66: =IF('Cultura Cientifica'!I16="","",'Cultura Cientifica'!I16) ->  | G66: =IF('Cultura Cientifica'!J16="","",'Cultura Cientifica'!J16) ->  | H66: =IF('Cultura Cientifica'!K16="","",'Cultura Cientifica'!K16) ->  | I66: =IF('Cultura Cientifica'!L16="","",'Cultura Cientifica'!L16) ->  | J66: =IF('Cultura Cientifica'!M16="","",'Cultura Cientifica'!M16) ->  | K66: =IF('Cultura Cientifica'!N16="","",'Cultura Cientifica'!N16) ->  | L66: =IF('Cultura Cientifica'!O16="","",'Cultura Cientifica'!O16) ->  | M66: =IF('Cultura Cientifica'!P16="","",'Cultura Cientifica'!P16) ->  | N66: =IF('Cultura Cientifica'!Q16="","",'Cultura Cientifica'!Q16) ->  | O66: =IF('Cultura Cientifica'!R16="","",'Cultura Cientifica'!R16) ->  | P66: =IF('Cultura Cientifica'!S16="","",'Cultura Cientifica'!S16) ->  | Q66: =IF('Cultura Cientifica'!T16="","",'Cultura Cientifica'!T16) ->  | R66: =IF('Cultura Cientifica'!U16="","",'Cultura Cientifica'!U16) ->  | S66: =IF('Cultura Cientifica'!V16="","",'Cultura Cientifica'!V16) ->  | T66: =IF('Cultura Cientifica'!W16="","",'Cultura Cientifica'!W16) ->  | U66: =IF('Cultura Cientifica'!X16="","",'Cultura Cientifica'!X16) ->  | V66: =IF('Cultura Cientifica'!Y16="","",'Cultura Cientifica'!Y16) ->  | W66: =IF('Cultura Cientifica'!Z16="","",'Cultura Cientifica'!Z16) ->  | X66: =IF('Cultura Cientifica'!AA16="","",'Cultura Cientifica'!AA16) ->  | Y66: =IF('Cultura Cientifica'!AB16="","",'Cultura Cientifica'!AB16) ->  | Z66: =IF('Cultura Cientifica'!AC16="","",'Cultura Cientifica'!AC16) ->  | AA66: =IF('Cultura Cientifica'!AD16="","",'Cultura Cientifica'!AD16) ->  | AB66: =IF('Cultura Cientifica'!AE16="","",'Cultura Cientifica'!AE16) ->  | AC66: =IF('Cultura Cientifica'!AF16="","",'Cultura Cientifica'!AF16) ->  | AD66: =IF('Cultura Cientifica'!AG16="","",'Cultura Cientifica'!AG16) ->  | AE66: =IF('Cultura Cientifica'!AH16="","",'Cultura Cientifica'!AH16) ->  | AF66: =IF('Cultura Cientifica'!AI16="","",'Cultura Cientifica'!AI16) ->  | AG66: =IF('Cultura Cientifica'!AJ16="","",'Cultura Cientifica'!AJ16) ->  | AH66: =IF('Cultura Cientifica'!AK16="","",'Cultura Cientifica'!AK16) ->  | AI66: =IF('Cultura Cientifica'!AL16="","",'Cultura Cientifica'!AL16) ->  | AJ66: =IF('Cultura Cientifica'!AM16="","",'Cultura Cientifica'!AM16) ->  | AK66: =IF('Cultura Cientifica'!AN16="","",'Cultura Cientifica'!AN16) ->  | AL66: =IF('Cultura Cientifica'!AO16="","",'Cultura Cientifica'!AO16) ->  | AM66: =IF('Cultura Cientifica'!AP16="","",'Cultura Cientifica'!AP16) -> 
B67: Dibujo Técnico I | C67: Comp. Esp. 1 | D67: Criterio Evaluación 1.1 | E67: =IF('Dibujo Tecnico'!H4="","",'Dibujo Tecnico'!H4) ->  | F67: =IF('Dibujo Tecnico'!I4="","",'Dibujo Tecnico'!I4) ->  | G67: =IF('Dibujo Tecnico'!J4="","",'Dibujo Tecnico'!J4) ->  | H67: =IF('Dibujo Tecnico'!K4="","",'Dibujo Tecnico'!K4) ->  | I67: =IF('Dibujo Tecnico'!L4="","",'Dibujo Tecnico'!L4) ->  | J67: =IF('Dibujo Tecnico'!M4="","",'Dibujo Tecnico'!M4) ->  | K67: =IF('Dibujo Tecnico'!N4="","",'Dibujo Tecnico'!N4) ->  | L67: =IF('Dibujo Tecnico'!O4="","",'Dibujo Tecnico'!O4) ->  | M67: =IF('Dibujo Tecnico'!P4="","",'Dibujo Tecnico'!P4) ->  | N67: =IF('Dibujo Tecnico'!Q4="","",'Dibujo Tecnico'!Q4) ->  | O67: =IF('Dibujo Tecnico'!R4="","",'Dibujo Tecnico'!R4) ->  | P67: =IF('Dibujo Tecnico'!S4="","",'Dibujo Tecnico'!S4) ->  | Q67: =IF('Dibujo Tecnico'!T4="","",'Dibujo Tecnico'!T4) ->  | R67: =IF('Dibujo Tecnico'!U4="","",'Dibujo Tecnico'!U4) ->  | S67: =IF('Dibujo Tecnico'!V4="","",'Dibujo Tecnico'!V4) ->  | T67: =IF('Dibujo Tecnico'!W4="","",'Dibujo Tecnico'!W4) ->  | U67: =IF('Dibujo Tecnico'!X4="","",'Dibujo Tecnico'!X4) ->  | V67: =IF('Dibujo Tecnico'!Y4="","",'Dibujo Tecnico'!Y4) ->  | W67: =IF('Dibujo Tecnico'!Z4="","",'Dibujo Tecnico'!Z4) ->  | X67: =IF('Dibujo Tecnico'!AA4="","",'Dibujo Tecnico'!AA4) ->  | Y67: =IF('Dibujo Tecnico'!AB4="","",'Dibujo Tecnico'!AB4) ->  | Z67: =IF('Dibujo Tecnico'!AC4="","",'Dibujo Tecnico'!AC4) ->  | AA67: =IF('Dibujo Tecnico'!AD4="","",'Dibujo Tecnico'!AD4) ->  | AB67: =IF('Dibujo Tecnico'!AE4="","",'Dibujo Tecnico'!AE4) ->  | AC67: =IF('Dibujo Tecnico'!AF4="","",'Dibujo Tecnico'!AF4) ->  | AD67: =IF('Dibujo Tecnico'!AG4="","",'Dibujo Tecnico'!AG4) ->  | AE67: =IF('Dibujo Tecnico'!AH4="","",'Dibujo Tecnico'!AH4) ->  | AF67: =IF('Dibujo Tecnico'!AI4="","",'Dibujo Tecnico'!AI4) ->  | AG67: =IF('Dibujo Tecnico'!AJ4="","",'Dibujo Tecnico'!AJ4) ->  | AH67: =IF('Dibujo Tecnico'!AK4="","",'Dibujo Tecnico'!AK4) ->  | AI67: =IF('Dibujo Tecnico'!AL4="","",'Dibujo Tecnico'!AL4) ->  | AJ67: =IF('Dibujo Tecnico'!AM4="","",'Dibujo Tecnico'!AM4) ->  | AK67: =IF('Dibujo Tecnico'!AN4="","",'Dibujo Tecnico'!AN4) ->  | AL67: =IF('Dibujo Tecnico'!AO4="","",'Dibujo Tecnico'!AO4) ->  | AM67: =IF('Dibujo Tecnico'!AP4="","",'Dibujo Tecnico'!AP4) -> 
C68: Comp. Esp. 2 | D68: Criterio Evaluación 2.1 | E68: =IF('Dibujo Tecnico'!H5="","",'Dibujo Tecnico'!H5) ->  | F68: =IF('Dibujo Tecnico'!I5="","",'Dibujo Tecnico'!I5) ->  | G68: =IF('Dibujo Tecnico'!J5="","",'Dibujo Tecnico'!J5) ->  | H68: =IF('Dibujo Tecnico'!K5="","",'Dibujo Tecnico'!K5) ->  | I68: =IF('Dibujo Tecnico'!L5="","",'Dibujo Tecnico'!L5) ->  | J68: =IF('Dibujo Tecnico'!M5="","",'Dibujo Tecnico'!M5) ->  | K68: =IF('Dibujo Tecnico'!N5="","",'Dibujo Tecnico'!N5) ->  | L68: =IF('Dibujo Tecnico'!O5="","",'Dibujo Tecnico'!O5) ->  | M68: =IF('Dibujo Tecnico'!P5="","",'Dibujo Tecnico'!P5) ->  | N68: =IF('Dibujo Tecnico'!Q5="","",'Dibujo Tecnico'!Q5) ->  | O68: =IF('Dibujo Tecnico'!R5="","",'Dibujo Tecnico'!R5) ->  | P68: =IF('Dibujo Tecnico'!S5="","",'Dibujo Tecnico'!S5) ->  | Q68: =IF('Dibujo Tecnico'!T5="","",'Dibujo Tecnico'!T5) ->  | R68: =IF('Dibujo Tecnico'!U5="","",'Dibujo Tecnico'!U5) ->  | S68: =IF('Dibujo Tecnico'!V5="","",'Dibujo Tecnico'!V5) ->  | T68: =IF('Dibujo Tecnico'!W5="","",'Dibujo Tecnico'!W5) ->  | U68: =IF('Dibujo Tecnico'!X5="","",'Dibujo Tecnico'!X5) ->  | V68: =IF('Dibujo Tecnico'!Y5="","",'Dibujo Tecnico'!Y5) ->  | W68: =IF('Dibujo Tecnico'!Z5="","",'Dibujo Tecnico'!Z5) ->  | X68: =IF('Dibujo Tecnico'!AA5="","",'Dibujo Tecnico'!AA5) ->  | Y68: =IF('Dibujo Tecnico'!AB5="","",'Dibujo Tecnico'!AB5) ->  | Z68: =IF('Dibujo Tecnico'!AC5="","",'Dibujo Tecnico'!AC5) ->  | AA68: =IF('Dibujo Tecnico'!AD5="","",'Dibujo Tecnico'!AD5) ->  | AB68: =IF('Dibujo Tecnico'!AE5="","",'Dibujo Tecnico'!AE5) ->  | AC68: =IF('Dibujo Tecnico'!AF5="","",'Dibujo Tecnico'!AF5) ->  | AD68: =IF('Dibujo Tecnico'!AG5="","",'Dibujo Tecnico'!AG5) ->  | AE68: =IF('Dibujo Tecnico'!AH5="","",'Dibujo Tecnico'!AH5) ->  | AF68: =IF('Dibujo Tecnico'!AI5="","",'Dibujo Tecnico'!AI5) ->  | AG68: =IF('Dibujo Tecnico'!AJ5="","",'Dibujo Tecnico'!AJ5) ->  | AH68: =IF('Dibujo Tecnico'!AK5="","",'Dibujo Tecnico'!AK5) ->  | AI68: =IF('Dibujo Tecnico'!AL5="","",'Dibujo Tecnico'!AL5) ->  | AJ68: =IF('Dibujo Tecnico'!AM5="","",'Dibujo Tecnico'!AM5) ->  | AK68: =IF('Dibujo Tecnico'!AN5="","",'Dibujo Tecnico'!AN5) ->  | AL68: =IF('Dibujo Tecnico'!AO5="","",'Dibujo Tecnico'!AO5) ->  | AM68: =IF('Dibujo Tecnico'!AP5="","",'Dibujo Tecnico'!AP5) -> 
D69: Criterio Evaluación 2.2 | E69: =IF('Dibujo Tecnico'!H6="","",'Dibujo Tecnico'!H6) ->  | F69: =IF('Dibujo Tecnico'!I6="","",'Dibujo Tecnico'!I6) ->  | G69: =IF('Dibujo Tecnico'!J6="","",'Dibujo Tecnico'!J6) ->  | H69: =IF('Dibujo Tecnico'!K6="","",'Dibujo Tecnico'!K6) ->  | I69: =IF('Dibujo Tecnico'!L6="","",'Dibujo Tecnico'!L6) ->  | J69: =IF('Dibujo Tecnico'!M6="","",'Dibujo Tecnico'!M6) ->  | K69: =IF('Dibujo Tecnico'!N6="","",'Dibujo Tecnico'!N6) ->  | L69: =IF('Dibujo Tecnico'!O6="","",'Dibujo Tecnico'!O6) ->  | M69: =IF('Dibujo Tecnico'!P6="","",'Dibujo Tecnico'!P6) ->  | N69: =IF('Dibujo Tecnico'!Q6="","",'Dibujo Tecnico'!Q6) ->  | O69: =IF('Dibujo Tecnico'!R6="","",'Dibujo Tecnico'!R6) ->  | P69: =IF('Dibujo Tecnico'!S6="","",'Dibujo Tecnico'!S6) ->  | Q69: =IF('Dibujo Tecnico'!T6="","",'Dibujo Tecnico'!T6) ->  | R69: =IF('Dibujo Tecnico'!U6="","",'Dibujo Tecnico'!U6) ->  | S69: =IF('Dibujo Tecnico'!V6="","",'Dibujo Tecnico'!V6) ->  | T69: =IF('Dibujo Tecnico'!W6="","",'Dibujo Tecnico'!W6) ->  | U69: =IF('Dibujo Tecnico'!X6="","",'Dibujo Tecnico'!X6) ->  | V69: =IF('Dibujo Tecnico'!Y6="","",'Dibujo Tecnico'!Y6) ->  | W69: =IF('Dibujo Tecnico'!Z6="","",'Dibujo Tecnico'!Z6) ->  | X69: =IF('Dibujo Tecnico'!AA6="","",'Dibujo Tecnico'!AA6) ->  | Y69: =IF('Dibujo Tecnico'!AB6="","",'Dibujo Tecnico'!AB6) ->  | Z69: =IF('Dibujo Tecnico'!AC6="","",'Dibujo Tecnico'!AC6) ->  | AA69: =IF('Dibujo Tecnico'!AD6="","",'Dibujo Tecnico'!AD6) ->  | AB69: =IF('Dibujo Tecnico'!AE6="","",'Dibujo Tecnico'!AE6) ->  | AC69: =IF('Dibujo Tecnico'!AF6="","",'Dibujo Tecnico'!AF6) ->  | AD69: =IF('Dibujo Tecnico'!AG6="","",'Dibujo Tecnico'!AG6) ->  | AE69: =IF('Dibujo Tecnico'!AH6="","",'Dibujo Tecnico'!AH6) ->  | AF69: =IF('Dibujo Tecnico'!AI6="","",'Dibujo Tecnico'!AI6) ->  | AG69: =IF('Dibujo Tecnico'!AJ6="","",'Dibujo Tecnico'!AJ6) ->  | AH69: =IF('Dibujo Tecnico'!AK6="","",'Dibujo Tecnico'!AK6) ->  | AI69: =IF('Dibujo Tecnico'!AL6="","",'Dibujo Tecnico'!AL6) ->  | AJ69: =IF('Dibujo Tecnico'!AM6="","",'Dibujo Tecnico'!AM6) ->  | AK69: =IF('Dibujo Tecnico'!AN6="","",'Dibujo Tecnico'!AN6) ->  | AL69: =IF('Dibujo Tecnico'!AO6="","",'Dibujo Tecnico'!AO6) ->  | AM69: =IF('Dibujo Tecnico'!AP6="","",'Dibujo Tecnico'!AP6) -> 
D70: Criterio Evaluación 2.3 | E70: =IF('Dibujo Tecnico'!H7="","",'Dibujo Tecnico'!H7) ->  | F70: =IF('Dibujo Tecnico'!I7="","",'Dibujo Tecnico'!I7) ->  | G70: =IF('Dibujo Tecnico'!J7="","",'Dibujo Tecnico'!J7) ->  | H70: =IF('Dibujo Tecnico'!K7="","",'Dibujo Tecnico'!K7) ->  | I70: =IF('Dibujo Tecnico'!L7="","",'Dibujo Tecnico'!L7) ->  | J70: =IF('Dibujo Tecnico'!M7="","",'Dibujo Tecnico'!M7) ->  | K70: =IF('Dibujo Tecnico'!N7="","",'Dibujo Tecnico'!N7) ->  | L70: =IF('Dibujo Tecnico'!O7="","",'Dibujo Tecnico'!O7) ->  | M70: =IF('Dibujo Tecnico'!P7="","",'Dibujo Tecnico'!P7) ->  | N70: =IF('Dibujo Tecnico'!Q7="","",'Dibujo Tecnico'!Q7) ->  | O70: =IF('Dibujo Tecnico'!R7="","",'Dibujo Tecnico'!R7) ->  | P70: =IF('Dibujo Tecnico'!S7="","",'Dibujo Tecnico'!S7) ->  | Q70: =IF('Dibujo Tecnico'!T7="","",'Dibujo Tecnico'!T7) ->  | R70: =IF('Dibujo Tecnico'!U7="","",'Dibujo Tecnico'!U7) ->  | S70: =IF('Dibujo Tecnico'!V7="","",'Dibujo Tecnico'!V7) ->  | T70: =IF('Dibujo Tecnico'!W7="","",'Dibujo Tecnico'!W7) ->  | U70: =IF('Dibujo Tecnico'!X7="","",'Dibujo Tecnico'!X7) ->  | V70: =IF('Dibujo Tecnico'!Y7="","",'Dibujo Tecnico'!Y7) ->  | W70: =IF('Dibujo Tecnico'!Z7="","",'Dibujo Tecnico'!Z7) ->  | X70: =IF('Dibujo Tecnico'!AA7="","",'Dibujo Tecnico'!AA7) ->  | Y70: =IF('Dibujo Tecnico'!AB7="","",'Dibujo Tecnico'!AB7) ->  | Z70: =IF('Dibujo Tecnico'!AC7="","",'Dibujo Tecnico'!AC7) ->  | AA70: =IF('Dibujo Tecnico'!AD7="","",'Dibujo Tecnico'!AD7) ->  | AB70: =IF('Dibujo Tecnico'!AE7="","",'Dibujo Tecnico'!AE7) ->  | AC70: =IF('Dibujo Tecnico'!AF7="","",'Dibujo Tecnico'!AF7) ->  | AD70: =IF('Dibujo Tecnico'!AG7="","",'Dibujo Tecnico'!AG7) ->  | AE70: =IF('Dibujo Tecnico'!AH7="","",'Dibujo Tecnico'!AH7) ->  | AF70: =IF('Dibujo Tecnico'!AI7="","",'Dibujo Tecnico'!AI7) ->  | AG70: =IF('Dibujo Tecnico'!AJ7="","",'Dibujo Tecnico'!AJ7) ->  | AH70: =IF('Dibujo Tecnico'!AK7="","",'Dibujo Tecnico'!AK7) ->  | AI70: =IF('Dibujo Tecnico'!AL7="","",'Dibujo Tecnico'!AL7) ->  | AJ70: =IF('Dibujo Tecnico'!AM7="","",'Dibujo Tecnico'!AM7) ->  | AK70: =IF('Dibujo Tecnico'!AN7="","",'Dibujo Tecnico'!AN7) ->  | AL70: =IF('Dibujo Tecnico'!AO7="","",'Dibujo Tecnico'!AO7) ->  | AM70: =IF('Dibujo Tecnico'!AP7="","",'Dibujo Tecnico'!AP7) -> 
C71: Comp. Esp. 3 | D71: Criterio Evaluación 3.1 | E71: =IF('Dibujo Tecnico'!H8="","",'Dibujo Tecnico'!H8) ->  | F71: =IF('Dibujo Tecnico'!I8="","",'Dibujo Tecnico'!I8) ->  | G71: =IF('Dibujo Tecnico'!J8="","",'Dibujo Tecnico'!J8) ->  | H71: =IF('Dibujo Tecnico'!K8="","",'Dibujo Tecnico'!K8) ->  | I71: =IF('Dibujo Tecnico'!L8="","",'Dibujo Tecnico'!L8) ->  | J71: =IF('Dibujo Tecnico'!M8="","",'Dibujo Tecnico'!M8) ->  | K71: =IF('Dibujo Tecnico'!N8="","",'Dibujo Tecnico'!N8) ->  | L71: =IF('Dibujo Tecnico'!O8="","",'Dibujo Tecnico'!O8) ->  | M71: =IF('Dibujo Tecnico'!P8="","",'Dibujo Tecnico'!P8) ->  | N71: =IF('Dibujo Tecnico'!Q8="","",'Dibujo Tecnico'!Q8) ->  | O71: =IF('Dibujo Tecnico'!R8="","",'Dibujo Tecnico'!R8) ->  | P71: =IF('Dibujo Tecnico'!S8="","",'Dibujo Tecnico'!S8) ->  | Q71: =IF('Dibujo Tecnico'!T8="","",'Dibujo Tecnico'!T8) ->  | R71: =IF('Dibujo Tecnico'!U8="","",'Dibujo Tecnico'!U8) ->  | S71: =IF('Dibujo Tecnico'!V8="","",'Dibujo Tecnico'!V8) ->  | T71: =IF('Dibujo Tecnico'!W8="","",'Dibujo Tecnico'!W8) ->  | U71: =IF('Dibujo Tecnico'!X8="","",'Dibujo Tecnico'!X8) ->  | V71: =IF('Dibujo Tecnico'!Y8="","",'Dibujo Tecnico'!Y8) ->  | W71: =IF('Dibujo Tecnico'!Z8="","",'Dibujo Tecnico'!Z8) ->  | X71: =IF('Dibujo Tecnico'!AA8="","",'Dibujo Tecnico'!AA8) ->  | Y71: =IF('Dibujo Tecnico'!AB8="","",'Dibujo Tecnico'!AB8) ->  | Z71: =IF('Dibujo Tecnico'!AC8="","",'Dibujo Tecnico'!AC8) ->  | AA71: =IF('Dibujo Tecnico'!AD8="","",'Dibujo Tecnico'!AD8) ->  | AB71: =IF('Dibujo Tecnico'!AE8="","",'Dibujo Tecnico'!AE8) ->  | AC71: =IF('Dibujo Tecnico'!AF8="","",'Dibujo Tecnico'!AF8) ->  | AD71: =IF('Dibujo Tecnico'!AG8="","",'Dibujo Tecnico'!AG8) ->  | AE71: =IF('Dibujo Tecnico'!AH8="","",'Dibujo Tecnico'!AH8) ->  | AF71: =IF('Dibujo Tecnico'!AI8="","",'Dibujo Tecnico'!AI8) ->  | AG71: =IF('Dibujo Tecnico'!AJ8="","",'Dibujo Tecnico'!AJ8) ->  | AH71: =IF('Dibujo Tecnico'!AK8="","",'Dibujo Tecnico'!AK8) ->  | AI71: =IF('Dibujo Tecnico'!AL8="","",'Dibujo Tecnico'!AL8) ->  | AJ71: =IF('Dibujo Tecnico'!AM8="","",'Dibujo Tecnico'!AM8) ->  | AK71: =IF('Dibujo Tecnico'!AN8="","",'Dibujo Tecnico'!AN8) ->  | AL71: =IF('Dibujo Tecnico'!AO8="","",'Dibujo Tecnico'!AO8) ->  | AM71: =IF('Dibujo Tecnico'!AP8="","",'Dibujo Tecnico'!AP8) -> 
D72: Criterio Evaluación 3.2 | E72: =IF('Dibujo Tecnico'!H9="","",'Dibujo Tecnico'!H9) ->  | F72: =IF('Dibujo Tecnico'!I9="","",'Dibujo Tecnico'!I9) ->  | G72: =IF('Dibujo Tecnico'!J9="","",'Dibujo Tecnico'!J9) ->  | H72: =IF('Dibujo Tecnico'!K9="","",'Dibujo Tecnico'!K9) ->  | I72: =IF('Dibujo Tecnico'!L9="","",'Dibujo Tecnico'!L9) ->  | J72: =IF('Dibujo Tecnico'!M9="","",'Dibujo Tecnico'!M9) ->  | K72: =IF('Dibujo Tecnico'!N9="","",'Dibujo Tecnico'!N9) ->  | L72: =IF('Dibujo Tecnico'!O9="","",'Dibujo Tecnico'!O9) ->  | M72: =IF('Dibujo Tecnico'!P9="","",'Dibujo Tecnico'!P9) ->  | N72: =IF('Dibujo Tecnico'!Q9="","",'Dibujo Tecnico'!Q9) ->  | O72: =IF('Dibujo Tecnico'!R9="","",'Dibujo Tecnico'!R9) ->  | P72: =IF('Dibujo Tecnico'!S9="","",'Dibujo Tecnico'!S9) ->  | Q72: =IF('Dibujo Tecnico'!T9="","",'Dibujo Tecnico'!T9) ->  | R72: =IF('Dibujo Tecnico'!U9="","",'Dibujo Tecnico'!U9) ->  | S72: =IF('Dibujo Tecnico'!V9="","",'Dibujo Tecnico'!V9) ->  | T72: =IF('Dibujo Tecnico'!W9="","",'Dibujo Tecnico'!W9) ->  | U72: =IF('Dibujo Tecnico'!X9="","",'Dibujo Tecnico'!X9) ->  | V72: =IF('Dibujo Tecnico'!Y9="","",'Dibujo Tecnico'!Y9) ->  | W72: =IF('Dibujo Tecnico'!Z9="","",'Dibujo Tecnico'!Z9) ->  | X72: =IF('Dibujo Tecnico'!AA9="","",'Dibujo Tecnico'!AA9) ->  | Y72: =IF('Dibujo Tecnico'!AB9="","",'Dibujo Tecnico'!AB9) ->  | Z72: =IF('Dibujo Tecnico'!AC9="","",'Dibujo Tecnico'!AC9) ->  | AA72: =IF('Dibujo Tecnico'!AD9="","",'Dibujo Tecnico'!AD9) ->  | AB72: =IF('Dibujo Tecnico'!AE9="","",'Dibujo Tecnico'!AE9) ->  | AC72: =IF('Dibujo Tecnico'!AF9="","",'Dibujo Tecnico'!AF9) ->  | AD72: =IF('Dibujo Tecnico'!AG9="","",'Dibujo Tecnico'!AG9) ->  | AE72: =IF('Dibujo Tecnico'!AH9="","",'Dibujo Tecnico'!AH9) ->  | AF72: =IF('Dibujo Tecnico'!AI9="","",'Dibujo Tecnico'!AI9) ->  | AG72: =IF('Dibujo Tecnico'!AJ9="","",'Dibujo Tecnico'!AJ9) ->  | AH72: =IF('Dibujo Tecnico'!AK9="","",'Dibujo Tecnico'!AK9) ->  | AI72: =IF('Dibujo Tecnico'!AL9="","",'Dibujo Tecnico'!AL9) ->  | AJ72: =IF('Dibujo Tecnico'!AM9="","",'Dibujo Tecnico'!AM9) ->  | AK72: =IF('Dibujo Tecnico'!AN9="","",'Dibujo Tecnico'!AN9) ->  | AL72: =IF('Dibujo Tecnico'!AO9="","",'Dibujo Tecnico'!AO9) ->  | AM72: =IF('Dibujo Tecnico'!AP9="","",'Dibujo Tecnico'!AP9) -> 
D73: Criterio Evaluación 3.3 | E73: =IF('Dibujo Tecnico'!H10="","",'Dibujo Tecnico'!H10) ->  | F73: =IF('Dibujo Tecnico'!I10="","",'Dibujo Tecnico'!I10) ->  | G73: =IF('Dibujo Tecnico'!J10="","",'Dibujo Tecnico'!J10) ->  | H73: =IF('Dibujo Tecnico'!K10="","",'Dibujo Tecnico'!K10) ->  | I73: =IF('Dibujo Tecnico'!L10="","",'Dibujo Tecnico'!L10) ->  | J73: =IF('Dibujo Tecnico'!M10="","",'Dibujo Tecnico'!M10) ->  | K73: =IF('Dibujo Tecnico'!N10="","",'Dibujo Tecnico'!N10) ->  | L73: =IF('Dibujo Tecnico'!O10="","",'Dibujo Tecnico'!O10) ->  | M73: =IF('Dibujo Tecnico'!P10="","",'Dibujo Tecnico'!P10) ->  | N73: =IF('Dibujo Tecnico'!Q10="","",'Dibujo Tecnico'!Q10) ->  | O73: =IF('Dibujo Tecnico'!R10="","",'Dibujo Tecnico'!R10) ->  | P73: =IF('Dibujo Tecnico'!S10="","",'Dibujo Tecnico'!S10) ->  | Q73: =IF('Dibujo Tecnico'!T10="","",'Dibujo Tecnico'!T10) ->  | R73: =IF('Dibujo Tecnico'!U10="","",'Dibujo Tecnico'!U10) ->  | S73: =IF('Dibujo Tecnico'!V10="","",'Dibujo Tecnico'!V10) ->  | T73: =IF('Dibujo Tecnico'!W10="","",'Dibujo Tecnico'!W10) ->  | U73: =IF('Dibujo Tecnico'!X10="","",'Dibujo Tecnico'!X10) ->  | V73: =IF('Dibujo Tecnico'!Y10="","",'Dibujo Tecnico'!Y10) ->  | W73: =IF('Dibujo Tecnico'!Z10="","",'Dibujo Tecnico'!Z10) ->  | X73: =IF('Dibujo Tecnico'!AA10="","",'Dibujo Tecnico'!AA10) ->  | Y73: =IF('Dibujo Tecnico'!AB10="","",'Dibujo Tecnico'!AB10) ->  | Z73: =IF('Dibujo Tecnico'!AC10="","",'Dibujo Tecnico'!AC10) ->  | AA73: =IF('Dibujo Tecnico'!AD10="","",'Dibujo Tecnico'!AD10) ->  | AB73: =IF('Dibujo Tecnico'!AE10="","",'Dibujo Tecnico'!AE10) ->  | AC73: =IF('Dibujo Tecnico'!AF10="","",'Dibujo Tecnico'!AF10) ->  | AD73: =IF('Dibujo Tecnico'!AG10="","",'Dibujo Tecnico'!AG10) ->  | AE73: =IF('Dibujo Tecnico'!AH10="","",'Dibujo Tecnico'!AH10) ->  | AF73: =IF('Dibujo Tecnico'!AI10="","",'Dibujo Tecnico'!AI10) ->  | AG73: =IF('Dibujo Tecnico'!AJ10="","",'Dibujo Tecnico'!AJ10) ->  | AH73: =IF('Dibujo Tecnico'!AK10="","",'Dibujo Tecnico'!AK10) ->  | AI73: =IF('Dibujo Tecnico'!AL10="","",'Dibujo Tecnico'!AL10) ->  | AJ73: =IF('Dibujo Tecnico'!AM10="","",'Dibujo Tecnico'!AM10) ->  | AK73: =IF('Dibujo Tecnico'!AN10="","",'Dibujo Tecnico'!AN10) ->  | AL73: =IF('Dibujo Tecnico'!AO10="","",'Dibujo Tecnico'!AO10) ->  | AM73: =IF('Dibujo Tecnico'!AP10="","",'Dibujo Tecnico'!AP10) -> 
D74: Criterio Evaluación 3.4 | E74: =IF('Dibujo Tecnico'!H11="","",'Dibujo Tecnico'!H11) ->  | F74: =IF('Dibujo Tecnico'!I11="","",'Dibujo Tecnico'!I11) ->  | G74: =IF('Dibujo Tecnico'!J11="","",'Dibujo Tecnico'!J11) ->  | H74: =IF('Dibujo Tecnico'!K11="","",'Dibujo Tecnico'!K11) ->  | I74: =IF('Dibujo Tecnico'!L11="","",'Dibujo Tecnico'!L11) ->  | J74: =IF('Dibujo Tecnico'!M11="","",'Dibujo Tecnico'!M11) ->  | K74: =IF('Dibujo Tecnico'!N11="","",'Dibujo Tecnico'!N11) ->  | L74: =IF('Dibujo Tecnico'!O11="","",'Dibujo Tecnico'!O11) ->  | M74: =IF('Dibujo Tecnico'!P11="","",'Dibujo Tecnico'!P11) ->  | N74: =IF('Dibujo Tecnico'!Q11="","",'Dibujo Tecnico'!Q11) ->  | O74: =IF('Dibujo Tecnico'!R11="","",'Dibujo Tecnico'!R11) ->  | P74: =IF('Dibujo Tecnico'!S11="","",'Dibujo Tecnico'!S11) ->  | Q74: =IF('Dibujo Tecnico'!T11="","",'Dibujo Tecnico'!T11) ->  | R74: =IF('Dibujo Tecnico'!U11="","",'Dibujo Tecnico'!U11) ->  | S74: =IF('Dibujo Tecnico'!V11="","",'Dibujo Tecnico'!V11) ->  | T74: =IF('Dibujo Tecnico'!W11="","",'Dibujo Tecnico'!W11) ->  | U74: =IF('Dibujo Tecnico'!X11="","",'Dibujo Tecnico'!X11) ->  | V74: =IF('Dibujo Tecnico'!Y11="","",'Dibujo Tecnico'!Y11) ->  | W74: =IF('Dibujo Tecnico'!Z11="","",'Dibujo Tecnico'!Z11) ->  | X74: =IF('Dibujo Tecnico'!AA11="","",'Dibujo Tecnico'!AA11) ->  | Y74: =IF('Dibujo Tecnico'!AB11="","",'Dibujo Tecnico'!AB11) ->  | Z74: =IF('Dibujo Tecnico'!AC11="","",'Dibujo Tecnico'!AC11) ->  | AA74: =IF('Dibujo Tecnico'!AD11="","",'Dibujo Tecnico'!AD11) ->  | AB74: =IF('Dibujo Tecnico'!AE11="","",'Dibujo Tecnico'!AE11) ->  | AC74: =IF('Dibujo Tecnico'!AF11="","",'Dibujo Tecnico'!AF11) ->  | AD74: =IF('Dibujo Tecnico'!AG11="","",'Dibujo Tecnico'!AG11) ->  | AE74: =IF('Dibujo Tecnico'!AH11="","",'Dibujo Tecnico'!AH11) ->  | AF74: =IF('Dibujo Tecnico'!AI11="","",'Dibujo Tecnico'!AI11) ->  | AG74: =IF('Dibujo Tecnico'!AJ11="","",'Dibujo Tecnico'!AJ11) ->  | AH74: =IF('Dibujo Tecnico'!AK11="","",'Dibujo Tecnico'!AK11) ->  | AI74: =IF('Dibujo Tecnico'!AL11="","",'Dibujo Tecnico'!AL11) ->  | AJ74: =IF('Dibujo Tecnico'!AM11="","",'Dibujo Tecnico'!AM11) ->  | AK74: =IF('Dibujo Tecnico'!AN11="","",'Dibujo Tecnico'!AN11) ->  | AL74: =IF('Dibujo Tecnico'!AO11="","",'Dibujo Tecnico'!AO11) ->  | AM74: =IF('Dibujo Tecnico'!AP11="","",'Dibujo Tecnico'!AP11) -> 
D75: Criterio Evaluación 3.5 | E75: =IF('Dibujo Tecnico'!H12="","",'Dibujo Tecnico'!H12) ->  | F75: =IF('Dibujo Tecnico'!I12="","",'Dibujo Tecnico'!I12) ->  | G75: =IF('Dibujo Tecnico'!J12="","",'Dibujo Tecnico'!J12) ->  | H75: =IF('Dibujo Tecnico'!K12="","",'Dibujo Tecnico'!K12) ->  | I75: =IF('Dibujo Tecnico'!L12="","",'Dibujo Tecnico'!L12) ->  | J75: =IF('Dibujo Tecnico'!M12="","",'Dibujo Tecnico'!M12) ->  | K75: =IF('Dibujo Tecnico'!N12="","",'Dibujo Tecnico'!N12) ->  | L75: =IF('Dibujo Tecnico'!O12="","",'Dibujo Tecnico'!O12) ->  | M75: =IF('Dibujo Tecnico'!P12="","",'Dibujo Tecnico'!P12) ->  | N75: =IF('Dibujo Tecnico'!Q12="","",'Dibujo Tecnico'!Q12) ->  | O75: =IF('Dibujo Tecnico'!R12="","",'Dibujo Tecnico'!R12) ->  | P75: =IF('Dibujo Tecnico'!S12="","",'Dibujo Tecnico'!S12) ->  | Q75: =IF('Dibujo Tecnico'!T12="","",'Dibujo Tecnico'!T12) ->  | R75: =IF('Dibujo Tecnico'!U12="","",'Dibujo Tecnico'!U12) ->  | S75: =IF('Dibujo Tecnico'!V12="","",'Dibujo Tecnico'!V12) ->  | T75: =IF('Dibujo Tecnico'!W12="","",'Dibujo Tecnico'!W12) ->  | U75: =IF('Dibujo Tecnico'!X12="","",'Dibujo Tecnico'!X12) ->  | V75: =IF('Dibujo Tecnico'!Y12="","",'Dibujo Tecnico'!Y12) ->  | W75: =IF('Dibujo Tecnico'!Z12="","",'Dibujo Tecnico'!Z12) ->  | X75: =IF('Dibujo Tecnico'!AA12="","",'Dibujo Tecnico'!AA12) ->  | Y75: =IF('Dibujo Tecnico'!AB12="","",'Dibujo Tecnico'!AB12) ->  | Z75: =IF('Dibujo Tecnico'!AC12="","",'Dibujo Tecnico'!AC12) ->  | AA75: =IF('Dibujo Tecnico'!AD12="","",'Dibujo Tecnico'!AD12) ->  | AB75: =IF('Dibujo Tecnico'!AE12="","",'Dibujo Tecnico'!AE12) ->  | AC75: =IF('Dibujo Tecnico'!AF12="","",'Dibujo Tecnico'!AF12) ->  | AD75: =IF('Dibujo Tecnico'!AG12="","",'Dibujo Tecnico'!AG12) ->  | AE75: =IF('Dibujo Tecnico'!AH12="","",'Dibujo Tecnico'!AH12) ->  | AF75: =IF('Dibujo Tecnico'!AI12="","",'Dibujo Tecnico'!AI12) ->  | AG75: =IF('Dibujo Tecnico'!AJ12="","",'Dibujo Tecnico'!AJ12) ->  | AH75: =IF('Dibujo Tecnico'!AK12="","",'Dibujo Tecnico'!AK12) ->  | AI75: =IF('Dibujo Tecnico'!AL12="","",'Dibujo Tecnico'!AL12) ->  | AJ75: =IF('Dibujo Tecnico'!AM12="","",'Dibujo Tecnico'!AM12) ->  | AK75: =IF('Dibujo Tecnico'!AN12="","",'Dibujo Tecnico'!AN12) ->  | AL75: =IF('Dibujo Tecnico'!AO12="","",'Dibujo Tecnico'!AO12) ->  | AM75: =IF('Dibujo Tecnico'!AP12="","",'Dibujo Tecnico'!AP12) -> 
D76: Criterio Evaluación 3.6 | E76: =IF('Dibujo Tecnico'!H13="","",'Dibujo Tecnico'!H13) ->  | F76: =IF('Dibujo Tecnico'!I13="","",'Dibujo Tecnico'!I13) ->  | G76: =IF('Dibujo Tecnico'!J13="","",'Dibujo Tecnico'!J13) ->  | H76: =IF('Dibujo Tecnico'!K13="","",'Dibujo Tecnico'!K13) ->  | I76: =IF('Dibujo Tecnico'!L13="","",'Dibujo Tecnico'!L13) ->  | J76: =IF('Dibujo Tecnico'!M13="","",'Dibujo Tecnico'!M13) ->  | K76: =IF('Dibujo Tecnico'!N13="","",'Dibujo Tecnico'!N13) ->  | L76: =IF('Dibujo Tecnico'!O13="","",'Dibujo Tecnico'!O13) ->  | M76: =IF('Dibujo Tecnico'!P13="","",'Dibujo Tecnico'!P13) ->  | N76: =IF('Dibujo Tecnico'!Q13="","",'Dibujo Tecnico'!Q13) ->  | O76: =IF('Dibujo Tecnico'!R13="","",'Dibujo Tecnico'!R13) ->  | P76: =IF('Dibujo Tecnico'!S13="","",'Dibujo Tecnico'!S13) ->  | Q76: =IF('Dibujo Tecnico'!T13="","",'Dibujo Tecnico'!T13) ->  | R76: =IF('Dibujo Tecnico'!U13="","",'Dibujo Tecnico'!U13) ->  | S76: =IF('Dibujo Tecnico'!V13="","",'Dibujo Tecnico'!V13) ->  | T76: =IF('Dibujo Tecnico'!W13="","",'Dibujo Tecnico'!W13) ->  | U76: =IF('Dibujo Tecnico'!X13="","",'Dibujo Tecnico'!X13) ->  | V76: =IF('Dibujo Tecnico'!Y13="","",'Dibujo Tecnico'!Y13) ->  | W76: =IF('Dibujo Tecnico'!Z13="","",'Dibujo Tecnico'!Z13) ->  | X76: =IF('Dibujo Tecnico'!AA13="","",'Dibujo Tecnico'!AA13) ->  | Y76: =IF('Dibujo Tecnico'!AB13="","",'Dibujo Tecnico'!AB13) ->  | Z76: =IF('Dibujo Tecnico'!AC13="","",'Dibujo Tecnico'!AC13) ->  | AA76: =IF('Dibujo Tecnico'!AD13="","",'Dibujo Tecnico'!AD13) ->  | AB76: =IF('Dibujo Tecnico'!AE13="","",'Dibujo Tecnico'!AE13) ->  | AC76: =IF('Dibujo Tecnico'!AF13="","",'Dibujo Tecnico'!AF13) ->  | AD76: =IF('Dibujo Tecnico'!AG13="","",'Dibujo Tecnico'!AG13) ->  | AE76: =IF('Dibujo Tecnico'!AH13="","",'Dibujo Tecnico'!AH13) ->  | AF76: =IF('Dibujo Tecnico'!AI13="","",'Dibujo Tecnico'!AI13) ->  | AG76: =IF('Dibujo Tecnico'!AJ13="","",'Dibujo Tecnico'!AJ13) ->  | AH76: =IF('Dibujo Tecnico'!AK13="","",'Dibujo Tecnico'!AK13) ->  | AI76: =IF('Dibujo Tecnico'!AL13="","",'Dibujo Tecnico'!AL13) ->  | AJ76: =IF('Dibujo Tecnico'!AM13="","",'Dibujo Tecnico'!AM13) ->  | AK76: =IF('Dibujo Tecnico'!AN13="","",'Dibujo Tecnico'!AN13) ->  | AL76: =IF('Dibujo Tecnico'!AO13="","",'Dibujo Tecnico'!AO13) ->  | AM76: =IF('Dibujo Tecnico'!AP13="","",'Dibujo Tecnico'!AP13) -> 
D77: Criterio Evaluación 3.7 | E77: =IF('Dibujo Tecnico'!H14="","",'Dibujo Tecnico'!H14) ->  | F77: =IF('Dibujo Tecnico'!I14="","",'Dibujo Tecnico'!I14) ->  | G77: =IF('Dibujo Tecnico'!J14="","",'Dibujo Tecnico'!J14) ->  | H77: =IF('Dibujo Tecnico'!K14="","",'Dibujo Tecnico'!K14) ->  | I77: =IF('Dibujo Tecnico'!L14="","",'Dibujo Tecnico'!L14) ->  | J77: =IF('Dibujo Tecnico'!M14="","",'Dibujo Tecnico'!M14) ->  | K77: =IF('Dibujo Tecnico'!N14="","",'Dibujo Tecnico'!N14) ->  | L77: =IF('Dibujo Tecnico'!O14="","",'Dibujo Tecnico'!O14) ->  | M77: =IF('Dibujo Tecnico'!P14="","",'Dibujo Tecnico'!P14) ->  | N77: =IF('Dibujo Tecnico'!Q14="","",'Dibujo Tecnico'!Q14) ->  | O77: =IF('Dibujo Tecnico'!R14="","",'Dibujo Tecnico'!R14) ->  | P77: =IF('Dibujo Tecnico'!S14="","",'Dibujo Tecnico'!S14) ->  | Q77: =IF('Dibujo Tecnico'!T14="","",'Dibujo Tecnico'!T14) ->  | R77: =IF('Dibujo Tecnico'!U14="","",'Dibujo Tecnico'!U14) ->  | S77: =IF('Dibujo Tecnico'!V14="","",'Dibujo Tecnico'!V14) ->  | T77: =IF('Dibujo Tecnico'!W14="","",'Dibujo Tecnico'!W14) ->  | U77: =IF('Dibujo Tecnico'!X14="","",'Dibujo Tecnico'!X14) ->  | V77: =IF('Dibujo Tecnico'!Y14="","",'Dibujo Tecnico'!Y14) ->  | W77: =IF('Dibujo Tecnico'!Z14="","",'Dibujo Tecnico'!Z14) ->  | X77: =IF('Dibujo Tecnico'!AA14="","",'Dibujo Tecnico'!AA14) ->  | Y77: =IF('Dibujo Tecnico'!AB14="","",'Dibujo Tecnico'!AB14) ->  | Z77: =IF('Dibujo Tecnico'!AC14="","",'Dibujo Tecnico'!AC14) ->  | AA77: =IF('Dibujo Tecnico'!AD14="","",'Dibujo Tecnico'!AD14) ->  | AB77: =IF('Dibujo Tecnico'!AE14="","",'Dibujo Tecnico'!AE14) ->  | AC77: =IF('Dibujo Tecnico'!AF14="","",'Dibujo Tecnico'!AF14) ->  | AD77: =IF('Dibujo Tecnico'!AG14="","",'Dibujo Tecnico'!AG14) ->  | AE77: =IF('Dibujo Tecnico'!AH14="","",'Dibujo Tecnico'!AH14) ->  | AF77: =IF('Dibujo Tecnico'!AI14="","",'Dibujo Tecnico'!AI14) ->  | AG77: =IF('Dibujo Tecnico'!AJ14="","",'Dibujo Tecnico'!AJ14) ->  | AH77: =IF('Dibujo Tecnico'!AK14="","",'Dibujo Tecnico'!AK14) ->  | AI77: =IF('Dibujo Tecnico'!AL14="","",'Dibujo Tecnico'!AL14) ->  | AJ77: =IF('Dibujo Tecnico'!AM14="","",'Dibujo Tecnico'!AM14) ->  | AK77: =IF('Dibujo Tecnico'!AN14="","",'Dibujo Tecnico'!AN14) ->  | AL77: =IF('Dibujo Tecnico'!AO14="","",'Dibujo Tecnico'!AO14) ->  | AM77: =IF('Dibujo Tecnico'!AP14="","",'Dibujo Tecnico'!AP14) -> 
C78: Comp. Esp. 4 | D78: Criterio Evaluación 4.1 | E78: =IF('Dibujo Tecnico'!H15="","",'Dibujo Tecnico'!H15) ->  | F78: =IF('Dibujo Tecnico'!I15="","",'Dibujo Tecnico'!I15) ->  | G78: =IF('Dibujo Tecnico'!J15="","",'Dibujo Tecnico'!J15) ->  | H78: =IF('Dibujo Tecnico'!K15="","",'Dibujo Tecnico'!K15) ->  | I78: =IF('Dibujo Tecnico'!L15="","",'Dibujo Tecnico'!L15) ->  | J78: =IF('Dibujo Tecnico'!M15="","",'Dibujo Tecnico'!M15) ->  | K78: =IF('Dibujo Tecnico'!N15="","",'Dibujo Tecnico'!N15) ->  | L78: =IF('Dibujo Tecnico'!O15="","",'Dibujo Tecnico'!O15) ->  | M78: =IF('Dibujo Tecnico'!P15="","",'Dibujo Tecnico'!P15) ->  | N78: =IF('Dibujo Tecnico'!Q15="","",'Dibujo Tecnico'!Q15) ->  | O78: =IF('Dibujo Tecnico'!R15="","",'Dibujo Tecnico'!R15) ->  | P78: =IF('Dibujo Tecnico'!S15="","",'Dibujo Tecnico'!S15) ->  | Q78: =IF('Dibujo Tecnico'!T15="","",'Dibujo Tecnico'!T15) ->  | R78: =IF('Dibujo Tecnico'!U15="","",'Dibujo Tecnico'!U15) ->  | S78: =IF('Dibujo Tecnico'!V15="","",'Dibujo Tecnico'!V15) ->  | T78: =IF('Dibujo Tecnico'!W15="","",'Dibujo Tecnico'!W15) ->  | U78: =IF('Dibujo Tecnico'!X15="","",'Dibujo Tecnico'!X15) ->  | V78: =IF('Dibujo Tecnico'!Y15="","",'Dibujo Tecnico'!Y15) ->  | W78: =IF('Dibujo Tecnico'!Z15="","",'Dibujo Tecnico'!Z15) ->  | X78: =IF('Dibujo Tecnico'!AA15="","",'Dibujo Tecnico'!AA15) ->  | Y78: =IF('Dibujo Tecnico'!AB15="","",'Dibujo Tecnico'!AB15) ->  | Z78: =IF('Dibujo Tecnico'!AC15="","",'Dibujo Tecnico'!AC15) ->  | AA78: =IF('Dibujo Tecnico'!AD15="","",'Dibujo Tecnico'!AD15) ->  | AB78: =IF('Dibujo Tecnico'!AE15="","",'Dibujo Tecnico'!AE15) ->  | AC78: =IF('Dibujo Tecnico'!AF15="","",'Dibujo Tecnico'!AF15) ->  | AD78: =IF('Dibujo Tecnico'!AG15="","",'Dibujo Tecnico'!AG15) ->  | AE78: =IF('Dibujo Tecnico'!AH15="","",'Dibujo Tecnico'!AH15) ->  | AF78: =IF('Dibujo Tecnico'!AI15="","",'Dibujo Tecnico'!AI15) ->  | AG78: =IF('Dibujo Tecnico'!AJ15="","",'Dibujo Tecnico'!AJ15) ->  | AH78: =IF('Dibujo Tecnico'!AK15="","",'Dibujo Tecnico'!AK15) ->  | AI78: =IF('Dibujo Tecnico'!AL15="","",'Dibujo Tecnico'!AL15) ->  | AJ78: =IF('Dibujo Tecnico'!AM15="","",'Dibujo Tecnico'!AM15) ->  | AK78: =IF('Dibujo Tecnico'!AN15="","",'Dibujo Tecnico'!AN15) ->  | AL78: =IF('Dibujo Tecnico'!AO15="","",'Dibujo Tecnico'!AO15) ->  | AM78: =IF('Dibujo Tecnico'!AP15="","",'Dibujo Tecnico'!AP15) -> 
D79: Criterio Evaluación 4.2 | E79: =IF('Dibujo Tecnico'!H16="","",'Dibujo Tecnico'!H16) ->  | F79: =IF('Dibujo Tecnico'!I16="","",'Dibujo Tecnico'!I16) ->  | G79: =IF('Dibujo Tecnico'!J16="","",'Dibujo Tecnico'!J16) ->  | H79: =IF('Dibujo Tecnico'!K16="","",'Dibujo Tecnico'!K16) ->  | I79: =IF('Dibujo Tecnico'!L16="","",'Dibujo Tecnico'!L16) ->  | J79: =IF('Dibujo Tecnico'!M16="","",'Dibujo Tecnico'!M16) ->  | K79: =IF('Dibujo Tecnico'!N16="","",'Dibujo Tecnico'!N16) ->  | L79: =IF('Dibujo Tecnico'!O16="","",'Dibujo Tecnico'!O16) ->  | M79: =IF('Dibujo Tecnico'!P16="","",'Dibujo Tecnico'!P16) ->  | N79: =IF('Dibujo Tecnico'!Q16="","",'Dibujo Tecnico'!Q16) ->  | O79: =IF('Dibujo Tecnico'!R16="","",'Dibujo Tecnico'!R16) ->  | P79: =IF('Dibujo Tecnico'!S16="","",'Dibujo Tecnico'!S16) ->  | Q79: =IF('Dibujo Tecnico'!T16="","",'Dibujo Tecnico'!T16) ->  | R79: =IF('Dibujo Tecnico'!U16="","",'Dibujo Tecnico'!U16) ->  | S79: =IF('Dibujo Tecnico'!V16="","",'Dibujo Tecnico'!V16) ->  | T79: =IF('Dibujo Tecnico'!W16="","",'Dibujo Tecnico'!W16) ->  | U79: =IF('Dibujo Tecnico'!X16="","",'Dibujo Tecnico'!X16) ->  | V79: =IF('Dibujo Tecnico'!Y16="","",'Dibujo Tecnico'!Y16) ->  | W79: =IF('Dibujo Tecnico'!Z16="","",'Dibujo Tecnico'!Z16) ->  | X79: =IF('Dibujo Tecnico'!AA16="","",'Dibujo Tecnico'!AA16) ->  | Y79: =IF('Dibujo Tecnico'!AB16="","",'Dibujo Tecnico'!AB16) ->  | Z79: =IF('Dibujo Tecnico'!AC16="","",'Dibujo Tecnico'!AC16) ->  | AA79: =IF('Dibujo Tecnico'!AD16="","",'Dibujo Tecnico'!AD16) ->  | AB79: =IF('Dibujo Tecnico'!AE16="","",'Dibujo Tecnico'!AE16) ->  | AC79: =IF('Dibujo Tecnico'!AF16="","",'Dibujo Tecnico'!AF16) ->  | AD79: =IF('Dibujo Tecnico'!AG16="","",'Dibujo Tecnico'!AG16) ->  | AE79: =IF('Dibujo Tecnico'!AH16="","",'Dibujo Tecnico'!AH16) ->  | AF79: =IF('Dibujo Tecnico'!AI16="","",'Dibujo Tecnico'!AI16) ->  | AG79: =IF('Dibujo Tecnico'!AJ16="","",'Dibujo Tecnico'!AJ16) ->  | AH79: =IF('Dibujo Tecnico'!AK16="","",'Dibujo Tecnico'!AK16) ->  | AI79: =IF('Dibujo Tecnico'!AL16="","",'Dibujo Tecnico'!AL16) ->  | AJ79: =IF('Dibujo Tecnico'!AM16="","",'Dibujo Tecnico'!AM16) ->  | AK79: =IF('Dibujo Tecnico'!AN16="","",'Dibujo Tecnico'!AN16) ->  | AL79: =IF('Dibujo Tecnico'!AO16="","",'Dibujo Tecnico'!AO16) ->  | AM79: =IF('Dibujo Tecnico'!AP16="","",'Dibujo Tecnico'!AP16) -> 
D80: Criterio Evaluación 4.3 | E80: =IF('Dibujo Tecnico'!H17="","",'Dibujo Tecnico'!H17) ->  | F80: =IF('Dibujo Tecnico'!I17="","",'Dibujo Tecnico'!I17) ->  | G80: =IF('Dibujo Tecnico'!J17="","",'Dibujo Tecnico'!J17) ->  | H80: =IF('Dibujo Tecnico'!K17="","",'Dibujo Tecnico'!K17) ->  | I80: =IF('Dibujo Tecnico'!L17="","",'Dibujo Tecnico'!L17) ->  | J80: =IF('Dibujo Tecnico'!M17="","",'Dibujo Tecnico'!M17) ->  | K80: =IF('Dibujo Tecnico'!N17="","",'Dibujo Tecnico'!N17) ->  | L80: =IF('Dibujo Tecnico'!O17="","",'Dibujo Tecnico'!O17) ->  | M80: =IF('Dibujo Tecnico'!P17="","",'Dibujo Tecnico'!P17) ->  | N80: =IF('Dibujo Tecnico'!Q17="","",'Dibujo Tecnico'!Q17) ->  | O80: =IF('Dibujo Tecnico'!R17="","",'Dibujo Tecnico'!R17) ->  | P80: =IF('Dibujo Tecnico'!S17="","",'Dibujo Tecnico'!S17) ->  | Q80: =IF('Dibujo Tecnico'!T17="","",'Dibujo Tecnico'!T17) ->  | R80: =IF('Dibujo Tecnico'!U17="","",'Dibujo Tecnico'!U17) ->  | S80: =IF('Dibujo Tecnico'!V17="","",'Dibujo Tecnico'!V17) ->  | T80: =IF('Dibujo Tecnico'!W17="","",'Dibujo Tecnico'!W17) ->  | U80: =IF('Dibujo Tecnico'!X17="","",'Dibujo Tecnico'!X17) ->  | V80: =IF('Dibujo Tecnico'!Y17="","",'Dibujo Tecnico'!Y17) ->  | W80: =IF('Dibujo Tecnico'!Z17="","",'Dibujo Tecnico'!Z17) ->  | X80: =IF('Dibujo Tecnico'!AA17="","",'Dibujo Tecnico'!AA17) ->  | Y80: =IF('Dibujo Tecnico'!AB17="","",'Dibujo Tecnico'!AB17) ->  | Z80: =IF('Dibujo Tecnico'!AC17="","",'Dibujo Tecnico'!AC17) ->  | AA80: =IF('Dibujo Tecnico'!AD17="","",'Dibujo Tecnico'!AD17) ->  | AB80: =IF('Dibujo Tecnico'!AE17="","",'Dibujo Tecnico'!AE17) ->  | AC80: =IF('Dibujo Tecnico'!AF17="","",'Dibujo Tecnico'!AF17) ->  | AD80: =IF('Dibujo Tecnico'!AG17="","",'Dibujo Tecnico'!AG17) ->  | AE80: =IF('Dibujo Tecnico'!AH17="","",'Dibujo Tecnico'!AH17) ->  | AF80: =IF('Dibujo Tecnico'!AI17="","",'Dibujo Tecnico'!AI17) ->  | AG80: =IF('Dibujo Tecnico'!AJ17="","",'Dibujo Tecnico'!AJ17) ->  | AH80: =IF('Dibujo Tecnico'!AK17="","",'Dibujo Tecnico'!AK17) ->  | AI80: =IF('Dibujo Tecnico'!AL17="","",'Dibujo Tecnico'!AL17) ->  | AJ80: =IF('Dibujo Tecnico'!AM17="","",'Dibujo Tecnico'!AM17) ->  | AK80: =IF('Dibujo Tecnico'!AN17="","",'Dibujo Tecnico'!AN17) ->  | AL80: =IF('Dibujo Tecnico'!AO17="","",'Dibujo Tecnico'!AO17) ->  | AM80: =IF('Dibujo Tecnico'!AP17="","",'Dibujo Tecnico'!AP17) -> 
D81: Criterio Evaluación 4.4 | E81: =IF('Dibujo Tecnico'!H18="","",'Dibujo Tecnico'!H18) ->  | F81: =IF('Dibujo Tecnico'!I18="","",'Dibujo Tecnico'!I18) ->  | G81: =IF('Dibujo Tecnico'!J18="","",'Dibujo Tecnico'!J18) ->  | H81: =IF('Dibujo Tecnico'!K18="","",'Dibujo Tecnico'!K18) ->  | I81: =IF('Dibujo Tecnico'!L18="","",'Dibujo Tecnico'!L18) ->  | J81: =IF('Dibujo Tecnico'!M18="","",'Dibujo Tecnico'!M18) ->  | K81: =IF('Dibujo Tecnico'!N18="","",'Dibujo Tecnico'!N18) ->  | L81: =IF('Dibujo Tecnico'!O18="","",'Dibujo Tecnico'!O18) ->  | M81: =IF('Dibujo Tecnico'!P18="","",'Dibujo Tecnico'!P18) ->  | N81: =IF('Dibujo Tecnico'!Q18="","",'Dibujo Tecnico'!Q18) ->  | O81: =IF('Dibujo Tecnico'!R18="","",'Dibujo Tecnico'!R18) ->  | P81: =IF('Dibujo Tecnico'!S18="","",'Dibujo Tecnico'!S18) ->  | Q81: =IF('Dibujo Tecnico'!T18="","",'Dibujo Tecnico'!T18) ->  | R81: =IF('Dibujo Tecnico'!U18="","",'Dibujo Tecnico'!U18) ->  | S81: =IF('Dibujo Tecnico'!V18="","",'Dibujo Tecnico'!V18) ->  | T81: =IF('Dibujo Tecnico'!W18="","",'Dibujo Tecnico'!W18) ->  | U81: =IF('Dibujo Tecnico'!X18="","",'Dibujo Tecnico'!X18) ->  | V81: =IF('Dibujo Tecnico'!Y18="","",'Dibujo Tecnico'!Y18) ->  | W81: =IF('Dibujo Tecnico'!Z18="","",'Dibujo Tecnico'!Z18) ->  | X81: =IF('Dibujo Tecnico'!AA18="","",'Dibujo Tecnico'!AA18) ->  | Y81: =IF('Dibujo Tecnico'!AB18="","",'Dibujo Tecnico'!AB18) ->  | Z81: =IF('Dibujo Tecnico'!AC18="","",'Dibujo Tecnico'!AC18) ->  | AA81: =IF('Dibujo Tecnico'!AD18="","",'Dibujo Tecnico'!AD18) ->  | AB81: =IF('Dibujo Tecnico'!AE18="","",'Dibujo Tecnico'!AE18) ->  | AC81: =IF('Dibujo Tecnico'!AF18="","",'Dibujo Tecnico'!AF18) ->  | AD81: =IF('Dibujo Tecnico'!AG18="","",'Dibujo Tecnico'!AG18) ->  | AE81: =IF('Dibujo Tecnico'!AH18="","",'Dibujo Tecnico'!AH18) ->  | AF81: =IF('Dibujo Tecnico'!AI18="","",'Dibujo Tecnico'!AI18) ->  | AG81: =IF('Dibujo Tecnico'!AJ18="","",'Dibujo Tecnico'!AJ18) ->  | AH81: =IF('Dibujo Tecnico'!AK18="","",'Dibujo Tecnico'!AK18) ->  | AI81: =IF('Dibujo Tecnico'!AL18="","",'Dibujo Tecnico'!AL18) ->  | AJ81: =IF('Dibujo Tecnico'!AM18="","",'Dibujo Tecnico'!AM18) ->  | AK81: =IF('Dibujo Tecnico'!AN18="","",'Dibujo Tecnico'!AN18) ->  | AL81: =IF('Dibujo Tecnico'!AO18="","",'Dibujo Tecnico'!AO18) ->  | AM81: =IF('Dibujo Tecnico'!AP18="","",'Dibujo Tecnico'!AP18) -> 
C82: Comp. Esp. 5 | D82: Criterio Evaluación 5.1 | E82: =IF('Dibujo Tecnico'!H19="","",'Dibujo Tecnico'!H19) ->  | F82: =IF('Dibujo Tecnico'!I19="","",'Dibujo Tecnico'!I19) ->  | G82: =IF('Dibujo Tecnico'!J19="","",'Dibujo Tecnico'!J19) ->  | H82: =IF('Dibujo Tecnico'!K19="","",'Dibujo Tecnico'!K19) ->  | I82: =IF('Dibujo Tecnico'!L19="","",'Dibujo Tecnico'!L19) ->  | J82: =IF('Dibujo Tecnico'!M19="","",'Dibujo Tecnico'!M19) ->  | K82: =IF('Dibujo Tecnico'!N19="","",'Dibujo Tecnico'!N19) ->  | L82: =IF('Dibujo Tecnico'!O19="","",'Dibujo Tecnico'!O19) ->  | M82: =IF('Dibujo Tecnico'!P19="","",'Dibujo Tecnico'!P19) ->  | N82: =IF('Dibujo Tecnico'!Q19="","",'Dibujo Tecnico'!Q19) ->  | O82: =IF('Dibujo Tecnico'!R19="","",'Dibujo Tecnico'!R19) ->  | P82: =IF('Dibujo Tecnico'!S19="","",'Dibujo Tecnico'!S19) ->  | Q82: =IF('Dibujo Tecnico'!T19="","",'Dibujo Tecnico'!T19) ->  | R82: =IF('Dibujo Tecnico'!U19="","",'Dibujo Tecnico'!U19) ->  | S82: =IF('Dibujo Tecnico'!V19="","",'Dibujo Tecnico'!V19) ->  | T82: =IF('Dibujo Tecnico'!W19="","",'Dibujo Tecnico'!W19) ->  | U82: =IF('Dibujo Tecnico'!X19="","",'Dibujo Tecnico'!X19) ->  | V82: =IF('Dibujo Tecnico'!Y19="","",'Dibujo Tecnico'!Y19) ->  | W82: =IF('Dibujo Tecnico'!Z19="","",'Dibujo Tecnico'!Z19) ->  | X82: =IF('Dibujo Tecnico'!AA19="","",'Dibujo Tecnico'!AA19) ->  | Y82: =IF('Dibujo Tecnico'!AB19="","",'Dibujo Tecnico'!AB19) ->  | Z82: =IF('Dibujo Tecnico'!AC19="","",'Dibujo Tecnico'!AC19) ->  | AA82: =IF('Dibujo Tecnico'!AD19="","",'Dibujo Tecnico'!AD19) ->  | AB82: =IF('Dibujo Tecnico'!AE19="","",'Dibujo Tecnico'!AE19) ->  | AC82: =IF('Dibujo Tecnico'!AF19="","",'Dibujo Tecnico'!AF19) ->  | AD82: =IF('Dibujo Tecnico'!AG19="","",'Dibujo Tecnico'!AG19) ->  | AE82: =IF('Dibujo Tecnico'!AH19="","",'Dibujo Tecnico'!AH19) ->  | AF82: =IF('Dibujo Tecnico'!AI19="","",'Dibujo Tecnico'!AI19) ->  | AG82: =IF('Dibujo Tecnico'!AJ19="","",'Dibujo Tecnico'!AJ19) ->  | AH82: =IF('Dibujo Tecnico'!AK19="","",'Dibujo Tecnico'!AK19) ->  | AI82: =IF('Dibujo Tecnico'!AL19="","",'Dibujo Tecnico'!AL19) ->  | AJ82: =IF('Dibujo Tecnico'!AM19="","",'Dibujo Tecnico'!AM19) ->  | AK82: =IF('Dibujo Tecnico'!AN19="","",'Dibujo Tecnico'!AN19) ->  | AL82: =IF('Dibujo Tecnico'!AO19="","",'Dibujo Tecnico'!AO19) ->  | AM82: =IF('Dibujo Tecnico'!AP19="","",'Dibujo Tecnico'!AP19) -> 
D83: Criterio Evaluación 5.2 | E83: =IF('Dibujo Tecnico'!H20="","",'Dibujo Tecnico'!H20) ->  | F83: =IF('Dibujo Tecnico'!I20="","",'Dibujo Tecnico'!I20) ->  | G83: =IF('Dibujo Tecnico'!J20="","",'Dibujo Tecnico'!J20) ->  | H83: =IF('Dibujo Tecnico'!K20="","",'Dibujo Tecnico'!K20) ->  | I83: =IF('Dibujo Tecnico'!L20="","",'Dibujo Tecnico'!L20) ->  | J83: =IF('Dibujo Tecnico'!M20="","",'Dibujo Tecnico'!M20) ->  | K83: =IF('Dibujo Tecnico'!N20="","",'Dibujo Tecnico'!N20) ->  | L83: =IF('Dibujo Tecnico'!O20="","",'Dibujo Tecnico'!O20) ->  | M83: =IF('Dibujo Tecnico'!P20="","",'Dibujo Tecnico'!P20) ->  | N83: =IF('Dibujo Tecnico'!Q20="","",'Dibujo Tecnico'!Q20) ->  | O83: =IF('Dibujo Tecnico'!R20="","",'Dibujo Tecnico'!R20) ->  | P83: =IF('Dibujo Tecnico'!S20="","",'Dibujo Tecnico'!S20) ->  | Q83: =IF('Dibujo Tecnico'!T20="","",'Dibujo Tecnico'!T20) ->  | R83: =IF('Dibujo Tecnico'!U20="","",'Dibujo Tecnico'!U20) ->  | S83: =IF('Dibujo Tecnico'!V20="","",'Dibujo Tecnico'!V20) ->  | T83: =IF('Dibujo Tecnico'!W20="","",'Dibujo Tecnico'!W20) ->  | U83: =IF('Dibujo Tecnico'!X20="","",'Dibujo Tecnico'!X20) ->  | V83: =IF('Dibujo Tecnico'!Y20="","",'Dibujo Tecnico'!Y20) ->  | W83: =IF('Dibujo Tecnico'!Z20="","",'Dibujo Tecnico'!Z20) ->  | X83: =IF('Dibujo Tecnico'!AA20="","",'Dibujo Tecnico'!AA20) ->  | Y83: =IF('Dibujo Tecnico'!AB20="","",'Dibujo Tecnico'!AB20) ->  | Z83: =IF('Dibujo Tecnico'!AC20="","",'Dibujo Tecnico'!AC20) ->  | AA83: =IF('Dibujo Tecnico'!AD20="","",'Dibujo Tecnico'!AD20) ->  | AB83: =IF('Dibujo Tecnico'!AE20="","",'Dibujo Tecnico'!AE20) ->  | AC83: =IF('Dibujo Tecnico'!AF20="","",'Dibujo Tecnico'!AF20) ->  | AD83: =IF('Dibujo Tecnico'!AG20="","",'Dibujo Tecnico'!AG20) ->  | AE83: =IF('Dibujo Tecnico'!AH20="","",'Dibujo Tecnico'!AH20) ->  | AF83: =IF('Dibujo Tecnico'!AI20="","",'Dibujo Tecnico'!AI20) ->  | AG83: =IF('Dibujo Tecnico'!AJ20="","",'Dibujo Tecnico'!AJ20) ->  | AH83: =IF('Dibujo Tecnico'!AK20="","",'Dibujo Tecnico'!AK20) ->  | AI83: =IF('Dibujo Tecnico'!AL20="","",'Dibujo Tecnico'!AL20) ->  | AJ83: =IF('Dibujo Tecnico'!AM20="","",'Dibujo Tecnico'!AM20) ->  | AK83: =IF('Dibujo Tecnico'!AN20="","",'Dibujo Tecnico'!AN20) ->  | AL83: =IF('Dibujo Tecnico'!AO20="","",'Dibujo Tecnico'!AO20) ->  | AM83: =IF('Dibujo Tecnico'!AP20="","",'Dibujo Tecnico'!AP20) -> 
B84: Economía | C84: Comp. Esp. 1 | D84: Criterio Evaluación 1.1 | E84: =IF(Economia!H4="","",Economia!H4) ->  | F84: =IF(Economia!I4="","",Economia!I4) ->  | G84: =IF(Economia!J4="","",Economia!J4) ->  | H84: =IF(Economia!K4="","",Economia!K4) ->  | I84: =IF(Economia!L4="","",Economia!L4) ->  | J84: =IF(Economia!M4="","",Economia!M4) ->  | K84: =IF(Economia!N4="","",Economia!N4) ->  | L84: =IF(Economia!O4="","",Economia!O4) ->  | M84: =IF(Economia!P4="","",Economia!P4) ->  | N84: =IF(Economia!Q4="","",Economia!Q4) ->  | O84: =IF(Economia!R4="","",Economia!R4) ->  | P84: =IF(Economia!S4="","",Economia!S4) ->  | Q84: =IF(Economia!T4="","",Economia!T4) ->  | R84: =IF(Economia!U4="","",Economia!U4) ->  | S84: =IF(Economia!V4="","",Economia!V4) ->  | T84: =IF(Economia!W4="","",Economia!W4) ->  | U84: =IF(Economia!X4="","",Economia!X4) ->  | V84: =IF(Economia!Y4="","",Economia!Y4) ->  | W84: =IF(Economia!Z4="","",Economia!Z4) ->  | X84: =IF(Economia!AA4="","",Economia!AA4) ->  | Y84: =IF(Economia!AB4="","",Economia!AB4) ->  | Z84: =IF(Economia!AC4="","",Economia!AC4) ->  | AA84: =IF(Economia!AD4="","",Economia!AD4) ->  | AB84: =IF(Economia!AE4="","",Economia!AE4) ->  | AC84: =IF(Economia!AF4="","",Economia!AF4) ->  | AD84: =IF(Economia!AG4="","",Economia!AG4) ->  | AE84: =IF(Economia!AH4="","",Economia!AH4) ->  | AF84: =IF(Economia!AI4="","",Economia!AI4) ->  | AG84: =IF(Economia!AJ4="","",Economia!AJ4) ->  | AH84: =IF(Economia!AK4="","",Economia!AK4) ->  | AI84: =IF(Economia!AL4="","",Economia!AL4) ->  | AJ84: =IF(Economia!AM4="","",Economia!AM4) ->  | AK84: =IF(Economia!AN4="","",Economia!AN4) ->  | AL84: =IF(Economia!AO4="","",Economia!AO4) ->  | AM84: =IF(Economia!AP4="","",Economia!AP4) -> 
D85: Criterio Evaluación 1.2 | E85: =IF(Economia!H5="","",Economia!H5) ->  | F85: =IF(Economia!I5="","",Economia!I5) ->  | G85: =IF(Economia!J5="","",Economia!J5) ->  | H85: =IF(Economia!K5="","",Economia!K5) ->  | I85: =IF(Economia!L5="","",Economia!L5) ->  | J85: =IF(Economia!M5="","",Economia!M5) ->  | K85: =IF(Economia!N5="","",Economia!N5) ->  | L85: =IF(Economia!O5="","",Economia!O5) ->  | M85: =IF(Economia!P5="","",Economia!P5) ->  | N85: =IF(Economia!Q5="","",Economia!Q5) ->  | O85: =IF(Economia!R5="","",Economia!R5) ->  | P85: =IF(Economia!S5="","",Economia!S5) ->  | Q85: =IF(Economia!T5="","",Economia!T5) ->  | R85: =IF(Economia!U5="","",Economia!U5) ->  | S85: =IF(Economia!V5="","",Economia!V5) ->  | T85: =IF(Economia!W5="","",Economia!W5) ->  | U85: =IF(Economia!X5="","",Economia!X5) ->  | V85: =IF(Economia!Y5="","",Economia!Y5) ->  | W85: =IF(Economia!Z5="","",Economia!Z5) ->  | X85: =IF(Economia!AA5="","",Economia!AA5) ->  | Y85: =IF(Economia!AB5="","",Economia!AB5) ->  | Z85: =IF(Economia!AC5="","",Economia!AC5) ->  | AA85: =IF(Economia!AD5="","",Economia!AD5) ->  | AB85: =IF(Economia!AE5="","",Economia!AE5) ->  | AC85: =IF(Economia!AF5="","",Economia!AF5) ->  | AD85: =IF(Economia!AG5="","",Economia!AG5) ->  | AE85: =IF(Economia!AH5="","",Economia!AH5) ->  | AF85: =IF(Economia!AI5="","",Economia!AI5) ->  | AG85: =IF(Economia!AJ5="","",Economia!AJ5) ->  | AH85: =IF(Economia!AK5="","",Economia!AK5) ->  | AI85: =IF(Economia!AL5="","",Economia!AL5) ->  | AJ85: =IF(Economia!AM5="","",Economia!AM5) ->  | AK85: =IF(Economia!AN5="","",Economia!AN5) ->  | AL85: =IF(Economia!AO5="","",Economia!AO5) ->  | AM85: =IF(Economia!AP5="","",Economia!AP5) -> 
D86: Criterio Evaluación 1.3 | E86: =IF(Economia!H6="","",Economia!H6) ->  | F86: =IF(Economia!I6="","",Economia!I6) ->  | G86: =IF(Economia!J6="","",Economia!J6) ->  | H86: =IF(Economia!K6="","",Economia!K6) ->  | I86: =IF(Economia!L6="","",Economia!L6) ->  | J86: =IF(Economia!M6="","",Economia!M6) ->  | K86: =IF(Economia!N6="","",Economia!N6) ->  | L86: =IF(Economia!O6="","",Economia!O6) ->  | M86: =IF(Economia!P6="","",Economia!P6) ->  | N86: =IF(Economia!Q6="","",Economia!Q6) ->  | O86: =IF(Economia!R6="","",Economia!R6) ->  | P86: =IF(Economia!S6="","",Economia!S6) ->  | Q86: =IF(Economia!T6="","",Economia!T6) ->  | R86: =IF(Economia!U6="","",Economia!U6) ->  | S86: =IF(Economia!V6="","",Economia!V6) ->  | T86: =IF(Economia!W6="","",Economia!W6) ->  | U86: =IF(Economia!X6="","",Economia!X6) ->  | V86: =IF(Economia!Y6="","",Economia!Y6) ->  | W86: =IF(Economia!Z6="","",Economia!Z6) ->  | X86: =IF(Economia!AA6="","",Economia!AA6) ->  | Y86: =IF(Economia!AB6="","",Economia!AB6) ->  | Z86: =IF(Economia!AC6="","",Economia!AC6) ->  | AA86: =IF(Economia!AD6="","",Economia!AD6) ->  | AB86: =IF(Economia!AE6="","",Economia!AE6) ->  | AC86: =IF(Economia!AF6="","",Economia!AF6) ->  | AD86: =IF(Economia!AG6="","",Economia!AG6) ->  | AE86: =IF(Economia!AH6="","",Economia!AH6) ->  | AF86: =IF(Economia!AI6="","",Economia!AI6) ->  | AG86: =IF(Economia!AJ6="","",Economia!AJ6) ->  | AH86: =IF(Economia!AK6="","",Economia!AK6) ->  | AI86: =IF(Economia!AL6="","",Economia!AL6) ->  | AJ86: =IF(Economia!AM6="","",Economia!AM6) ->  | AK86: =IF(Economia!AN6="","",Economia!AN6) ->  | AL86: =IF(Economia!AO6="","",Economia!AO6) ->  | AM86: =IF(Economia!AP6="","",Economia!AP6) -> 
C87: Comp. Esp. 2 | D87: Criterio Evaluación 2.1 | E87: =IF(Economia!H7="","",Economia!H7) ->  | F87: =IF(Economia!I7="","",Economia!I7) ->  | G87: =IF(Economia!J7="","",Economia!J7) ->  | H87: =IF(Economia!K7="","",Economia!K7) ->  | I87: =IF(Economia!L7="","",Economia!L7) ->  | J87: =IF(Economia!M7="","",Economia!M7) ->  | K87: =IF(Economia!N7="","",Economia!N7) ->  | L87: =IF(Economia!O7="","",Economia!O7) ->  | M87: =IF(Economia!P7="","",Economia!P7) ->  | N87: =IF(Economia!Q7="","",Economia!Q7) ->  | O87: =IF(Economia!R7="","",Economia!R7) ->  | P87: =IF(Economia!S7="","",Economia!S7) ->  | Q87: =IF(Economia!T7="","",Economia!T7) ->  | R87: =IF(Economia!U7="","",Economia!U7) ->  | S87: =IF(Economia!V7="","",Economia!V7) ->  | T87: =IF(Economia!W7="","",Economia!W7) ->  | U87: =IF(Economia!X7="","",Economia!X7) ->  | V87: =IF(Economia!Y7="","",Economia!Y7) ->  | W87: =IF(Economia!Z7="","",Economia!Z7) ->  | X87: =IF(Economia!AA7="","",Economia!AA7) ->  | Y87: =IF(Economia!AB7="","",Economia!AB7) ->  | Z87: =IF(Economia!AC7="","",Economia!AC7) ->  | AA87: =IF(Economia!AD7="","",Economia!AD7) ->  | AB87: =IF(Economia!AE7="","",Economia!AE7) ->  | AC87: =IF(Economia!AF7="","",Economia!AF7) ->  | AD87: =IF(Economia!AG7="","",Economia!AG7) ->  | AE87: =IF(Economia!AH7="","",Economia!AH7) ->  | AF87: =IF(Economia!AI7="","",Economia!AI7) ->  | AG87: =IF(Economia!AJ7="","",Economia!AJ7) ->  | AH87: =IF(Economia!AK7="","",Economia!AK7) ->  | AI87: =IF(Economia!AL7="","",Economia!AL7) ->  | AJ87: =IF(Economia!AM7="","",Economia!AM7) ->  | AK87: =IF(Economia!AN7="","",Economia!AN7) ->  | AL87: =IF(Economia!AO7="","",Economia!AO7) ->  | AM87: =IF(Economia!AP7="","",Economia!AP7) -> 
D88: Criterio Evaluación 2.2 | E88: =IF(Economia!H8="","",Economia!H8) ->  | F88: =IF(Economia!I8="","",Economia!I8) ->  | G88: =IF(Economia!J8="","",Economia!J8) ->  | H88: =IF(Economia!K8="","",Economia!K8) ->  | I88: =IF(Economia!L8="","",Economia!L8) ->  | J88: =IF(Economia!M8="","",Economia!M8) ->  | K88: =IF(Economia!N8="","",Economia!N8) ->  | L88: =IF(Economia!O8="","",Economia!O8) ->  | M88: =IF(Economia!P8="","",Economia!P8) ->  | N88: =IF(Economia!Q8="","",Economia!Q8) ->  | O88: =IF(Economia!R8="","",Economia!R8) ->  | P88: =IF(Economia!S8="","",Economia!S8) ->  | Q88: =IF(Economia!T8="","",Economia!T8) ->  | R88: =IF(Economia!U8="","",Economia!U8) ->  | S88: =IF(Economia!V8="","",Economia!V8) ->  | T88: =IF(Economia!W8="","",Economia!W8) ->  | U88: =IF(Economia!X8="","",Economia!X8) ->  | V88: =IF(Economia!Y8="","",Economia!Y8) ->  | W88: =IF(Economia!Z8="","",Economia!Z8) ->  | X88: =IF(Economia!AA8="","",Economia!AA8) ->  | Y88: =IF(Economia!AB8="","",Economia!AB8) ->  | Z88: =IF(Economia!AC8="","",Economia!AC8) ->  | AA88: =IF(Economia!AD8="","",Economia!AD8) ->  | AB88: =IF(Economia!AE8="","",Economia!AE8) ->  | AC88: =IF(Economia!AF8="","",Economia!AF8) ->  | AD88: =IF(Economia!AG8="","",Economia!AG8) ->  | AE88: =IF(Economia!AH8="","",Economia!AH8) ->  | AF88: =IF(Economia!AI8="","",Economia!AI8) ->  | AG88: =IF(Economia!AJ8="","",Economia!AJ8) ->  | AH88: =IF(Economia!AK8="","",Economia!AK8) ->  | AI88: =IF(Economia!AL8="","",Economia!AL8) ->  | AJ88: =IF(Economia!AM8="","",Economia!AM8) ->  | AK88: =IF(Economia!AN8="","",Economia!AN8) ->  | AL88: =IF(Economia!AO8="","",Economia!AO8) ->  | AM88: =IF(Economia!AP8="","",Economia!AP8) -> 
D89: Criterio Evaluación 2.3 | E89: =IF(Economia!H9="","",Economia!H9) ->  | F89: =IF(Economia!I9="","",Economia!I9) ->  | G89: =IF(Economia!J9="","",Economia!J9) ->  | H89: =IF(Economia!K9="","",Economia!K9) ->  | I89: =IF(Economia!L9="","",Economia!L9) ->  | J89: =IF(Economia!M9="","",Economia!M9) ->  | K89: =IF(Economia!N9="","",Economia!N9) ->  | L89: =IF(Economia!O9="","",Economia!O9) ->  | M89: =IF(Economia!P9="","",Economia!P9) ->  | N89: =IF(Economia!Q9="","",Economia!Q9) ->  | O89: =IF(Economia!R9="","",Economia!R9) ->  | P89: =IF(Economia!S9="","",Economia!S9) ->  | Q89: =IF(Economia!T9="","",Economia!T9) ->  | R89: =IF(Economia!U9="","",Economia!U9) ->  | S89: =IF(Economia!V9="","",Economia!V9) ->  | T89: =IF(Economia!W9="","",Economia!W9) ->  | U89: =IF(Economia!X9="","",Economia!X9) ->  | V89: =IF(Economia!Y9="","",Economia!Y9) ->  | W89: =IF(Economia!Z9="","",Economia!Z9) ->  | X89: =IF(Economia!AA9="","",Economia!AA9) ->  | Y89: =IF(Economia!AB9="","",Economia!AB9) ->  | Z89: =IF(Economia!AC9="","",Economia!AC9) ->  | AA89: =IF(Economia!AD9="","",Economia!AD9) ->  | AB89: =IF(Economia!AE9="","",Economia!AE9) ->  | AC89: =IF(Economia!AF9="","",Economia!AF9) ->  | AD89: =IF(Economia!AG9="","",Economia!AG9) ->  | AE89: =IF(Economia!AH9="","",Economia!AH9) ->  | AF89: =IF(Economia!AI9="","",Economia!AI9) ->  | AG89: =IF(Economia!AJ9="","",Economia!AJ9) ->  | AH89: =IF(Economia!AK9="","",Economia!AK9) ->  | AI89: =IF(Economia!AL9="","",Economia!AL9) ->  | AJ89: =IF(Economia!AM9="","",Economia!AM9) ->  | AK89: =IF(Economia!AN9="","",Economia!AN9) ->  | AL89: =IF(Economia!AO9="","",Economia!AO9) ->  | AM89: =IF(Economia!AP9="","",Economia!AP9) -> 
C90: Comp. Esp. 3 | D90: Criterio Evaluación 3.1 | E90: =IF(Economia!H10="","",Economia!H10) ->  | F90: =IF(Economia!I10="","",Economia!I10) ->  | G90: =IF(Economia!J10="","",Economia!J10) ->  | H90: =IF(Economia!K10="","",Economia!K10) ->  | I90: =IF(Economia!L10="","",Economia!L10) ->  | J90: =IF(Economia!M10="","",Economia!M10) ->  | K90: =IF(Economia!N10="","",Economia!N10) ->  | L90: =IF(Economia!O10="","",Economia!O10) ->  | M90: =IF(Economia!P10="","",Economia!P10) ->  | N90: =IF(Economia!Q10="","",Economia!Q10) ->  | O90: =IF(Economia!R10="","",Economia!R10) ->  | P90: =IF(Economia!S10="","",Economia!S10) ->  | Q90: =IF(Economia!T10="","",Economia!T10) ->  | R90: =IF(Economia!U10="","",Economia!U10) ->  | S90: =IF(Economia!V10="","",Economia!V10) ->  | T90: =IF(Economia!W10="","",Economia!W10) ->  | U90: =IF(Economia!X10="","",Economia!X10) ->  | V90: =IF(Economia!Y10="","",Economia!Y10) ->  | W90: =IF(Economia!Z10="","",Economia!Z10) ->  | X90: =IF(Economia!AA10="","",Economia!AA10) ->  | Y90: =IF(Economia!AB10="","",Economia!AB10) ->  | Z90: =IF(Economia!AC10="","",Economia!AC10) ->  | AA90: =IF(Economia!AD10="","",Economia!AD10) ->  | AB90: =IF(Economia!AE10="","",Economia!AE10) ->  | AC90: =IF(Economia!AF10="","",Economia!AF10) ->  | AD90: =IF(Economia!AG10="","",Economia!AG10) ->  | AE90: =IF(Economia!AH10="","",Economia!AH10) ->  | AF90: =IF(Economia!AI10="","",Economia!AI10) ->  | AG90: =IF(Economia!AJ10="","",Economia!AJ10) ->  | AH90: =IF(Economia!AK10="","",Economia!AK10) ->  | AI90: =IF(Economia!AL10="","",Economia!AL10) ->  | AJ90: =IF(Economia!AM10="","",Economia!AM10) ->  | AK90: =IF(Economia!AN10="","",Economia!AN10) ->  | AL90: =IF(Economia!AO10="","",Economia!AO10) ->  | AM90: =IF(Economia!AP10="","",Economia!AP10) -> 
D91: Criterio Evaluación 3.2 | E91: =IF(Economia!H11="","",Economia!H11) ->  | F91: =IF(Economia!I11="","",Economia!I11) ->  | G91: =IF(Economia!J11="","",Economia!J11) ->  | H91: =IF(Economia!K11="","",Economia!K11) ->  | I91: =IF(Economia!L11="","",Economia!L11) ->  | J91: =IF(Economia!M11="","",Economia!M11) ->  | K91: =IF(Economia!N11="","",Economia!N11) ->  | L91: =IF(Economia!O11="","",Economia!O11) ->  | M91: =IF(Economia!P11="","",Economia!P11) ->  | N91: =IF(Economia!Q11="","",Economia!Q11) ->  | O91: =IF(Economia!R11="","",Economia!R11) ->  | P91: =IF(Economia!S11="","",Economia!S11) ->  | Q91: =IF(Economia!T11="","",Economia!T11) ->  | R91: =IF(Economia!U11="","",Economia!U11) ->  | S91: =IF(Economia!V11="","",Economia!V11) ->  | T91: =IF(Economia!W11="","",Economia!W11) ->  | U91: =IF(Economia!X11="","",Economia!X11) ->  | V91: =IF(Economia!Y11="","",Economia!Y11) ->  | W91: =IF(Economia!Z11="","",Economia!Z11) ->  | X91: =IF(Economia!AA11="","",Economia!AA11) ->  | Y91: =IF(Economia!AB11="","",Economia!AB11) ->  | Z91: =IF(Economia!AC11="","",Economia!AC11) ->  | AA91: =IF(Economia!AD11="","",Economia!AD11) ->  | AB91: =IF(Economia!AE11="","",Economia!AE11) ->  | AC91: =IF(Economia!AF11="","",Economia!AF11) ->  | AD91: =IF(Economia!AG11="","",Economia!AG11) ->  | AE91: =IF(Economia!AH11="","",Economia!AH11) ->  | AF91: =IF(Economia!AI11="","",Economia!AI11) ->  | AG91: =IF(Economia!AJ11="","",Economia!AJ11) ->  | AH91: =IF(Economia!AK11="","",Economia!AK11) ->  | AI91: =IF(Economia!AL11="","",Economia!AL11) ->  | AJ91: =IF(Economia!AM11="","",Economia!AM11) ->  | AK91: =IF(Economia!AN11="","",Economia!AN11) ->  | AL91: =IF(Economia!AO11="","",Economia!AO11) ->  | AM91: =IF(Economia!AP11="","",Economia!AP11) -> 
C92: Comp. Esp. 4 | D92: Criterio Evaluación 4.1 | E92: =IF(Economia!H12="","",Economia!H12) ->  | F92: =IF(Economia!I12="","",Economia!I12) ->  | G92: =IF(Economia!J12="","",Economia!J12) ->  | H92: =IF(Economia!K12="","",Economia!K12) ->  | I92: =IF(Economia!L12="","",Economia!L12) ->  | J92: =IF(Economia!M12="","",Economia!M12) ->  | K92: =IF(Economia!N12="","",Economia!N12) ->  | L92: =IF(Economia!O12="","",Economia!O12) ->  | M92: =IF(Economia!P12="","",Economia!P12) ->  | N92: =IF(Economia!Q12="","",Economia!Q12) ->  | O92: =IF(Economia!R12="","",Economia!R12) ->  | P92: =IF(Economia!S12="","",Economia!S12) ->  | Q92: =IF(Economia!T12="","",Economia!T12) ->  | R92: =IF(Economia!U12="","",Economia!U12) ->  | S92: =IF(Economia!V12="","",Economia!V12) ->  | T92: =IF(Economia!W12="","",Economia!W12) ->  | U92: =IF(Economia!X12="","",Economia!X12) ->  | V92: =IF(Economia!Y12="","",Economia!Y12) ->  | W92: =IF(Economia!Z12="","",Economia!Z12) ->  | X92: =IF(Economia!AA12="","",Economia!AA12) ->  | Y92: =IF(Economia!AB12="","",Economia!AB12) ->  | Z92: =IF(Economia!AC12="","",Economia!AC12) ->  | AA92: =IF(Economia!AD12="","",Economia!AD12) ->  | AB92: =IF(Economia!AE12="","",Economia!AE12) ->  | AC92: =IF(Economia!AF12="","",Economia!AF12) ->  | AD92: =IF(Economia!AG12="","",Economia!AG12) ->  | AE92: =IF(Economia!AH12="","",Economia!AH12) ->  | AF92: =IF(Economia!AI12="","",Economia!AI12) ->  | AG92: =IF(Economia!AJ12="","",Economia!AJ12) ->  | AH92: =IF(Economia!AK12="","",Economia!AK12) ->  | AI92: =IF(Economia!AL12="","",Economia!AL12) ->  | AJ92: =IF(Economia!AM12="","",Economia!AM12) ->  | AK92: =IF(Economia!AN12="","",Economia!AN12) ->  | AL92: =IF(Economia!AO12="","",Economia!AO12) ->  | AM92: =IF(Economia!AP12="","",Economia!AP12) -> 
D93: Criterio Evaluación 4.2 | E93: =IF(Economia!H13="","",Economia!H13) ->  | F93: =IF(Economia!I13="","",Economia!I13) ->  | G93: =IF(Economia!J13="","",Economia!J13) ->  | H93: =IF(Economia!K13="","",Economia!K13) ->  | I93: =IF(Economia!L13="","",Economia!L13) ->  | J93: =IF(Economia!M13="","",Economia!M13) ->  | K93: =IF(Economia!N13="","",Economia!N13) ->  | L93: =IF(Economia!O13="","",Economia!O13) ->  | M93: =IF(Economia!P13="","",Economia!P13) ->  | N93: =IF(Economia!Q13="","",Economia!Q13) ->  | O93: =IF(Economia!R13="","",Economia!R13) ->  | P93: =IF(Economia!S13="","",Economia!S13) ->  | Q93: =IF(Economia!T13="","",Economia!T13) ->  | R93: =IF(Economia!U13="","",Economia!U13) ->  | S93: =IF(Economia!V13="","",Economia!V13) ->  | T93: =IF(Economia!W13="","",Economia!W13) ->  | U93: =IF(Economia!X13="","",Economia!X13) ->  | V93: =IF(Economia!Y13="","",Economia!Y13) ->  | W93: =IF(Economia!Z13="","",Economia!Z13) ->  | X93: =IF(Economia!AA13="","",Economia!AA13) ->  | Y93: =IF(Economia!AB13="","",Economia!AB13) ->  | Z93: =IF(Economia!AC13="","",Economia!AC13) ->  | AA93: =IF(Economia!AD13="","",Economia!AD13) ->  | AB93: =IF(Economia!AE13="","",Economia!AE13) ->  | AC93: =IF(Economia!AF13="","",Economia!AF13) ->  | AD93: =IF(Economia!AG13="","",Economia!AG13) ->  | AE93: =IF(Economia!AH13="","",Economia!AH13) ->  | AF93: =IF(Economia!AI13="","",Economia!AI13) ->  | AG93: =IF(Economia!AJ13="","",Economia!AJ13) ->  | AH93: =IF(Economia!AK13="","",Economia!AK13) ->  | AI93: =IF(Economia!AL13="","",Economia!AL13) ->  | AJ93: =IF(Economia!AM13="","",Economia!AM13) ->  | AK93: =IF(Economia!AN13="","",Economia!AN13) ->  | AL93: =IF(Economia!AO13="","",Economia!AO13) ->  | AM93: =IF(Economia!AP13="","",Economia!AP13) -> 
D94: Criterio Evaluación 4.3 | E94: =IF(Economia!H14="","",Economia!H14) ->  | F94: =IF(Economia!I14="","",Economia!I14) ->  | G94: =IF(Economia!J14="","",Economia!J14) ->  | H94: =IF(Economia!K14="","",Economia!K14) ->  | I94: =IF(Economia!L14="","",Economia!L14) ->  | J94: =IF(Economia!M14="","",Economia!M14) ->  | K94: =IF(Economia!N14="","",Economia!N14) ->  | L94: =IF(Economia!O14="","",Economia!O14) ->  | M94: =IF(Economia!P14="","",Economia!P14) ->  | N94: =IF(Economia!Q14="","",Economia!Q14) ->  | O94: =IF(Economia!R14="","",Economia!R14) ->  | P94: =IF(Economia!S14="","",Economia!S14) ->  | Q94: =IF(Economia!T14="","",Economia!T14) ->  | R94: =IF(Economia!U14="","",Economia!U14) ->  | S94: =IF(Economia!V14="","",Economia!V14) ->  | T94: =IF(Economia!W14="","",Economia!W14) ->  | U94: =IF(Economia!X14="","",Economia!X14) ->  | V94: =IF(Economia!Y14="","",Economia!Y14) ->  | W94: =IF(Economia!Z14="","",Economia!Z14) ->  | X94: =IF(Economia!AA14="","",Economia!AA14) ->  | Y94: =IF(Economia!AB14="","",Economia!AB14) ->  | Z94: =IF(Economia!AC14="","",Economia!AC14) ->  | AA94: =IF(Economia!AD14="","",Economia!AD14) ->  | AB94: =IF(Economia!AE14="","",Economia!AE14) ->  | AC94: =IF(Economia!AF14="","",Economia!AF14) ->  | AD94: =IF(Economia!AG14="","",Economia!AG14) ->  | AE94: =IF(Economia!AH14="","",Economia!AH14) ->  | AF94: =IF(Economia!AI14="","",Economia!AI14) ->  | AG94: =IF(Economia!AJ14="","",Economia!AJ14) ->  | AH94: =IF(Economia!AK14="","",Economia!AK14) ->  | AI94: =IF(Economia!AL14="","",Economia!AL14) ->  | AJ94: =IF(Economia!AM14="","",Economia!AM14) ->  | AK94: =IF(Economia!AN14="","",Economia!AN14) ->  | AL94: =IF(Economia!AO14="","",Economia!AO14) ->  | AM94: =IF(Economia!AP14="","",Economia!AP14) -> 
C95: Comp. Esp. 5 | D95: Criterio Evaluación 5.1 | E95: =IF(Economia!H15="","",Economia!H15) ->  | F95: =IF(Economia!I15="","",Economia!I15) ->  | G95: =IF(Economia!J15="","",Economia!J15) ->  | H95: =IF(Economia!K15="","",Economia!K15) ->  | I95: =IF(Economia!L15="","",Economia!L15) ->  | J95: =IF(Economia!M15="","",Economia!M15) ->  | K95: =IF(Economia!N15="","",Economia!N15) ->  | L95: =IF(Economia!O15="","",Economia!O15) ->  | M95: =IF(Economia!P15="","",Economia!P15) ->  | N95: =IF(Economia!Q15="","",Economia!Q15) ->  | O95: =IF(Economia!R15="","",Economia!R15) ->  | P95: =IF(Economia!S15="","",Economia!S15) ->  | Q95: =IF(Economia!T15="","",Economia!T15) ->  | R95: =IF(Economia!U15="","",Economia!U15) ->  | S95: =IF(Economia!V15="","",Economia!V15) ->  | T95: =IF(Economia!W15="","",Economia!W15) ->  | U95: =IF(Economia!X15="","",Economia!X15) ->  | V95: =IF(Economia!Y15="","",Economia!Y15) ->  | W95: =IF(Economia!Z15="","",Economia!Z15) ->  | X95: =IF(Economia!AA15="","",Economia!AA15) ->  | Y95: =IF(Economia!AB15="","",Economia!AB15) ->  | Z95: =IF(Economia!AC15="","",Economia!AC15) ->  | AA95: =IF(Economia!AD15="","",Economia!AD15) ->  | AB95: =IF(Economia!AE15="","",Economia!AE15) ->  | AC95: =IF(Economia!AF15="","",Economia!AF15) ->  | AD95: =IF(Economia!AG15="","",Economia!AG15) ->  | AE95: =IF(Economia!AH15="","",Economia!AH15) ->  | AF95: =IF(Economia!AI15="","",Economia!AI15) ->  | AG95: =IF(Economia!AJ15="","",Economia!AJ15) ->  | AH95: =IF(Economia!AK15="","",Economia!AK15) ->  | AI95: =IF(Economia!AL15="","",Economia!AL15) ->  | AJ95: =IF(Economia!AM15="","",Economia!AM15) ->  | AK95: =IF(Economia!AN15="","",Economia!AN15) ->  | AL95: =IF(Economia!AO15="","",Economia!AO15) ->  | AM95: =IF(Economia!AP15="","",Economia!AP15) -> 
D96: Criterio Evaluación 5.2 | E96: =IF(Economia!H16="","",Economia!H16) ->  | F96: =IF(Economia!I16="","",Economia!I16) ->  | G96: =IF(Economia!J16="","",Economia!J16) ->  | H96: =IF(Economia!K16="","",Economia!K16) ->  | I96: =IF(Economia!L16="","",Economia!L16) ->  | J96: =IF(Economia!M16="","",Economia!M16) ->  | K96: =IF(Economia!N16="","",Economia!N16) ->  | L96: =IF(Economia!O16="","",Economia!O16) ->  | M96: =IF(Economia!P16="","",Economia!P16) ->  | N96: =IF(Economia!Q16="","",Economia!Q16) ->  | O96: =IF(Economia!R16="","",Economia!R16) ->  | P96: =IF(Economia!S16="","",Economia!S16) ->  | Q96: =IF(Economia!T16="","",Economia!T16) ->  | R96: =IF(Economia!U16="","",Economia!U16) ->  | S96: =IF(Economia!V16="","",Economia!V16) ->  | T96: =IF(Economia!W16="","",Economia!W16) ->  | U96: =IF(Economia!X16="","",Economia!X16) ->  | V96: =IF(Economia!Y16="","",Economia!Y16) ->  | W96: =IF(Economia!Z16="","",Economia!Z16) ->  | X96: =IF(Economia!AA16="","",Economia!AA16) ->  | Y96: =IF(Economia!AB16="","",Economia!AB16) ->  | Z96: =IF(Economia!AC16="","",Economia!AC16) ->  | AA96: =IF(Economia!AD16="","",Economia!AD16) ->  | AB96: =IF(Economia!AE16="","",Economia!AE16) ->  | AC96: =IF(Economia!AF16="","",Economia!AF16) ->  | AD96: =IF(Economia!AG16="","",Economia!AG16) ->  | AE96: =IF(Economia!AH16="","",Economia!AH16) ->  | AF96: =IF(Economia!AI16="","",Economia!AI16) ->  | AG96: =IF(Economia!AJ16="","",Economia!AJ16) ->  | AH96: =IF(Economia!AK16="","",Economia!AK16) ->  | AI96: =IF(Economia!AL16="","",Economia!AL16) ->  | AJ96: =IF(Economia!AM16="","",Economia!AM16) ->  | AK96: =IF(Economia!AN16="","",Economia!AN16) ->  | AL96: =IF(Economia!AO16="","",Economia!AO16) ->  | AM96: =IF(Economia!AP16="","",Economia!AP16) -> 
C97: Comp. Esp. 6 | D97: Criterio Evaluación 6.1 | E97: =IF(Economia!H17="","",Economia!H17) ->  | F97: =IF(Economia!I17="","",Economia!I17) ->  | G97: =IF(Economia!J17="","",Economia!J17) ->  | H97: =IF(Economia!K17="","",Economia!K17) ->  | I97: =IF(Economia!L17="","",Economia!L17) ->  | J97: =IF(Economia!M17="","",Economia!M17) ->  | K97: =IF(Economia!N17="","",Economia!N17) ->  | L97: =IF(Economia!O17="","",Economia!O17) ->  | M97: =IF(Economia!P17="","",Economia!P17) ->  | N97: =IF(Economia!Q17="","",Economia!Q17) ->  | O97: =IF(Economia!R17="","",Economia!R17) ->  | P97: =IF(Economia!S17="","",Economia!S17) ->  | Q97: =IF(Economia!T17="","",Economia!T17) ->  | R97: =IF(Economia!U17="","",Economia!U17) ->  | S97: =IF(Economia!V17="","",Economia!V17) ->  | T97: =IF(Economia!W17="","",Economia!W17) ->  | U97: =IF(Economia!X17="","",Economia!X17) ->  | V97: =IF(Economia!Y17="","",Economia!Y17) ->  | W97: =IF(Economia!Z17="","",Economia!Z17) ->  | X97: =IF(Economia!AA17="","",Economia!AA17) ->  | Y97: =IF(Economia!AB17="","",Economia!AB17) ->  | Z97: =IF(Economia!AC17="","",Economia!AC17) ->  | AA97: =IF(Economia!AD17="","",Economia!AD17) ->  | AB97: =IF(Economia!AE17="","",Economia!AE17) ->  | AC97: =IF(Economia!AF17="","",Economia!AF17) ->  | AD97: =IF(Economia!AG17="","",Economia!AG17) ->  | AE97: =IF(Economia!AH17="","",Economia!AH17) ->  | AF97: =IF(Economia!AI17="","",Economia!AI17) ->  | AG97: =IF(Economia!AJ17="","",Economia!AJ17) ->  | AH97: =IF(Economia!AK17="","",Economia!AK17) ->  | AI97: =IF(Economia!AL17="","",Economia!AL17) ->  | AJ97: =IF(Economia!AM17="","",Economia!AM17) ->  | AK97: =IF(Economia!AN17="","",Economia!AN17) ->  | AL97: =IF(Economia!AO17="","",Economia!AO17) ->  | AM97: =IF(Economia!AP17="","",Economia!AP17) -> 
B98: Educación Física | C98: Comp. Esp. 1 | D98: Criterio Evaluación 1.1 | E98: =IF('Educacion Fisica'!H4="","",'Educacion Fisica'!H4) ->  | F98: =IF('Educacion Fisica'!I4="","",'Educacion Fisica'!I4) ->  | G98: =IF('Educacion Fisica'!J4="","",'Educacion Fisica'!J4) ->  | H98: =IF('Educacion Fisica'!K4="","",'Educacion Fisica'!K4) ->  | I98: =IF('Educacion Fisica'!L4="","",'Educacion Fisica'!L4) ->  | J98: =IF('Educacion Fisica'!M4="","",'Educacion Fisica'!M4) ->  | K98: =IF('Educacion Fisica'!N4="","",'Educacion Fisica'!N4) ->  | L98: =IF('Educacion Fisica'!O4="","",'Educacion Fisica'!O4) ->  | M98: =IF('Educacion Fisica'!P4="","",'Educacion Fisica'!P4) ->  | N98: =IF('Educacion Fisica'!Q4="","",'Educacion Fisica'!Q4) ->  | O98: =IF('Educacion Fisica'!R4="","",'Educacion Fisica'!R4) ->  | P98: =IF('Educacion Fisica'!S4="","",'Educacion Fisica'!S4) ->  | Q98: =IF('Educacion Fisica'!T4="","",'Educacion Fisica'!T4) ->  | R98: =IF('Educacion Fisica'!U4="","",'Educacion Fisica'!U4) ->  | S98: =IF('Educacion Fisica'!V4="","",'Educacion Fisica'!V4) ->  | T98: =IF('Educacion Fisica'!W4="","",'Educacion Fisica'!W4) ->  | U98: =IF('Educacion Fisica'!X4="","",'Educacion Fisica'!X4) ->  | V98: =IF('Educacion Fisica'!Y4="","",'Educacion Fisica'!Y4) ->  | W98: =IF('Educacion Fisica'!Z4="","",'Educacion Fisica'!Z4) ->  | X98: =IF('Educacion Fisica'!AA4="","",'Educacion Fisica'!AA4) ->  | Y98: =IF('Educacion Fisica'!AB4="","",'Educacion Fisica'!AB4) ->  | Z98: =IF('Educacion Fisica'!AC4="","",'Educacion Fisica'!AC4) ->  | AA98: =IF('Educacion Fisica'!AD4="","",'Educacion Fisica'!AD4) ->  | AB98: =IF('Educacion Fisica'!AE4="","",'Educacion Fisica'!AE4) ->  | AC98: =IF('Educacion Fisica'!AF4="","",'Educacion Fisica'!AF4) ->  | AD98: =IF('Educacion Fisica'!AG4="","",'Educacion Fisica'!AG4) ->  | AE98: =IF('Educacion Fisica'!AH4="","",'Educacion Fisica'!AH4) ->  | AF98: =IF('Educacion Fisica'!AI4="","",'Educacion Fisica'!AI4) ->  | AG98: =IF('Educacion Fisica'!AJ4="","",'Educacion Fisica'!AJ4) ->  | AH98: =IF('Educacion Fisica'!AK4="","",'Educacion Fisica'!AK4) ->  | AI98: =IF('Educacion Fisica'!AL4="","",'Educacion Fisica'!AL4) ->  | AJ98: =IF('Educacion Fisica'!AM4="","",'Educacion Fisica'!AM4) ->  | AK98: =IF('Educacion Fisica'!AN4="","",'Educacion Fisica'!AN4) ->  | AL98: =IF('Educacion Fisica'!AO4="","",'Educacion Fisica'!AO4) ->  | AM98: =IF('Educacion Fisica'!AP4="","",'Educacion Fisica'!AP4) -> 
D99: Criterio Evaluación 1.2 | E99: =IF('Educacion Fisica'!H5="","",'Educacion Fisica'!H5) ->  | F99: =IF('Educacion Fisica'!I5="","",'Educacion Fisica'!I5) ->  | G99: =IF('Educacion Fisica'!J5="","",'Educacion Fisica'!J5) ->  | H99: =IF('Educacion Fisica'!K5="","",'Educacion Fisica'!K5) ->  | I99: =IF('Educacion Fisica'!L5="","",'Educacion Fisica'!L5) ->  | J99: =IF('Educacion Fisica'!M5="","",'Educacion Fisica'!M5) ->  | K99: =IF('Educacion Fisica'!N5="","",'Educacion Fisica'!N5) ->  | L99: =IF('Educacion Fisica'!O5="","",'Educacion Fisica'!O5) ->  | M99: =IF('Educacion Fisica'!P5="","",'Educacion Fisica'!P5) ->  | N99: =IF('Educacion Fisica'!Q5="","",'Educacion Fisica'!Q5) ->  | O99: =IF('Educacion Fisica'!R5="","",'Educacion Fisica'!R5) ->  | P99: =IF('Educacion Fisica'!S5="","",'Educacion Fisica'!S5) ->  | Q99: =IF('Educacion Fisica'!T5="","",'Educacion Fisica'!T5) ->  | R99: =IF('Educacion Fisica'!U5="","",'Educacion Fisica'!U5) ->  | S99: =IF('Educacion Fisica'!V5="","",'Educacion Fisica'!V5) ->  | T99: =IF('Educacion Fisica'!W5="","",'Educacion Fisica'!W5) ->  | U99: =IF('Educacion Fisica'!X5="","",'Educacion Fisica'!X5) ->  | V99: =IF('Educacion Fisica'!Y5="","",'Educacion Fisica'!Y5) ->  | W99: =IF('Educacion Fisica'!Z5="","",'Educacion Fisica'!Z5) ->  | X99: =IF('Educacion Fisica'!AA5="","",'Educacion Fisica'!AA5) ->  | Y99: =IF('Educacion Fisica'!AB5="","",'Educacion Fisica'!AB5) ->  | Z99: =IF('Educacion Fisica'!AC5="","",'Educacion Fisica'!AC5) ->  | AA99: =IF('Educacion Fisica'!AD5="","",'Educacion Fisica'!AD5) ->  | AB99: =IF('Educacion Fisica'!AE5="","",'Educacion Fisica'!AE5) ->  | AC99: =IF('Educacion Fisica'!AF5="","",'Educacion Fisica'!AF5) ->  | AD99: =IF('Educacion Fisica'!AG5="","",'Educacion Fisica'!AG5) ->  | AE99: =IF('Educacion Fisica'!AH5="","",'Educacion Fisica'!AH5) ->  | AF99: =IF('Educacion Fisica'!AI5="","",'Educacion Fisica'!AI5) ->  | AG99: =IF('Educacion Fisica'!AJ5="","",'Educacion Fisica'!AJ5) ->  | AH99: =IF('Educacion Fisica'!AK5="","",'Educacion Fisica'!AK5) ->  | AI99: =IF('Educacion Fisica'!AL5="","",'Educacion Fisica'!AL5) ->  | AJ99: =IF('Educacion Fisica'!AM5="","",'Educacion Fisica'!AM5) ->  | AK99: =IF('Educacion Fisica'!AN5="","",'Educacion Fisica'!AN5) ->  | AL99: =IF('Educacion Fisica'!AO5="","",'Educacion Fisica'!AO5) ->  | AM99: =IF('Educacion Fisica'!AP5="","",'Educacion Fisica'!AP5) -> 
D100: Criterio Evaluación 1.3 | E100: =IF('Educacion Fisica'!H6="","",'Educacion Fisica'!H6) ->  | F100: =IF('Educacion Fisica'!I6="","",'Educacion Fisica'!I6) ->  | G100: =IF('Educacion Fisica'!J6="","",'Educacion Fisica'!J6) ->  | H100: =IF('Educacion Fisica'!K6="","",'Educacion Fisica'!K6) ->  | I100: =IF('Educacion Fisica'!L6="","",'Educacion Fisica'!L6) ->  | J100: =IF('Educacion Fisica'!M6="","",'Educacion Fisica'!M6) ->  | K100: =IF('Educacion Fisica'!N6="","",'Educacion Fisica'!N6) ->  | L100: =IF('Educacion Fisica'!O6="","",'Educacion Fisica'!O6) ->  | M100: =IF('Educacion Fisica'!P6="","",'Educacion Fisica'!P6) ->  | N100: =IF('Educacion Fisica'!Q6="","",'Educacion Fisica'!Q6) ->  | O100: =IF('Educacion Fisica'!R6="","",'Educacion Fisica'!R6) ->  | P100: =IF('Educacion Fisica'!S6="","",'Educacion Fisica'!S6) ->  | Q100: =IF('Educacion Fisica'!T6="","",'Educacion Fisica'!T6) ->  | R100: =IF('Educacion Fisica'!U6="","",'Educacion Fisica'!U6) ->  | S100: =IF('Educacion Fisica'!V6="","",'Educacion Fisica'!V6) ->  | T100: =IF('Educacion Fisica'!W6="","",'Educacion Fisica'!W6) ->  | U100: =IF('Educacion Fisica'!X6="","",'Educacion Fisica'!X6) ->  | V100: =IF('Educacion Fisica'!Y6="","",'Educacion Fisica'!Y6) ->  | W100: =IF('Educacion Fisica'!Z6="","",'Educacion Fisica'!Z6) ->  | X100: =IF('Educacion Fisica'!AA6="","",'Educacion Fisica'!AA6) ->  | Y100: =IF('Educacion Fisica'!AB6="","",'Educacion Fisica'!AB6) ->  | Z100: =IF('Educacion Fisica'!AC6="","",'Educacion Fisica'!AC6) ->  | AA100: =IF('Educacion Fisica'!AD6="","",'Educacion Fisica'!AD6) ->  | AB100: =IF('Educacion Fisica'!AE6="","",'Educacion Fisica'!AE6) ->  | AC100: =IF('Educacion Fisica'!AF6="","",'Educacion Fisica'!AF6) ->  | AD100: =IF('Educacion Fisica'!AG6="","",'Educacion Fisica'!AG6) ->  | AE100: =IF('Educacion Fisica'!AH6="","",'Educacion Fisica'!AH6) ->  | AF100: =IF('Educacion Fisica'!AI6="","",'Educacion Fisica'!AI6) ->  | AG100: =IF('Educacion Fisica'!AJ6="","",'Educacion Fisica'!AJ6) ->  | AH100: =IF('Educacion Fisica'!AK6="","",'Educacion Fisica'!AK6) ->  | AI100: =IF('Educacion Fisica'!AL6="","",'Educacion Fisica'!AL6) ->  | AJ100: =IF('Educacion Fisica'!AM6="","",'Educacion Fisica'!AM6) ->  | AK100: =IF('Educacion Fisica'!AN6="","",'Educacion Fisica'!AN6) ->  | AL100: =IF('Educacion Fisica'!AO6="","",'Educacion Fisica'!AO6) ->  | AM100: =IF('Educacion Fisica'!AP6="","",'Educacion Fisica'!AP6) -> 
D101: Criterio Evaluación 1.4 | E101: =IF('Educacion Fisica'!H7="","",'Educacion Fisica'!H7) ->  | F101: =IF('Educacion Fisica'!I7="","",'Educacion Fisica'!I7) ->  | G101: =IF('Educacion Fisica'!J7="","",'Educacion Fisica'!J7) ->  | H101: =IF('Educacion Fisica'!K7="","",'Educacion Fisica'!K7) ->  | I101: =IF('Educacion Fisica'!L7="","",'Educacion Fisica'!L7) ->  | J101: =IF('Educacion Fisica'!M7="","",'Educacion Fisica'!M7) ->  | K101: =IF('Educacion Fisica'!N7="","",'Educacion Fisica'!N7) ->  | L101: =IF('Educacion Fisica'!O7="","",'Educacion Fisica'!O7) ->  | M101: =IF('Educacion Fisica'!P7="","",'Educacion Fisica'!P7) ->  | N101: =IF('Educacion Fisica'!Q7="","",'Educacion Fisica'!Q7) ->  | O101: =IF('Educacion Fisica'!R7="","",'Educacion Fisica'!R7) ->  | P101: =IF('Educacion Fisica'!S7="","",'Educacion Fisica'!S7) ->  | Q101: =IF('Educacion Fisica'!T7="","",'Educacion Fisica'!T7) ->  | R101: =IF('Educacion Fisica'!U7="","",'Educacion Fisica'!U7) ->  | S101: =IF('Educacion Fisica'!V7="","",'Educacion Fisica'!V7) ->  | T101: =IF('Educacion Fisica'!W7="","",'Educacion Fisica'!W7) ->  | U101: =IF('Educacion Fisica'!X7="","",'Educacion Fisica'!X7) ->  | V101: =IF('Educacion Fisica'!Y7="","",'Educacion Fisica'!Y7) ->  | W101: =IF('Educacion Fisica'!Z7="","",'Educacion Fisica'!Z7) ->  | X101: =IF('Educacion Fisica'!AA7="","",'Educacion Fisica'!AA7) ->  | Y101: =IF('Educacion Fisica'!AB7="","",'Educacion Fisica'!AB7) ->  | Z101: =IF('Educacion Fisica'!AC7="","",'Educacion Fisica'!AC7) ->  | AA101: =IF('Educacion Fisica'!AD7="","",'Educacion Fisica'!AD7) ->  | AB101: =IF('Educacion Fisica'!AE7="","",'Educacion Fisica'!AE7) ->  | AC101: =IF('Educacion Fisica'!AF7="","",'Educacion Fisica'!AF7) ->  | AD101: =IF('Educacion Fisica'!AG7="","",'Educacion Fisica'!AG7) ->  | AE101: =IF('Educacion Fisica'!AH7="","",'Educacion Fisica'!AH7) ->  | AF101: =IF('Educacion Fisica'!AI7="","",'Educacion Fisica'!AI7) ->  | AG101: =IF('Educacion Fisica'!AJ7="","",'Educacion Fisica'!AJ7) ->  | AH101: =IF('Educacion Fisica'!AK7="","",'Educacion Fisica'!AK7) ->  | AI101: =IF('Educacion Fisica'!AL7="","",'Educacion Fisica'!AL7) ->  | AJ101: =IF('Educacion Fisica'!AM7="","",'Educacion Fisica'!AM7) ->  | AK101: =IF('Educacion Fisica'!AN7="","",'Educacion Fisica'!AN7) ->  | AL101: =IF('Educacion Fisica'!AO7="","",'Educacion Fisica'!AO7) ->  | AM101: =IF('Educacion Fisica'!AP7="","",'Educacion Fisica'!AP7) -> 
D102: Criterio Evaluación 1.5 | E102: =IF('Educacion Fisica'!H8="","",'Educacion Fisica'!H8) ->  | F102: =IF('Educacion Fisica'!I8="","",'Educacion Fisica'!I8) ->  | G102: =IF('Educacion Fisica'!J8="","",'Educacion Fisica'!J8) ->  | H102: =IF('Educacion Fisica'!K8="","",'Educacion Fisica'!K8) ->  | I102: =IF('Educacion Fisica'!L8="","",'Educacion Fisica'!L8) ->  | J102: =IF('Educacion Fisica'!M8="","",'Educacion Fisica'!M8) ->  | K102: =IF('Educacion Fisica'!N8="","",'Educacion Fisica'!N8) ->  | L102: =IF('Educacion Fisica'!O8="","",'Educacion Fisica'!O8) ->  | M102: =IF('Educacion Fisica'!P8="","",'Educacion Fisica'!P8) ->  | N102: =IF('Educacion Fisica'!Q8="","",'Educacion Fisica'!Q8) ->  | O102: =IF('Educacion Fisica'!R8="","",'Educacion Fisica'!R8) ->  | P102: =IF('Educacion Fisica'!S8="","",'Educacion Fisica'!S8) ->  | Q102: =IF('Educacion Fisica'!T8="","",'Educacion Fisica'!T8) ->  | R102: =IF('Educacion Fisica'!U8="","",'Educacion Fisica'!U8) ->  | S102: =IF('Educacion Fisica'!V8="","",'Educacion Fisica'!V8) ->  | T102: =IF('Educacion Fisica'!W8="","",'Educacion Fisica'!W8) ->  | U102: =IF('Educacion Fisica'!X8="","",'Educacion Fisica'!X8) ->  | V102: =IF('Educacion Fisica'!Y8="","",'Educacion Fisica'!Y8) ->  | W102: =IF('Educacion Fisica'!Z8="","",'Educacion Fisica'!Z8) ->  | X102: =IF('Educacion Fisica'!AA8="","",'Educacion Fisica'!AA8) ->  | Y102: =IF('Educacion Fisica'!AB8="","",'Educacion Fisica'!AB8) ->  | Z102: =IF('Educacion Fisica'!AC8="","",'Educacion Fisica'!AC8) ->  | AA102: =IF('Educacion Fisica'!AD8="","",'Educacion Fisica'!AD8) ->  | AB102: =IF('Educacion Fisica'!AE8="","",'Educacion Fisica'!AE8) ->  | AC102: =IF('Educacion Fisica'!AF8="","",'Educacion Fisica'!AF8) ->  | AD102: =IF('Educacion Fisica'!AG8="","",'Educacion Fisica'!AG8) ->  | AE102: =IF('Educacion Fisica'!AH8="","",'Educacion Fisica'!AH8) ->  | AF102: =IF('Educacion Fisica'!AI8="","",'Educacion Fisica'!AI8) ->  | AG102: =IF('Educacion Fisica'!AJ8="","",'Educacion Fisica'!AJ8) ->  | AH102: =IF('Educacion Fisica'!AK8="","",'Educacion Fisica'!AK8) ->  | AI102: =IF('Educacion Fisica'!AL8="","",'Educacion Fisica'!AL8) ->  | AJ102: =IF('Educacion Fisica'!AM8="","",'Educacion Fisica'!AM8) ->  | AK102: =IF('Educacion Fisica'!AN8="","",'Educacion Fisica'!AN8) ->  | AL102: =IF('Educacion Fisica'!AO8="","",'Educacion Fisica'!AO8) ->  | AM102: =IF('Educacion Fisica'!AP8="","",'Educacion Fisica'!AP8) -> 
D103: Criterio Evaluación 1.6 | E103: =IF('Educacion Fisica'!H9="","",'Educacion Fisica'!H9) ->  | F103: =IF('Educacion Fisica'!I9="","",'Educacion Fisica'!I9) ->  | G103: =IF('Educacion Fisica'!J9="","",'Educacion Fisica'!J9) ->  | H103: =IF('Educacion Fisica'!K9="","",'Educacion Fisica'!K9) ->  | I103: =IF('Educacion Fisica'!L9="","",'Educacion Fisica'!L9) ->  | J103: =IF('Educacion Fisica'!M9="","",'Educacion Fisica'!M9) ->  | K103: =IF('Educacion Fisica'!N9="","",'Educacion Fisica'!N9) ->  | L103: =IF('Educacion Fisica'!O9="","",'Educacion Fisica'!O9) ->  | M103: =IF('Educacion Fisica'!P9="","",'Educacion Fisica'!P9) ->  | N103: =IF('Educacion Fisica'!Q9="","",'Educacion Fisica'!Q9) ->  | O103: =IF('Educacion Fisica'!R9="","",'Educacion Fisica'!R9) ->  | P103: =IF('Educacion Fisica'!S9="","",'Educacion Fisica'!S9) ->  | Q103: =IF('Educacion Fisica'!T9="","",'Educacion Fisica'!T9) ->  | R103: =IF('Educacion Fisica'!U9="","",'Educacion Fisica'!U9) ->  | S103: =IF('Educacion Fisica'!V9="","",'Educacion Fisica'!V9) ->  | T103: =IF('Educacion Fisica'!W9="","",'Educacion Fisica'!W9) ->  | U103: =IF('Educacion Fisica'!X9="","",'Educacion Fisica'!X9) ->  | V103: =IF('Educacion Fisica'!Y9="","",'Educacion Fisica'!Y9) ->  | W103: =IF('Educacion Fisica'!Z9="","",'Educacion Fisica'!Z9) ->  | X103: =IF('Educacion Fisica'!AA9="","",'Educacion Fisica'!AA9) ->  | Y103: =IF('Educacion Fisica'!AB9="","",'Educacion Fisica'!AB9) ->  | Z103: =IF('Educacion Fisica'!AC9="","",'Educacion Fisica'!AC9) ->  | AA103: =IF('Educacion Fisica'!AD9="","",'Educacion Fisica'!AD9) ->  | AB103: =IF('Educacion Fisica'!AE9="","",'Educacion Fisica'!AE9) ->  | AC103: =IF('Educacion Fisica'!AF9="","",'Educacion Fisica'!AF9) ->  | AD103: =IF('Educacion Fisica'!AG9="","",'Educacion Fisica'!AG9) ->  | AE103: =IF('Educacion Fisica'!AH9="","",'Educacion Fisica'!AH9) ->  | AF103: =IF('Educacion Fisica'!AI9="","",'Educacion Fisica'!AI9) ->  | AG103: =IF('Educacion Fisica'!AJ9="","",'Educacion Fisica'!AJ9) ->  | AH103: =IF('Educacion Fisica'!AK9="","",'Educacion Fisica'!AK9) ->  | AI103: =IF('Educacion Fisica'!AL9="","",'Educacion Fisica'!AL9) ->  | AJ103: =IF('Educacion Fisica'!AM9="","",'Educacion Fisica'!AM9) ->  | AK103: =IF('Educacion Fisica'!AN9="","",'Educacion Fisica'!AN9) ->  | AL103: =IF('Educacion Fisica'!AO9="","",'Educacion Fisica'!AO9) ->  | AM103: =IF('Educacion Fisica'!AP9="","",'Educacion Fisica'!AP9) -> 
D104: Criterio Evaluación 1.7 | E104: =IF('Educacion Fisica'!H10="","",'Educacion Fisica'!H10) ->  | F104: =IF('Educacion Fisica'!I10="","",'Educacion Fisica'!I10) ->  | G104: =IF('Educacion Fisica'!J10="","",'Educacion Fisica'!J10) ->  | H104: =IF('Educacion Fisica'!K10="","",'Educacion Fisica'!K10) ->  | I104: =IF('Educacion Fisica'!L10="","",'Educacion Fisica'!L10) ->  | J104: =IF('Educacion Fisica'!M10="","",'Educacion Fisica'!M10) ->  | K104: =IF('Educacion Fisica'!N10="","",'Educacion Fisica'!N10) ->  | L104: =IF('Educacion Fisica'!O10="","",'Educacion Fisica'!O10) ->  | M104: =IF('Educacion Fisica'!P10="","",'Educacion Fisica'!P10) ->  | N104: =IF('Educacion Fisica'!Q10="","",'Educacion Fisica'!Q10) ->  | O104: =IF('Educacion Fisica'!R10="","",'Educacion Fisica'!R10) ->  | P104: =IF('Educacion Fisica'!S10="","",'Educacion Fisica'!S10) ->  | Q104: =IF('Educacion Fisica'!T10="","",'Educacion Fisica'!T10) ->  | R104: =IF('Educacion Fisica'!U10="","",'Educacion Fisica'!U10) ->  | S104: =IF('Educacion Fisica'!V10="","",'Educacion Fisica'!V10) ->  | T104: =IF('Educacion Fisica'!W10="","",'Educacion Fisica'!W10) ->  | U104: =IF('Educacion Fisica'!X10="","",'Educacion Fisica'!X10) ->  | V104: =IF('Educacion Fisica'!Y10="","",'Educacion Fisica'!Y10) ->  | W104: =IF('Educacion Fisica'!Z10="","",'Educacion Fisica'!Z10) ->  | X104: =IF('Educacion Fisica'!AA10="","",'Educacion Fisica'!AA10) ->  | Y104: =IF('Educacion Fisica'!AB10="","",'Educacion Fisica'!AB10) ->  | Z104: =IF('Educacion Fisica'!AC10="","",'Educacion Fisica'!AC10) ->  | AA104: =IF('Educacion Fisica'!AD10="","",'Educacion Fisica'!AD10) ->  | AB104: =IF('Educacion Fisica'!AE10="","",'Educacion Fisica'!AE10) ->  | AC104: =IF('Educacion Fisica'!AF10="","",'Educacion Fisica'!AF10) ->  | AD104: =IF('Educacion Fisica'!AG10="","",'Educacion Fisica'!AG10) ->  | AE104: =IF('Educacion Fisica'!AH10="","",'Educacion Fisica'!AH10) ->  | AF104: =IF('Educacion Fisica'!AI10="","",'Educacion Fisica'!AI10) ->  | AG104: =IF('Educacion Fisica'!AJ10="","",'Educacion Fisica'!AJ10) ->  | AH104: =IF('Educacion Fisica'!AK10="","",'Educacion Fisica'!AK10) ->  | AI104: =IF('Educacion Fisica'!AL10="","",'Educacion Fisica'!AL10) ->  | AJ104: =IF('Educacion Fisica'!AM10="","",'Educacion Fisica'!AM10) ->  | AK104: =IF('Educacion Fisica'!AN10="","",'Educacion Fisica'!AN10) ->  | AL104: =IF('Educacion Fisica'!AO10="","",'Educacion Fisica'!AO10) ->  | AM104: =IF('Educacion Fisica'!AP10="","",'Educacion Fisica'!AP10) -> 
D105: Criterio Evaluación 1.8 | E105: =IF('Educacion Fisica'!H11="","",'Educacion Fisica'!H11) ->  | F105: =IF('Educacion Fisica'!I11="","",'Educacion Fisica'!I11) ->  | G105: =IF('Educacion Fisica'!J11="","",'Educacion Fisica'!J11) ->  | H105: =IF('Educacion Fisica'!K11="","",'Educacion Fisica'!K11) ->  | I105: =IF('Educacion Fisica'!L11="","",'Educacion Fisica'!L11) ->  | J105: =IF('Educacion Fisica'!M11="","",'Educacion Fisica'!M11) ->  | K105: =IF('Educacion Fisica'!N11="","",'Educacion Fisica'!N11) ->  | L105: =IF('Educacion Fisica'!O11="","",'Educacion Fisica'!O11) ->  | M105: =IF('Educacion Fisica'!P11="","",'Educacion Fisica'!P11) ->  | N105: =IF('Educacion Fisica'!Q11="","",'Educacion Fisica'!Q11) ->  | O105: =IF('Educacion Fisica'!R11="","",'Educacion Fisica'!R11) ->  | P105: =IF('Educacion Fisica'!S11="","",'Educacion Fisica'!S11) ->  | Q105: =IF('Educacion Fisica'!T11="","",'Educacion Fisica'!T11) ->  | R105: =IF('Educacion Fisica'!U11="","",'Educacion Fisica'!U11) ->  | S105: =IF('Educacion Fisica'!V11="","",'Educacion Fisica'!V11) ->  | T105: =IF('Educacion Fisica'!W11="","",'Educacion Fisica'!W11) ->  | U105: =IF('Educacion Fisica'!X11="","",'Educacion Fisica'!X11) ->  | V105: =IF('Educacion Fisica'!Y11="","",'Educacion Fisica'!Y11) ->  | W105: =IF('Educacion Fisica'!Z11="","",'Educacion Fisica'!Z11) ->  | X105: =IF('Educacion Fisica'!AA11="","",'Educacion Fisica'!AA11) ->  | Y105: =IF('Educacion Fisica'!AB11="","",'Educacion Fisica'!AB11) ->  | Z105: =IF('Educacion Fisica'!AC11="","",'Educacion Fisica'!AC11) ->  | AA105: =IF('Educacion Fisica'!AD11="","",'Educacion Fisica'!AD11) ->  | AB105: =IF('Educacion Fisica'!AE11="","",'Educacion Fisica'!AE11) ->  | AC105: =IF('Educacion Fisica'!AF11="","",'Educacion Fisica'!AF11) ->  | AD105: =IF('Educacion Fisica'!AG11="","",'Educacion Fisica'!AG11) ->  | AE105: =IF('Educacion Fisica'!AH11="","",'Educacion Fisica'!AH11) ->  | AF105: =IF('Educacion Fisica'!AI11="","",'Educacion Fisica'!AI11) ->  | AG105: =IF('Educacion Fisica'!AJ11="","",'Educacion Fisica'!AJ11) ->  | AH105: =IF('Educacion Fisica'!AK11="","",'Educacion Fisica'!AK11) ->  | AI105: =IF('Educacion Fisica'!AL11="","",'Educacion Fisica'!AL11) ->  | AJ105: =IF('Educacion Fisica'!AM11="","",'Educacion Fisica'!AM11) ->  | AK105: =IF('Educacion Fisica'!AN11="","",'Educacion Fisica'!AN11) ->  | AL105: =IF('Educacion Fisica'!AO11="","",'Educacion Fisica'!AO11) ->  | AM105: =IF('Educacion Fisica'!AP11="","",'Educacion Fisica'!AP11) -> 
D106: Criterio Evaluación 1.9 | E106: =IF('Educacion Fisica'!H12="","",'Educacion Fisica'!H12) ->  | F106: =IF('Educacion Fisica'!I12="","",'Educacion Fisica'!I12) ->  | G106: =IF('Educacion Fisica'!J12="","",'Educacion Fisica'!J12) ->  | H106: =IF('Educacion Fisica'!K12="","",'Educacion Fisica'!K12) ->  | I106: =IF('Educacion Fisica'!L12="","",'Educacion Fisica'!L12) ->  | J106: =IF('Educacion Fisica'!M12="","",'Educacion Fisica'!M12) ->  | K106: =IF('Educacion Fisica'!N12="","",'Educacion Fisica'!N12) ->  | L106: =IF('Educacion Fisica'!O12="","",'Educacion Fisica'!O12) ->  | M106: =IF('Educacion Fisica'!P12="","",'Educacion Fisica'!P12) ->  | N106: =IF('Educacion Fisica'!Q12="","",'Educacion Fisica'!Q12) ->  | O106: =IF('Educacion Fisica'!R12="","",'Educacion Fisica'!R12) ->  | P106: =IF('Educacion Fisica'!S12="","",'Educacion Fisica'!S12) ->  | Q106: =IF('Educacion Fisica'!T12="","",'Educacion Fisica'!T12) ->  | R106: =IF('Educacion Fisica'!U12="","",'Educacion Fisica'!U12) ->  | S106: =IF('Educacion Fisica'!V12="","",'Educacion Fisica'!V12) ->  | T106: =IF('Educacion Fisica'!W12="","",'Educacion Fisica'!W12) ->  | U106: =IF('Educacion Fisica'!X12="","",'Educacion Fisica'!X12) ->  | V106: =IF('Educacion Fisica'!Y12="","",'Educacion Fisica'!Y12) ->  | W106: =IF('Educacion Fisica'!Z12="","",'Educacion Fisica'!Z12) ->  | X106: =IF('Educacion Fisica'!AA12="","",'Educacion Fisica'!AA12) ->  | Y106: =IF('Educacion Fisica'!AB12="","",'Educacion Fisica'!AB12) ->  | Z106: =IF('Educacion Fisica'!AC12="","",'Educacion Fisica'!AC12) ->  | AA106: =IF('Educacion Fisica'!AD12="","",'Educacion Fisica'!AD12) ->  | AB106: =IF('Educacion Fisica'!AE12="","",'Educacion Fisica'!AE12) ->  | AC106: =IF('Educacion Fisica'!AF12="","",'Educacion Fisica'!AF12) ->  | AD106: =IF('Educacion Fisica'!AG12="","",'Educacion Fisica'!AG12) ->  | AE106: =IF('Educacion Fisica'!AH12="","",'Educacion Fisica'!AH12) ->  | AF106: =IF('Educacion Fisica'!AI12="","",'Educacion Fisica'!AI12) ->  | AG106: =IF('Educacion Fisica'!AJ12="","",'Educacion Fisica'!AJ12) ->  | AH106: =IF('Educacion Fisica'!AK12="","",'Educacion Fisica'!AK12) ->  | AI106: =IF('Educacion Fisica'!AL12="","",'Educacion Fisica'!AL12) ->  | AJ106: =IF('Educacion Fisica'!AM12="","",'Educacion Fisica'!AM12) ->  | AK106: =IF('Educacion Fisica'!AN12="","",'Educacion Fisica'!AN12) ->  | AL106: =IF('Educacion Fisica'!AO12="","",'Educacion Fisica'!AO12) ->  | AM106: =IF('Educacion Fisica'!AP12="","",'Educacion Fisica'!AP12) -> 
C107: Comp. Esp. 2 | D107: Criterio Evaluación 2.1 | E107: =IF('Educacion Fisica'!H13="","",'Educacion Fisica'!H13) ->  | F107: =IF('Educacion Fisica'!I13="","",'Educacion Fisica'!I13) ->  | G107: =IF('Educacion Fisica'!J13="","",'Educacion Fisica'!J13) ->  | H107: =IF('Educacion Fisica'!K13="","",'Educacion Fisica'!K13) ->  | I107: =IF('Educacion Fisica'!L13="","",'Educacion Fisica'!L13) ->  | J107: =IF('Educacion Fisica'!M13="","",'Educacion Fisica'!M13) ->  | K107: =IF('Educacion Fisica'!N13="","",'Educacion Fisica'!N13) ->  | L107: =IF('Educacion Fisica'!O13="","",'Educacion Fisica'!O13) ->  | M107: =IF('Educacion Fisica'!P13="","",'Educacion Fisica'!P13) ->  | N107: =IF('Educacion Fisica'!Q13="","",'Educacion Fisica'!Q13) ->  | O107: =IF('Educacion Fisica'!R13="","",'Educacion Fisica'!R13) ->  | P107: =IF('Educacion Fisica'!S13="","",'Educacion Fisica'!S13) ->  | Q107: =IF('Educacion Fisica'!T13="","",'Educacion Fisica'!T13) ->  | R107: =IF('Educacion Fisica'!U13="","",'Educacion Fisica'!U13) ->  | S107: =IF('Educacion Fisica'!V13="","",'Educacion Fisica'!V13) ->  | T107: =IF('Educacion Fisica'!W13="","",'Educacion Fisica'!W13) ->  | U107: =IF('Educacion Fisica'!X13="","",'Educacion Fisica'!X13) ->  | V107: =IF('Educacion Fisica'!Y13="","",'Educacion Fisica'!Y13) ->  | W107: =IF('Educacion Fisica'!Z13="","",'Educacion Fisica'!Z13) ->  | X107: =IF('Educacion Fisica'!AA13="","",'Educacion Fisica'!AA13) ->  | Y107: =IF('Educacion Fisica'!AB13="","",'Educacion Fisica'!AB13) ->  | Z107: =IF('Educacion Fisica'!AC13="","",'Educacion Fisica'!AC13) ->  | AA107: =IF('Educacion Fisica'!AD13="","",'Educacion Fisica'!AD13) ->  | AB107: =IF('Educacion Fisica'!AE13="","",'Educacion Fisica'!AE13) ->  | AC107: =IF('Educacion Fisica'!AF13="","",'Educacion Fisica'!AF13) ->  | AD107: =IF('Educacion Fisica'!AG13="","",'Educacion Fisica'!AG13) ->  | AE107: =IF('Educacion Fisica'!AH13="","",'Educacion Fisica'!AH13) ->  | AF107: =IF('Educacion Fisica'!AI13="","",'Educacion Fisica'!AI13) ->  | AG107: =IF('Educacion Fisica'!AJ13="","",'Educacion Fisica'!AJ13) ->  | AH107: =IF('Educacion Fisica'!AK13="","",'Educacion Fisica'!AK13) ->  | AI107: =IF('Educacion Fisica'!AL13="","",'Educacion Fisica'!AL13) ->  | AJ107: =IF('Educacion Fisica'!AM13="","",'Educacion Fisica'!AM13) ->  | AK107: =IF('Educacion Fisica'!AN13="","",'Educacion Fisica'!AN13) ->  | AL107: =IF('Educacion Fisica'!AO13="","",'Educacion Fisica'!AO13) ->  | AM107: =IF('Educacion Fisica'!AP13="","",'Educacion Fisica'!AP13) -> 
D108: Criterio Evaluación 2.2 | E108: =IF('Educacion Fisica'!H14="","",'Educacion Fisica'!H14) ->  | F108: =IF('Educacion Fisica'!I14="","",'Educacion Fisica'!I14) ->  | G108: =IF('Educacion Fisica'!J14="","",'Educacion Fisica'!J14) ->  | H108: =IF('Educacion Fisica'!K14="","",'Educacion Fisica'!K14) ->  | I108: =IF('Educacion Fisica'!L14="","",'Educacion Fisica'!L14) ->  | J108: =IF('Educacion Fisica'!M14="","",'Educacion Fisica'!M14) ->  | K108: =IF('Educacion Fisica'!N14="","",'Educacion Fisica'!N14) ->  | L108: =IF('Educacion Fisica'!O14="","",'Educacion Fisica'!O14) ->  | M108: =IF('Educacion Fisica'!P14="","",'Educacion Fisica'!P14) ->  | N108: =IF('Educacion Fisica'!Q14="","",'Educacion Fisica'!Q14) ->  | O108: =IF('Educacion Fisica'!R14="","",'Educacion Fisica'!R14) ->  | P108: =IF('Educacion Fisica'!S14="","",'Educacion Fisica'!S14) ->  | Q108: =IF('Educacion Fisica'!T14="","",'Educacion Fisica'!T14) ->  | R108: =IF('Educacion Fisica'!U14="","",'Educacion Fisica'!U14) ->  | S108: =IF('Educacion Fisica'!V14="","",'Educacion Fisica'!V14) ->  | T108: =IF('Educacion Fisica'!W14="","",'Educacion Fisica'!W14) ->  | U108: =IF('Educacion Fisica'!X14="","",'Educacion Fisica'!X14) ->  | V108: =IF('Educacion Fisica'!Y14="","",'Educacion Fisica'!Y14) ->  | W108: =IF('Educacion Fisica'!Z14="","",'Educacion Fisica'!Z14) ->  | X108: =IF('Educacion Fisica'!AA14="","",'Educacion Fisica'!AA14) ->  | Y108: =IF('Educacion Fisica'!AB14="","",'Educacion Fisica'!AB14) ->  | Z108: =IF('Educacion Fisica'!AC14="","",'Educacion Fisica'!AC14) ->  | AA108: =IF('Educacion Fisica'!AD14="","",'Educacion Fisica'!AD14) ->  | AB108: =IF('Educacion Fisica'!AE14="","",'Educacion Fisica'!AE14) ->  | AC108: =IF('Educacion Fisica'!AF14="","",'Educacion Fisica'!AF14) ->  | AD108: =IF('Educacion Fisica'!AG14="","",'Educacion Fisica'!AG14) ->  | AE108: =IF('Educacion Fisica'!AH14="","",'Educacion Fisica'!AH14) ->  | AF108: =IF('Educacion Fisica'!AI14="","",'Educacion Fisica'!AI14) ->  | AG108: =IF('Educacion Fisica'!AJ14="","",'Educacion Fisica'!AJ14) ->  | AH108: =IF('Educacion Fisica'!AK14="","",'Educacion Fisica'!AK14) ->  | AI108: =IF('Educacion Fisica'!AL14="","",'Educacion Fisica'!AL14) ->  | AJ108: =IF('Educacion Fisica'!AM14="","",'Educacion Fisica'!AM14) ->  | AK108: =IF('Educacion Fisica'!AN14="","",'Educacion Fisica'!AN14) ->  | AL108: =IF('Educacion Fisica'!AO14="","",'Educacion Fisica'!AO14) ->  | AM108: =IF('Educacion Fisica'!AP14="","",'Educacion Fisica'!AP14) -> 
D109: Criterio Evaluación 2.3 | E109: =IF('Educacion Fisica'!H15="","",'Educacion Fisica'!H15) ->  | F109: =IF('Educacion Fisica'!I15="","",'Educacion Fisica'!I15) ->  | G109: =IF('Educacion Fisica'!J15="","",'Educacion Fisica'!J15) ->  | H109: =IF('Educacion Fisica'!K15="","",'Educacion Fisica'!K15) ->  | I109: =IF('Educacion Fisica'!L15="","",'Educacion Fisica'!L15) ->  | J109: =IF('Educacion Fisica'!M15="","",'Educacion Fisica'!M15) ->  | K109: =IF('Educacion Fisica'!N15="","",'Educacion Fisica'!N15) ->  | L109: =IF('Educacion Fisica'!O15="","",'Educacion Fisica'!O15) ->  | M109: =IF('Educacion Fisica'!P15="","",'Educacion Fisica'!P15) ->  | N109: =IF('Educacion Fisica'!Q15="","",'Educacion Fisica'!Q15) ->  | O109: =IF('Educacion Fisica'!R15="","",'Educacion Fisica'!R15) ->  | P109: =IF('Educacion Fisica'!S15="","",'Educacion Fisica'!S15) ->  | Q109: =IF('Educacion Fisica'!T15="","",'Educacion Fisica'!T15) ->  | R109: =IF('Educacion Fisica'!U15="","",'Educacion Fisica'!U15) ->  | S109: =IF('Educacion Fisica'!V15="","",'Educacion Fisica'!V15) ->  | T109: =IF('Educacion Fisica'!W15="","",'Educacion Fisica'!W15) ->  | U109: =IF('Educacion Fisica'!X15="","",'Educacion Fisica'!X15) ->  | V109: =IF('Educacion Fisica'!Y15="","",'Educacion Fisica'!Y15) ->  | W109: =IF('Educacion Fisica'!Z15="","",'Educacion Fisica'!Z15) ->  | X109: =IF('Educacion Fisica'!AA15="","",'Educacion Fisica'!AA15) ->  | Y109: =IF('Educacion Fisica'!AB15="","",'Educacion Fisica'!AB15) ->  | Z109: =IF('Educacion Fisica'!AC15="","",'Educacion Fisica'!AC15) ->  | AA109: =IF('Educacion Fisica'!AD15="","",'Educacion Fisica'!AD15) ->  | AB109: =IF('Educacion Fisica'!AE15="","",'Educacion Fisica'!AE15) ->  | AC109: =IF('Educacion Fisica'!AF15="","",'Educacion Fisica'!AF15) ->  | AD109: =IF('Educacion Fisica'!AG15="","",'Educacion Fisica'!AG15) ->  | AE109: =IF('Educacion Fisica'!AH15="","",'Educacion Fisica'!AH15) ->  | AF109: =IF('Educacion Fisica'!AI15="","",'Educacion Fisica'!AI15) ->  | AG109: =IF('Educacion Fisica'!AJ15="","",'Educacion Fisica'!AJ15) ->  | AH109: =IF('Educacion Fisica'!AK15="","",'Educacion Fisica'!AK15) ->  | AI109: =IF('Educacion Fisica'!AL15="","",'Educacion Fisica'!AL15) ->  | AJ109: =IF('Educacion Fisica'!AM15="","",'Educacion Fisica'!AM15) ->  | AK109: =IF('Educacion Fisica'!AN15="","",'Educacion Fisica'!AN15) ->  | AL109: =IF('Educacion Fisica'!AO15="","",'Educacion Fisica'!AO15) ->  | AM109: =IF('Educacion Fisica'!AP15="","",'Educacion Fisica'!AP15) -> 
D110: Criterio Evaluación 2.4 | E110: =IF('Educacion Fisica'!H16="","",'Educacion Fisica'!H16) ->  | F110: =IF('Educacion Fisica'!I16="","",'Educacion Fisica'!I16) ->  | G110: =IF('Educacion Fisica'!J16="","",'Educacion Fisica'!J16) ->  | H110: =IF('Educacion Fisica'!K16="","",'Educacion Fisica'!K16) ->  | I110: =IF('Educacion Fisica'!L16="","",'Educacion Fisica'!L16) ->  | J110: =IF('Educacion Fisica'!M16="","",'Educacion Fisica'!M16) ->  | K110: =IF('Educacion Fisica'!N16="","",'Educacion Fisica'!N16) ->  | L110: =IF('Educacion Fisica'!O16="","",'Educacion Fisica'!O16) ->  | M110: =IF('Educacion Fisica'!P16="","",'Educacion Fisica'!P16) ->  | N110: =IF('Educacion Fisica'!Q16="","",'Educacion Fisica'!Q16) ->  | O110: =IF('Educacion Fisica'!R16="","",'Educacion Fisica'!R16) ->  | P110: =IF('Educacion Fisica'!S16="","",'Educacion Fisica'!S16) ->  | Q110: =IF('Educacion Fisica'!T16="","",'Educacion Fisica'!T16) ->  | R110: =IF('Educacion Fisica'!U16="","",'Educacion Fisica'!U16) ->  | S110: =IF('Educacion Fisica'!V16="","",'Educacion Fisica'!V16) ->  | T110: =IF('Educacion Fisica'!W16="","",'Educacion Fisica'!W16) ->  | U110: =IF('Educacion Fisica'!X16="","",'Educacion Fisica'!X16) ->  | V110: =IF('Educacion Fisica'!Y16="","",'Educacion Fisica'!Y16) ->  | W110: =IF('Educacion Fisica'!Z16="","",'Educacion Fisica'!Z16) ->  | X110: =IF('Educacion Fisica'!AA16="","",'Educacion Fisica'!AA16) ->  | Y110: =IF('Educacion Fisica'!AB16="","",'Educacion Fisica'!AB16) ->  | Z110: =IF('Educacion Fisica'!AC16="","",'Educacion Fisica'!AC16) ->  | AA110: =IF('Educacion Fisica'!AD16="","",'Educacion Fisica'!AD16) ->  | AB110: =IF('Educacion Fisica'!AE16="","",'Educacion Fisica'!AE16) ->  | AC110: =IF('Educacion Fisica'!AF16="","",'Educacion Fisica'!AF16) ->  | AD110: =IF('Educacion Fisica'!AG16="","",'Educacion Fisica'!AG16) ->  | AE110: =IF('Educacion Fisica'!AH16="","",'Educacion Fisica'!AH16) ->  | AF110: =IF('Educacion Fisica'!AI16="","",'Educacion Fisica'!AI16) ->  | AG110: =IF('Educacion Fisica'!AJ16="","",'Educacion Fisica'!AJ16) ->  | AH110: =IF('Educacion Fisica'!AK16="","",'Educacion Fisica'!AK16) ->  | AI110: =IF('Educacion Fisica'!AL16="","",'Educacion Fisica'!AL16) ->  | AJ110: =IF('Educacion Fisica'!AM16="","",'Educacion Fisica'!AM16) ->  | AK110: =IF('Educacion Fisica'!AN16="","",'Educacion Fisica'!AN16) ->  | AL110: =IF('Educacion Fisica'!AO16="","",'Educacion Fisica'!AO16) ->  | AM110: =IF('Educacion Fisica'!AP16="","",'Educacion Fisica'!AP16) -> 
C111: Comp. Esp. 3 | D111: Criterio Evaluación 3.1 | E111: =IF('Educacion Fisica'!H17="","",'Educacion Fisica'!H17) ->  | F111: =IF('Educacion Fisica'!I17="","",'Educacion Fisica'!I17) ->  | G111: =IF('Educacion Fisica'!J17="","",'Educacion Fisica'!J17) ->  | H111: =IF('Educacion Fisica'!K17="","",'Educacion Fisica'!K17) ->  | I111: =IF('Educacion Fisica'!L17="","",'Educacion Fisica'!L17) ->  | J111: =IF('Educacion Fisica'!M17="","",'Educacion Fisica'!M17) ->  | K111: =IF('Educacion Fisica'!N17="","",'Educacion Fisica'!N17) ->  | L111: =IF('Educacion Fisica'!O17="","",'Educacion Fisica'!O17) ->  | M111: =IF('Educacion Fisica'!P17="","",'Educacion Fisica'!P17) ->  | N111: =IF('Educacion Fisica'!Q17="","",'Educacion Fisica'!Q17) ->  | O111: =IF('Educacion Fisica'!R17="","",'Educacion Fisica'!R17) ->  | P111: =IF('Educacion Fisica'!S17="","",'Educacion Fisica'!S17) ->  | Q111: =IF('Educacion Fisica'!T17="","",'Educacion Fisica'!T17) ->  | R111: =IF('Educacion Fisica'!U17="","",'Educacion Fisica'!U17) ->  | S111: =IF('Educacion Fisica'!V17="","",'Educacion Fisica'!V17) ->  | T111: =IF('Educacion Fisica'!W17="","",'Educacion Fisica'!W17) ->  | U111: =IF('Educacion Fisica'!X17="","",'Educacion Fisica'!X17) ->  | V111: =IF('Educacion Fisica'!Y17="","",'Educacion Fisica'!Y17) ->  | W111: =IF('Educacion Fisica'!Z17="","",'Educacion Fisica'!Z17) ->  | X111: =IF('Educacion Fisica'!AA17="","",'Educacion Fisica'!AA17) ->  | Y111: =IF('Educacion Fisica'!AB17="","",'Educacion Fisica'!AB17) ->  | Z111: =IF('Educacion Fisica'!AC17="","",'Educacion Fisica'!AC17) ->  | AA111: =IF('Educacion Fisica'!AD17="","",'Educacion Fisica'!AD17) ->  | AB111: =IF('Educacion Fisica'!AE17="","",'Educacion Fisica'!AE17) ->  | AC111: =IF('Educacion Fisica'!AF17="","",'Educacion Fisica'!AF17) ->  | AD111: =IF('Educacion Fisica'!AG17="","",'Educacion Fisica'!AG17) ->  | AE111: =IF('Educacion Fisica'!AH17="","",'Educacion Fisica'!AH17) ->  | AF111: =IF('Educacion Fisica'!AI17="","",'Educacion Fisica'!AI17) ->  | AG111: =IF('Educacion Fisica'!AJ17="","",'Educacion Fisica'!AJ17) ->  | AH111: =IF('Educacion Fisica'!AK17="","",'Educacion Fisica'!AK17) ->  | AI111: =IF('Educacion Fisica'!AL17="","",'Educacion Fisica'!AL17) ->  | AJ111: =IF('Educacion Fisica'!AM17="","",'Educacion Fisica'!AM17) ->  | AK111: =IF('Educacion Fisica'!AN17="","",'Educacion Fisica'!AN17) ->  | AL111: =IF('Educacion Fisica'!AO17="","",'Educacion Fisica'!AO17) ->  | AM111: =IF('Educacion Fisica'!AP17="","",'Educacion Fisica'!AP17) -> 
